Workbook

Sheet Startseite
E2: exactfinance 2020 | G2: Aktueller Monat | H2: März
G3: Aktuelles Jahr | H3: 2020
G4: Start Jahr | H4: 2015
C8: Kontenplan importieren
C10: Der Kontenplan muss einmalig importiert werden. Anschliessend nur noch, wenn neue Konti vorhanden sind.
C13: Journal aller Buchungen importieren
C15: Das Journal sollte sämtliche Jahre enthalten, welche analysiert werden möchten.
C18: Dashboard
C20: Übersicht (Umsatz, Bruttogewinn, Gewinn) anzeigen.
C23: Erfolgsrechnungsdetails anzeigen
C25: Hier wird die gesamte Erfolgsrechnung aller Jahre und Monate angezeigt.
C28: Erfolgsrechnung - Jahres- und Periodenvergleiche
C30: Mittels dieser Funktion kann die gesamte Erfolgrechnung mit Vorperioden verglichen werden.
C33: Datenblatt
C35: Hier werden sämtliche Buchungen angezeigt. Das Datenblatt ist die Basis für sämtliche Auswertungen.
C38: Budgetplanung
C40: Hier erfassen Sie Ihre Budgetzahlen pro Konto auf Monatsbasis.
C43: Kontogruppe und Logo
C45: Hier können Sie für den Export Logos einfügen und die Kontogruppen selbst mit den Abschnitten in der Erfolgsrechnung verknüpfen.
B50: © exact construct GmbH | H50: Version 2021 können Sie hier herunterladen

Sheet Dashboard
K3: Anzeigeart auswählen | L3: Nicht kumuliert
B11: Umsatzentwicklung
C13: =DATE(jahr,1,1) -> 2020-01-01 | D13: =EOMONTH(C13,0)+1 -> 2020-02-01 | E13: =EOMONTH(D13,0)+1 -> 2020-03-01 | F13: 2020-04-01 | G13: 2020-05-01 | H13: 2020-06-01 | I13: 2020-07-01 | J13: 2020-08-01 | K13: 2020-09-01 | L13: 2020-10-01 | M13: 2020-11-01 | N13: 2020-12-01 | P13: ="YTD " & IF(INDEX(tblMonate[Nr],MATCH(monat,tblMonate[Monate],0))<> 1, Einstellungen!$AY$8 &" bis " & monat,Einstellungen!$AY$8) -> YTD Januar bis März | Q13: Total
B14: =B15-1 -> 2014 | C14: =IFERROR( SUMIF(INDIRECT(dshbrdrng_umsatzentwicklung),"<>", INDEX(INDIRECT(dshbrdrng_umsatzentwicklung2),0,MATCH(DATE($B14,MONTH(C$13),1),Erfolgsrechnung_Detail!$O$8:$DF$8,0))), "") ->  | D14: =IFERROR( IF(INDEX(tblUmsatzFltr[Nr],MATCH(filter_umsatz,tblUmsatzFltr[Umsatz Filter],0)) = 1, SUMIF(INDIRECT(dshbrdrng_umsatzentwicklung),"<>", INDEX(INDIRECT(dshbrdrng_umsatzentwicklung2),0,MATCH(DATE($B14,MONTH(D$13),1),Erfolgsrechnung_Detail!$O$8:$DF$8,0))), SUMIF(INDIRECT(dshbrdrng_umsatzentwicklung),"<>", INDEX(INDIRECT(dshbrdrng_umsatzentwicklung2),0,MATCH(DATE($B14,MONTH(D$13),1),Erfolgsrechnung_Detail!$O$8:$DF$8,0)))+C14),"") ->  | E14: =IFERROR( IF(INDEX(tblUmsatzFltr[Nr],MATCH(filter_umsatz,tblUmsatzFltr[Umsatz Filter],0)) = 1, SUMIF(INDIRECT(dshbrdrng_umsatzentwicklung),"<>", INDEX(INDIRECT(dshbrdrng_umsatzentwicklung2),0,MATCH(DATE($B14,MONTH(E$13),1),Erfolgsrechnung_Detail!$O$8:$DF$8,0))), SUMIF(INDIRECT(dshbrdrng_umsatzentwicklung),"<>", INDEX(INDIRECT(dshbrdrng_umsatzentwicklung2),0,MATCH(DATE($B14,MONTH(E$13),1),Erfolgsrechnung_Detail!$O$8:$DF$8,0)))+D14),"") ->  | F14: =IFERROR( IF(INDEX(tblUmsatzFltr[Nr],MATCH(filter_umsatz,tblUmsatzFltr[Umsatz Filter],0)) = 1, SUMIF(INDIRECT(dshbrdrng_umsatzentwicklung),"<>", INDEX(INDIRECT(dshbrdrng_umsatzentwicklung2),0,MATCH(DATE($B14,MONTH(F$13),1),Erfolgsrechnung_Detail!$O$8:$DF$8,0))), SUMIF(INDIRECT(dshbrdrng_umsatzentwicklung),"<>", INDEX(INDIRECT(dshbrdrng_umsatzentwicklung2),0,MATCH(DATE($B14,MONTH(F$13),1),Erfolgsrechnung_Detail!$O$8:$DF$8,0)))+E14),"") ->  | G14: =IFERROR( IF(INDEX(tblUmsatzFltr[Nr],MATCH(filter_umsatz,tblUmsatzFltr[Umsatz Filter],0)) = 1, SUMIF(INDIRECT(dshbrdrng_umsatzentwicklung),"<>", INDEX(INDIRECT(dshbrdrng_umsatzentwicklung2),0,MATCH(DATE($B14,MONTH(G$13),1),Erfolgsrechnung_Detail!$O$8:$DF$8,0))), SUMIF(INDIRECT(dshbrdrng_umsatzentwicklung),"<>", INDEX(INDIRECT(dshbrdrng_umsatzentwicklung2),0,MATCH(DATE($B14,MONTH(G$13),1),Erfolgsrechnung_Detail!$O$8:$DF$8,0)))+F14),"") ->  | H14: =IFERROR( IF(INDEX(tblUmsatzFltr[Nr],MATCH(filter_umsatz,tblUmsatzFltr[Umsatz Filter],0)) = 1, SUMIF(INDIRECT(dshbrdrng_umsatzentwicklung),"<>", INDEX(INDIRECT(dshbrdrng_umsatzentwicklung2),0,MATCH(DATE($B14,MONTH(H$13),1),Erfolgsrechnung_Detail!$O$8:$DF$8,0))), SUMIF(INDIRECT(dshbrdrng_umsatzentwicklung),"<>", INDEX(INDIRECT(dshbrdrng_umsatzentwicklung2),0,MATCH(DATE($B14,MONTH(H$13),1),Erfolgsrechnung_Detail!$O$8:$DF$8,0)))+G14),"") ->  | I14: =IFERROR( IF(INDEX(tblUmsatzFltr[Nr],MATCH(filter_umsatz,tblUmsatzFltr[Umsatz Filter],0)) = 1, SUMIF(INDIRECT(dshbrdrng_umsatzentwicklung),"<>", INDEX(INDIRECT(dshbrdrng_umsatzentwicklung2),0,MATCH(DATE($B14,MONTH(I$13),1),Erfolgsrechnung_Detail!$O$8:$DF$8,0))), SUMIF(INDIRECT(dshbrdrng_umsatzentwicklung),"<>", INDEX(INDIRECT(dshbrdrng_umsatzentwicklung2),0,MATCH(DATE($B14,MONTH(I$13),1),Erfolgsrechnung_Detail!$O$8:$DF$8,0)))+H14),"") ->  | J14: =IFERROR( IF(INDEX(tblUmsatzFltr[Nr],MATCH(filter_umsatz,tblUmsatzFltr[Umsatz Filter],0)) = 1, SUMIF(INDIRECT(dshbrdrng_umsatzentwicklung),"<>", INDEX(INDIRECT(dshbrdrng_umsatzentwicklung2),0,MATCH(DATE($B14,MONTH(J$13),1),Erfolgsrechnung_Detail!$O$8:$DF$8,0))), SUMIF(INDIRECT(dshbrdrng_umsatzentwicklung),"<>", INDEX(INDIRECT(dshbrdrng_umsatzentwicklung2),0,MATCH(DATE($B14,MONTH(J$13),1),Erfolgsrechnung_Detail!$O$8:$DF$8,0)))+I14),"") ->  | K14: =IFERROR( IF(INDEX(tblUmsatzFltr[Nr],MATCH(filter_umsatz,tblUmsatzFltr[Umsatz Filter],0)) = 1, SUMIF(INDIRECT(dshbrdrng_umsatzentwicklung),"<>", INDEX(INDIRECT(dshbrdrng_umsatzentwicklung2),0,MATCH(DATE($B14,MONTH(K$13),1),Erfolgsrechnung_Detail!$O$8:$DF$8,0))), SUMIF(INDIRECT(dshbrdrng_umsatzentwicklung),"<>", INDEX(INDIRECT(dshbrdrng_umsatzentwicklung2),0,MATCH(DATE($B14,MONTH(K$13),1),Erfolgsrechnung_Detail!$O$8:$DF$8,0)))+J14),"") ->  | L14: =IFERROR( IF(INDEX(tblUmsatzFltr[Nr],MATCH(filter_umsatz,tblUmsatzFltr[Umsatz Filter],0)) = 1, SUMIF(INDIRECT(dshbrdrng_umsatzentwicklung),"<>", INDEX(INDIRECT(dshbrdrng_umsatzentwicklung2),0,MATCH(DATE($B14,MONTH(L$13),1),Erfolgsrechnung_Detail!$O$8:$DF$8,0))), SUMIF(INDIRECT(dshbrdrng_umsatzentwicklung),"<>", INDEX(INDIRECT(dshbrdrng_umsatzentwicklung2),0,MATCH(DATE($B14,MONTH(L$13),1),Erfolgsrechnung_Detail!$O$8:$DF$8,0)))+K14),"") ->  | M14: =IFERROR( IF(INDEX(tblUmsatzFltr[Nr],MATCH(filter_umsatz,tblUmsatzFltr[Umsatz Filter],0)) = 1, SUMIF(INDIRECT(dshbrdrng_umsatzentwicklung),"<>", INDEX(INDIRECT(dshbrdrng_umsatzentwicklung2),0,MATCH(DATE($B14,MONTH(M$13),1),Erfolgsrechnung_Detail!$O$8:$DF$8,0))), SUMIF(INDIRECT(dshbrdrng_umsatzentwicklung),"<>", INDEX(INDIRECT(dshbrdrng_umsatzentwicklung2),0,MATCH(DATE($B14,MONTH(M$13),1),Erfolgsrechnung_Detail!$O$8:$DF$8,0)))+L14),"") ->  | N14: =IFERROR( IF(INDEX(tblUmsatzFltr[Nr],MATCH(filter_umsatz,tblUmsatzFltr[Umsatz Filter],0)) = 1, SUMIF(INDIRECT(dshbrdrng_umsatzentwicklung),"<>", INDEX(INDIRECT(dshbrdrng_umsatzentwicklung2),0,MATCH(DATE($B14,MONTH(N$13),1),Erfolgsrechnung_Detail!$O$8:$DF$8,0))), SUMIF(INDIRECT(dshbrdrng_umsatzentwicklung),"<>", INDEX(INDIRECT(dshbrdrng_umsatzentwicklung2),0,MATCH(DATE($B14,MONTH(N$13),1),Erfolgsrechnung_Detail!$O$8:$DF$8,0)))+M14),"") ->  | P14: =IFERROR(IF( INDEX(tblUmsatzFltr[Nr],MATCH(filter_umsatz,tblUmsatzFltr[Umsatz Filter],0))=1, SUM($C14:INDEX($C14:$N14,1,selectedmonat_num)), INDEX($C14:$N14,0,MATCH(monat,tblMonate[Monate],0))),"") -> 0 | Q14: =IFERROR( IF(INDEX(tblUmsatzFltr[Nr],MATCH(filter_umsatz,tblUmsatzFltr[Umsatz Filter],0))=1, SUM(C14:$N14),N14),"") -> 0
B15: 2015 | C15: =IFERROR( SUMIF(INDIRECT(dshbrdrng_umsatzentwicklung),"<>", INDEX(INDIRECT(dshbrdrng_umsatzentwicklung2),0,MATCH(DATE($B15,MONTH(C$13),1),Erfolgsrechnung_Detail!$O$8:$DF$8,0))), "") -> 5675.054052 | D15: =IFERROR( IF(INDEX(tblUmsatzFltr[Nr],MATCH(filter_umsatz,tblUmsatzFltr[Umsatz Filter],0)) = 1, SUMIF(INDIRECT(dshbrdrng_umsatzentwicklung),"<>", INDEX(INDIRECT(dshbrdrng_umsatzentwicklung2),0,MATCH(DATE($B15,MONTH(D$13),1),Erfolgsrechnung_Detail!$O$8:$DF$8,0))), SUMIF(INDIRECT(dshbrdrng_umsatzentwicklung),"<>", INDEX(INDIRECT(dshbrdrng_umsatzentwicklung2),0,MATCH(DATE($B15,MONTH(D$13),1),Erfolgsrechnung_Detail!$O$8:$DF$8,0)))+C15),"") -> 8611.434387 | E15: =IFERROR( IF(INDEX(tblUmsatzFltr[Nr],MATCH(filter_umsatz,tblUmsatzFltr[Umsatz Filter],0)) = 1, SUMIF(INDIRECT(dshbrdrng_umsatzentwicklung),"<>", INDEX(INDIRECT(dshbrdrng_umsatzentwicklung2),0,MATCH(DATE($B15,MONTH(E$13),1),Erfolgsrechnung_Detail!$O$8:$DF$8,0))), SUMIF(INDIRECT(dshbrdrng_umsatzentwicklung),"<>", INDEX(INDIRECT(dshbrdrng_umsatzentwicklung2),0,MATCH(DATE($B15,MONTH(E$13),1),Erfolgsrechnung_Detail!$O$8:$DF$8,0)))+D15),"") -> 1063.129535 | F15: =IFERROR( IF(INDEX(tblUmsatzFltr[Nr],MATCH(filter_umsatz,tblUmsatzFltr[Umsatz Filter],0)) = 1, SUMIF(INDIRECT(dshbrdrng_umsatzentwicklung),"<>", INDEX(INDIRECT(dshbrdrng_umsatzentwicklung2),0,MATCH(DATE($B15,MONTH(F$13),1),Erfolgsrechnung_Detail!$O$8:$DF$8,0))), SUMIF(INDIRECT(dshbrdrng_umsatzentwicklung),"<>", INDEX(INDIRECT(dshbrdrng_umsatzentwicklung2),0,MATCH(DATE($B15,MONTH(F$13),1),Erfolgsrechnung_Detail!$O$8:$DF$8,0)))+E15),"") -> 2836.551343 | G15: =IFERROR( IF(INDEX(tblUmsatzFltr[Nr],MATCH(filter_umsatz,tblUmsatzFltr[Umsatz Filter],0)) = 1, SUMIF(INDIRECT(dshbrdrng_umsatzentwicklung),"<>", INDEX(INDIRECT(dshbrdrng_umsatzentwicklung2),0,MATCH(DATE($B15,MONTH(G$13),1),Erfolgsrechnung_Detail!$O$8:$DF$8,0))), SUMIF(INDIRECT(dshbrdrng_umsatzentwicklung),"<>", INDEX(INDIRECT(dshbrdrng_umsatzentwicklung2),0,MATCH(DATE($B15,MONTH(G$13),1),Erfolgsrechnung_Detail!$O$8:$DF$8,0)))+F15),"") -> 5312.324344 | H15: =IFERROR( IF(INDEX(tblUmsatzFltr[Nr],MATCH(filter_umsatz,tblUmsatzFltr[Umsatz Filter],0)) = 1, SUMIF(INDIRECT(dshbrdrng_umsatzentwicklung),"<>", INDEX(INDIRECT(dshbrdrng_umsatzentwicklung2),0,MATCH(DATE($B15,MONTH(H$13),1),Erfolgsrechnung_Detail!$O$8:$DF$8,0))), SUMIF(INDIRECT(dshbrdrng_umsatzentwicklung),"<>", INDEX(INDIRECT(dshbrdrng_umsatzentwicklung2),0,MATCH(DATE($B15,MONTH(H$13),1),Erfolgsrechnung_Detail!$O$8:$DF$8,0)))+G15),"") -> 4967.4699 | I15: =IFERROR( IF(INDEX(tblUmsatzFltr[Nr],MATCH(filter_umsatz,tblUmsatzFltr[Umsatz Filter],0)) = 1, SUMIF(INDIRECT(dshbrdrng_umsatzentwicklung),"<>", INDEX(INDIRECT(dshbrdrng_umsatzentwicklung2),0,MATCH(DATE($B15,MONTH(I$13),1),Erfolgsrechnung_Detail!$O$8:$DF$8,0))), SUMIF(INDIRECT(dshbrdrng_umsatzentwicklung),"<>", INDEX(INDIRECT(dshbrdrng_umsatzentwicklung2),0,MATCH(DATE($B15,MONTH(I$13),1),Erfolgsrechnung_Detail!$O$8:$DF$8,0)))+H15),"") -> 3040.666865 | J15: =IFERROR( IF(INDEX(tblUmsatzFltr[Nr],MATCH(filter_umsatz,tblUmsatzFltr[Umsatz Filter],0)) = 1, SUMIF(INDIRECT(dshbrdrng_umsatzentwicklung),"<>", INDEX(INDIRECT(dshbrdrng_umsatzentwicklung2),0,MATCH(DATE($B15,MONTH(J$13),1),Erfolgsrechnung_Detail!$O$8:$DF$8,0))), SUMIF(INDIRECT(dshbrdrng_umsatzentwicklung),"<>", INDEX(INDIRECT(dshbrdrng_umsatzentwicklung2),0,MATCH(DATE($B15,MONTH(J$13),1),Erfolgsrechnung_Detail!$O$8:$DF$8,0)))+I15),"") -> 9721.333219 | K15: =IFERROR( IF(INDEX(tblUmsatzFltr[Nr],MATCH(filter_umsatz,tblUmsatzFltr[Umsatz Filter],0)) = 1, SUMIF(INDIRECT(dshbrdrng_umsatzentwicklung),"<>", INDEX(INDIRECT(dshbrdrng_umsatzentwicklung2),0,MATCH(DATE($B15,MONTH(K$13),1),Erfolgsrechnung_Detail!$O$8:$DF$8,0))), SUMIF(INDIRECT(dshbrdrng_umsatzentwicklung),"<>", INDEX(INDIRECT(dshbrdrng_umsatzentwicklung2),0,MATCH(DATE($B15,MONTH(K$13),1),Erfolgsrechnung_Detail!$O$8:$DF$8,0)))+J15),"") -> 5121.434339 | L15: =IFERROR( IF(INDEX(tblUmsatzFltr[Nr],MATCH(filter_umsatz,tblUmsatzFltr[Umsatz Filter],0)) = 1, SUMIF(INDIRECT(dshbrdrng_umsatzentwicklung),"<>", INDEX(INDIRECT(dshbrdrng_umsatzentwicklung2),0,MATCH(DATE($B15,MONTH(L$13),1),Erfolgsrechnung_Detail!$O$8:$DF$8,0))), SUMIF(INDIRECT(dshbrdrng_umsatzentwicklung),"<>", INDEX(INDIRECT(dshbrdrng_umsatzentwicklung2),0,MATCH(DATE($B15,MONTH(L$13),1),Erfolgsrechnung_Detail!$O$8:$DF$8,0)))+K15),"") -> 7228.126373 | M15: =IFERROR( IF(INDEX(tblUmsatzFltr[Nr],MATCH(filter_umsatz,tblUmsatzFltr[Umsatz Filter],0)) = 1, SUMIF(INDIRECT(dshbrdrng_umsatzentwicklung),"<>", INDEX(INDIRECT(dshbrdrng_umsatzentwicklung2),0,MATCH(DATE($B15,MONTH(M$13),1),Erfolgsrechnung_Detail!$O$8:$DF$8,0))), SUMIF(INDIRECT(dshbrdrng_umsatzentwicklung),"<>", INDEX(INDIRECT(dshbrdrng_umsatzentwicklung2),0,MATCH(DATE($B15,MONTH(M$13),1),Erfolgsrechnung_Detail!$O$8:$DF$8,0)))+L15),"") -> 8401.281658 | N15: =IFERROR( IF(INDEX(tblUmsatzFltr[Nr],MATCH(filter_umsatz,tblUmsatzFltr[Umsatz Filter],0)) = 1, SUMIF(INDIRECT(dshbrdrng_umsatzentwicklung),"<>", INDEX(INDIRECT(dshbrdrng_umsatzentwicklung2),0,MATCH(DATE($B15,MONTH(N$13),1),Erfolgsrechnung_Detail!$O$8:$DF$8,0))), SUMIF(INDIRECT(dshbrdrng_umsatzentwicklung),"<>", INDEX(INDIRECT(dshbrdrng_umsatzentwicklung2),0,MATCH(DATE($B15,MONTH(N$13),1),Erfolgsrechnung_Detail!$O$8:$DF$8,0)))+M15),"") -> 13707.34287 | P15: =IFERROR(IF( INDEX(tblUmsatzFltr[Nr],MATCH(filter_umsatz,tblUmsatzFltr[Umsatz Filter],0))=1, SUM($C15:INDEX($C15:$N15,1,selectedmonat_num)), INDEX($C15:$N15,0,MATCH(monat,tblMonate[Monate],0))),"") -> 15349.61797 | Q15: =IFERROR( IF(INDEX(tblUmsatzFltr[Nr],MATCH(filter_umsatz,tblUmsatzFltr[Umsatz Filter],0))=1, SUM(C15:$N15),N15),"") -> 75686.14889
B16: 2016 | C16: =IFERROR( SUMIF(INDIRECT(dshbrdrng_umsatzentwicklung),"<>", INDEX(INDIRECT(dshbrdrng_umsatzentwicklung2),0,MATCH(DATE($B16,MONTH(C$13),1),Erfolgsrechnung_Detail!$O$8:$DF$8,0))), "") -> 2903.894187 | D16: =IFERROR( IF(INDEX(tblUmsatzFltr[Nr],MATCH(filter_umsatz,tblUmsatzFltr[Umsatz Filter],0)) = 1, SUMIF(INDIRECT(dshbrdrng_umsatzentwicklung),"<>", INDEX(INDIRECT(dshbrdrng_umsatzentwicklung2),0,MATCH(DATE($B16,MONTH(D$13),1),Erfolgsrechnung_Detail!$O$8:$DF$8,0))), SUMIF(INDIRECT(dshbrdrng_umsatzentwicklung),"<>", INDEX(INDIRECT(dshbrdrng_umsatzentwicklung2),0,MATCH(DATE($B16,MONTH(D$13),1),Erfolgsrechnung_Detail!$O$8:$DF$8,0)))+C16),"") -> 15417.91714 | E16: =IFERROR( IF(INDEX(tblUmsatzFltr[Nr],MATCH(filter_umsatz,tblUmsatzFltr[Umsatz Filter],0)) = 1, SUMIF(INDIRECT(dshbrdrng_umsatzentwicklung),"<>", INDEX(INDIRECT(dshbrdrng_umsatzentwicklung2),0,MATCH(DATE($B16,MONTH(E$13),1),Erfolgsrechnung_Detail!$O$8:$DF$8,0))), SUMIF(INDIRECT(dshbrdrng_umsatzentwicklung),"<>", INDEX(INDIRECT(dshbrdrng_umsatzentwicklung2),0,MATCH(DATE($B16,MONTH(E$13),1),Erfolgsrechnung_Detail!$O$8:$DF$8,0)))+D16),"") -> 6288.146575 | F16: =IFERROR( IF(INDEX(tblUmsatzFltr[Nr],MATCH(filter_umsatz,tblUmsatzFltr[Umsatz Filter],0)) = 1, SUMIF(INDIRECT(dshbrdrng_umsatzentwicklung),"<>", INDEX(INDIRECT(dshbrdrng_umsatzentwicklung2),0,MATCH(DATE($B16,MONTH(F$13),1),Erfolgsrechnung_Detail!$O$8:$DF$8,0))), SUMIF(INDIRECT(dshbrdrng_umsatzentwicklung),"<>", INDEX(INDIRECT(dshbrdrng_umsatzentwicklung2),0,MATCH(DATE($B16,MONTH(F$13),1),Erfolgsrechnung_Detail!$O$8:$DF$8,0)))+E16),"") -> 9330.611777 | G16: =IFERROR( IF(INDEX(tblUmsatzFltr[Nr],MATCH(filter_umsatz,tblUmsatzFltr[Umsatz Filter],0)) = 1, SUMIF(INDIRECT(dshbrdrng_umsatzentwicklung),"<>", INDEX(INDIRECT(dshbrdrng_umsatzentwicklung2),0,MATCH(DATE($B16,MONTH(G$13),1),Erfolgsrechnung_Detail!$O$8:$DF$8,0))), SUMIF(INDIRECT(dshbrdrng_umsatzentwicklung),"<>", INDEX(INDIRECT(dshbrdrng_umsatzentwicklung2),0,MATCH(DATE($B16,MONTH(G$13),1),Erfolgsrechnung_Detail!$O$8:$DF$8,0)))+F16),"") -> 11674.7431 | H16: =IFERROR( IF(INDEX(tblUmsatzFltr[Nr],MATCH(filter_umsatz,tblUmsatzFltr[Umsatz Filter],0)) = 1, SUMIF(INDIRECT(dshbrdrng_umsatzentwicklung),"<>", INDEX(INDIRECT(dshbrdrng_umsatzentwicklung2),0,MATCH(DATE($B16,MONTH(H$13),1),Erfolgsrechnung_Detail!$O$8:$DF$8,0))), SUMIF(INDIRECT(dshbrdrng_umsatzentwicklung),"<>", INDEX(INDIRECT(dshbrdrng_umsatzentwicklung2),0,MATCH(DATE($B16,MONTH(H$13),1),Erfolgsrechnung_Detail!$O$8:$DF$8,0)))+G16),"") -> 15250.69539 | I16: =IFERROR( IF(INDEX(tblUmsatzFltr[Nr],MATCH(filter_umsatz,tblUmsatzFltr[Umsatz Filter],0)) = 1, SUMIF(INDIRECT(dshbrdrng_umsatzentwicklung),"<>", INDEX(INDIRECT(dshbrdrng_umsatzentwicklung2),0,MATCH(DATE($B16,MONTH(I$13),1),Erfolgsrechnung_Detail!$O$8:$DF$8,0))), SUMIF(INDIRECT(dshbrdrng_umsatzentwicklung),"<>", INDEX(INDIRECT(dshbrdrng_umsatzentwicklung2),0,MATCH(DATE($B16,MONTH(I$13),1),Erfolgsrechnung_Detail!$O$8:$DF$8,0)))+H16),"") -> 8290.239264 | J16: =IFERROR( IF(INDEX(tblUmsatzFltr[Nr],MATCH(filter_umsatz,tblUmsatzFltr[Umsatz Filter],0)) = 1, SUMIF(INDIRECT(dshbrdrng_umsatzentwicklung),"<>", INDEX(INDIRECT(dshbrdrng_umsatzentwicklung2),0,MATCH(DATE($B16,MONTH(J$13),1),Erfolgsrechnung_Detail!$O$8:$DF$8,0))), SUMIF(INDIRECT(dshbrdrng_umsatzentwicklung),"<>", INDEX(INDIRECT(dshbrdrng_umsatzentwicklung2),0,MATCH(DATE($B16,MONTH(J$13),1),Erfolgsrechnung_Detail!$O$8:$DF$8,0)))+I16),"") -> 9170.924461 | K16: =IFERROR( IF(INDEX(tblUmsatzFltr[Nr],MATCH(filter_umsatz,tblUmsatzFltr[Umsatz Filter],0)) = 1, SUMIF(INDIRECT(dshbrdrng_umsatzentwicklung),"<>", INDEX(INDIRECT(dshbrdrng_umsatzentwicklung2),0,MATCH(DATE($B16,MONTH(K$13),1),Erfolgsrechnung_Detail!$O$8:$DF$8,0))), SUMIF(INDIRECT(dshbrdrng_umsatzentwicklung),"<>", INDEX(INDIRECT(dshbrdrng_umsatzentwicklung2),0,MATCH(DATE($B16,MONTH(K$13),1),Erfolgsrechnung_Detail!$O$8:$DF$8,0)))+J16),"") -> 13362.7725 | L16: =IFERROR( IF(INDEX(tblUmsatzFltr[Nr],MATCH(filter_umsatz,tblUmsatzFltr[Umsatz Filter],0)) = 1, SUMIF(INDIRECT(dshbrdrng_umsatzentwicklung),"<>", INDEX(INDIRECT(dshbrdrng_umsatzentwicklung2),0,MATCH(DATE($B16,MONTH(L$13),1),Erfolgsrechnung_Detail!$O$8:$DF$8,0))), SUMIF(INDIRECT(dshbrdrng_umsatzentwicklung),"<>", INDEX(INDIRECT(dshbrdrng_umsatzentwicklung2),0,MATCH(DATE($B16,MONTH(L$13),1),Erfolgsrechnung_Detail!$O$8:$DF$8,0)))+K16),"") -> 8762.791211 | M16: =IFERROR( IF(INDEX(tblUmsatzFltr[Nr],MATCH(filter_umsatz,tblUmsatzFltr[Umsatz Filter],0)) = 1, SUMIF(INDIRECT(dshbrdrng_umsatzentwicklung),"<>", INDEX(INDIRECT(dshbrdrng_umsatzentwicklung2),0,MATCH(DATE($B16,MONTH(M$13),1),Erfolgsrechnung_Detail!$O$8:$DF$8,0))), SUMIF(INDIRECT(dshbrdrng_umsatzentwicklung),"<>", INDEX(INDIRECT(dshbrdrng_umsatzentwicklung2),0,MATCH(DATE($B16,MONTH(M$13),1),Erfolgsrechnung_Detail!$O$8:$DF$8,0)))+L16),"") -> 12649.65248 | N16: =IFERROR( IF(INDEX(tblUmsatzFltr[Nr],MATCH(filter_umsatz,tblUmsatzFltr[Umsatz Filter],0)) = 1, SUMIF(INDIRECT(dshbrdrng_umsatzentwicklung),"<>", INDEX(INDIRECT(dshbrdrng_umsatzentwicklung2),0,MATCH(DATE($B16,MONTH(N$13),1),Erfolgsrechnung_Detail!$O$8:$DF$8,0))), SUMIF(INDIRECT(dshbrdrng_umsatzentwicklung),"<>", INDEX(INDIRECT(dshbrdrng_umsatzentwicklung2),0,MATCH(DATE($B16,MONTH(N$13),1),Erfolgsrechnung_Detail!$O$8:$DF$8,0)))+M16),"") -> 15390.02694 | P16: =IFERROR(IF( INDEX(tblUmsatzFltr[Nr],MATCH(filter_umsatz,tblUmsatzFltr[Umsatz Filter],0))=1, SUM($C16:INDEX($C16:$N16,1,selectedmonat_num)), INDEX($C16:$N16,0,MATCH(monat,tblMonate[Monate],0))),"") -> 24609.95791 | Q16: =IFERROR( IF(INDEX(tblUmsatzFltr[Nr],MATCH(filter_umsatz,tblUmsatzFltr[Umsatz Filter],0))=1, SUM(C16:$N16),N16),"") -> 128492.415
B17: 2017 | C17: =IFERROR( SUMIF(INDIRECT(dshbrdrng_umsatzentwicklung),"<>", INDEX(INDIRECT(dshbrdrng_umsatzentwicklung2),0,MATCH(DATE($B17,MONTH(C$13),1),Erfolgsrechnung_Detail!$O$8:$DF$8,0))), "") -> 19869.91002 | D17: =IFERROR( IF(INDEX(tblUmsatzFltr[Nr],MATCH(filter_umsatz,tblUmsatzFltr[Umsatz Filter],0)) = 1, SUMIF(INDIRECT(dshbrdrng_umsatzentwicklung),"<>", INDEX(INDIRECT(dshbrdrng_umsatzentwicklung2),0,MATCH(DATE($B17,MONTH(D$13),1),Erfolgsrechnung_Detail!$O$8:$DF$8,0))), SUMIF(INDIRECT(dshbrdrng_umsatzentwicklung),"<>", INDEX(INDIRECT(dshbrdrng_umsatzentwicklung2),0,MATCH(DATE($B17,MONTH(D$13),1),Erfolgsrechnung_Detail!$O$8:$DF$8,0)))+C17),"") -> 17468.03147 | E17: =IFERROR( IF(INDEX(tblUmsatzFltr[Nr],MATCH(filter_umsatz,tblUmsatzFltr[Umsatz Filter],0)) = 1, SUMIF(INDIRECT(dshbrdrng_umsatzentwicklung),"<>", INDEX(INDIRECT(dshbrdrng_umsatzentwicklung2),0,MATCH(DATE($B17,MONTH(E$13),1),Erfolgsrechnung_Detail!$O$8:$DF$8,0))), SUMIF(INDIRECT(dshbrdrng_umsatzentwicklung),"<>", INDEX(INDIRECT(dshbrdrng_umsatzentwicklung2),0,MATCH(DATE($B17,MONTH(E$13),1),Erfolgsrechnung_Detail!$O$8:$DF$8,0)))+D17),"") -> 14805.81371 | F17: =IFERROR( IF(INDEX(tblUmsatzFltr[Nr],MATCH(filter_umsatz,tblUmsatzFltr[Umsatz Filter],0)) = 1, SUMIF(INDIRECT(dshbrdrng_umsatzentwicklung),"<>", INDEX(INDIRECT(dshbrdrng_umsatzentwicklung2),0,MATCH(DATE($B17,MONTH(F$13),1),Erfolgsrechnung_Detail!$O$8:$DF$8,0))), SUMIF(INDIRECT(dshbrdrng_umsatzentwicklung),"<>", INDEX(INDIRECT(dshbrdrng_umsatzentwicklung2),0,MATCH(DATE($B17,MONTH(F$13),1),Erfolgsrechnung_Detail!$O$8:$DF$8,0)))+E17),"") -> 23559.78979 | G17: =IFERROR( IF(INDEX(tblUmsatzFltr[Nr],MATCH(filter_umsatz,tblUmsatzFltr[Umsatz Filter],0)) = 1, SUMIF(INDIRECT(dshbrdrng_umsatzentwicklung),"<>", INDEX(INDIRECT(dshbrdrng_umsatzentwicklung2),0,MATCH(DATE($B17,MONTH(G$13),1),Erfolgsrechnung_Detail!$O$8:$DF$8,0))), SUMIF(INDIRECT(dshbrdrng_umsatzentwicklung),"<>", INDEX(INDIRECT(dshbrdrng_umsatzentwicklung2),0,MATCH(DATE($B17,MONTH(G$13),1),Erfolgsrechnung_Detail!$O$8:$DF$8,0)))+F17),"") -> 22840.68202 | H17: =IFERROR( IF(INDEX(tblUmsatzFltr[Nr],MATCH(filter_umsatz,tblUmsatzFltr[Umsatz Filter],0)) = 1, SUMIF(INDIRECT(dshbrdrng_umsatzentwicklung),"<>", INDEX(INDIRECT(dshbrdrng_umsatzentwicklung2),0,MATCH(DATE($B17,MONTH(H$13),1),Erfolgsrechnung_Detail!$O$8:$DF$8,0))), SUMIF(INDIRECT(dshbrdrng_umsatzentwicklung),"<>", INDEX(INDIRECT(dshbrdrng_umsatzentwicklung2),0,MATCH(DATE($B17,MONTH(H$13),1),Erfolgsrechnung_Detail!$O$8:$DF$8,0)))+G17),"") -> 15819.0033 | I17: =IFERROR( IF(INDEX(tblUmsatzFltr[Nr],MATCH(filter_umsatz,tblUmsatzFltr[Umsatz Filter],0)) = 1, SUMIF(INDIRECT(dshbrdrng_umsatzentwicklung),"<>", INDEX(INDIRECT(dshbrdrng_umsatzentwicklung2),0,MATCH(DATE($B17,MONTH(I$13),1),Erfolgsrechnung_Detail!$O$8:$DF$8,0))), SUMIF(INDIRECT(dshbrdrng_umsatzentwicklung),"<>", INDEX(INDIRECT(dshbrdrng_umsatzentwicklung2),0,MATCH(DATE($B17,MONTH(I$13),1),Erfolgsrechnung_Detail!$O$8:$DF$8,0)))+H17),"") -> 25499.89152 | J17: =IFERROR( IF(INDEX(tblUmsatzFltr[Nr],MATCH(filter_umsatz,tblUmsatzFltr[Umsatz Filter],0)) = 1, SUMIF(INDIRECT(dshbrdrng_umsatzentwicklung),"<>", INDEX(INDIRECT(dshbrdrng_umsatzentwicklung2),0,MATCH(DATE($B17,MONTH(J$13),1),Erfolgsrechnung_Detail!$O$8:$DF$8,0))), SUMIF(INDIRECT(dshbrdrng_umsatzentwicklung),"<>", INDEX(INDIRECT(dshbrdrng_umsatzentwicklung2),0,MATCH(DATE($B17,MONTH(J$13),1),Erfolgsrechnung_Detail!$O$8:$DF$8,0)))+I17),"") -> 27267.56226 | K17: =IFERROR( IF(INDEX(tblUmsatzFltr[Nr],MATCH(filter_umsatz,tblUmsatzFltr[Umsatz Filter],0)) = 1, SUMIF(INDIRECT(dshbrdrng_umsatzentwicklung),"<>", INDEX(INDIRECT(dshbrdrng_umsatzentwicklung2),0,MATCH(DATE($B17,MONTH(K$13),1),Erfolgsrechnung_Detail!$O$8:$DF$8,0))), SUMIF(INDIRECT(dshbrdrng_umsatzentwicklung),"<>", INDEX(INDIRECT(dshbrdrng_umsatzentwicklung2),0,MATCH(DATE($B17,MONTH(K$13),1),Erfolgsrechnung_Detail!$O$8:$DF$8,0)))+J17),"") -> 23241.03592 | L17: =IFERROR( IF(INDEX(tblUmsatzFltr[Nr],MATCH(filter_umsatz,tblUmsatzFltr[Umsatz Filter],0)) = 1, SUMIF(INDIRECT(dshbrdrng_umsatzentwicklung),"<>", INDEX(INDIRECT(dshbrdrng_umsatzentwicklung2),0,MATCH(DATE($B17,MONTH(L$13),1),Erfolgsrechnung_Detail!$O$8:$DF$8,0))), SUMIF(INDIRECT(dshbrdrng_umsatzentwicklung),"<>", INDEX(INDIRECT(dshbrdrng_umsatzentwicklung2),0,MATCH(DATE($B17,MONTH(L$13),1),Erfolgsrechnung_Detail!$O$8:$DF$8,0)))+K17),"") -> 33523.16826 | M17: =IFERROR( IF(INDEX(tblUmsatzFltr[Nr],MATCH(filter_umsatz,tblUmsatzFltr[Umsatz Filter],0)) = 1, SUMIF(INDIRECT(dshbrdrng_umsatzentwicklung),"<>", INDEX(INDIRECT(dshbrdrng_umsatzentwicklung2),0,MATCH(DATE($B17,MONTH(M$13),1),Erfolgsrechnung_Detail!$O$8:$DF$8,0))), SUMIF(INDIRECT(dshbrdrng_umsatzentwicklung),"<>", INDEX(INDIRECT(dshbrdrng_umsatzentwicklung2),0,MATCH(DATE($B17,MONTH(M$13),1),Erfolgsrechnung_Detail!$O$8:$DF$8,0)))+L17),"") -> 16802.56332 | N17: =IFERROR( IF(INDEX(tblUmsatzFltr[Nr],MATCH(filter_umsatz,tblUmsatzFltr[Umsatz Filter],0)) = 1, SUMIF(INDIRECT(dshbrdrng_umsatzentwicklung),"<>", INDEX(INDIRECT(dshbrdrng_umsatzentwicklung2),0,MATCH(DATE($B17,MONTH(N$13),1),Erfolgsrechnung_Detail!$O$8:$DF$8,0))), SUMIF(INDIRECT(dshbrdrng_umsatzentwicklung),"<>", INDEX(INDIRECT(dshbrdrng_umsatzentwicklung2),0,MATCH(DATE($B17,MONTH(N$13),1),Erfolgsrechnung_Detail!$O$8:$DF$8,0)))+M17),"") -> 27414.68574 | P17: =IFERROR(IF( INDEX(tblUmsatzFltr[Nr],MATCH(filter_umsatz,tblUmsatzFltr[Umsatz Filter],0))=1, SUM($C17:INDEX($C17:$N17,1,selectedmonat_num)), INDEX($C17:$N17,0,MATCH(monat,tblMonate[Monate],0))),"") -> 52143.7552 | Q17: =IFERROR( IF(INDEX(tblUmsatzFltr[Nr],MATCH(filter_umsatz,tblUmsatzFltr[Umsatz Filter],0))=1, SUM(C17:$N17),N17),"") -> 268112.1373
B18: 2018 | C18: =IFERROR( SUMIF(INDIRECT(dshbrdrng_umsatzentwicklung),"<>", INDEX(INDIRECT(dshbrdrng_umsatzentwicklung2),0,MATCH(DATE($B18,MONTH(C$13),1),Erfolgsrechnung_Detail!$O$8:$DF$8,0))), "") -> 2903.894187 | D18: =IFERROR( IF(INDEX(tblUmsatzFltr[Nr],MATCH(filter_umsatz,tblUmsatzFltr[Umsatz Filter],0)) = 1, SUMIF(INDIRECT(dshbrdrng_umsatzentwicklung),"<>", INDEX(INDIRECT(dshbrdrng_umsatzentwicklung2),0,MATCH(DATE($B18,MONTH(D$13),1),Erfolgsrechnung_Detail!$O$8:$DF$8,0))), SUMIF(INDIRECT(dshbrdrng_umsatzentwicklung),"<>", INDEX(INDIRECT(dshbrdrng_umsatzentwicklung2),0,MATCH(DATE($B18,MONTH(D$13),1),Erfolgsrechnung_Detail!$O$8:$DF$8,0)))+C18),"") -> 15417.91714 | E18: =IFERROR( IF(INDEX(tblUmsatzFltr[Nr],MATCH(filter_umsatz,tblUmsatzFltr[Umsatz Filter],0)) = 1, SUMIF(INDIRECT(dshbrdrng_umsatzentwicklung),"<>", INDEX(INDIRECT(dshbrdrng_umsatzentwicklung2),0,MATCH(DATE($B18,MONTH(E$13),1),Erfolgsrechnung_Detail!$O$8:$DF$8,0))), SUMIF(INDIRECT(dshbrdrng_umsatzentwicklung),"<>", INDEX(INDIRECT(dshbrdrng_umsatzentwicklung2),0,MATCH(DATE($B18,MONTH(E$13),1),Erfolgsrechnung_Detail!$O$8:$DF$8,0)))+D18),"") -> 6288.146575 | F18: =IFERROR( IF(INDEX(tblUmsatzFltr[Nr],MATCH(filter_umsatz,tblUmsatzFltr[Umsatz Filter],0)) = 1, SUMIF(INDIRECT(dshbrdrng_umsatzentwicklung),"<>", INDEX(INDIRECT(dshbrdrng_umsatzentwicklung2),0,MATCH(DATE($B18,MONTH(F$13),1),Erfolgsrechnung_Detail!$O$8:$DF$8,0))), SUMIF(INDIRECT(dshbrdrng_umsatzentwicklung),"<>", INDEX(INDIRECT(dshbrdrng_umsatzentwicklung2),0,MATCH(DATE($B18,MONTH(F$13),1),Erfolgsrechnung_Detail!$O$8:$DF$8,0)))+E18),"") -> 9330.611777 | G18: =IFERROR( IF(INDEX(tblUmsatzFltr[Nr],MATCH(filter_umsatz,tblUmsatzFltr[Umsatz Filter],0)) = 1, SUMIF(INDIRECT(dshbrdrng_umsatzentwicklung),"<>", INDEX(INDIRECT(dshbrdrng_umsatzentwicklung2),0,MATCH(DATE($B18,MONTH(G$13),1),Erfolgsrechnung_Detail!$O$8:$DF$8,0))), SUMIF(INDIRECT(dshbrdrng_umsatzentwicklung),"<>", INDEX(INDIRECT(dshbrdrng_umsatzentwicklung2),0,MATCH(DATE($B18,MONTH(G$13),1),Erfolgsrechnung_Detail!$O$8:$DF$8,0)))+F18),"") -> 11674.7431 | H18: =IFERROR( IF(INDEX(tblUmsatzFltr[Nr],MATCH(filter_umsatz,tblUmsatzFltr[Umsatz Filter],0)) = 1, SUMIF(INDIRECT(dshbrdrng_umsatzentwicklung),"<>", INDEX(INDIRECT(dshbrdrng_umsatzentwicklung2),0,MATCH(DATE($B18,MONTH(H$13),1),Erfolgsrechnung_Detail!$O$8:$DF$8,0))), SUMIF(INDIRECT(dshbrdrng_umsatzentwicklung),"<>", INDEX(INDIRECT(dshbrdrng_umsatzentwicklung2),0,MATCH(DATE($B18,MONTH(H$13),1),Erfolgsrechnung_Detail!$O$8:$DF$8,0)))+G18),"") -> 15250.69539 | I18: =IFERROR( IF(INDEX(tblUmsatzFltr[Nr],MATCH(filter_umsatz,tblUmsatzFltr[Umsatz Filter],0)) = 1, SUMIF(INDIRECT(dshbrdrng_umsatzentwicklung),"<>", INDEX(INDIRECT(dshbrdrng_umsatzentwicklung2),0,MATCH(DATE($B18,MONTH(I$13),1),Erfolgsrechnung_Detail!$O$8:$DF$8,0))), SUMIF(INDIRECT(dshbrdrng_umsatzentwicklung),"<>", INDEX(INDIRECT(dshbrdrng_umsatzentwicklung2),0,MATCH(DATE($B18,MONTH(I$13),1),Erfolgsrechnung_Detail!$O$8:$DF$8,0)))+H18),"") -> 8290.239264 | J18: =IFERROR( IF(INDEX(tblUmsatzFltr[Nr],MATCH(filter_umsatz,tblUmsatzFltr[Umsatz Filter],0)) = 1, SUMIF(INDIRECT(dshbrdrng_umsatzentwicklung),"<>", INDEX(INDIRECT(dshbrdrng_umsatzentwicklung2),0,MATCH(DATE($B18,MONTH(J$13),1),Erfolgsrechnung_Detail!$O$8:$DF$8,0))), SUMIF(INDIRECT(dshbrdrng_umsatzentwicklung),"<>", INDEX(INDIRECT(dshbrdrng_umsatzentwicklung2),0,MATCH(DATE($B18,MONTH(J$13),1),Erfolgsrechnung_Detail!$O$8:$DF$8,0)))+I18),"") -> 9170.924461 | K18: =IFERROR( IF(INDEX(tblUmsatzFltr[Nr],MATCH(filter_umsatz,tblUmsatzFltr[Umsatz Filter],0)) = 1, SUMIF(INDIRECT(dshbrdrng_umsatzentwicklung),"<>", INDEX(INDIRECT(dshbrdrng_umsatzentwicklung2),0,MATCH(DATE($B18,MONTH(K$13),1),Erfolgsrechnung_Detail!$O$8:$DF$8,0))), SUMIF(INDIRECT(dshbrdrng_umsatzentwicklung),"<>", INDEX(INDIRECT(dshbrdrng_umsatzentwicklung2),0,MATCH(DATE($B18,MONTH(K$13),1),Erfolgsrechnung_Detail!$O$8:$DF$8,0)))+J18),"") -> 13362.7725 | L18: =IFERROR( IF(INDEX(tblUmsatzFltr[Nr],MATCH(filter_umsatz,tblUmsatzFltr[Umsatz Filter],0)) = 1, SUMIF(INDIRECT(dshbrdrng_umsatzentwicklung),"<>", INDEX(INDIRECT(dshbrdrng_umsatzentwicklung2),0,MATCH(DATE($B18,MONTH(L$13),1),Erfolgsrechnung_Detail!$O$8:$DF$8,0))), SUMIF(INDIRECT(dshbrdrng_umsatzentwicklung),"<>", INDEX(INDIRECT(dshbrdrng_umsatzentwicklung2),0,MATCH(DATE($B18,MONTH(L$13),1),Erfolgsrechnung_Detail!$O$8:$DF$8,0)))+K18),"") -> 8762.791211 | M18: =IFERROR( IF(INDEX(tblUmsatzFltr[Nr],MATCH(filter_umsatz,tblUmsatzFltr[Umsatz Filter],0)) = 1, SUMIF(INDIRECT(dshbrdrng_umsatzentwicklung),"<>", INDEX(INDIRECT(dshbrdrng_umsatzentwicklung2),0,MATCH(DATE($B18,MONTH(M$13),1),Erfolgsrechnung_Detail!$O$8:$DF$8,0))), SUMIF(INDIRECT(dshbrdrng_umsatzentwicklung),"<>", INDEX(INDIRECT(dshbrdrng_umsatzentwicklung2),0,MATCH(DATE($B18,MONTH(M$13),1),Erfolgsrechnung_Detail!$O$8:$DF$8,0)))+L18),"") -> 12649.65248 | N18: =IFERROR( IF(INDEX(tblUmsatzFltr[Nr],MATCH(filter_umsatz,tblUmsatzFltr[Umsatz Filter],0)) = 1, SUMIF(INDIRECT(dshbrdrng_umsatzentwicklung),"<>", INDEX(INDIRECT(dshbrdrng_umsatzentwicklung2),0,MATCH(DATE($B18,MONTH(N$13),1),Erfolgsrechnung_Detail!$O$8:$DF$8,0))), SUMIF(INDIRECT(dshbrdrng_umsatzentwicklung),"<>", INDEX(INDIRECT(dshbrdrng_umsatzentwicklung2),0,MATCH(DATE($B18,MONTH(N$13),1),Erfolgsrechnung_Detail!$O$8:$DF$8,0)))+M18),"") -> 15390.02694 | P18: =IFERROR(IF( INDEX(tblUmsatzFltr[Nr],MATCH(filter_umsatz,tblUmsatzFltr[Umsatz Filter],0))=1, SUM($C18:INDEX($C18:$N18,1,selectedmonat_num)), INDEX($C18:$N18,0,MATCH(monat,tblMonate[Monate],0))),"") -> 24609.95791 | Q18: =IFERROR( IF(INDEX(tblUmsatzFltr[Nr],MATCH(filter_umsatz,tblUmsatzFltr[Umsatz Filter],0))=1, SUM(C18:$N18),N18),"") -> 128492.415
B19: 2019 | C19: =IFERROR( SUMIF(INDIRECT(dshbrdrng_umsatzentwicklung),"<>", INDEX(INDIRECT(dshbrdrng_umsatzentwicklung2),0,MATCH(DATE($B19,MONTH(C$13),1),Erfolgsrechnung_Detail!$O$8:$DF$8,0))), "") -> 17039.60384 | D19: =IFERROR( IF(INDEX(tblUmsatzFltr[Nr],MATCH(filter_umsatz,tblUmsatzFltr[Umsatz Filter],0)) = 1, SUMIF(INDIRECT(dshbrdrng_umsatzentwicklung),"<>", INDEX(INDIRECT(dshbrdrng_umsatzentwicklung2),0,MATCH(DATE($B19,MONTH(D$13),1),Erfolgsrechnung_Detail!$O$8:$DF$8,0))), SUMIF(INDIRECT(dshbrdrng_umsatzentwicklung),"<>", INDEX(INDIRECT(dshbrdrng_umsatzentwicklung2),0,MATCH(DATE($B19,MONTH(D$13),1),Erfolgsrechnung_Detail!$O$8:$DF$8,0)))+C19),"") -> 7080.298547 | E19: =IFERROR( IF(INDEX(tblUmsatzFltr[Nr],MATCH(filter_umsatz,tblUmsatzFltr[Umsatz Filter],0)) = 1, SUMIF(INDIRECT(dshbrdrng_umsatzentwicklung),"<>", INDEX(INDIRECT(dshbrdrng_umsatzentwicklung2),0,MATCH(DATE($B19,MONTH(E$13),1),Erfolgsrechnung_Detail!$O$8:$DF$8,0))), SUMIF(INDIRECT(dshbrdrng_umsatzentwicklung),"<>", INDEX(INDIRECT(dshbrdrng_umsatzentwicklung2),0,MATCH(DATE($B19,MONTH(E$13),1),Erfolgsrechnung_Detail!$O$8:$DF$8,0)))+D19),"") -> 25359.10928 | F19: =IFERROR( IF(INDEX(tblUmsatzFltr[Nr],MATCH(filter_umsatz,tblUmsatzFltr[Umsatz Filter],0)) = 1, SUMIF(INDIRECT(dshbrdrng_umsatzentwicklung),"<>", INDEX(INDIRECT(dshbrdrng_umsatzentwicklung2),0,MATCH(DATE($B19,MONTH(F$13),1),Erfolgsrechnung_Detail!$O$8:$DF$8,0))), SUMIF(INDIRECT(dshbrdrng_umsatzentwicklung),"<>", INDEX(INDIRECT(dshbrdrng_umsatzentwicklung2),0,MATCH(DATE($B19,MONTH(F$13),1),Erfolgsrechnung_Detail!$O$8:$DF$8,0)))+E19),"") -> 35838.54611 | G19: =IFERROR( IF(INDEX(tblUmsatzFltr[Nr],MATCH(filter_umsatz,tblUmsatzFltr[Umsatz Filter],0)) = 1, SUMIF(INDIRECT(dshbrdrng_umsatzentwicklung),"<>", INDEX(INDIRECT(dshbrdrng_umsatzentwicklung2),0,MATCH(DATE($B19,MONTH(G$13),1),Erfolgsrechnung_Detail!$O$8:$DF$8,0))), SUMIF(INDIRECT(dshbrdrng_umsatzentwicklung),"<>", INDEX(INDIRECT(dshbrdrng_umsatzentwicklung2),0,MATCH(DATE($B19,MONTH(G$13),1),Erfolgsrechnung_Detail!$O$8:$DF$8,0)))+F19),"") -> 24339.02922 | H19: =IFERROR( IF(INDEX(tblUmsatzFltr[Nr],MATCH(filter_umsatz,tblUmsatzFltr[Umsatz Filter],0)) = 1, SUMIF(INDIRECT(dshbrdrng_umsatzentwicklung),"<>", INDEX(INDIRECT(dshbrdrng_umsatzentwicklung2),0,MATCH(DATE($B19,MONTH(H$13),1),Erfolgsrechnung_Detail!$O$8:$DF$8,0))), SUMIF(INDIRECT(dshbrdrng_umsatzentwicklung),"<>", INDEX(INDIRECT(dshbrdrng_umsatzentwicklung2),0,MATCH(DATE($B19,MONTH(H$13),1),Erfolgsrechnung_Detail!$O$8:$DF$8,0)))+G19),"") -> 11768.127 | I19: =IFERROR( IF(INDEX(tblUmsatzFltr[Nr],MATCH(filter_umsatz,tblUmsatzFltr[Umsatz Filter],0)) = 1, SUMIF(INDIRECT(dshbrdrng_umsatzentwicklung),"<>", INDEX(INDIRECT(dshbrdrng_umsatzentwicklung2),0,MATCH(DATE($B19,MONTH(I$13),1),Erfolgsrechnung_Detail!$O$8:$DF$8,0))), SUMIF(INDIRECT(dshbrdrng_umsatzentwicklung),"<>", INDEX(INDIRECT(dshbrdrng_umsatzentwicklung2),0,MATCH(DATE($B19,MONTH(I$13),1),Erfolgsrechnung_Detail!$O$8:$DF$8,0)))+H19),"") -> 38858.0777 | J19: =IFERROR( IF(INDEX(tblUmsatzFltr[Nr],MATCH(filter_umsatz,tblUmsatzFltr[Umsatz Filter],0)) = 1, SUMIF(INDIRECT(dshbrdrng_umsatzentwicklung),"<>", INDEX(INDIRECT(dshbrdrng_umsatzentwicklung2),0,MATCH(DATE($B19,MONTH(J$13),1),Erfolgsrechnung_Detail!$O$8:$DF$8,0))), SUMIF(INDIRECT(dshbrdrng_umsatzentwicklung),"<>", INDEX(INDIRECT(dshbrdrng_umsatzentwicklung2),0,MATCH(DATE($B19,MONTH(J$13),1),Erfolgsrechnung_Detail!$O$8:$DF$8,0)))+I19),"") -> 15585.88726 | K19: =IFERROR( IF(INDEX(tblUmsatzFltr[Nr],MATCH(filter_umsatz,tblUmsatzFltr[Umsatz Filter],0)) = 1, SUMIF(INDIRECT(dshbrdrng_umsatzentwicklung),"<>", INDEX(INDIRECT(dshbrdrng_umsatzentwicklung2),0,MATCH(DATE($B19,MONTH(K$13),1),Erfolgsrechnung_Detail!$O$8:$DF$8,0))), SUMIF(INDIRECT(dshbrdrng_umsatzentwicklung),"<>", INDEX(INDIRECT(dshbrdrng_umsatzentwicklung2),0,MATCH(DATE($B19,MONTH(K$13),1),Erfolgsrechnung_Detail!$O$8:$DF$8,0)))+J19),"") -> 25996.33449 | L19: =IFERROR( IF(INDEX(tblUmsatzFltr[Nr],MATCH(filter_umsatz,tblUmsatzFltr[Umsatz Filter],0)) = 1, SUMIF(INDIRECT(dshbrdrng_umsatzentwicklung),"<>", INDEX(INDIRECT(dshbrdrng_umsatzentwicklung2),0,MATCH(DATE($B19,MONTH(L$13),1),Erfolgsrechnung_Detail!$O$8:$DF$8,0))), SUMIF(INDIRECT(dshbrdrng_umsatzentwicklung),"<>", INDEX(INDIRECT(dshbrdrng_umsatzentwicklung2),0,MATCH(DATE($B19,MONTH(L$13),1),Erfolgsrechnung_Detail!$O$8:$DF$8,0)))+K19),"") -> 37952.32269 | M19: =IFERROR( IF(INDEX(tblUmsatzFltr[Nr],MATCH(filter_umsatz,tblUmsatzFltr[Umsatz Filter],0)) = 1, SUMIF(INDIRECT(dshbrdrng_umsatzentwicklung),"<>", INDEX(INDIRECT(dshbrdrng_umsatzentwicklung2),0,MATCH(DATE($B19,MONTH(M$13),1),Erfolgsrechnung_Detail!$O$8:$DF$8,0))), SUMIF(INDIRECT(dshbrdrng_umsatzentwicklung),"<>", INDEX(INDIRECT(dshbrdrng_umsatzentwicklung2),0,MATCH(DATE($B19,MONTH(M$13),1),Erfolgsrechnung_Detail!$O$8:$DF$8,0)))+L19),"") -> 38809.92076 | N19: =IFERROR( IF(INDEX(tblUmsatzFltr[Nr],MATCH(filter_umsatz,tblUmsatzFltr[Umsatz Filter],0)) = 1, SUMIF(INDIRECT(dshbrdrng_umsatzentwicklung),"<>", INDEX(INDIRECT(dshbrdrng_umsatzentwicklung2),0,MATCH(DATE($B19,MONTH(N$13),1),Erfolgsrechnung_Detail!$O$8:$DF$8,0))), SUMIF(INDIRECT(dshbrdrng_umsatzentwicklung),"<>", INDEX(INDIRECT(dshbrdrng_umsatzentwicklung2),0,MATCH(DATE($B19,MONTH(N$13),1),Erfolgsrechnung_Detail!$O$8:$DF$8,0)))+M19),"") -> 53053.69296 | P19: =IFERROR(IF( INDEX(tblUmsatzFltr[Nr],MATCH(filter_umsatz,tblUmsatzFltr[Umsatz Filter],0))=1, SUM($C19:INDEX($C19:$N19,1,selectedmonat_num)), INDEX($C19:$N19,0,MATCH(monat,tblMonate[Monate],0))),"") -> 49479.01167 | Q19: =IFERROR( IF(INDEX(tblUmsatzFltr[Nr],MATCH(filter_umsatz,tblUmsatzFltr[Umsatz Filter],0))=1, SUM(C19:$N19),N19),"") -> 331680.9499
B20: =jahr -> 2020 | C20: =IFERROR( SUMIF(INDIRECT(dshbrdrng_umsatzentwicklung),"<>", INDEX(INDIRECT(dshbrdrng_umsatzentwicklung2),0,MATCH(DATE($B20,MONTH(C$13),1),Erfolgsrechnung_Detail!$O$8:$DF$8,0))), "") -> 8043.344012 | D20: =IFERROR( IF(INDEX(tblUmsatzFltr[Nr],MATCH(filter_umsatz,tblUmsatzFltr[Umsatz Filter],0)) = 1, SUMIF(INDIRECT(dshbrdrng_umsatzentwicklung),"<>", INDEX(INDIRECT(dshbrdrng_umsatzentwicklung2),0,MATCH(DATE($B20,MONTH(D$13),1),Erfolgsrechnung_Detail!$O$8:$DF$8,0))), SUMIF(INDIRECT(dshbrdrng_umsatzentwicklung),"<>", INDEX(INDIRECT(dshbrdrng_umsatzentwicklung2),0,MATCH(DATE($B20,MONTH(D$13),1),Erfolgsrechnung_Detail!$O$8:$DF$8,0)))+C20),"") -> 6987.212587 | E20: =IFERROR( IF(INDEX(tblUmsatzFltr[Nr],MATCH(filter_umsatz,tblUmsatzFltr[Umsatz Filter],0)) = 1, SUMIF(INDIRECT(dshbrdrng_umsatzentwicklung),"<>", INDEX(INDIRECT(dshbrdrng_umsatzentwicklung2),0,MATCH(DATE($B20,MONTH(E$13),1),Erfolgsrechnung_Detail!$O$8:$DF$8,0))), SUMIF(INDIRECT(dshbrdrng_umsatzentwicklung),"<>", INDEX(INDIRECT(dshbrdrng_umsatzentwicklung2),0,MATCH(DATE($B20,MONTH(E$13),1),Erfolgsrechnung_Detail!$O$8:$DF$8,0)))+D20),"") -> 5922.325485 | F20: =IFERROR( IF(INDEX(tblUmsatzFltr[Nr],MATCH(filter_umsatz,tblUmsatzFltr[Umsatz Filter],0)) = 1, SUMIF(INDIRECT(dshbrdrng_umsatzentwicklung),"<>", INDEX(INDIRECT(dshbrdrng_umsatzentwicklung2),0,MATCH(DATE($B20,MONTH(F$13),1),Erfolgsrechnung_Detail!$O$8:$DF$8,0))), SUMIF(INDIRECT(dshbrdrng_umsatzentwicklung),"<>", INDEX(INDIRECT(dshbrdrng_umsatzentwicklung2),0,MATCH(DATE($B20,MONTH(F$13),1),Erfolgsrechnung_Detail!$O$8:$DF$8,0)))+E20),"") -> 9384.812775 | G20: =IFERROR( IF(INDEX(tblUmsatzFltr[Nr],MATCH(filter_umsatz,tblUmsatzFltr[Umsatz Filter],0)) = 1, SUMIF(INDIRECT(dshbrdrng_umsatzentwicklung),"<>", INDEX(INDIRECT(dshbrdrng_umsatzentwicklung2),0,MATCH(DATE($B20,MONTH(G$13),1),Erfolgsrechnung_Detail!$O$8:$DF$8,0))), SUMIF(INDIRECT(dshbrdrng_umsatzentwicklung),"<>", INDEX(INDIRECT(dshbrdrng_umsatzentwicklung2),0,MATCH(DATE($B20,MONTH(G$13),1),Erfolgsrechnung_Detail!$O$8:$DF$8,0)))+F20),"") -> 9192.09528 | H20: =IFERROR( IF(INDEX(tblUmsatzFltr[Nr],MATCH(filter_umsatz,tblUmsatzFltr[Umsatz Filter],0)) = 1, SUMIF(INDIRECT(dshbrdrng_umsatzentwicklung),"<>", INDEX(INDIRECT(dshbrdrng_umsatzentwicklung2),0,MATCH(DATE($B20,MONTH(H$13),1),Erfolgsrechnung_Detail!$O$8:$DF$8,0))), SUMIF(INDIRECT(dshbrdrng_umsatzentwicklung),"<>", INDEX(INDIRECT(dshbrdrng_umsatzentwicklung2),0,MATCH(DATE($B20,MONTH(H$13),1),Erfolgsrechnung_Detail!$O$8:$DF$8,0)))+G20),"") -> 6327.601321 | I20: =IFERROR( IF(INDEX(tblUmsatzFltr[Nr],MATCH(filter_umsatz,tblUmsatzFltr[Umsatz Filter],0)) = 1, SUMIF(INDIRECT(dshbrdrng_umsatzentwicklung),"<>", INDEX(INDIRECT(dshbrdrng_umsatzentwicklung2),0,MATCH(DATE($B20,MONTH(I$13),1),Erfolgsrechnung_Detail!$O$8:$DF$8,0))), SUMIF(INDIRECT(dshbrdrng_umsatzentwicklung),"<>", INDEX(INDIRECT(dshbrdrng_umsatzentwicklung2),0,MATCH(DATE($B20,MONTH(I$13),1),Erfolgsrechnung_Detail!$O$8:$DF$8,0)))+H20),"") -> 10187.37933 | J20: =IFERROR( IF(INDEX(tblUmsatzFltr[Nr],MATCH(filter_umsatz,tblUmsatzFltr[Umsatz Filter],0)) = 1, SUMIF(INDIRECT(dshbrdrng_umsatzentwicklung),"<>", INDEX(INDIRECT(dshbrdrng_umsatzentwicklung2),0,MATCH(DATE($B20,MONTH(J$13),1),Erfolgsrechnung_Detail!$O$8:$DF$8,0))), SUMIF(INDIRECT(dshbrdrng_umsatzentwicklung),"<>", INDEX(INDIRECT(dshbrdrng_umsatzentwicklung2),0,MATCH(DATE($B20,MONTH(J$13),1),Erfolgsrechnung_Detail!$O$8:$DF$8,0)))+I20),"") -> 10946.58508 | K20: =IFERROR( IF(INDEX(tblUmsatzFltr[Nr],MATCH(filter_umsatz,tblUmsatzFltr[Umsatz Filter],0)) = 1, SUMIF(INDIRECT(dshbrdrng_umsatzentwicklung),"<>", INDEX(INDIRECT(dshbrdrng_umsatzentwicklung2),0,MATCH(DATE($B20,MONTH(K$13),1),Erfolgsrechnung_Detail!$O$8:$DF$8,0))), SUMIF(INDIRECT(dshbrdrng_umsatzentwicklung),"<>", INDEX(INDIRECT(dshbrdrng_umsatzentwicklung2),0,MATCH(DATE($B20,MONTH(K$13),1),Erfolgsrechnung_Detail!$O$8:$DF$8,0)))+J20),"") -> 9296.41437 | L20: =IFERROR( IF(INDEX(tblUmsatzFltr[Nr],MATCH(filter_umsatz,tblUmsatzFltr[Umsatz Filter],0)) = 1, SUMIF(INDIRECT(dshbrdrng_umsatzentwicklung),"<>", INDEX(INDIRECT(dshbrdrng_umsatzentwicklung2),0,MATCH(DATE($B20,MONTH(L$13),1),Erfolgsrechnung_Detail!$O$8:$DF$8,0))), SUMIF(INDIRECT(dshbrdrng_umsatzentwicklung),"<>", INDEX(INDIRECT(dshbrdrng_umsatzentwicklung2),0,MATCH(DATE($B20,MONTH(L$13),1),Erfolgsrechnung_Detail!$O$8:$DF$8,0)))+K20),"") -> 13648.04705 | M20: =IFERROR( IF(INDEX(tblUmsatzFltr[Nr],MATCH(filter_umsatz,tblUmsatzFltr[Umsatz Filter],0)) = 1, SUMIF(INDIRECT(dshbrdrng_umsatzentwicklung),"<>", INDEX(INDIRECT(dshbrdrng_umsatzentwicklung2),0,MATCH(DATE($B20,MONTH(M$13),1),Erfolgsrechnung_Detail!$O$8:$DF$8,0))), SUMIF(INDIRECT(dshbrdrng_umsatzentwicklung),"<>", INDEX(INDIRECT(dshbrdrng_umsatzentwicklung2),0,MATCH(DATE($B20,MONTH(M$13),1),Erfolgsrechnung_Detail!$O$8:$DF$8,0)))+L20),"") -> 19404.96038 | N20: =IFERROR( IF(INDEX(tblUmsatzFltr[Nr],MATCH(filter_umsatz,tblUmsatzFltr[Umsatz Filter],0)) = 1, SUMIF(INDIRECT(dshbrdrng_umsatzentwicklung),"<>", INDEX(INDIRECT(dshbrdrng_umsatzentwicklung2),0,MATCH(DATE($B20,MONTH(N$13),1),Erfolgsrechnung_Detail!$O$8:$DF$8,0))), SUMIF(INDIRECT(dshbrdrng_umsatzentwicklung),"<>", INDEX(INDIRECT(dshbrdrng_umsatzentwicklung2),0,MATCH(DATE($B20,MONTH(N$13),1),Erfolgsrechnung_Detail!$O$8:$DF$8,0)))+M20),"") -> 26556.36861 | P20: =IFERROR(IF( INDEX(tblUmsatzFltr[Nr],MATCH(filter_umsatz,tblUmsatzFltr[Umsatz Filter],0))=1, SUM($C20:INDEX($C20:$N20,1,selectedmonat_num)), INDEX($C20:$N20,0,MATCH(monat,tblMonate[Monate],0))),"") -> 20952.88208 | Q20: =IFERROR( IF(INDEX(tblUmsatzFltr[Nr],MATCH(filter_umsatz,tblUmsatzFltr[Umsatz Filter],0))=1, SUM(C20:$N20),N20),"") -> 135897.1463
B21: YTD Wachstum | C21: =IFERROR(C20/C19-1,0) -> -0.5279617949 | D21: =IFERROR(D20/D19-1,0) -> -0.01314718008 | E21: =IFERROR(E20/E19-1,0) -> -0.7664616127 | F21: -0.7381363422 | G21: -0.6223310635 | H21: -0.4623102453 | I21: -0.7378311039 | J21: -0.2976604479 | K21: -0.6423951856 | L21: -0.6403896762 | M21: -0.5 | N21: -0.4994435425 | P21: =IFERROR(P20/P19-1,0) -> -0.5765298987 | Q21: =IFERROR(Q20/Q19-1,0) -> -0.5902775051
B23: Budget | C23: =IFERROR(SUMIFS(INDIRECT(budgetrng_umsatzentwicklung),INDIRECT(budgetrng),"<>"),"") -> 5000 | D23: =IFERROR(SUMIFS(OFFSET(INDIRECT(budgetrng_umsatzentwicklung),0,1),INDIRECT(budgetrng),"<>"),"") -> 5000 | E23: =IFERROR(SUMIFS(OFFSET(INDIRECT(budgetrng_umsatzentwicklung),0,2),INDIRECT(budgetrng),"<>"),"") -> 6000 | F23: =IFERROR(SUMIFS(OFFSET(INDIRECT(budgetrng_umsatzentwicklung),0,3),INDIRECT(budgetrng),"<>"),"") -> 6000 | G23: =IFERROR(SUMIFS(OFFSET(INDIRECT(budgetrng_umsatzentwicklung),0,4),INDIRECT(budgetrng),"<>"),"") -> 7000 | H23: =IFERROR(SUMIFS(OFFSET(INDIRECT(budgetrng_umsatzentwicklung),0,5),INDIRECT(budgetrng),"<>"),"") -> 7000 | I23: =IFERROR(SUMIFS(OFFSET(INDIRECT(budgetrng_umsatzentwicklung),0,6),INDIRECT(budgetrng),"<>"),"") -> 8000 | J23: =IFERROR(SUMIFS(OFFSET(INDIRECT(budgetrng_umsatzentwicklung),0,7),INDIRECT(budgetrng),"<>"),"") -> 8000 | K23: =IFERROR(SUMIFS(OFFSET(INDIRECT(budgetrng_umsatzentwicklung),0,8),INDIRECT(budgetrng),"<>"),"") -> 9000 | L23: =IFERROR(SUMIFS(OFFSET(INDIRECT(budgetrng_umsatzentwicklung),0,9),INDIRECT(budgetrng),"<>"),"") -> 9000 | M23: =IFERROR(SUMIFS(OFFSET(INDIRECT(budgetrng_umsatzentwicklung),0,10),INDIRECT(budgetrng),"<>"),"") -> 10000 | N23: =IFERROR(SUMIFS(OFFSET(INDIRECT(budgetrng_umsatzentwicklung),0,11),INDIRECT(budgetrng),"<>"),"") -> 10000 | P23: =SUM($C23:INDEX($C23:$N23,1,selectedmonat_num)) -> 16000 | Q23: =SUM(rngBudget) -> 90000
B26: Aktuelles Jahr vs. Vorjahr | P26: =IF(INDEX(tblMonate[Nr],MATCH(monat,tblMonate[Monate],0))<> 1, CONCATENATE("YTD ",Einstellungen!$AY$8," - ",monat," Umsatz Zielerreichung"), CONCATENATE("YTD ",Einstellungen!$AY$8," Umsatz Zielerreichungt")) -> YTD Januar - März Umsatz Zielerreichung
B28: Budget | C28: =C23 -> 5000 | D28: =IF(INDEX(tblUmsatzFltr[Nr],MATCH($L$3,tblUmsatzFltr[Umsatz Filter],0)) = 1,D$23,D$23+C$28) -> 5000 | E28: =IF(INDEX(tblUmsatzFltr[Nr],MATCH($L$3,tblUmsatzFltr[Umsatz Filter],0)) = 1,E$23,E$23+D$28) -> 6000 | F28: =IF(INDEX(tblUmsatzFltr[Nr],MATCH($L$3,tblUmsatzFltr[Umsatz Filter],0)) = 1,F$23,F$23+E$28) -> 6000 | G28: =IF(INDEX(tblUmsatzFltr[Nr],MATCH($L$3,tblUmsatzFltr[Umsatz Filter],0)) = 1,G$23,G$23+F$28) -> 7000 | H28: =IF(INDEX(tblUmsatzFltr[Nr],MATCH($L$3,tblUmsatzFltr[Umsatz Filter],0)) = 1,H$23,H$23+G$28) -> 7000 | I28: =IF(INDEX(tblUmsatzFltr[Nr],MATCH($L$3,tblUmsatzFltr[Umsatz Filter],0)) = 1,I$23,I$23+H$28) -> 8000 | J28: =IF(INDEX(tblUmsatzFltr[Nr],MATCH($L$3,tblUmsatzFltr[Umsatz Filter],0)) = 1,J$23,J$23+I$28) -> 8000 | K28: =IF(INDEX(tblUmsatzFltr[Nr],MATCH($L$3,tblUmsatzFltr[Umsatz Filter],0)) = 1,K$23,K$23+J$28) -> 9000 | L28: =IF(INDEX(tblUmsatzFltr[Nr],MATCH($L$3,tblUmsatzFltr[Umsatz Filter],0)) = 1,L$23,L$23+K$28) -> 9000 | M28: =IF(INDEX(tblUmsatzFltr[Nr],MATCH($L$3,tblUmsatzFltr[Umsatz Filter],0)) = 1,M$23,M$23+L$28) -> 10000 | N28: =IF(INDEX(tblUmsatzFltr[Nr],MATCH($L$3,tblUmsatzFltr[Umsatz Filter],0)) = 1,N$23,N$23+M$28) -> 10000
B47: Bruttogewinn /-Verlust
C49: =DATE(jahr,1,1) -> 2020-01-01 | D49: =EOMONTH(C49,0)+1 -> 2020-02-01 | E49: 2020-03-01 | F49: 2020-04-01 | G49: 2020-05-01 | H49: 2020-06-01 | I49: 2020-07-01 | J49: 2020-08-01 | K49: 2020-09-01 | L49: 2020-10-01 | M49: 2020-11-01 | N49: 2020-12-01 | P49: =P13 -> YTD Januar bis März | Q49: Total
B50: =B51-1 -> 2014 | C50: =IFERROR(C14+ SUMIF(INDIRECT(dshbrdrng_bruttogewinn),"<>", INDEX(INDIRECT(dshbrdrng_bruttogewinn2),0,MATCH(DATE($B50,MONTH(C$49),1),Erfolgsrechnung_Detail!$O$8:$DF$8,0))), "") ->  | D50: =IFERROR(SUMIF(INDIRECT(dshbrdrng_umsatzentwicklung),"="&Einstellungen!$BI$8, INDEX(INDIRECT(dshbrdrng_umsatzentwicklung2),0,MATCH(DATE($B14,MONTH(D$13),1),Erfolgsrechnung_Detail!$O$8:$DF$8,0))) + IF(INDEX(tblUmsatzFltr[Nr],MATCH(filter_umsatz,tblUmsatzFltr[Umsatz Filter],0)) = 1, SUMIF(INDIRECT(dshbrdrng_bruttogewinn),"<>", INDEX(INDIRECT(dshbrdrng_bruttogewinn2),0,MATCH(DATE($B50,MONTH(D$49),1),Erfolgsrechnung_Detail!$O$8:$DF$8,0))), SUMIF(INDIRECT(dshbrdrng_bruttogewinn),"<>", INDEX(INDIRECT(dshbrdrng_bruttogewinn2),0,MATCH(DATE($B50,MONTH(D$49),1),Erfolgsrechnung_Detail!$O$8:$DF$8,0)))+C50),"") ->  | E50: =IFERROR(SUMIF(INDIRECT(dshbrdrng_umsatzentwicklung),"="&Einstellungen!$BI$8, INDEX(INDIRECT(dshbrdrng_umsatzentwicklung2),0,MATCH(DATE($B14,MONTH(E$13),1),Erfolgsrechnung_Detail!$O$8:$DF$8,0))) + IF(INDEX(tblUmsatzFltr[Nr],MATCH(filter_umsatz,tblUmsatzFltr[Umsatz Filter],0)) = 1, SUMIF(INDIRECT(dshbrdrng_bruttogewinn),"<>", INDEX(INDIRECT(dshbrdrng_bruttogewinn2),0,MATCH(DATE($B50,MONTH(E$49),1),Erfolgsrechnung_Detail!$O$8:$DF$8,0))), SUMIF(INDIRECT(dshbrdrng_bruttogewinn),"<>", INDEX(INDIRECT(dshbrdrng_bruttogewinn2),0,MATCH(DATE($B50,MONTH(E$49),1),Erfolgsrechnung_Detail!$O$8:$DF$8,0)))+D50),"") ->  | F50: =IFERROR(SUMIF(INDIRECT(dshbrdrng_umsatzentwicklung),"="&Einstellungen!$BI$8, INDEX(INDIRECT(dshbrdrng_umsatzentwicklung2),0,MATCH(DATE($B14,MONTH(F$13),1),Erfolgsrechnung_Detail!$O$8:$DF$8,0))) + IF(INDEX(tblUmsatzFltr[Nr],MATCH(filter_umsatz,tblUmsatzFltr[Umsatz Filter],0)) = 1, SUMIF(INDIRECT(dshbrdrng_bruttogewinn),"<>", INDEX(INDIRECT(dshbrdrng_bruttogewinn2),0,MATCH(DATE($B50,MONTH(F$49),1),Erfolgsrechnung_Detail!$O$8:$DF$8,0))), SUMIF(INDIRECT(dshbrdrng_bruttogewinn),"<>", INDEX(INDIRECT(dshbrdrng_bruttogewinn2),0,MATCH(DATE($B50,MONTH(F$49),1),Erfolgsrechnung_Detail!$O$8:$DF$8,0)))+E50),"") ->  | G50: =IFERROR(SUMIF(INDIRECT(dshbrdrng_umsatzentwicklung),"="&Einstellungen!$BI$8, INDEX(INDIRECT(dshbrdrng_umsatzentwicklung2),0,MATCH(DATE($B14,MONTH(G$13),1),Erfolgsrechnung_Detail!$O$8:$DF$8,0))) + IF(INDEX(tblUmsatzFltr[Nr],MATCH(filter_umsatz,tblUmsatzFltr[Umsatz Filter],0)) = 1, SUMIF(INDIRECT(dshbrdrng_bruttogewinn),"<>", INDEX(INDIRECT(dshbrdrng_bruttogewinn2),0,MATCH(DATE($B50,MONTH(G$49),1),Erfolgsrechnung_Detail!$O$8:$DF$8,0))), SUMIF(INDIRECT(dshbrdrng_bruttogewinn),"<>", INDEX(INDIRECT(dshbrdrng_bruttogewinn2),0,MATCH(DATE($B50,MONTH(G$49),1),Erfolgsrechnung_Detail!$O$8:$DF$8,0)))+F50),"") ->  | H50: =IFERROR(SUMIF(INDIRECT(dshbrdrng_umsatzentwicklung),"="&Einstellungen!$BI$8, INDEX(INDIRECT(dshbrdrng_umsatzentwicklung2),0,MATCH(DATE($B14,MONTH(H$13),1),Erfolgsrechnung_Detail!$O$8:$DF$8,0))) + IF(INDEX(tblUmsatzFltr[Nr],MATCH(filter_umsatz,tblUmsatzFltr[Umsatz Filter],0)) = 1, SUMIF(INDIRECT(dshbrdrng_bruttogewinn),"<>", INDEX(INDIRECT(dshbrdrng_bruttogewinn2),0,MATCH(DATE($B50,MONTH(H$49),1),Erfolgsrechnung_Detail!$O$8:$DF$8,0))), SUMIF(INDIRECT(dshbrdrng_bruttogewinn),"<>", INDEX(INDIRECT(dshbrdrng_bruttogewinn2),0,MATCH(DATE($B50,MONTH(H$49),1),Erfolgsrechnung_Detail!$O$8:$DF$8,0)))+G50),"") ->  | I50: =IFERROR(SUMIF(INDIRECT(dshbrdrng_umsatzentwicklung),"="&Einstellungen!$BI$8, INDEX(INDIRECT(dshbrdrng_umsatzentwicklung2),0,MATCH(DATE($B14,MONTH(I$13),1),Erfolgsrechnung_Detail!$O$8:$DF$8,0))) + IF(INDEX(tblUmsatzFltr[Nr],MATCH(filter_umsatz,tblUmsatzFltr[Umsatz Filter],0)) = 1, SUMIF(INDIRECT(dshbrdrng_bruttogewinn),"<>", INDEX(INDIRECT(dshbrdrng_bruttogewinn2),0,MATCH(DATE($B50,MONTH(I$49),1),Erfolgsrechnung_Detail!$O$8:$DF$8,0))), SUMIF(INDIRECT(dshbrdrng_bruttogewinn),"<>", INDEX(INDIRECT(dshbrdrng_bruttogewinn2),0,MATCH(DATE($B50,MONTH(I$49),1),Erfolgsrechnung_Detail!$O$8:$DF$8,0)))+H50),"") ->  | J50: =IFERROR(SUMIF(INDIRECT(dshbrdrng_umsatzentwicklung),"="&Einstellungen!$BI$8, INDEX(INDIRECT(dshbrdrng_umsatzentwicklung2),0,MATCH(DATE($B14,MONTH(J$13),1),Erfolgsrechnung_Detail!$O$8:$DF$8,0))) + IF(INDEX(tblUmsatzFltr[Nr],MATCH(filter_umsatz,tblUmsatzFltr[Umsatz Filter],0)) = 1, SUMIF(INDIRECT(dshbrdrng_bruttogewinn),"<>", INDEX(INDIRECT(dshbrdrng_bruttogewinn2),0,MATCH(DATE($B50,MONTH(J$49),1),Erfolgsrechnung_Detail!$O$8:$DF$8,0))), SUMIF(INDIRECT(dshbrdrng_bruttogewinn),"<>", INDEX(INDIRECT(dshbrdrng_bruttogewinn2),0,MATCH(DATE($B50,MONTH(J$49),1),Erfolgsrechnung_Detail!$O$8:$DF$8,0)))+I50),"") ->  | K50: =IFERROR(SUMIF(INDIRECT(dshbrdrng_umsatzentwicklung),"="&Einstellungen!$BI$8, INDEX(INDIRECT(dshbrdrng_umsatzentwicklung2),0,MATCH(DATE($B14,MONTH(K$13),1),Erfolgsrechnung_Detail!$O$8:$DF$8,0))) + IF(INDEX(tblUmsatzFltr[Nr],MATCH(filter_umsatz,tblUmsatzFltr[Umsatz Filter],0)) = 1, SUMIF(INDIRECT(dshbrdrng_bruttogewinn),"<>", INDEX(INDIRECT(dshbrdrng_bruttogewinn2),0,MATCH(DATE($B50,MONTH(K$49),1),Erfolgsrechnung_Detail!$O$8:$DF$8,0))), SUMIF(INDIRECT(dshbrdrng_bruttogewinn),"<>", INDEX(INDIRECT(dshbrdrng_bruttogewinn2),0,MATCH(DATE($B50,MONTH(K$49),1),Erfolgsrechnung_Detail!$O$8:$DF$8,0)))+J50),"") ->  | L50: =IFERROR(SUMIF(INDIRECT(dshbrdrng_umsatzentwicklung),"="&Einstellungen!$BI$8, INDEX(INDIRECT(dshbrdrng_umsatzentwicklung2),0,MATCH(DATE($B14,MONTH(L$13),1),Erfolgsrechnung_Detail!$O$8:$DF$8,0))) + IF(INDEX(tblUmsatzFltr[Nr],MATCH(filter_umsatz,tblUmsatzFltr[Umsatz Filter],0)) = 1, SUMIF(INDIRECT(dshbrdrng_bruttogewinn),"<>", INDEX(INDIRECT(dshbrdrng_bruttogewinn2),0,MATCH(DATE($B50,MONTH(L$49),1),Erfolgsrechnung_Detail!$O$8:$DF$8,0))), SUMIF(INDIRECT(dshbrdrng_bruttogewinn),"<>", INDEX(INDIRECT(dshbrdrng_bruttogewinn2),0,MATCH(DATE($B50,MONTH(L$49),1),Erfolgsrechnung_Detail!$O$8:$DF$8,0)))+K50),"") ->  | M50: =IFERROR(SUMIF(INDIRECT(dshbrdrng_umsatzentwicklung),"="&Einstellungen!$BI$8, INDEX(INDIRECT(dshbrdrng_umsatzentwicklung2),0,MATCH(DATE($B14,MONTH(M$13),1),Erfolgsrechnung_Detail!$O$8:$DF$8,0))) + IF(INDEX(tblUmsatzFltr[Nr],MATCH(filter_umsatz,tblUmsatzFltr[Umsatz Filter],0)) = 1, SUMIF(INDIRECT(dshbrdrng_bruttogewinn),"<>", INDEX(INDIRECT(dshbrdrng_bruttogewinn2),0,MATCH(DATE($B50,MONTH(M$49),1),Erfolgsrechnung_Detail!$O$8:$DF$8,0))), SUMIF(INDIRECT(dshbrdrng_bruttogewinn),"<>", INDEX(INDIRECT(dshbrdrng_bruttogewinn2),0,MATCH(DATE($B50,MONTH(M$49),1),Erfolgsrechnung_Detail!$O$8:$DF$8,0)))+L50),"") ->  | N50: =IFERROR(SUMIF(INDIRECT(dshbrdrng_umsatzentwicklung),"="&Einstellungen!$BI$8, INDEX(INDIRECT(dshbrdrng_umsatzentwicklung2),0,MATCH(DATE($B14,MONTH(N$13),1),Erfolgsrechnung_Detail!$O$8:$DF$8,0))) + IF(INDEX(tblUmsatzFltr[Nr],MATCH(filter_umsatz,tblUmsatzFltr[Umsatz Filter],0)) = 1, SUMIF(INDIRECT(dshbrdrng_bruttogewinn),"<>", INDEX(INDIRECT(dshbrdrng_bruttogewinn2),0,MATCH(DATE($B50,MONTH(N$49),1),Erfolgsrechnung_Detail!$O$8:$DF$8,0))), SUMIF(INDIRECT(dshbrdrng_bruttogewinn),"<>", INDEX(INDIRECT(dshbrdrng_bruttogewinn2),0,MATCH(DATE($B50,MONTH(N$49),1),Erfolgsrechnung_Detail!$O$8:$DF$8,0)))+M50),"") ->  | P50: =IFERROR(IF( INDEX(tblUmsatzFltr[Nr],MATCH(filter_umsatz,tblUmsatzFltr[Umsatz Filter],0))=1, SUM($C50:INDEX($C50:$N50,1,selectedmonat_num)), INDEX($C50:$N50,0,MATCH(monat,tblMonate[Monate],0))),"") -> 0 | Q50: =IFERROR( IF(INDEX(tblUmsatzFltr[Nr],MATCH(filter_umsatz,tblUmsatzFltr[Umsatz Filter],0))=1, SUM(C50:$N50),N50),"") -> 0
B51: 2015 | C51: =IFERROR(C15+ SUMIF(INDIRECT(dshbrdrng_bruttogewinn),"<>", INDEX(INDIRECT(dshbrdrng_bruttogewinn2),0,MATCH(DATE($B51,MONTH(C$49),1),Erfolgsrechnung_Detail!$O$8:$DF$8,0))), "") -> 5631.801301 | D51: =IFERROR(SUMIF(INDIRECT(dshbrdrng_umsatzentwicklung),"="&Einstellungen!$BI$8, INDEX(INDIRECT(dshbrdrng_umsatzentwicklung2),0,MATCH(DATE($B15,MONTH(D$13),1),Erfolgsrechnung_Detail!$O$8:$DF$8,0))) + IF(INDEX(tblUmsatzFltr[Nr],MATCH(filter_umsatz,tblUmsatzFltr[Umsatz Filter],0)) = 1, SUMIF(INDIRECT(dshbrdrng_bruttogewinn),"<>", INDEX(INDIRECT(dshbrdrng_bruttogewinn2),0,MATCH(DATE($B51,MONTH(D$49),1),Erfolgsrechnung_Detail!$O$8:$DF$8,0))), SUMIF(INDIRECT(dshbrdrng_bruttogewinn),"<>", INDEX(INDIRECT(dshbrdrng_bruttogewinn2),0,MATCH(DATE($B51,MONTH(D$49),1),Erfolgsrechnung_Detail!$O$8:$DF$8,0)))+C51),"") -> 8495.938384 | E51: =IFERROR(SUMIF(INDIRECT(dshbrdrng_umsatzentwicklung),"="&Einstellungen!$BI$8, INDEX(INDIRECT(dshbrdrng_umsatzentwicklung2),0,MATCH(DATE($B15,MONTH(E$13),1),Erfolgsrechnung_Detail!$O$8:$DF$8,0))) + IF(INDEX(tblUmsatzFltr[Nr],MATCH(filter_umsatz,tblUmsatzFltr[Umsatz Filter],0)) = 1, SUMIF(INDIRECT(dshbrdrng_bruttogewinn),"<>", INDEX(INDIRECT(dshbrdrng_bruttogewinn2),0,MATCH(DATE($B51,MONTH(E$49),1),Erfolgsrechnung_Detail!$O$8:$DF$8,0))), SUMIF(INDIRECT(dshbrdrng_bruttogewinn),"<>", INDEX(INDIRECT(dshbrdrng_bruttogewinn2),0,MATCH(DATE($B51,MONTH(E$49),1),Erfolgsrechnung_Detail!$O$8:$DF$8,0)))+D51),"") -> 985.1636702 | F51: =IFERROR(SUMIF(INDIRECT(dshbrdrng_umsatzentwicklung),"="&Einstellungen!$BI$8, INDEX(INDIRECT(dshbrdrng_umsatzentwicklung2),0,MATCH(DATE($B15,MONTH(F$13),1),Erfolgsrechnung_Detail!$O$8:$DF$8,0))) + IF(INDEX(tblUmsatzFltr[Nr],MATCH(filter_umsatz,tblUmsatzFltr[Umsatz Filter],0)) = 1, SUMIF(INDIRECT(dshbrdrng_bruttogewinn),"<>", INDEX(INDIRECT(dshbrdrng_bruttogewinn2),0,MATCH(DATE($B51,MONTH(F$49),1),Erfolgsrechnung_Detail!$O$8:$DF$8,0))), SUMIF(INDIRECT(dshbrdrng_bruttogewinn),"<>", INDEX(INDIRECT(dshbrdrng_bruttogewinn2),0,MATCH(DATE($B51,MONTH(F$49),1),Erfolgsrechnung_Detail!$O$8:$DF$8,0)))+E51),"") -> 2690.0693 | G51: =IFERROR(SUMIF(INDIRECT(dshbrdrng_umsatzentwicklung),"="&Einstellungen!$BI$8, INDEX(INDIRECT(dshbrdrng_umsatzentwicklung2),0,MATCH(DATE($B15,MONTH(G$13),1),Erfolgsrechnung_Detail!$O$8:$DF$8,0))) + IF(INDEX(tblUmsatzFltr[Nr],MATCH(filter_umsatz,tblUmsatzFltr[Umsatz Filter],0)) = 1, SUMIF(INDIRECT(dshbrdrng_bruttogewinn),"<>", INDEX(INDIRECT(dshbrdrng_bruttogewinn2),0,MATCH(DATE($B51,MONTH(G$49),1),Erfolgsrechnung_Detail!$O$8:$DF$8,0))), SUMIF(INDIRECT(dshbrdrng_bruttogewinn),"<>", INDEX(INDIRECT(dshbrdrng_bruttogewinn2),0,MATCH(DATE($B51,MONTH(G$49),1),Erfolgsrechnung_Detail!$O$8:$DF$8,0)))+F51),"") -> 5219.078405 | H51: =IFERROR(SUMIF(INDIRECT(dshbrdrng_umsatzentwicklung),"="&Einstellungen!$BI$8, INDEX(INDIRECT(dshbrdrng_umsatzentwicklung2),0,MATCH(DATE($B15,MONTH(H$13),1),Erfolgsrechnung_Detail!$O$8:$DF$8,0))) + IF(INDEX(tblUmsatzFltr[Nr],MATCH(filter_umsatz,tblUmsatzFltr[Umsatz Filter],0)) = 1, SUMIF(INDIRECT(dshbrdrng_bruttogewinn),"<>", INDEX(INDIRECT(dshbrdrng_bruttogewinn2),0,MATCH(DATE($B51,MONTH(H$49),1),Erfolgsrechnung_Detail!$O$8:$DF$8,0))), SUMIF(INDIRECT(dshbrdrng_bruttogewinn),"<>", INDEX(INDIRECT(dshbrdrng_bruttogewinn2),0,MATCH(DATE($B51,MONTH(H$49),1),Erfolgsrechnung_Detail!$O$8:$DF$8,0)))+G51),"") -> 4675.023459 | I51: =IFERROR(SUMIF(INDIRECT(dshbrdrng_umsatzentwicklung),"="&Einstellungen!$BI$8, INDEX(INDIRECT(dshbrdrng_umsatzentwicklung2),0,MATCH(DATE($B15,MONTH(I$13),1),Erfolgsrechnung_Detail!$O$8:$DF$8,0))) + IF(INDEX(tblUmsatzFltr[Nr],MATCH(filter_umsatz,tblUmsatzFltr[Umsatz Filter],0)) = 1, SUMIF(INDIRECT(dshbrdrng_bruttogewinn),"<>", INDEX(INDIRECT(dshbrdrng_bruttogewinn2),0,MATCH(DATE($B51,MONTH(I$49),1),Erfolgsrechnung_Detail!$O$8:$DF$8,0))), SUMIF(INDIRECT(dshbrdrng_bruttogewinn),"<>", INDEX(INDIRECT(dshbrdrng_bruttogewinn2),0,MATCH(DATE($B51,MONTH(I$49),1),Erfolgsrechnung_Detail!$O$8:$DF$8,0)))+H51),"") -> 2764.194459 | J51: =IFERROR(SUMIF(INDIRECT(dshbrdrng_umsatzentwicklung),"="&Einstellungen!$BI$8, INDEX(INDIRECT(dshbrdrng_umsatzentwicklung2),0,MATCH(DATE($B15,MONTH(J$13),1),Erfolgsrechnung_Detail!$O$8:$DF$8,0))) + IF(INDEX(tblUmsatzFltr[Nr],MATCH(filter_umsatz,tblUmsatzFltr[Umsatz Filter],0)) = 1, SUMIF(INDIRECT(dshbrdrng_bruttogewinn),"<>", INDEX(INDIRECT(dshbrdrng_bruttogewinn2),0,MATCH(DATE($B51,MONTH(J$49),1),Erfolgsrechnung_Detail!$O$8:$DF$8,0))), SUMIF(INDIRECT(dshbrdrng_bruttogewinn),"<>", INDEX(INDIRECT(dshbrdrng_bruttogewinn2),0,MATCH(DATE($B51,MONTH(J$49),1),Erfolgsrechnung_Detail!$O$8:$DF$8,0)))+I51),"") -> 9488.406068 | K51: =IFERROR(SUMIF(INDIRECT(dshbrdrng_umsatzentwicklung),"="&Einstellungen!$BI$8, INDEX(INDIRECT(dshbrdrng_umsatzentwicklung2),0,MATCH(DATE($B15,MONTH(K$13),1),Erfolgsrechnung_Detail!$O$8:$DF$8,0))) + IF(INDEX(tblUmsatzFltr[Nr],MATCH(filter_umsatz,tblUmsatzFltr[Umsatz Filter],0)) = 1, SUMIF(INDIRECT(dshbrdrng_bruttogewinn),"<>", INDEX(INDIRECT(dshbrdrng_bruttogewinn2),0,MATCH(DATE($B51,MONTH(K$49),1),Erfolgsrechnung_Detail!$O$8:$DF$8,0))), SUMIF(INDIRECT(dshbrdrng_bruttogewinn),"<>", INDEX(INDIRECT(dshbrdrng_bruttogewinn2),0,MATCH(DATE($B51,MONTH(K$49),1),Erfolgsrechnung_Detail!$O$8:$DF$8,0)))+J51),"") -> 4976.03098 | L51: =IFERROR(SUMIF(INDIRECT(dshbrdrng_umsatzentwicklung),"="&Einstellungen!$BI$8, INDEX(INDIRECT(dshbrdrng_umsatzentwicklung2),0,MATCH(DATE($B15,MONTH(L$13),1),Erfolgsrechnung_Detail!$O$8:$DF$8,0))) + IF(INDEX(tblUmsatzFltr[Nr],MATCH(filter_umsatz,tblUmsatzFltr[Umsatz Filter],0)) = 1, SUMIF(INDIRECT(dshbrdrng_bruttogewinn),"<>", INDEX(INDIRECT(dshbrdrng_bruttogewinn2),0,MATCH(DATE($B51,MONTH(L$49),1),Erfolgsrechnung_Detail!$O$8:$DF$8,0))), SUMIF(INDIRECT(dshbrdrng_bruttogewinn),"<>", INDEX(INDIRECT(dshbrdrng_bruttogewinn2),0,MATCH(DATE($B51,MONTH(L$49),1),Erfolgsrechnung_Detail!$O$8:$DF$8,0)))+K51),"") -> 7119.056223 | M51: =IFERROR(SUMIF(INDIRECT(dshbrdrng_umsatzentwicklung),"="&Einstellungen!$BI$8, INDEX(INDIRECT(dshbrdrng_umsatzentwicklung2),0,MATCH(DATE($B15,MONTH(M$13),1),Erfolgsrechnung_Detail!$O$8:$DF$8,0))) + IF(INDEX(tblUmsatzFltr[Nr],MATCH(filter_umsatz,tblUmsatzFltr[Umsatz Filter],0)) = 1, SUMIF(INDIRECT(dshbrdrng_bruttogewinn),"<>", INDEX(INDIRECT(dshbrdrng_bruttogewinn2),0,MATCH(DATE($B51,MONTH(M$49),1),Erfolgsrechnung_Detail!$O$8:$DF$8,0))), SUMIF(INDIRECT(dshbrdrng_bruttogewinn),"<>", INDEX(INDIRECT(dshbrdrng_bruttogewinn2),0,MATCH(DATE($B51,MONTH(M$49),1),Erfolgsrechnung_Detail!$O$8:$DF$8,0)))+L51),"") -> 8132.682614 | N51: =IFERROR(SUMIF(INDIRECT(dshbrdrng_umsatzentwicklung),"="&Einstellungen!$BI$8, INDEX(INDIRECT(dshbrdrng_umsatzentwicklung2),0,MATCH(DATE($B15,MONTH(N$13),1),Erfolgsrechnung_Detail!$O$8:$DF$8,0))) + IF(INDEX(tblUmsatzFltr[Nr],MATCH(filter_umsatz,tblUmsatzFltr[Umsatz Filter],0)) = 1, SUMIF(INDIRECT(dshbrdrng_bruttogewinn),"<>", INDEX(INDIRECT(dshbrdrng_bruttogewinn2),0,MATCH(DATE($B51,MONTH(N$49),1),Erfolgsrechnung_Detail!$O$8:$DF$8,0))), SUMIF(INDIRECT(dshbrdrng_bruttogewinn),"<>", INDEX(INDIRECT(dshbrdrng_bruttogewinn2),0,MATCH(DATE($B51,MONTH(N$49),1),Erfolgsrechnung_Detail!$O$8:$DF$8,0)))+M51),"") -> 13509.22535 | P51: =IFERROR(IF( INDEX(tblUmsatzFltr[Nr],MATCH(filter_umsatz,tblUmsatzFltr[Umsatz Filter],0))=1, SUM($C51:INDEX($C51:$N51,1,selectedmonat_num)), INDEX($C51:$N51,0,MATCH(monat,tblMonate[Monate],0))),"") -> 15112.90336 | Q51: =IFERROR( IF(INDEX(tblUmsatzFltr[Nr],MATCH(filter_umsatz,tblUmsatzFltr[Umsatz Filter],0))=1, SUM(C51:$N51),N51),"") -> 73686.67022
B52: 2016 | C52: =IFERROR(C16+ SUMIF(INDIRECT(dshbrdrng_bruttogewinn),"<>", INDEX(INDIRECT(dshbrdrng_bruttogewinn2),0,MATCH(DATE($B52,MONTH(C$49),1),Erfolgsrechnung_Detail!$O$8:$DF$8,0))), "") -> 2738.848093 | D52: =IFERROR(SUMIF(INDIRECT(dshbrdrng_umsatzentwicklung),"="&Einstellungen!$BI$8, INDEX(INDIRECT(dshbrdrng_umsatzentwicklung2),0,MATCH(DATE($B16,MONTH(D$13),1),Erfolgsrechnung_Detail!$O$8:$DF$8,0))) + IF(INDEX(tblUmsatzFltr[Nr],MATCH(filter_umsatz,tblUmsatzFltr[Umsatz Filter],0)) = 1, SUMIF(INDIRECT(dshbrdrng_bruttogewinn),"<>", INDEX(INDIRECT(dshbrdrng_bruttogewinn2),0,MATCH(DATE($B52,MONTH(D$49),1),Erfolgsrechnung_Detail!$O$8:$DF$8,0))), SUMIF(INDIRECT(dshbrdrng_bruttogewinn),"<>", INDEX(INDIRECT(dshbrdrng_bruttogewinn2),0,MATCH(DATE($B52,MONTH(D$49),1),Erfolgsrechnung_Detail!$O$8:$DF$8,0)))+C52),"") -> 15281.90417 | E52: =IFERROR(SUMIF(INDIRECT(dshbrdrng_umsatzentwicklung),"="&Einstellungen!$BI$8, INDEX(INDIRECT(dshbrdrng_umsatzentwicklung2),0,MATCH(DATE($B16,MONTH(E$13),1),Erfolgsrechnung_Detail!$O$8:$DF$8,0))) + IF(INDEX(tblUmsatzFltr[Nr],MATCH(filter_umsatz,tblUmsatzFltr[Umsatz Filter],0)) = 1, SUMIF(INDIRECT(dshbrdrng_bruttogewinn),"<>", INDEX(INDIRECT(dshbrdrng_bruttogewinn2),0,MATCH(DATE($B52,MONTH(E$49),1),Erfolgsrechnung_Detail!$O$8:$DF$8,0))), SUMIF(INDIRECT(dshbrdrng_bruttogewinn),"<>", INDEX(INDIRECT(dshbrdrng_bruttogewinn2),0,MATCH(DATE($B52,MONTH(E$49),1),Erfolgsrechnung_Detail!$O$8:$DF$8,0)))+D52),"") -> 6156.163064 | F52: =IFERROR(SUMIF(INDIRECT(dshbrdrng_umsatzentwicklung),"="&Einstellungen!$BI$8, INDEX(INDIRECT(dshbrdrng_umsatzentwicklung2),0,MATCH(DATE($B16,MONTH(F$13),1),Erfolgsrechnung_Detail!$O$8:$DF$8,0))) + IF(INDEX(tblUmsatzFltr[Nr],MATCH(filter_umsatz,tblUmsatzFltr[Umsatz Filter],0)) = 1, SUMIF(INDIRECT(dshbrdrng_bruttogewinn),"<>", INDEX(INDIRECT(dshbrdrng_bruttogewinn2),0,MATCH(DATE($B52,MONTH(F$49),1),Erfolgsrechnung_Detail!$O$8:$DF$8,0))), SUMIF(INDIRECT(dshbrdrng_bruttogewinn),"<>", INDEX(INDIRECT(dshbrdrng_bruttogewinn2),0,MATCH(DATE($B52,MONTH(F$49),1),Erfolgsrechnung_Detail!$O$8:$DF$8,0)))+E52),"") -> 9280.277322 | G52: =IFERROR(SUMIF(INDIRECT(dshbrdrng_umsatzentwicklung),"="&Einstellungen!$BI$8, INDEX(INDIRECT(dshbrdrng_umsatzentwicklung2),0,MATCH(DATE($B16,MONTH(G$13),1),Erfolgsrechnung_Detail!$O$8:$DF$8,0))) + IF(INDEX(tblUmsatzFltr[Nr],MATCH(filter_umsatz,tblUmsatzFltr[Umsatz Filter],0)) = 1, SUMIF(INDIRECT(dshbrdrng_bruttogewinn),"<>", INDEX(INDIRECT(dshbrdrng_bruttogewinn2),0,MATCH(DATE($B52,MONTH(G$49),1),Erfolgsrechnung_Detail!$O$8:$DF$8,0))), SUMIF(INDIRECT(dshbrdrng_bruttogewinn),"<>", INDEX(INDIRECT(dshbrdrng_bruttogewinn2),0,MATCH(DATE($B52,MONTH(G$49),1),Erfolgsrechnung_Detail!$O$8:$DF$8,0)))+F52),"") -> 11596.80675 | H52: =IFERROR(SUMIF(INDIRECT(dshbrdrng_umsatzentwicklung),"="&Einstellungen!$BI$8, INDEX(INDIRECT(dshbrdrng_umsatzentwicklung2),0,MATCH(DATE($B16,MONTH(H$13),1),Erfolgsrechnung_Detail!$O$8:$DF$8,0))) + IF(INDEX(tblUmsatzFltr[Nr],MATCH(filter_umsatz,tblUmsatzFltr[Umsatz Filter],0)) = 1, SUMIF(INDIRECT(dshbrdrng_bruttogewinn),"<>", INDEX(INDIRECT(dshbrdrng_bruttogewinn2),0,MATCH(DATE($B52,MONTH(H$49),1),Erfolgsrechnung_Detail!$O$8:$DF$8,0))), SUMIF(INDIRECT(dshbrdrng_bruttogewinn),"<>", INDEX(INDIRECT(dshbrdrng_bruttogewinn2),0,MATCH(DATE($B52,MONTH(H$49),1),Erfolgsrechnung_Detail!$O$8:$DF$8,0)))+G52),"") -> 15123.59266 | I52: =IFERROR(SUMIF(INDIRECT(dshbrdrng_umsatzentwicklung),"="&Einstellungen!$BI$8, INDEX(INDIRECT(dshbrdrng_umsatzentwicklung2),0,MATCH(DATE($B16,MONTH(I$13),1),Erfolgsrechnung_Detail!$O$8:$DF$8,0))) + IF(INDEX(tblUmsatzFltr[Nr],MATCH(filter_umsatz,tblUmsatzFltr[Umsatz Filter],0)) = 1, SUMIF(INDIRECT(dshbrdrng_bruttogewinn),"<>", INDEX(INDIRECT(dshbrdrng_bruttogewinn2),0,MATCH(DATE($B52,MONTH(I$49),1),Erfolgsrechnung_Detail!$O$8:$DF$8,0))), SUMIF(INDIRECT(dshbrdrng_bruttogewinn),"<>", INDEX(INDIRECT(dshbrdrng_bruttogewinn2),0,MATCH(DATE($B52,MONTH(I$49),1),Erfolgsrechnung_Detail!$O$8:$DF$8,0)))+H52),"") -> 8104.521398 | J52: =IFERROR(SUMIF(INDIRECT(dshbrdrng_umsatzentwicklung),"="&Einstellungen!$BI$8, INDEX(INDIRECT(dshbrdrng_umsatzentwicklung2),0,MATCH(DATE($B16,MONTH(J$13),1),Erfolgsrechnung_Detail!$O$8:$DF$8,0))) + IF(INDEX(tblUmsatzFltr[Nr],MATCH(filter_umsatz,tblUmsatzFltr[Umsatz Filter],0)) = 1, SUMIF(INDIRECT(dshbrdrng_bruttogewinn),"<>", INDEX(INDIRECT(dshbrdrng_bruttogewinn2),0,MATCH(DATE($B52,MONTH(J$49),1),Erfolgsrechnung_Detail!$O$8:$DF$8,0))), SUMIF(INDIRECT(dshbrdrng_bruttogewinn),"<>", INDEX(INDIRECT(dshbrdrng_bruttogewinn2),0,MATCH(DATE($B52,MONTH(J$49),1),Erfolgsrechnung_Detail!$O$8:$DF$8,0)))+I52),"") -> 9127.184865 | K52: =IFERROR(SUMIF(INDIRECT(dshbrdrng_umsatzentwicklung),"="&Einstellungen!$BI$8, INDEX(INDIRECT(dshbrdrng_umsatzentwicklung2),0,MATCH(DATE($B16,MONTH(K$13),1),Erfolgsrechnung_Detail!$O$8:$DF$8,0))) + IF(INDEX(tblUmsatzFltr[Nr],MATCH(filter_umsatz,tblUmsatzFltr[Umsatz Filter],0)) = 1, SUMIF(INDIRECT(dshbrdrng_bruttogewinn),"<>", INDEX(INDIRECT(dshbrdrng_bruttogewinn2),0,MATCH(DATE($B52,MONTH(K$49),1),Erfolgsrechnung_Detail!$O$8:$DF$8,0))), SUMIF(INDIRECT(dshbrdrng_bruttogewinn),"<>", INDEX(INDIRECT(dshbrdrng_bruttogewinn2),0,MATCH(DATE($B52,MONTH(K$49),1),Erfolgsrechnung_Detail!$O$8:$DF$8,0)))+J52),"") -> 13389.8036 | L52: =IFERROR(SUMIF(INDIRECT(dshbrdrng_umsatzentwicklung),"="&Einstellungen!$BI$8, INDEX(INDIRECT(dshbrdrng_umsatzentwicklung2),0,MATCH(DATE($B16,MONTH(L$13),1),Erfolgsrechnung_Detail!$O$8:$DF$8,0))) + IF(INDEX(tblUmsatzFltr[Nr],MATCH(filter_umsatz,tblUmsatzFltr[Umsatz Filter],0)) = 1, SUMIF(INDIRECT(dshbrdrng_bruttogewinn),"<>", INDEX(INDIRECT(dshbrdrng_bruttogewinn2),0,MATCH(DATE($B52,MONTH(L$49),1),Erfolgsrechnung_Detail!$O$8:$DF$8,0))), SUMIF(INDIRECT(dshbrdrng_bruttogewinn),"<>", INDEX(INDIRECT(dshbrdrng_bruttogewinn2),0,MATCH(DATE($B52,MONTH(L$49),1),Erfolgsrechnung_Detail!$O$8:$DF$8,0)))+K52),"") -> 8628.732667 | M52: =IFERROR(SUMIF(INDIRECT(dshbrdrng_umsatzentwicklung),"="&Einstellungen!$BI$8, INDEX(INDIRECT(dshbrdrng_umsatzentwicklung2),0,MATCH(DATE($B16,MONTH(M$13),1),Erfolgsrechnung_Detail!$O$8:$DF$8,0))) + IF(INDEX(tblUmsatzFltr[Nr],MATCH(filter_umsatz,tblUmsatzFltr[Umsatz Filter],0)) = 1, SUMIF(INDIRECT(dshbrdrng_bruttogewinn),"<>", INDEX(INDIRECT(dshbrdrng_bruttogewinn2),0,MATCH(DATE($B52,MONTH(M$49),1),Erfolgsrechnung_Detail!$O$8:$DF$8,0))), SUMIF(INDIRECT(dshbrdrng_bruttogewinn),"<>", INDEX(INDIRECT(dshbrdrng_bruttogewinn2),0,MATCH(DATE($B52,MONTH(M$49),1),Erfolgsrechnung_Detail!$O$8:$DF$8,0)))+L52),"") -> 12483.03865 | N52: =IFERROR(SUMIF(INDIRECT(dshbrdrng_umsatzentwicklung),"="&Einstellungen!$BI$8, INDEX(INDIRECT(dshbrdrng_umsatzentwicklung2),0,MATCH(DATE($B16,MONTH(N$13),1),Erfolgsrechnung_Detail!$O$8:$DF$8,0))) + IF(INDEX(tblUmsatzFltr[Nr],MATCH(filter_umsatz,tblUmsatzFltr[Umsatz Filter],0)) = 1, SUMIF(INDIRECT(dshbrdrng_bruttogewinn),"<>", INDEX(INDIRECT(dshbrdrng_bruttogewinn2),0,MATCH(DATE($B52,MONTH(N$49),1),Erfolgsrechnung_Detail!$O$8:$DF$8,0))), SUMIF(INDIRECT(dshbrdrng_bruttogewinn),"<>", INDEX(INDIRECT(dshbrdrng_bruttogewinn2),0,MATCH(DATE($B52,MONTH(N$49),1),Erfolgsrechnung_Detail!$O$8:$DF$8,0)))+M52),"") -> 15108.51034 | P52: =IFERROR(IF( INDEX(tblUmsatzFltr[Nr],MATCH(filter_umsatz,tblUmsatzFltr[Umsatz Filter],0))=1, SUM($C52:INDEX($C52:$N52,1,selectedmonat_num)), INDEX($C52:$N52,0,MATCH(monat,tblMonate[Monate],0))),"") -> 24176.91532 | Q52: =IFERROR( IF(INDEX(tblUmsatzFltr[Nr],MATCH(filter_umsatz,tblUmsatzFltr[Umsatz Filter],0))=1, SUM(C52:$N52),N52),"") -> 127019.3836
B53: 2017 | C53: =IFERROR(C17+ SUMIF(INDIRECT(dshbrdrng_bruttogewinn),"<>", INDEX(INDIRECT(dshbrdrng_bruttogewinn2),0,MATCH(DATE($B53,MONTH(C$49),1),Erfolgsrechnung_Detail!$O$8:$DF$8,0))), "") -> 19690.89336 | D53: =IFERROR(SUMIF(INDIRECT(dshbrdrng_umsatzentwicklung),"="&Einstellungen!$BI$8, INDEX(INDIRECT(dshbrdrng_umsatzentwicklung2),0,MATCH(DATE($B17,MONTH(D$13),1),Erfolgsrechnung_Detail!$O$8:$DF$8,0))) + IF(INDEX(tblUmsatzFltr[Nr],MATCH(filter_umsatz,tblUmsatzFltr[Umsatz Filter],0)) = 1, SUMIF(INDIRECT(dshbrdrng_bruttogewinn),"<>", INDEX(INDIRECT(dshbrdrng_bruttogewinn2),0,MATCH(DATE($B53,MONTH(D$49),1),Erfolgsrechnung_Detail!$O$8:$DF$8,0))), SUMIF(INDIRECT(dshbrdrng_bruttogewinn),"<>", INDEX(INDIRECT(dshbrdrng_bruttogewinn2),0,MATCH(DATE($B53,MONTH(D$49),1),Erfolgsrechnung_Detail!$O$8:$DF$8,0)))+C53),"") -> 17057.94174 | E53: =IFERROR(SUMIF(INDIRECT(dshbrdrng_umsatzentwicklung),"="&Einstellungen!$BI$8, INDEX(INDIRECT(dshbrdrng_umsatzentwicklung2),0,MATCH(DATE($B17,MONTH(E$13),1),Erfolgsrechnung_Detail!$O$8:$DF$8,0))) + IF(INDEX(tblUmsatzFltr[Nr],MATCH(filter_umsatz,tblUmsatzFltr[Umsatz Filter],0)) = 1, SUMIF(INDIRECT(dshbrdrng_bruttogewinn),"<>", INDEX(INDIRECT(dshbrdrng_bruttogewinn2),0,MATCH(DATE($B53,MONTH(E$49),1),Erfolgsrechnung_Detail!$O$8:$DF$8,0))), SUMIF(INDIRECT(dshbrdrng_bruttogewinn),"<>", INDEX(INDIRECT(dshbrdrng_bruttogewinn2),0,MATCH(DATE($B53,MONTH(E$49),1),Erfolgsrechnung_Detail!$O$8:$DF$8,0)))+D53),"") -> 14539.23032 | F53: =IFERROR(SUMIF(INDIRECT(dshbrdrng_umsatzentwicklung),"="&Einstellungen!$BI$8, INDEX(INDIRECT(dshbrdrng_umsatzentwicklung2),0,MATCH(DATE($B17,MONTH(F$13),1),Erfolgsrechnung_Detail!$O$8:$DF$8,0))) + IF(INDEX(tblUmsatzFltr[Nr],MATCH(filter_umsatz,tblUmsatzFltr[Umsatz Filter],0)) = 1, SUMIF(INDIRECT(dshbrdrng_bruttogewinn),"<>", INDEX(INDIRECT(dshbrdrng_bruttogewinn2),0,MATCH(DATE($B53,MONTH(F$49),1),Erfolgsrechnung_Detail!$O$8:$DF$8,0))), SUMIF(INDIRECT(dshbrdrng_bruttogewinn),"<>", INDEX(INDIRECT(dshbrdrng_bruttogewinn2),0,MATCH(DATE($B53,MONTH(F$49),1),Erfolgsrechnung_Detail!$O$8:$DF$8,0)))+E53),"") -> 23102.22563 | G53: =IFERROR(SUMIF(INDIRECT(dshbrdrng_umsatzentwicklung),"="&Einstellungen!$BI$8, INDEX(INDIRECT(dshbrdrng_umsatzentwicklung2),0,MATCH(DATE($B17,MONTH(G$13),1),Erfolgsrechnung_Detail!$O$8:$DF$8,0))) + IF(INDEX(tblUmsatzFltr[Nr],MATCH(filter_umsatz,tblUmsatzFltr[Umsatz Filter],0)) = 1, SUMIF(INDIRECT(dshbrdrng_bruttogewinn),"<>", INDEX(INDIRECT(dshbrdrng_bruttogewinn2),0,MATCH(DATE($B53,MONTH(G$49),1),Erfolgsrechnung_Detail!$O$8:$DF$8,0))), SUMIF(INDIRECT(dshbrdrng_bruttogewinn),"<>", INDEX(INDIRECT(dshbrdrng_bruttogewinn2),0,MATCH(DATE($B53,MONTH(G$49),1),Erfolgsrechnung_Detail!$O$8:$DF$8,0)))+F53),"") -> 22490.01036 | H53: =IFERROR(SUMIF(INDIRECT(dshbrdrng_umsatzentwicklung),"="&Einstellungen!$BI$8, INDEX(INDIRECT(dshbrdrng_umsatzentwicklung2),0,MATCH(DATE($B17,MONTH(H$13),1),Erfolgsrechnung_Detail!$O$8:$DF$8,0))) + IF(INDEX(tblUmsatzFltr[Nr],MATCH(filter_umsatz,tblUmsatzFltr[Umsatz Filter],0)) = 1, SUMIF(INDIRECT(dshbrdrng_bruttogewinn),"<>", INDEX(INDIRECT(dshbrdrng_bruttogewinn2),0,MATCH(DATE($B53,MONTH(H$49),1),Erfolgsrechnung_Detail!$O$8:$DF$8,0))), SUMIF(INDIRECT(dshbrdrng_bruttogewinn),"<>", INDEX(INDIRECT(dshbrdrng_bruttogewinn2),0,MATCH(DATE($B53,MONTH(H$49),1),Erfolgsrechnung_Detail!$O$8:$DF$8,0)))+G53),"") -> 15095.19515 | I53: =IFERROR(SUMIF(INDIRECT(dshbrdrng_umsatzentwicklung),"="&Einstellungen!$BI$8, INDEX(INDIRECT(dshbrdrng_umsatzentwicklung2),0,MATCH(DATE($B17,MONTH(I$13),1),Erfolgsrechnung_Detail!$O$8:$DF$8,0))) + IF(INDEX(tblUmsatzFltr[Nr],MATCH(filter_umsatz,tblUmsatzFltr[Umsatz Filter],0)) = 1, SUMIF(INDIRECT(dshbrdrng_bruttogewinn),"<>", INDEX(INDIRECT(dshbrdrng_bruttogewinn2),0,MATCH(DATE($B53,MONTH(I$49),1),Erfolgsrechnung_Detail!$O$8:$DF$8,0))), SUMIF(INDIRECT(dshbrdrng_bruttogewinn),"<>", INDEX(INDIRECT(dshbrdrng_bruttogewinn2),0,MATCH(DATE($B53,MONTH(I$49),1),Erfolgsrechnung_Detail!$O$8:$DF$8,0)))+H53),"") -> 24712.94705 | J53: =IFERROR(SUMIF(INDIRECT(dshbrdrng_umsatzentwicklung),"="&Einstellungen!$BI$8, INDEX(INDIRECT(dshbrdrng_umsatzentwicklung2),0,MATCH(DATE($B17,MONTH(J$13),1),Erfolgsrechnung_Detail!$O$8:$DF$8,0))) + IF(INDEX(tblUmsatzFltr[Nr],MATCH(filter_umsatz,tblUmsatzFltr[Umsatz Filter],0)) = 1, SUMIF(INDIRECT(dshbrdrng_bruttogewinn),"<>", INDEX(INDIRECT(dshbrdrng_bruttogewinn2),0,MATCH(DATE($B53,MONTH(J$49),1),Erfolgsrechnung_Detail!$O$8:$DF$8,0))), SUMIF(INDIRECT(dshbrdrng_bruttogewinn),"<>", INDEX(INDIRECT(dshbrdrng_bruttogewinn2),0,MATCH(DATE($B53,MONTH(J$49),1),Erfolgsrechnung_Detail!$O$8:$DF$8,0)))+I53),"") -> 26677.06195 | K53: =IFERROR(SUMIF(INDIRECT(dshbrdrng_umsatzentwicklung),"="&Einstellungen!$BI$8, INDEX(INDIRECT(dshbrdrng_umsatzentwicklung2),0,MATCH(DATE($B17,MONTH(K$13),1),Erfolgsrechnung_Detail!$O$8:$DF$8,0))) + IF(INDEX(tblUmsatzFltr[Nr],MATCH(filter_umsatz,tblUmsatzFltr[Umsatz Filter],0)) = 1, SUMIF(INDIRECT(dshbrdrng_bruttogewinn),"<>", INDEX(INDIRECT(dshbrdrng_bruttogewinn2),0,MATCH(DATE($B53,MONTH(K$49),1),Erfolgsrechnung_Detail!$O$8:$DF$8,0))), SUMIF(INDIRECT(dshbrdrng_bruttogewinn),"<>", INDEX(INDIRECT(dshbrdrng_bruttogewinn2),0,MATCH(DATE($B53,MONTH(K$49),1),Erfolgsrechnung_Detail!$O$8:$DF$8,0)))+J53),"") -> 22874.18176 | L53: =IFERROR(SUMIF(INDIRECT(dshbrdrng_umsatzentwicklung),"="&Einstellungen!$BI$8, INDEX(INDIRECT(dshbrdrng_umsatzentwicklung2),0,MATCH(DATE($B17,MONTH(L$13),1),Erfolgsrechnung_Detail!$O$8:$DF$8,0))) + IF(INDEX(tblUmsatzFltr[Nr],MATCH(filter_umsatz,tblUmsatzFltr[Umsatz Filter],0)) = 1, SUMIF(INDIRECT(dshbrdrng_bruttogewinn),"<>", INDEX(INDIRECT(dshbrdrng_bruttogewinn2),0,MATCH(DATE($B53,MONTH(L$49),1),Erfolgsrechnung_Detail!$O$8:$DF$8,0))), SUMIF(INDIRECT(dshbrdrng_bruttogewinn),"<>", INDEX(INDIRECT(dshbrdrng_bruttogewinn2),0,MATCH(DATE($B53,MONTH(L$49),1),Erfolgsrechnung_Detail!$O$8:$DF$8,0)))+K53),"") -> 33032.2361 | M53: =IFERROR(SUMIF(INDIRECT(dshbrdrng_umsatzentwicklung),"="&Einstellungen!$BI$8, INDEX(INDIRECT(dshbrdrng_umsatzentwicklung2),0,MATCH(DATE($B17,MONTH(M$13),1),Erfolgsrechnung_Detail!$O$8:$DF$8,0))) + IF(INDEX(tblUmsatzFltr[Nr],MATCH(filter_umsatz,tblUmsatzFltr[Umsatz Filter],0)) = 1, SUMIF(INDIRECT(dshbrdrng_bruttogewinn),"<>", INDEX(INDIRECT(dshbrdrng_bruttogewinn2),0,MATCH(DATE($B53,MONTH(M$49),1),Erfolgsrechnung_Detail!$O$8:$DF$8,0))), SUMIF(INDIRECT(dshbrdrng_bruttogewinn),"<>", INDEX(INDIRECT(dshbrdrng_bruttogewinn2),0,MATCH(DATE($B53,MONTH(M$49),1),Erfolgsrechnung_Detail!$O$8:$DF$8,0)))+L53),"") -> 16265.36523 | N53: =IFERROR(SUMIF(INDIRECT(dshbrdrng_umsatzentwicklung),"="&Einstellungen!$BI$8, INDEX(INDIRECT(dshbrdrng_umsatzentwicklung2),0,MATCH(DATE($B17,MONTH(N$13),1),Erfolgsrechnung_Detail!$O$8:$DF$8,0))) + IF(INDEX(tblUmsatzFltr[Nr],MATCH(filter_umsatz,tblUmsatzFltr[Umsatz Filter],0)) = 1, SUMIF(INDIRECT(dshbrdrng_bruttogewinn),"<>", INDEX(INDIRECT(dshbrdrng_bruttogewinn2),0,MATCH(DATE($B53,MONTH(N$49),1),Erfolgsrechnung_Detail!$O$8:$DF$8,0))), SUMIF(INDIRECT(dshbrdrng_bruttogewinn),"<>", INDEX(INDIRECT(dshbrdrng_bruttogewinn2),0,MATCH(DATE($B53,MONTH(N$49),1),Erfolgsrechnung_Detail!$O$8:$DF$8,0)))+M53),"") -> 27018.45071 | P53: =IFERROR(IF( INDEX(tblUmsatzFltr[Nr],MATCH(filter_umsatz,tblUmsatzFltr[Umsatz Filter],0))=1, SUM($C53:INDEX($C53:$N53,1,selectedmonat_num)), INDEX($C53:$N53,0,MATCH(monat,tblMonate[Monate],0))),"") -> 51288.06542 | Q53: =IFERROR( IF(INDEX(tblUmsatzFltr[Nr],MATCH(filter_umsatz,tblUmsatzFltr[Umsatz Filter],0))=1, SUM(C53:$N53),N53),"") -> 262555.7393
B54: 2018 | C54: =IFERROR(C18+ SUMIF(INDIRECT(dshbrdrng_bruttogewinn),"<>", INDEX(INDIRECT(dshbrdrng_bruttogewinn2),0,MATCH(DATE($B54,MONTH(C$49),1),Erfolgsrechnung_Detail!$O$8:$DF$8,0))), "") -> 2738.848093 | D54: =IFERROR(SUMIF(INDIRECT(dshbrdrng_umsatzentwicklung),"="&Einstellungen!$BI$8, INDEX(INDIRECT(dshbrdrng_umsatzentwicklung2),0,MATCH(DATE($B18,MONTH(D$13),1),Erfolgsrechnung_Detail!$O$8:$DF$8,0))) + IF(INDEX(tblUmsatzFltr[Nr],MATCH(filter_umsatz,tblUmsatzFltr[Umsatz Filter],0)) = 1, SUMIF(INDIRECT(dshbrdrng_bruttogewinn),"<>", INDEX(INDIRECT(dshbrdrng_bruttogewinn2),0,MATCH(DATE($B54,MONTH(D$49),1),Erfolgsrechnung_Detail!$O$8:$DF$8,0))), SUMIF(INDIRECT(dshbrdrng_bruttogewinn),"<>", INDEX(INDIRECT(dshbrdrng_bruttogewinn2),0,MATCH(DATE($B54,MONTH(D$49),1),Erfolgsrechnung_Detail!$O$8:$DF$8,0)))+C54),"") -> 15281.90417 | E54: =IFERROR(SUMIF(INDIRECT(dshbrdrng_umsatzentwicklung),"="&Einstellungen!$BI$8, INDEX(INDIRECT(dshbrdrng_umsatzentwicklung2),0,MATCH(DATE($B18,MONTH(E$13),1),Erfolgsrechnung_Detail!$O$8:$DF$8,0))) + IF(INDEX(tblUmsatzFltr[Nr],MATCH(filter_umsatz,tblUmsatzFltr[Umsatz Filter],0)) = 1, SUMIF(INDIRECT(dshbrdrng_bruttogewinn),"<>", INDEX(INDIRECT(dshbrdrng_bruttogewinn2),0,MATCH(DATE($B54,MONTH(E$49),1),Erfolgsrechnung_Detail!$O$8:$DF$8,0))), SUMIF(INDIRECT(dshbrdrng_bruttogewinn),"<>", INDEX(INDIRECT(dshbrdrng_bruttogewinn2),0,MATCH(DATE($B54,MONTH(E$49),1),Erfolgsrechnung_Detail!$O$8:$DF$8,0)))+D54),"") -> 6156.163064 | F54: =IFERROR(SUMIF(INDIRECT(dshbrdrng_umsatzentwicklung),"="&Einstellungen!$BI$8, INDEX(INDIRECT(dshbrdrng_umsatzentwicklung2),0,MATCH(DATE($B18,MONTH(F$13),1),Erfolgsrechnung_Detail!$O$8:$DF$8,0))) + IF(INDEX(tblUmsatzFltr[Nr],MATCH(filter_umsatz,tblUmsatzFltr[Umsatz Filter],0)) = 1, SUMIF(INDIRECT(dshbrdrng_bruttogewinn),"<>", INDEX(INDIRECT(dshbrdrng_bruttogewinn2),0,MATCH(DATE($B54,MONTH(F$49),1),Erfolgsrechnung_Detail!$O$8:$DF$8,0))), SUMIF(INDIRECT(dshbrdrng_bruttogewinn),"<>", INDEX(INDIRECT(dshbrdrng_bruttogewinn2),0,MATCH(DATE($B54,MONTH(F$49),1),Erfolgsrechnung_Detail!$O$8:$DF$8,0)))+E54),"") -> 9280.277322 | G54: =IFERROR(SUMIF(INDIRECT(dshbrdrng_umsatzentwicklung),"="&Einstellungen!$BI$8, INDEX(INDIRECT(dshbrdrng_umsatzentwicklung2),0,MATCH(DATE($B18,MONTH(G$13),1),Erfolgsrechnung_Detail!$O$8:$DF$8,0))) + IF(INDEX(tblUmsatzFltr[Nr],MATCH(filter_umsatz,tblUmsatzFltr[Umsatz Filter],0)) = 1, SUMIF(INDIRECT(dshbrdrng_bruttogewinn),"<>", INDEX(INDIRECT(dshbrdrng_bruttogewinn2),0,MATCH(DATE($B54,MONTH(G$49),1),Erfolgsrechnung_Detail!$O$8:$DF$8,0))), SUMIF(INDIRECT(dshbrdrng_bruttogewinn),"<>", INDEX(INDIRECT(dshbrdrng_bruttogewinn2),0,MATCH(DATE($B54,MONTH(G$49),1),Erfolgsrechnung_Detail!$O$8:$DF$8,0)))+F54),"") -> 11596.80675 | H54: =IFERROR(SUMIF(INDIRECT(dshbrdrng_umsatzentwicklung),"="&Einstellungen!$BI$8, INDEX(INDIRECT(dshbrdrng_umsatzentwicklung2),0,MATCH(DATE($B18,MONTH(H$13),1),Erfolgsrechnung_Detail!$O$8:$DF$8,0))) + IF(INDEX(tblUmsatzFltr[Nr],MATCH(filter_umsatz,tblUmsatzFltr[Umsatz Filter],0)) = 1, SUMIF(INDIRECT(dshbrdrng_bruttogewinn),"<>", INDEX(INDIRECT(dshbrdrng_bruttogewinn2),0,MATCH(DATE($B54,MONTH(H$49),1),Erfolgsrechnung_Detail!$O$8:$DF$8,0))), SUMIF(INDIRECT(dshbrdrng_bruttogewinn),"<>", INDEX(INDIRECT(dshbrdrng_bruttogewinn2),0,MATCH(DATE($B54,MONTH(H$49),1),Erfolgsrechnung_Detail!$O$8:$DF$8,0)))+G54),"") -> 15123.59266 | I54: =IFERROR(SUMIF(INDIRECT(dshbrdrng_umsatzentwicklung),"="&Einstellungen!$BI$8, INDEX(INDIRECT(dshbrdrng_umsatzentwicklung2),0,MATCH(DATE($B18,MONTH(I$13),1),Erfolgsrechnung_Detail!$O$8:$DF$8,0))) + IF(INDEX(tblUmsatzFltr[Nr],MATCH(filter_umsatz,tblUmsatzFltr[Umsatz Filter],0)) = 1, SUMIF(INDIRECT(dshbrdrng_bruttogewinn),"<>", INDEX(INDIRECT(dshbrdrng_bruttogewinn2),0,MATCH(DATE($B54,MONTH(I$49),1),Erfolgsrechnung_Detail!$O$8:$DF$8,0))), SUMIF(INDIRECT(dshbrdrng_bruttogewinn),"<>", INDEX(INDIRECT(dshbrdrng_bruttogewinn2),0,MATCH(DATE($B54,MONTH(I$49),1),Erfolgsrechnung_Detail!$O$8:$DF$8,0)))+H54),"") -> 8104.521398 | J54: =IFERROR(SUMIF(INDIRECT(dshbrdrng_umsatzentwicklung),"="&Einstellungen!$BI$8, INDEX(INDIRECT(dshbrdrng_umsatzentwicklung2),0,MATCH(DATE($B18,MONTH(J$13),1),Erfolgsrechnung_Detail!$O$8:$DF$8,0))) + IF(INDEX(tblUmsatzFltr[Nr],MATCH(filter_umsatz,tblUmsatzFltr[Umsatz Filter],0)) = 1, SUMIF(INDIRECT(dshbrdrng_bruttogewinn),"<>", INDEX(INDIRECT(dshbrdrng_bruttogewinn2),0,MATCH(DATE($B54,MONTH(J$49),1),Erfolgsrechnung_Detail!$O$8:$DF$8,0))), SUMIF(INDIRECT(dshbrdrng_bruttogewinn),"<>", INDEX(INDIRECT(dshbrdrng_bruttogewinn2),0,MATCH(DATE($B54,MONTH(J$49),1),Erfolgsrechnung_Detail!$O$8:$DF$8,0)))+I54),"") -> 9127.184865 | K54: =IFERROR(SUMIF(INDIRECT(dshbrdrng_umsatzentwicklung),"="&Einstellungen!$BI$8, INDEX(INDIRECT(dshbrdrng_umsatzentwicklung2),0,MATCH(DATE($B18,MONTH(K$13),1),Erfolgsrechnung_Detail!$O$8:$DF$8,0))) + IF(INDEX(tblUmsatzFltr[Nr],MATCH(filter_umsatz,tblUmsatzFltr[Umsatz Filter],0)) = 1, SUMIF(INDIRECT(dshbrdrng_bruttogewinn),"<>", INDEX(INDIRECT(dshbrdrng_bruttogewinn2),0,MATCH(DATE($B54,MONTH(K$49),1),Erfolgsrechnung_Detail!$O$8:$DF$8,0))), SUMIF(INDIRECT(dshbrdrng_bruttogewinn),"<>", INDEX(INDIRECT(dshbrdrng_bruttogewinn2),0,MATCH(DATE($B54,MONTH(K$49),1),Erfolgsrechnung_Detail!$O$8:$DF$8,0)))+J54),"") -> 13389.8036 | L54: =IFERROR(SUMIF(INDIRECT(dshbrdrng_umsatzentwicklung),"="&Einstellungen!$BI$8, INDEX(INDIRECT(dshbrdrng_umsatzentwicklung2),0,MATCH(DATE($B18,MONTH(L$13),1),Erfolgsrechnung_Detail!$O$8:$DF$8,0))) + IF(INDEX(tblUmsatzFltr[Nr],MATCH(filter_umsatz,tblUmsatzFltr[Umsatz Filter],0)) = 1, SUMIF(INDIRECT(dshbrdrng_bruttogewinn),"<>", INDEX(INDIRECT(dshbrdrng_bruttogewinn2),0,MATCH(DATE($B54,MONTH(L$49),1),Erfolgsrechnung_Detail!$O$8:$DF$8,0))), SUMIF(INDIRECT(dshbrdrng_bruttogewinn),"<>", INDEX(INDIRECT(dshbrdrng_bruttogewinn2),0,MATCH(DATE($B54,MONTH(L$49),1),Erfolgsrechnung_Detail!$O$8:$DF$8,0)))+K54),"") -> 8628.732667 | M54: =IFERROR(SUMIF(INDIRECT(dshbrdrng_umsatzentwicklung),"="&Einstellungen!$BI$8, INDEX(INDIRECT(dshbrdrng_umsatzentwicklung2),0,MATCH(DATE($B18,MONTH(M$13),1),Erfolgsrechnung_Detail!$O$8:$DF$8,0))) + IF(INDEX(tblUmsatzFltr[Nr],MATCH(filter_umsatz,tblUmsatzFltr[Umsatz Filter],0)) = 1, SUMIF(INDIRECT(dshbrdrng_bruttogewinn),"<>", INDEX(INDIRECT(dshbrdrng_bruttogewinn2),0,MATCH(DATE($B54,MONTH(M$49),1),Erfolgsrechnung_Detail!$O$8:$DF$8,0))), SUMIF(INDIRECT(dshbrdrng_bruttogewinn),"<>", INDEX(INDIRECT(dshbrdrng_bruttogewinn2),0,MATCH(DATE($B54,MONTH(M$49),1),Erfolgsrechnung_Detail!$O$8:$DF$8,0)))+L54),"") -> 12483.03865 | N54: =IFERROR(SUMIF(INDIRECT(dshbrdrng_umsatzentwicklung),"="&Einstellungen!$BI$8, INDEX(INDIRECT(dshbrdrng_umsatzentwicklung2),0,MATCH(DATE($B18,MONTH(N$13),1),Erfolgsrechnung_Detail!$O$8:$DF$8,0))) + IF(INDEX(tblUmsatzFltr[Nr],MATCH(filter_umsatz,tblUmsatzFltr[Umsatz Filter],0)) = 1, SUMIF(INDIRECT(dshbrdrng_bruttogewinn),"<>", INDEX(INDIRECT(dshbrdrng_bruttogewinn2),0,MATCH(DATE($B54,MONTH(N$49),1),Erfolgsrechnung_Detail!$O$8:$DF$8,0))), SUMIF(INDIRECT(dshbrdrng_bruttogewinn),"<>", INDEX(INDIRECT(dshbrdrng_bruttogewinn2),0,MATCH(DATE($B54,MONTH(N$49),1),Erfolgsrechnung_Detail!$O$8:$DF$8,0)))+M54),"") -> 15108.51034 | P54: =IFERROR(IF( INDEX(tblUmsatzFltr[Nr],MATCH(filter_umsatz,tblUmsatzFltr[Umsatz Filter],0))=1, SUM($C54:INDEX($C54:$N54,1,selectedmonat_num)), INDEX($C54:$N54,0,MATCH(monat,tblMonate[Monate],0))),"") -> 24176.91532 | Q54: =IFERROR( IF(INDEX(tblUmsatzFltr[Nr],MATCH(filter_umsatz,tblUmsatzFltr[Umsatz Filter],0))=1, SUM(C54:$N54),N54),"") -> 127019.3836
B55: 2019 | C55: =IFERROR(C19+ SUMIF(INDIRECT(dshbrdrng_bruttogewinn),"<>", INDEX(INDIRECT(dshbrdrng_bruttogewinn2),0,MATCH(DATE($B55,MONTH(C$49),1),Erfolgsrechnung_Detail!$O$8:$DF$8,0))), "") -> 16947.09268 | D55: =IFERROR(SUMIF(INDIRECT(dshbrdrng_umsatzentwicklung),"="&Einstellungen!$BI$8, INDEX(INDIRECT(dshbrdrng_umsatzentwicklung2),0,MATCH(DATE($B19,MONTH(D$13),1),Erfolgsrechnung_Detail!$O$8:$DF$8,0))) + IF(INDEX(tblUmsatzFltr[Nr],MATCH(filter_umsatz,tblUmsatzFltr[Umsatz Filter],0)) = 1, SUMIF(INDIRECT(dshbrdrng_bruttogewinn),"<>", INDEX(INDIRECT(dshbrdrng_bruttogewinn2),0,MATCH(DATE($B55,MONTH(D$49),1),Erfolgsrechnung_Detail!$O$8:$DF$8,0))), SUMIF(INDIRECT(dshbrdrng_bruttogewinn),"<>", INDEX(INDIRECT(dshbrdrng_bruttogewinn2),0,MATCH(DATE($B55,MONTH(D$49),1),Erfolgsrechnung_Detail!$O$8:$DF$8,0)))+C55),"") -> 6901.200827 | E55: =IFERROR(SUMIF(INDIRECT(dshbrdrng_umsatzentwicklung),"="&Einstellungen!$BI$8, INDEX(INDIRECT(dshbrdrng_umsatzentwicklung2),0,MATCH(DATE($B19,MONTH(E$13),1),Erfolgsrechnung_Detail!$O$8:$DF$8,0))) + IF(INDEX(tblUmsatzFltr[Nr],MATCH(filter_umsatz,tblUmsatzFltr[Umsatz Filter],0)) = 1, SUMIF(INDIRECT(dshbrdrng_bruttogewinn),"<>", INDEX(INDIRECT(dshbrdrng_bruttogewinn2),0,MATCH(DATE($B55,MONTH(E$49),1),Erfolgsrechnung_Detail!$O$8:$DF$8,0))), SUMIF(INDIRECT(dshbrdrng_bruttogewinn),"<>", INDEX(INDIRECT(dshbrdrng_bruttogewinn2),0,MATCH(DATE($B55,MONTH(E$49),1),Erfolgsrechnung_Detail!$O$8:$DF$8,0)))+D55),"") -> 25248.45762 | F55: =IFERROR(SUMIF(INDIRECT(dshbrdrng_umsatzentwicklung),"="&Einstellungen!$BI$8, INDEX(INDIRECT(dshbrdrng_umsatzentwicklung2),0,MATCH(DATE($B19,MONTH(F$13),1),Erfolgsrechnung_Detail!$O$8:$DF$8,0))) + IF(INDEX(tblUmsatzFltr[Nr],MATCH(filter_umsatz,tblUmsatzFltr[Umsatz Filter],0)) = 1, SUMIF(INDIRECT(dshbrdrng_bruttogewinn),"<>", INDEX(INDIRECT(dshbrdrng_bruttogewinn2),0,MATCH(DATE($B55,MONTH(F$49),1),Erfolgsrechnung_Detail!$O$8:$DF$8,0))), SUMIF(INDIRECT(dshbrdrng_bruttogewinn),"<>", INDEX(INDIRECT(dshbrdrng_bruttogewinn2),0,MATCH(DATE($B55,MONTH(F$49),1),Erfolgsrechnung_Detail!$O$8:$DF$8,0)))+E55),"") -> 35673.94604 | G55: =IFERROR(SUMIF(INDIRECT(dshbrdrng_umsatzentwicklung),"="&Einstellungen!$BI$8, INDEX(INDIRECT(dshbrdrng_umsatzentwicklung2),0,MATCH(DATE($B19,MONTH(G$13),1),Erfolgsrechnung_Detail!$O$8:$DF$8,0))) + IF(INDEX(tblUmsatzFltr[Nr],MATCH(filter_umsatz,tblUmsatzFltr[Umsatz Filter],0)) = 1, SUMIF(INDIRECT(dshbrdrng_bruttogewinn),"<>", INDEX(INDIRECT(dshbrdrng_bruttogewinn2),0,MATCH(DATE($B55,MONTH(G$49),1),Erfolgsrechnung_Detail!$O$8:$DF$8,0))), SUMIF(INDIRECT(dshbrdrng_bruttogewinn),"<>", INDEX(INDIRECT(dshbrdrng_bruttogewinn2),0,MATCH(DATE($B55,MONTH(G$49),1),Erfolgsrechnung_Detail!$O$8:$DF$8,0)))+F55),"") -> 24174.84943 | H55: =IFERROR(SUMIF(INDIRECT(dshbrdrng_umsatzentwicklung),"="&Einstellungen!$BI$8, INDEX(INDIRECT(dshbrdrng_umsatzentwicklung2),0,MATCH(DATE($B19,MONTH(H$13),1),Erfolgsrechnung_Detail!$O$8:$DF$8,0))) + IF(INDEX(tblUmsatzFltr[Nr],MATCH(filter_umsatz,tblUmsatzFltr[Umsatz Filter],0)) = 1, SUMIF(INDIRECT(dshbrdrng_bruttogewinn),"<>", INDEX(INDIRECT(dshbrdrng_bruttogewinn2),0,MATCH(DATE($B55,MONTH(H$49),1),Erfolgsrechnung_Detail!$O$8:$DF$8,0))), SUMIF(INDIRECT(dshbrdrng_bruttogewinn),"<>", INDEX(INDIRECT(dshbrdrng_bruttogewinn2),0,MATCH(DATE($B55,MONTH(H$49),1),Erfolgsrechnung_Detail!$O$8:$DF$8,0)))+G55),"") -> 11629.21173 | I55: =IFERROR(SUMIF(INDIRECT(dshbrdrng_umsatzentwicklung),"="&Einstellungen!$BI$8, INDEX(INDIRECT(dshbrdrng_umsatzentwicklung2),0,MATCH(DATE($B19,MONTH(I$13),1),Erfolgsrechnung_Detail!$O$8:$DF$8,0))) + IF(INDEX(tblUmsatzFltr[Nr],MATCH(filter_umsatz,tblUmsatzFltr[Umsatz Filter],0)) = 1, SUMIF(INDIRECT(dshbrdrng_bruttogewinn),"<>", INDEX(INDIRECT(dshbrdrng_bruttogewinn2),0,MATCH(DATE($B55,MONTH(I$49),1),Erfolgsrechnung_Detail!$O$8:$DF$8,0))), SUMIF(INDIRECT(dshbrdrng_bruttogewinn),"<>", INDEX(INDIRECT(dshbrdrng_bruttogewinn2),0,MATCH(DATE($B55,MONTH(I$49),1),Erfolgsrechnung_Detail!$O$8:$DF$8,0)))+H55),"") -> 38624.07805 | J55: =IFERROR(SUMIF(INDIRECT(dshbrdrng_umsatzentwicklung),"="&Einstellungen!$BI$8, INDEX(INDIRECT(dshbrdrng_umsatzentwicklung2),0,MATCH(DATE($B19,MONTH(J$13),1),Erfolgsrechnung_Detail!$O$8:$DF$8,0))) + IF(INDEX(tblUmsatzFltr[Nr],MATCH(filter_umsatz,tblUmsatzFltr[Umsatz Filter],0)) = 1, SUMIF(INDIRECT(dshbrdrng_bruttogewinn),"<>", INDEX(INDIRECT(dshbrdrng_bruttogewinn2),0,MATCH(DATE($B55,MONTH(J$49),1),Erfolgsrechnung_Detail!$O$8:$DF$8,0))), SUMIF(INDIRECT(dshbrdrng_bruttogewinn),"<>", INDEX(INDIRECT(dshbrdrng_bruttogewinn2),0,MATCH(DATE($B55,MONTH(J$49),1),Erfolgsrechnung_Detail!$O$8:$DF$8,0)))+I55),"") -> 15461.24125 | K55: =IFERROR(SUMIF(INDIRECT(dshbrdrng_umsatzentwicklung),"="&Einstellungen!$BI$8, INDEX(INDIRECT(dshbrdrng_umsatzentwicklung2),0,MATCH(DATE($B19,MONTH(K$13),1),Erfolgsrechnung_Detail!$O$8:$DF$8,0))) + IF(INDEX(tblUmsatzFltr[Nr],MATCH(filter_umsatz,tblUmsatzFltr[Umsatz Filter],0)) = 1, SUMIF(INDIRECT(dshbrdrng_bruttogewinn),"<>", INDEX(INDIRECT(dshbrdrng_bruttogewinn2),0,MATCH(DATE($B55,MONTH(K$49),1),Erfolgsrechnung_Detail!$O$8:$DF$8,0))), SUMIF(INDIRECT(dshbrdrng_bruttogewinn),"<>", INDEX(INDIRECT(dshbrdrng_bruttogewinn2),0,MATCH(DATE($B55,MONTH(K$49),1),Erfolgsrechnung_Detail!$O$8:$DF$8,0)))+J55),"") -> 25920.28705 | L55: =IFERROR(SUMIF(INDIRECT(dshbrdrng_umsatzentwicklung),"="&Einstellungen!$BI$8, INDEX(INDIRECT(dshbrdrng_umsatzentwicklung2),0,MATCH(DATE($B19,MONTH(L$13),1),Erfolgsrechnung_Detail!$O$8:$DF$8,0))) + IF(INDEX(tblUmsatzFltr[Nr],MATCH(filter_umsatz,tblUmsatzFltr[Umsatz Filter],0)) = 1, SUMIF(INDIRECT(dshbrdrng_bruttogewinn),"<>", INDEX(INDIRECT(dshbrdrng_bruttogewinn2),0,MATCH(DATE($B55,MONTH(L$49),1),Erfolgsrechnung_Detail!$O$8:$DF$8,0))), SUMIF(INDIRECT(dshbrdrng_bruttogewinn),"<>", INDEX(INDIRECT(dshbrdrng_bruttogewinn2),0,MATCH(DATE($B55,MONTH(L$49),1),Erfolgsrechnung_Detail!$O$8:$DF$8,0)))+K55),"") -> 37679.53083 | M55: =IFERROR(SUMIF(INDIRECT(dshbrdrng_umsatzentwicklung),"="&Einstellungen!$BI$8, INDEX(INDIRECT(dshbrdrng_umsatzentwicklung2),0,MATCH(DATE($B19,MONTH(M$13),1),Erfolgsrechnung_Detail!$O$8:$DF$8,0))) + IF(INDEX(tblUmsatzFltr[Nr],MATCH(filter_umsatz,tblUmsatzFltr[Umsatz Filter],0)) = 1, SUMIF(INDIRECT(dshbrdrng_bruttogewinn),"<>", INDEX(INDIRECT(dshbrdrng_bruttogewinn2),0,MATCH(DATE($B55,MONTH(M$49),1),Erfolgsrechnung_Detail!$O$8:$DF$8,0))), SUMIF(INDIRECT(dshbrdrng_bruttogewinn),"<>", INDEX(INDIRECT(dshbrdrng_bruttogewinn2),0,MATCH(DATE($B55,MONTH(M$49),1),Erfolgsrechnung_Detail!$O$8:$DF$8,0)))+L55),"") -> 38272.72267 | N55: =IFERROR(SUMIF(INDIRECT(dshbrdrng_umsatzentwicklung),"="&Einstellungen!$BI$8, INDEX(INDIRECT(dshbrdrng_umsatzentwicklung2),0,MATCH(DATE($B19,MONTH(N$13),1),Erfolgsrechnung_Detail!$O$8:$DF$8,0))) + IF(INDEX(tblUmsatzFltr[Nr],MATCH(filter_umsatz,tblUmsatzFltr[Umsatz Filter],0)) = 1, SUMIF(INDIRECT(dshbrdrng_bruttogewinn),"<>", INDEX(INDIRECT(dshbrdrng_bruttogewinn2),0,MATCH(DATE($B55,MONTH(N$49),1),Erfolgsrechnung_Detail!$O$8:$DF$8,0))), SUMIF(INDIRECT(dshbrdrng_bruttogewinn),"<>", INDEX(INDIRECT(dshbrdrng_bruttogewinn2),0,MATCH(DATE($B55,MONTH(N$49),1),Erfolgsrechnung_Detail!$O$8:$DF$8,0)))+M55),"") -> 52657.45793 | P55: =IFERROR(IF( INDEX(tblUmsatzFltr[Nr],MATCH(filter_umsatz,tblUmsatzFltr[Umsatz Filter],0))=1, SUM($C55:INDEX($C55:$N55,1,selectedmonat_num)), INDEX($C55:$N55,0,MATCH(monat,tblMonate[Monate],0))),"") -> 49096.75112 | Q55: =IFERROR( IF(INDEX(tblUmsatzFltr[Nr],MATCH(filter_umsatz,tblUmsatzFltr[Umsatz Filter],0))=1, SUM(C55:$N55),N55),"") -> 329190.0761
B56: =jahr -> 2020 | C56: =IFERROR(C20+ SUMIF(INDIRECT(dshbrdrng_bruttogewinn),"<>", INDEX(INDIRECT(dshbrdrng_bruttogewinn2),0,MATCH(DATE($B56,MONTH(C$49),1),Erfolgsrechnung_Detail!$O$8:$DF$8,0))), "") -> 7864.327351 | D56: =IFERROR(SUMIF(INDIRECT(dshbrdrng_umsatzentwicklung),"="&Einstellungen!$BI$8, INDEX(INDIRECT(dshbrdrng_umsatzentwicklung2),0,MATCH(DATE($B20,MONTH(D$13),1),Erfolgsrechnung_Detail!$O$8:$DF$8,0))) + IF(INDEX(tblUmsatzFltr[Nr],MATCH(filter_umsatz,tblUmsatzFltr[Umsatz Filter],0)) = 1, SUMIF(INDIRECT(dshbrdrng_bruttogewinn),"<>", INDEX(INDIRECT(dshbrdrng_bruttogewinn2),0,MATCH(DATE($B56,MONTH(D$49),1),Erfolgsrechnung_Detail!$O$8:$DF$8,0))), SUMIF(INDIRECT(dshbrdrng_bruttogewinn),"<>", INDEX(INDIRECT(dshbrdrng_bruttogewinn2),0,MATCH(DATE($B56,MONTH(D$49),1),Erfolgsrechnung_Detail!$O$8:$DF$8,0)))+C56),"") -> 6577.122861 | E56: =IFERROR(SUMIF(INDIRECT(dshbrdrng_umsatzentwicklung),"="&Einstellungen!$BI$8, INDEX(INDIRECT(dshbrdrng_umsatzentwicklung2),0,MATCH(DATE($B20,MONTH(E$13),1),Erfolgsrechnung_Detail!$O$8:$DF$8,0))) + IF(INDEX(tblUmsatzFltr[Nr],MATCH(filter_umsatz,tblUmsatzFltr[Umsatz Filter],0)) = 1, SUMIF(INDIRECT(dshbrdrng_bruttogewinn),"<>", INDEX(INDIRECT(dshbrdrng_bruttogewinn2),0,MATCH(DATE($B56,MONTH(E$49),1),Erfolgsrechnung_Detail!$O$8:$DF$8,0))), SUMIF(INDIRECT(dshbrdrng_bruttogewinn),"<>", INDEX(INDIRECT(dshbrdrng_bruttogewinn2),0,MATCH(DATE($B56,MONTH(E$49),1),Erfolgsrechnung_Detail!$O$8:$DF$8,0)))+D56),"") -> 5655.742089 | F56: =IFERROR(SUMIF(INDIRECT(dshbrdrng_umsatzentwicklung),"="&Einstellungen!$BI$8, INDEX(INDIRECT(dshbrdrng_umsatzentwicklung2),0,MATCH(DATE($B20,MONTH(F$13),1),Erfolgsrechnung_Detail!$O$8:$DF$8,0))) + IF(INDEX(tblUmsatzFltr[Nr],MATCH(filter_umsatz,tblUmsatzFltr[Umsatz Filter],0)) = 1, SUMIF(INDIRECT(dshbrdrng_bruttogewinn),"<>", INDEX(INDIRECT(dshbrdrng_bruttogewinn2),0,MATCH(DATE($B56,MONTH(F$49),1),Erfolgsrechnung_Detail!$O$8:$DF$8,0))), SUMIF(INDIRECT(dshbrdrng_bruttogewinn),"<>", INDEX(INDIRECT(dshbrdrng_bruttogewinn2),0,MATCH(DATE($B56,MONTH(F$49),1),Erfolgsrechnung_Detail!$O$8:$DF$8,0)))+E56),"") -> 8927.248615 | G56: =IFERROR(SUMIF(INDIRECT(dshbrdrng_umsatzentwicklung),"="&Einstellungen!$BI$8, INDEX(INDIRECT(dshbrdrng_umsatzentwicklung2),0,MATCH(DATE($B20,MONTH(G$13),1),Erfolgsrechnung_Detail!$O$8:$DF$8,0))) + IF(INDEX(tblUmsatzFltr[Nr],MATCH(filter_umsatz,tblUmsatzFltr[Umsatz Filter],0)) = 1, SUMIF(INDIRECT(dshbrdrng_bruttogewinn),"<>", INDEX(INDIRECT(dshbrdrng_bruttogewinn2),0,MATCH(DATE($B56,MONTH(G$49),1),Erfolgsrechnung_Detail!$O$8:$DF$8,0))), SUMIF(INDIRECT(dshbrdrng_bruttogewinn),"<>", INDEX(INDIRECT(dshbrdrng_bruttogewinn2),0,MATCH(DATE($B56,MONTH(G$49),1),Erfolgsrechnung_Detail!$O$8:$DF$8,0)))+F56),"") -> 8841.423615 | H56: =IFERROR(SUMIF(INDIRECT(dshbrdrng_umsatzentwicklung),"="&Einstellungen!$BI$8, INDEX(INDIRECT(dshbrdrng_umsatzentwicklung2),0,MATCH(DATE($B20,MONTH(H$13),1),Erfolgsrechnung_Detail!$O$8:$DF$8,0))) + IF(INDEX(tblUmsatzFltr[Nr],MATCH(filter_umsatz,tblUmsatzFltr[Umsatz Filter],0)) = 1, SUMIF(INDIRECT(dshbrdrng_bruttogewinn),"<>", INDEX(INDIRECT(dshbrdrng_bruttogewinn2),0,MATCH(DATE($B56,MONTH(H$49),1),Erfolgsrechnung_Detail!$O$8:$DF$8,0))), SUMIF(INDIRECT(dshbrdrng_bruttogewinn),"<>", INDEX(INDIRECT(dshbrdrng_bruttogewinn2),0,MATCH(DATE($B56,MONTH(H$49),1),Erfolgsrechnung_Detail!$O$8:$DF$8,0)))+G56),"") -> 5603.793168 | I56: =IFERROR(SUMIF(INDIRECT(dshbrdrng_umsatzentwicklung),"="&Einstellungen!$BI$8, INDEX(INDIRECT(dshbrdrng_umsatzentwicklung2),0,MATCH(DATE($B20,MONTH(I$13),1),Erfolgsrechnung_Detail!$O$8:$DF$8,0))) + IF(INDEX(tblUmsatzFltr[Nr],MATCH(filter_umsatz,tblUmsatzFltr[Umsatz Filter],0)) = 1, SUMIF(INDIRECT(dshbrdrng_bruttogewinn),"<>", INDEX(INDIRECT(dshbrdrng_bruttogewinn2),0,MATCH(DATE($B56,MONTH(I$49),1),Erfolgsrechnung_Detail!$O$8:$DF$8,0))), SUMIF(INDIRECT(dshbrdrng_bruttogewinn),"<>", INDEX(INDIRECT(dshbrdrng_bruttogewinn2),0,MATCH(DATE($B56,MONTH(I$49),1),Erfolgsrechnung_Detail!$O$8:$DF$8,0)))+H56),"") -> 9400.434867 | J56: =IFERROR(SUMIF(INDIRECT(dshbrdrng_umsatzentwicklung),"="&Einstellungen!$BI$8, INDEX(INDIRECT(dshbrdrng_umsatzentwicklung2),0,MATCH(DATE($B20,MONTH(J$13),1),Erfolgsrechnung_Detail!$O$8:$DF$8,0))) + IF(INDEX(tblUmsatzFltr[Nr],MATCH(filter_umsatz,tblUmsatzFltr[Umsatz Filter],0)) = 1, SUMIF(INDIRECT(dshbrdrng_bruttogewinn),"<>", INDEX(INDIRECT(dshbrdrng_bruttogewinn2),0,MATCH(DATE($B56,MONTH(J$49),1),Erfolgsrechnung_Detail!$O$8:$DF$8,0))), SUMIF(INDIRECT(dshbrdrng_bruttogewinn),"<>", INDEX(INDIRECT(dshbrdrng_bruttogewinn2),0,MATCH(DATE($B56,MONTH(J$49),1),Erfolgsrechnung_Detail!$O$8:$DF$8,0)))+I56),"") -> 10356.08477 | K56: =IFERROR(SUMIF(INDIRECT(dshbrdrng_umsatzentwicklung),"="&Einstellungen!$BI$8, INDEX(INDIRECT(dshbrdrng_umsatzentwicklung2),0,MATCH(DATE($B20,MONTH(K$13),1),Erfolgsrechnung_Detail!$O$8:$DF$8,0))) + IF(INDEX(tblUmsatzFltr[Nr],MATCH(filter_umsatz,tblUmsatzFltr[Umsatz Filter],0)) = 1, SUMIF(INDIRECT(dshbrdrng_bruttogewinn),"<>", INDEX(INDIRECT(dshbrdrng_bruttogewinn2),0,MATCH(DATE($B56,MONTH(K$49),1),Erfolgsrechnung_Detail!$O$8:$DF$8,0))), SUMIF(INDIRECT(dshbrdrng_bruttogewinn),"<>", INDEX(INDIRECT(dshbrdrng_bruttogewinn2),0,MATCH(DATE($B56,MONTH(K$49),1),Erfolgsrechnung_Detail!$O$8:$DF$8,0)))+J56),"") -> 8929.560205 | L56: =IFERROR(SUMIF(INDIRECT(dshbrdrng_umsatzentwicklung),"="&Einstellungen!$BI$8, INDEX(INDIRECT(dshbrdrng_umsatzentwicklung2),0,MATCH(DATE($B20,MONTH(L$13),1),Erfolgsrechnung_Detail!$O$8:$DF$8,0))) + IF(INDEX(tblUmsatzFltr[Nr],MATCH(filter_umsatz,tblUmsatzFltr[Umsatz Filter],0)) = 1, SUMIF(INDIRECT(dshbrdrng_bruttogewinn),"<>", INDEX(INDIRECT(dshbrdrng_bruttogewinn2),0,MATCH(DATE($B56,MONTH(L$49),1),Erfolgsrechnung_Detail!$O$8:$DF$8,0))), SUMIF(INDIRECT(dshbrdrng_bruttogewinn),"<>", INDEX(INDIRECT(dshbrdrng_bruttogewinn2),0,MATCH(DATE($B56,MONTH(L$49),1),Erfolgsrechnung_Detail!$O$8:$DF$8,0)))+K56),"") -> 13157.11489 | M56: =IFERROR(SUMIF(INDIRECT(dshbrdrng_umsatzentwicklung),"="&Einstellungen!$BI$8, INDEX(INDIRECT(dshbrdrng_umsatzentwicklung2),0,MATCH(DATE($B20,MONTH(M$13),1),Erfolgsrechnung_Detail!$O$8:$DF$8,0))) + IF(INDEX(tblUmsatzFltr[Nr],MATCH(filter_umsatz,tblUmsatzFltr[Umsatz Filter],0)) = 1, SUMIF(INDIRECT(dshbrdrng_bruttogewinn),"<>", INDEX(INDIRECT(dshbrdrng_bruttogewinn2),0,MATCH(DATE($B56,MONTH(M$49),1),Erfolgsrechnung_Detail!$O$8:$DF$8,0))), SUMIF(INDIRECT(dshbrdrng_bruttogewinn),"<>", INDEX(INDIRECT(dshbrdrng_bruttogewinn2),0,MATCH(DATE($B56,MONTH(M$49),1),Erfolgsrechnung_Detail!$O$8:$DF$8,0)))+L56),"") -> 18867.76229 | N56: =IFERROR(SUMIF(INDIRECT(dshbrdrng_umsatzentwicklung),"="&Einstellungen!$BI$8, INDEX(INDIRECT(dshbrdrng_umsatzentwicklung2),0,MATCH(DATE($B20,MONTH(N$13),1),Erfolgsrechnung_Detail!$O$8:$DF$8,0))) + IF(INDEX(tblUmsatzFltr[Nr],MATCH(filter_umsatz,tblUmsatzFltr[Umsatz Filter],0)) = 1, SUMIF(INDIRECT(dshbrdrng_bruttogewinn),"<>", INDEX(INDIRECT(dshbrdrng_bruttogewinn2),0,MATCH(DATE($B56,MONTH(N$49),1),Erfolgsrechnung_Detail!$O$8:$DF$8,0))), SUMIF(INDIRECT(dshbrdrng_bruttogewinn),"<>", INDEX(INDIRECT(dshbrdrng_bruttogewinn2),0,MATCH(DATE($B56,MONTH(N$49),1),Erfolgsrechnung_Detail!$O$8:$DF$8,0)))+M56),"") -> 26160.13358 | P56: =IFERROR(IF( INDEX(tblUmsatzFltr[Nr],MATCH(filter_umsatz,tblUmsatzFltr[Umsatz Filter],0))=1, SUM($C56:INDEX($C56:$N56,1,selectedmonat_num)), INDEX($C56:$N56,0,MATCH(monat,tblMonate[Monate],0))),"") -> 20097.1923 | Q56: =IFERROR( IF(INDEX(tblUmsatzFltr[Nr],MATCH(filter_umsatz,tblUmsatzFltr[Umsatz Filter],0))=1, SUM(C56:$N56),N56),"") -> 130340.7483
B57: YTD | C57: =IFERROR(C56/C55-1,0) -> -0.5359482892 | D57: -0.04695964864 | E57: -0.7759965311 | F57: -0.7497543836 | G57: -0.6342718229 | H57: -0.5181278579 | I57: -0.7566172362 | J57: -0.3301905974 | K57: -0.6554991776 | L57: -0.6508153206 | M57: -0.5070180281 | N57: -0.5032017381 | P57: =IFERROR(P56/P55-1,0) -> -0.5906614625 | Q57: =IFERROR(Q56/Q55-1,0) -> -0.6040562649
D58: =IFERROR( IF(INDEX(tblUmsatzFltr[Nr],MATCH(filter_umsatz,tblUmsatzFltr[Umsatz Filter],0)) = 1, SUMIF(dshbrdrng_bruttogewinn,"="&Einstellungen!$BI$9, INDEX(dshbrdrng_bruttogewinn2,MATCH(DATE(B58,MONTH(C$49),1),Erfolgsrechnung_Detail!$O$8:$DF$8,0))), SUMIF(dshbrdrng_bruttogewinn,"="&Einstellungen!$BI$9, INDEX(dshbrdrng_bruttogewinn2,MATCH(DATE(B58,MONTH(C$49),1),Erfolgsrechnung_Detail!$O$8:$DF$8,0)))+C58),"") -> 
B59: Budget | C59: =IFERROR(SUMIFS(INDIRECT(budgetrng_umsatzentwicklung),INDIRECT(budgetrng),"<>")- SUMIFS(INDIRECT(budgetrng_bruttogewinn),INDIRECT(budgetrng2),"<>"),"") -> 2000 | D59: =IFERROR(SUMIFS(OFFSET(INDIRECT(budgetrng_umsatzentwicklung),0,1),INDIRECT(budgetrng),"<>")- SUMIFS(OFFSET(INDIRECT(budgetrng_bruttogewinn),0,1),INDIRECT(budgetrng2),"<>"),"") -> 2000 | E59: =IFERROR(SUMIFS(OFFSET(INDIRECT(budgetrng_umsatzentwicklung),0,2),INDIRECT(budgetrng),"<>")- SUMIFS(OFFSET(INDIRECT(budgetrng_bruttogewinn),0,2),INDIRECT(budgetrng2),"<>"),"") -> 2000 | F59: =IFERROR(SUMIFS(OFFSET(INDIRECT(budgetrng_umsatzentwicklung),0,3),INDIRECT(budgetrng),"<>")- SUMIFS(OFFSET(INDIRECT(budgetrng_bruttogewinn),0,3),INDIRECT(budgetrng2),"<>"),"") -> 2000 | G59: =IFERROR(SUMIFS(OFFSET(INDIRECT(budgetrng_umsatzentwicklung),0,4),INDIRECT(budgetrng),"<>")- SUMIFS(OFFSET(INDIRECT(budgetrng_bruttogewinn),0,4),INDIRECT(budgetrng2),"<>"),"") -> 2000 | H59: =IFERROR(SUMIFS(OFFSET(INDIRECT(budgetrng_umsatzentwicklung),0,5),INDIRECT(budgetrng),"<>")- SUMIFS(OFFSET(INDIRECT(budgetrng_bruttogewinn),0,5),INDIRECT(budgetrng2),"<>"),"") -> 2000 | I59: =IFERROR(SUMIFS(OFFSET(INDIRECT(budgetrng_umsatzentwicklung),0,6),INDIRECT(budgetrng),"<>")- SUMIFS(OFFSET(INDIRECT(budgetrng_bruttogewinn),0,6),INDIRECT(budgetrng2),"<>"),"") -> 2000 | J59: =IFERROR(SUMIFS(OFFSET(INDIRECT(budgetrng_umsatzentwicklung),0,7),INDIRECT(budgetrng),"<>")- SUMIFS(OFFSET(INDIRECT(budgetrng_bruttogewinn),0,7),INDIRECT(budgetrng2),"<>"),"") -> 2000 | K59: =IFERROR(SUMIFS(OFFSET(INDIRECT(budgetrng_umsatzentwicklung),0,8),INDIRECT(budgetrng),"<>")- SUMIFS(OFFSET(INDIRECT(budgetrng_bruttogewinn),0,8),INDIRECT(budgetrng2),"<>"),"") -> 2000 | L59: =IFERROR(SUMIFS(OFFSET(INDIRECT(budgetrng_umsatzentwicklung),0,9),INDIRECT(budgetrng),"<>")- SUMIFS(OFFSET(INDIRECT(budgetrng_bruttogewinn),0,9),INDIRECT(budgetrng2),"<>"),"") -> 2000 | M59: =IFERROR(SUMIFS(OFFSET(INDIRECT(budgetrng_umsatzentwicklung),0,10),INDIRECT(budgetrng),"<>")- SUMIFS(OFFSET(INDIRECT(budgetrng_bruttogewinn),0,10),INDIRECT(budgetrng2),"<>"),"") -> 2000 | N59: =IFERROR(SUMIFS(OFFSET(INDIRECT(budgetrng_umsatzentwicklung),0,11),INDIRECT(budgetrng),"<>")- SUMIFS(OFFSET(INDIRECT(budgetrng_bruttogewinn),0,11),INDIRECT(budgetrng2),"<>"),"") -> 2000 | P59: =SUM($C59:INDEX($C59:$N59,1,selectedmonat_num)) -> 6000 | Q59: =SUM(rngBudgetCost) -> 24000
B62: Aktuelles Jahr vs. Vorjahr | P62: =IF(INDEX(tblMonate[Nr],MATCH(monat,tblMonate[Monate],0))<> 1, CONCATENATE("YTD ",Einstellungen!$AY$8," - ",monat," ",B47," Zielerreichung"), CONCATENATE("YTD ",Einstellungen!$AY$8," ",B47," Zielerreichungt")) -> YTD Januar - März Bruttogewinn /-Verlust Zielerreichung
B64: Budget | C64: =C59 -> 2000 | D64: =IF(INDEX(tblUmsatzFltr[Nr],MATCH($L$3,tblUmsatzFltr[Umsatz Filter],0)) = 1,D$59,D$59+C$64) -> 2000 | E64: =IF(INDEX(tblUmsatzFltr[Nr],MATCH($L$3,tblUmsatzFltr[Umsatz Filter],0)) = 1,E$59,E$59+D$64) -> 2000 | F64: =IF(INDEX(tblUmsatzFltr[Nr],MATCH($L$3,tblUmsatzFltr[Umsatz Filter],0)) = 1,F$59,F$59+E$64) -> 2000 | G64: =IF(INDEX(tblUmsatzFltr[Nr],MATCH($L$3,tblUmsatzFltr[Umsatz Filter],0)) = 1,G$59,G$59+F$64) -> 2000 | H64: =IF(INDEX(tblUmsatzFltr[Nr],MATCH($L$3,tblUmsatzFltr[Umsatz Filter],0)) = 1,H$59,H$59+G$64) -> 2000 | I64: =IF(INDEX(tblUmsatzFltr[Nr],MATCH($L$3,tblUmsatzFltr[Umsatz Filter],0)) = 1,I$59,I$59+H$64) -> 2000 | J64: =IF(INDEX(tblUmsatzFltr[Nr],MATCH($L$3,tblUmsatzFltr[Umsatz Filter],0)) = 1,J$59,J$59+I$64) -> 2000 | K64: =IF(INDEX(tblUmsatzFltr[Nr],MATCH($L$3,tblUmsatzFltr[Umsatz Filter],0)) = 1,K$59,K$59+J$64) -> 2000 | L64: =IF(INDEX(tblUmsatzFltr[Nr],MATCH($L$3,tblUmsatzFltr[Umsatz Filter],0)) = 1,L$59,L$59+K$64) -> 2000 | M64: =IF(INDEX(tblUmsatzFltr[Nr],MATCH($L$3,tblUmsatzFltr[Umsatz Filter],0)) = 1,M$59,M$59+L$64) -> 2000 | N64: =IF(INDEX(tblUmsatzFltr[Nr],MATCH($L$3,tblUmsatzFltr[Umsatz Filter],0)) = 1,N$59,N$59+M$64) -> 2000
B83: Reingewinn / Reinverlust
C85: =DATE(jahr,1,1) -> 2020-01-01 | D85: =EOMONTH(C85,0)+1 -> 2020-02-01 | E85: 2020-03-01 | F85: 2020-04-01 | G85: 2020-05-01 | H85: 2020-06-01 | I85: 2020-07-01 | J85: 2020-08-01 | K85: 2020-09-01 | L85: 2020-10-01 | M85: 2020-11-01 | N85: 2020-12-01 | P85: =P49 -> YTD Januar bis März | Q85: Total
B86: =Startseite!$H$3-6 -> 2014 | C86: =IFERROR(C14+ SUMIF(INDIRECT(dshbrdrng_reingewinn),"<>", INDEX(INDIRECT(dshbrdrng_reingewinn2),0,MATCH(DATE($B86,MONTH(C$85),1),Erfolgsrechnung_Detail!$O$8:$DF$8,0))), "") ->  | D86: =IFERROR(SUMIF(INDIRECT(dshbrdrng_umsatzentwicklung),"="&Einstellungen!$BI$8, INDEX(INDIRECT(dshbrdrng_umsatzentwicklung2),0,MATCH(DATE($B14,MONTH(D$13),1),Erfolgsrechnung_Detail!$O$8:$DF$8,0))) + IF(INDEX(tblUmsatzFltr[Nr],MATCH(filter_umsatz,tblUmsatzFltr[Umsatz Filter],0)) = 1, SUMIF(INDIRECT(dshbrdrng_reingewinn),"<>", INDEX(INDIRECT(dshbrdrng_reingewinn2),0,MATCH(DATE($B86,MONTH(D$85),1),Erfolgsrechnung_Detail!$O$8:$DF$8,0))), SUMIF(INDIRECT(dshbrdrng_reingewinn),"<>", INDEX(INDIRECT(dshbrdrng_reingewinn2),0,MATCH(DATE($B86,MONTH(D$85),1),Erfolgsrechnung_Detail!$O$8:$DF$8,0)))+C86),"") ->  | E86: =IFERROR(SUMIF(INDIRECT(dshbrdrng_umsatzentwicklung),"="&Einstellungen!$BI$8, INDEX(INDIRECT(dshbrdrng_umsatzentwicklung2),0,MATCH(DATE($B14,MONTH(E$13),1),Erfolgsrechnung_Detail!$O$8:$DF$8,0))) + IF(INDEX(tblUmsatzFltr[Nr],MATCH(filter_umsatz,tblUmsatzFltr[Umsatz Filter],0)) = 1, SUMIF(INDIRECT(dshbrdrng_reingewinn),"<>", INDEX(INDIRECT(dshbrdrng_reingewinn2),0,MATCH(DATE($B86,MONTH(E$85),1),Erfolgsrechnung_Detail!$O$8:$DF$8,0))), SUMIF(INDIRECT(dshbrdrng_reingewinn),"<>", INDEX(INDIRECT(dshbrdrng_reingewinn2),0,MATCH(DATE($B86,MONTH(E$85),1),Erfolgsrechnung_Detail!$O$8:$DF$8,0)))+D86),"") ->  | F86: =IFERROR(SUMIF(INDIRECT(dshbrdrng_umsatzentwicklung),"="&Einstellungen!$BI$8, INDEX(INDIRECT(dshbrdrng_umsatzentwicklung2),0,MATCH(DATE($B14,MONTH(F$13),1),Erfolgsrechnung_Detail!$O$8:$DF$8,0))) + IF(INDEX(tblUmsatzFltr[Nr],MATCH(filter_umsatz,tblUmsatzFltr[Umsatz Filter],0)) = 1, SUMIF(INDIRECT(dshbrdrng_reingewinn),"<>", INDEX(INDIRECT(dshbrdrng_reingewinn2),0,MATCH(DATE($B86,MONTH(F$85),1),Erfolgsrechnung_Detail!$O$8:$DF$8,0))), SUMIF(INDIRECT(dshbrdrng_reingewinn),"<>", INDEX(INDIRECT(dshbrdrng_reingewinn2),0,MATCH(DATE($B86,MONTH(F$85),1),Erfolgsrechnung_Detail!$O$8:$DF$8,0)))+E86),"") ->  | G86: =IFERROR(SUMIF(INDIRECT(dshbrdrng_umsatzentwicklung),"="&Einstellungen!$BI$8, INDEX(INDIRECT(dshbrdrng_umsatzentwicklung2),0,MATCH(DATE($B14,MONTH(G$13),1),Erfolgsrechnung_Detail!$O$8:$DF$8,0))) + IF(INDEX(tblUmsatzFltr[Nr],MATCH(filter_umsatz,tblUmsatzFltr[Umsatz Filter],0)) = 1, SUMIF(INDIRECT(dshbrdrng_reingewinn),"<>", INDEX(INDIRECT(dshbrdrng_reingewinn2),0,MATCH(DATE($B86,MONTH(G$85),1),Erfolgsrechnung_Detail!$O$8:$DF$8,0))), SUMIF(INDIRECT(dshbrdrng_reingewinn),"<>", INDEX(INDIRECT(dshbrdrng_reingewinn2),0,MATCH(DATE($B86,MONTH(G$85),1),Erfolgsrechnung_Detail!$O$8:$DF$8,0)))+F86),"") ->  | H86: =IFERROR(SUMIF(INDIRECT(dshbrdrng_umsatzentwicklung),"="&Einstellungen!$BI$8, INDEX(INDIRECT(dshbrdrng_umsatzentwicklung2),0,MATCH(DATE($B14,MONTH(H$13),1),Erfolgsrechnung_Detail!$O$8:$DF$8,0))) + IF(INDEX(tblUmsatzFltr[Nr],MATCH(filter_umsatz,tblUmsatzFltr[Umsatz Filter],0)) = 1, SUMIF(INDIRECT(dshbrdrng_reingewinn),"<>", INDEX(INDIRECT(dshbrdrng_reingewinn2),0,MATCH(DATE($B86,MONTH(H$85),1),Erfolgsrechnung_Detail!$O$8:$DF$8,0))), SUMIF(INDIRECT(dshbrdrng_reingewinn),"<>", INDEX(INDIRECT(dshbrdrng_reingewinn2),0,MATCH(DATE($B86,MONTH(H$85),1),Erfolgsrechnung_Detail!$O$8:$DF$8,0)))+G86),"") ->  | I86: =IFERROR(SUMIF(INDIRECT(dshbrdrng_umsatzentwicklung),"="&Einstellungen!$BI$8, INDEX(INDIRECT(dshbrdrng_umsatzentwicklung2),0,MATCH(DATE($B14,MONTH(I$13),1),Erfolgsrechnung_Detail!$O$8:$DF$8,0))) + IF(INDEX(tblUmsatzFltr[Nr],MATCH(filter_umsatz,tblUmsatzFltr[Umsatz Filter],0)) = 1, SUMIF(INDIRECT(dshbrdrng_reingewinn),"<>", INDEX(INDIRECT(dshbrdrng_reingewinn2),0,MATCH(DATE($B86,MONTH(I$85),1),Erfolgsrechnung_Detail!$O$8:$DF$8,0))), SUMIF(INDIRECT(dshbrdrng_reingewinn),"<>", INDEX(INDIRECT(dshbrdrng_reingewinn2),0,MATCH(DATE($B86,MONTH(I$85),1),Erfolgsrechnung_Detail!$O$8:$DF$8,0)))+H86),"") ->  | J86: =IFERROR(SUMIF(INDIRECT(dshbrdrng_umsatzentwicklung),"="&Einstellungen!$BI$8, INDEX(INDIRECT(dshbrdrng_umsatzentwicklung2),0,MATCH(DATE($B14,MONTH(J$13),1),Erfolgsrechnung_Detail!$O$8:$DF$8,0))) + IF(INDEX(tblUmsatzFltr[Nr],MATCH(filter_umsatz,tblUmsatzFltr[Umsatz Filter],0)) = 1, SUMIF(INDIRECT(dshbrdrng_reingewinn),"<>", INDEX(INDIRECT(dshbrdrng_reingewinn2),0,MATCH(DATE($B86,MONTH(J$85),1),Erfolgsrechnung_Detail!$O$8:$DF$8,0))), SUMIF(INDIRECT(dshbrdrng_reingewinn),"<>", INDEX(INDIRECT(dshbrdrng_reingewinn2),0,MATCH(DATE($B86,MONTH(J$85),1),Erfolgsrechnung_Detail!$O$8:$DF$8,0)))+I86),"") ->  | K86: =IFERROR(SUMIF(INDIRECT(dshbrdrng_umsatzentwicklung),"="&Einstellungen!$BI$8, INDEX(INDIRECT(dshbrdrng_umsatzentwicklung2),0,MATCH(DATE($B14,MONTH(K$13),1),Erfolgsrechnung_Detail!$O$8:$DF$8,0))) + IF(INDEX(tblUmsatzFltr[Nr],MATCH(filter_umsatz,tblUmsatzFltr[Umsatz Filter],0)) = 1, SUMIF(INDIRECT(dshbrdrng_reingewinn),"<>", INDEX(INDIRECT(dshbrdrng_reingewinn2),0,MATCH(DATE($B86,MONTH(K$85),1),Erfolgsrechnung_Detail!$O$8:$DF$8,0))), SUMIF(INDIRECT(dshbrdrng_reingewinn),"<>", INDEX(INDIRECT(dshbrdrng_reingewinn2),0,MATCH(DATE($B86,MONTH(K$85),1),Erfolgsrechnung_Detail!$O$8:$DF$8,0)))+J86),"") ->  | L86: =IFERROR(SUMIF(INDIRECT(dshbrdrng_umsatzentwicklung),"="&Einstellungen!$BI$8, INDEX(INDIRECT(dshbrdrng_umsatzentwicklung2),0,MATCH(DATE($B14,MONTH(L$13),1),Erfolgsrechnung_Detail!$O$8:$DF$8,0))) + IF(INDEX(tblUmsatzFltr[Nr],MATCH(filter_umsatz,tblUmsatzFltr[Umsatz Filter],0)) = 1, SUMIF(INDIRECT(dshbrdrng_reingewinn),"<>", INDEX(INDIRECT(dshbrdrng_reingewinn2),0,MATCH(DATE($B86,MONTH(L$85),1),Erfolgsrechnung_Detail!$O$8:$DF$8,0))), SUMIF(INDIRECT(dshbrdrng_reingewinn),"<>", INDEX(INDIRECT(dshbrdrng_reingewinn2),0,MATCH(DATE($B86,MONTH(L$85),1),Erfolgsrechnung_Detail!$O$8:$DF$8,0)))+K86),"") ->  | M86: =IFERROR(SUMIF(INDIRECT(dshbrdrng_umsatzentwicklung),"="&Einstellungen!$BI$8, INDEX(INDIRECT(dshbrdrng_umsatzentwicklung2),0,MATCH(DATE($B14,MONTH(M$13),1),Erfolgsrechnung_Detail!$O$8:$DF$8,0))) + IF(INDEX(tblUmsatzFltr[Nr],MATCH(filter_umsatz,tblUmsatzFltr[Umsatz Filter],0)) = 1, SUMIF(INDIRECT(dshbrdrng_reingewinn),"<>", INDEX(INDIRECT(dshbrdrng_reingewinn2),0,MATCH(DATE($B86,MONTH(M$85),1),Erfolgsrechnung_Detail!$O$8:$DF$8,0))), SUMIF(INDIRECT(dshbrdrng_reingewinn),"<>", INDEX(INDIRECT(dshbrdrng_reingewinn2),0,MATCH(DATE($B86,MONTH(M$85),1),Erfolgsrechnung_Detail!$O$8:$DF$8,0)))+L86),"") ->  | N86: =IFERROR(SUMIF(INDIRECT(dshbrdrng_umsatzentwicklung),"="&Einstellungen!$BI$8, INDEX(INDIRECT(dshbrdrng_umsatzentwicklung2),0,MATCH(DATE($B14,MONTH(N$13),1),Erfolgsrechnung_Detail!$O$8:$DF$8,0))) + IF(INDEX(tblUmsatzFltr[Nr],MATCH(filter_umsatz,tblUmsatzFltr[Umsatz Filter],0)) = 1, SUMIF(INDIRECT(dshbrdrng_reingewinn),"<>", INDEX(INDIRECT(dshbrdrng_reingewinn2),0,MATCH(DATE($B86,MONTH(N$85),1),Erfolgsrechnung_Detail!$O$8:$DF$8,0))), SUMIF(INDIRECT(dshbrdrng_reingewinn),"<>", INDEX(INDIRECT(dshbrdrng_reingewinn2),0,MATCH(DATE($B86,MONTH(N$85),1),Erfolgsrechnung_Detail!$O$8:$DF$8,0)))+M86),"") ->  | P86: =IFERROR(IF( INDEX(tblUmsatzFltr[Nr],MATCH(filter_umsatz,tblUmsatzFltr[Umsatz Filter],0))=1, SUM($C86:INDEX($C86:$N86,1,selectedmonat_num)), INDEX($C86:$N86,0,MATCH(monat,tblMonate[Monate],0))),"") -> 0 | Q86: =IFERROR( IF(INDEX(tblUmsatzFltr[Nr],MATCH($L$3,tblUmsatzFltr[Umsatz Filter],0)) = 1, SUM(Dashboard!$C86:$N86),Dashboard!$N86),"") -> 0
B87: =Startseite!$H$3-5 -> 2015 | C87: =IFERROR(C15+ SUMIF(INDIRECT(dshbrdrng_reingewinn),"<>", INDEX(INDIRECT(dshbrdrng_reingewinn2),0,MATCH(DATE($B87,MONTH(C$85),1),Erfolgsrechnung_Detail!$O$8:$DF$8,0))), "") -> 5480.191733 | D87: =IFERROR(SUMIF(INDIRECT(dshbrdrng_umsatzentwicklung),"="&Einstellungen!$BI$8, INDEX(INDIRECT(dshbrdrng_umsatzentwicklung2),0,MATCH(DATE($B15,MONTH(D$13),1),Erfolgsrechnung_Detail!$O$8:$DF$8,0))) + IF(INDEX(tblUmsatzFltr[Nr],MATCH(filter_umsatz,tblUmsatzFltr[Umsatz Filter],0)) = 1, SUMIF(INDIRECT(dshbrdrng_reingewinn),"<>", INDEX(INDIRECT(dshbrdrng_reingewinn2),0,MATCH(DATE($B87,MONTH(D$85),1),Erfolgsrechnung_Detail!$O$8:$DF$8,0))), SUMIF(INDIRECT(dshbrdrng_reingewinn),"<>", INDEX(INDIRECT(dshbrdrng_reingewinn2),0,MATCH(DATE($B87,MONTH(D$85),1),Erfolgsrechnung_Detail!$O$8:$DF$8,0)))+C87),"") -> 8119.688114 | E87: =IFERROR(SUMIF(INDIRECT(dshbrdrng_umsatzentwicklung),"="&Einstellungen!$BI$8, INDEX(INDIRECT(dshbrdrng_umsatzentwicklung2),0,MATCH(DATE($B15,MONTH(E$13),1),Erfolgsrechnung_Detail!$O$8:$DF$8,0))) + IF(INDEX(tblUmsatzFltr[Nr],MATCH(filter_umsatz,tblUmsatzFltr[Umsatz Filter],0)) = 1, SUMIF(INDIRECT(dshbrdrng_reingewinn),"<>", INDEX(INDIRECT(dshbrdrng_reingewinn2),0,MATCH(DATE($B87,MONTH(E$85),1),Erfolgsrechnung_Detail!$O$8:$DF$8,0))), SUMIF(INDIRECT(dshbrdrng_reingewinn),"<>", INDEX(INDIRECT(dshbrdrng_reingewinn2),0,MATCH(DATE($B87,MONTH(E$85),1),Erfolgsrechnung_Detail!$O$8:$DF$8,0)))+D87),"") -> 216.4097314 | F87: =IFERROR(SUMIF(INDIRECT(dshbrdrng_umsatzentwicklung),"="&Einstellungen!$BI$8, INDEX(INDIRECT(dshbrdrng_umsatzentwicklung2),0,MATCH(DATE($B15,MONTH(F$13),1),Erfolgsrechnung_Detail!$O$8:$DF$8,0))) + IF(INDEX(tblUmsatzFltr[Nr],MATCH(filter_umsatz,tblUmsatzFltr[Umsatz Filter],0)) = 1, SUMIF(INDIRECT(dshbrdrng_reingewinn),"<>", INDEX(INDIRECT(dshbrdrng_reingewinn2),0,MATCH(DATE($B87,MONTH(F$85),1),Erfolgsrechnung_Detail!$O$8:$DF$8,0))), SUMIF(INDIRECT(dshbrdrng_reingewinn),"<>", INDEX(INDIRECT(dshbrdrng_reingewinn2),0,MATCH(DATE($B87,MONTH(F$85),1),Erfolgsrechnung_Detail!$O$8:$DF$8,0)))+E87),"") -> 2213.881744 | G87: =IFERROR(SUMIF(INDIRECT(dshbrdrng_umsatzentwicklung),"="&Einstellungen!$BI$8, INDEX(INDIRECT(dshbrdrng_umsatzentwicklung2),0,MATCH(DATE($B15,MONTH(G$13),1),Erfolgsrechnung_Detail!$O$8:$DF$8,0))) + IF(INDEX(tblUmsatzFltr[Nr],MATCH(filter_umsatz,tblUmsatzFltr[Umsatz Filter],0)) = 1, SUMIF(INDIRECT(dshbrdrng_reingewinn),"<>", INDEX(INDIRECT(dshbrdrng_reingewinn2),0,MATCH(DATE($B87,MONTH(G$85),1),Erfolgsrechnung_Detail!$O$8:$DF$8,0))), SUMIF(INDIRECT(dshbrdrng_reingewinn),"<>", INDEX(INDIRECT(dshbrdrng_reingewinn2),0,MATCH(DATE($B87,MONTH(G$85),1),Erfolgsrechnung_Detail!$O$8:$DF$8,0)))+F87),"") -> 4533.801013 | H87: =IFERROR(SUMIF(INDIRECT(dshbrdrng_umsatzentwicklung),"="&Einstellungen!$BI$8, INDEX(INDIRECT(dshbrdrng_umsatzentwicklung2),0,MATCH(DATE($B15,MONTH(H$13),1),Erfolgsrechnung_Detail!$O$8:$DF$8,0))) + IF(INDEX(tblUmsatzFltr[Nr],MATCH(filter_umsatz,tblUmsatzFltr[Umsatz Filter],0)) = 1, SUMIF(INDIRECT(dshbrdrng_reingewinn),"<>", INDEX(INDIRECT(dshbrdrng_reingewinn2),0,MATCH(DATE($B87,MONTH(H$85),1),Erfolgsrechnung_Detail!$O$8:$DF$8,0))), SUMIF(INDIRECT(dshbrdrng_reingewinn),"<>", INDEX(INDIRECT(dshbrdrng_reingewinn2),0,MATCH(DATE($B87,MONTH(H$85),1),Erfolgsrechnung_Detail!$O$8:$DF$8,0)))+G87),"") -> 3901.151382 | I87: =IFERROR(SUMIF(INDIRECT(dshbrdrng_umsatzentwicklung),"="&Einstellungen!$BI$8, INDEX(INDIRECT(dshbrdrng_umsatzentwicklung2),0,MATCH(DATE($B15,MONTH(I$13),1),Erfolgsrechnung_Detail!$O$8:$DF$8,0))) + IF(INDEX(tblUmsatzFltr[Nr],MATCH(filter_umsatz,tblUmsatzFltr[Umsatz Filter],0)) = 1, SUMIF(INDIRECT(dshbrdrng_reingewinn),"<>", INDEX(INDIRECT(dshbrdrng_reingewinn2),0,MATCH(DATE($B87,MONTH(I$85),1),Erfolgsrechnung_Detail!$O$8:$DF$8,0))), SUMIF(INDIRECT(dshbrdrng_reingewinn),"<>", INDEX(INDIRECT(dshbrdrng_reingewinn2),0,MATCH(DATE($B87,MONTH(I$85),1),Erfolgsrechnung_Detail!$O$8:$DF$8,0)))+H87),"") -> 1829.646686 | J87: =IFERROR(SUMIF(INDIRECT(dshbrdrng_umsatzentwicklung),"="&Einstellungen!$BI$8, INDEX(INDIRECT(dshbrdrng_umsatzentwicklung2),0,MATCH(DATE($B15,MONTH(J$13),1),Erfolgsrechnung_Detail!$O$8:$DF$8,0))) + IF(INDEX(tblUmsatzFltr[Nr],MATCH(filter_umsatz,tblUmsatzFltr[Umsatz Filter],0)) = 1, SUMIF(INDIRECT(dshbrdrng_reingewinn),"<>", INDEX(INDIRECT(dshbrdrng_reingewinn2),0,MATCH(DATE($B87,MONTH(J$85),1),Erfolgsrechnung_Detail!$O$8:$DF$8,0))), SUMIF(INDIRECT(dshbrdrng_reingewinn),"<>", INDEX(INDIRECT(dshbrdrng_reingewinn2),0,MATCH(DATE($B87,MONTH(J$85),1),Erfolgsrechnung_Detail!$O$8:$DF$8,0)))+I87),"") -> 8836.871548 | K87: =IFERROR(SUMIF(INDIRECT(dshbrdrng_umsatzentwicklung),"="&Einstellungen!$BI$8, INDEX(INDIRECT(dshbrdrng_umsatzentwicklung2),0,MATCH(DATE($B15,MONTH(K$13),1),Erfolgsrechnung_Detail!$O$8:$DF$8,0))) + IF(INDEX(tblUmsatzFltr[Nr],MATCH(filter_umsatz,tblUmsatzFltr[Umsatz Filter],0)) = 1, SUMIF(INDIRECT(dshbrdrng_reingewinn),"<>", INDEX(INDIRECT(dshbrdrng_reingewinn2),0,MATCH(DATE($B87,MONTH(K$85),1),Erfolgsrechnung_Detail!$O$8:$DF$8,0))), SUMIF(INDIRECT(dshbrdrng_reingewinn),"<>", INDEX(INDIRECT(dshbrdrng_reingewinn2),0,MATCH(DATE($B87,MONTH(K$85),1),Erfolgsrechnung_Detail!$O$8:$DF$8,0)))+J87),"") -> 3993.222021 | L87: =IFERROR(SUMIF(INDIRECT(dshbrdrng_umsatzentwicklung),"="&Einstellungen!$BI$8, INDEX(INDIRECT(dshbrdrng_umsatzentwicklung2),0,MATCH(DATE($B15,MONTH(L$13),1),Erfolgsrechnung_Detail!$O$8:$DF$8,0))) + IF(INDEX(tblUmsatzFltr[Nr],MATCH(filter_umsatz,tblUmsatzFltr[Umsatz Filter],0)) = 1, SUMIF(INDIRECT(dshbrdrng_reingewinn),"<>", INDEX(INDIRECT(dshbrdrng_reingewinn2),0,MATCH(DATE($B87,MONTH(L$85),1),Erfolgsrechnung_Detail!$O$8:$DF$8,0))), SUMIF(INDIRECT(dshbrdrng_reingewinn),"<>", INDEX(INDIRECT(dshbrdrng_reingewinn2),0,MATCH(DATE($B87,MONTH(L$85),1),Erfolgsrechnung_Detail!$O$8:$DF$8,0)))+K87),"") -> 5768.842231 | M87: =IFERROR(SUMIF(INDIRECT(dshbrdrng_umsatzentwicklung),"="&Einstellungen!$BI$8, INDEX(INDIRECT(dshbrdrng_umsatzentwicklung2),0,MATCH(DATE($B15,MONTH(M$13),1),Erfolgsrechnung_Detail!$O$8:$DF$8,0))) + IF(INDEX(tblUmsatzFltr[Nr],MATCH(filter_umsatz,tblUmsatzFltr[Umsatz Filter],0)) = 1, SUMIF(INDIRECT(dshbrdrng_reingewinn),"<>", INDEX(INDIRECT(dshbrdrng_reingewinn2),0,MATCH(DATE($B87,MONTH(M$85),1),Erfolgsrechnung_Detail!$O$8:$DF$8,0))), SUMIF(INDIRECT(dshbrdrng_reingewinn),"<>", INDEX(INDIRECT(dshbrdrng_reingewinn2),0,MATCH(DATE($B87,MONTH(M$85),1),Erfolgsrechnung_Detail!$O$8:$DF$8,0)))+L87),"") -> 6449.884648 | N87: =IFERROR(SUMIF(INDIRECT(dshbrdrng_umsatzentwicklung),"="&Einstellungen!$BI$8, INDEX(INDIRECT(dshbrdrng_umsatzentwicklung2),0,MATCH(DATE($B15,MONTH(N$13),1),Erfolgsrechnung_Detail!$O$8:$DF$8,0))) + IF(INDEX(tblUmsatzFltr[Nr],MATCH(filter_umsatz,tblUmsatzFltr[Umsatz Filter],0)) = 1, SUMIF(INDIRECT(dshbrdrng_reingewinn),"<>", INDEX(INDIRECT(dshbrdrng_reingewinn2),0,MATCH(DATE($B87,MONTH(N$85),1),Erfolgsrechnung_Detail!$O$8:$DF$8,0))), SUMIF(INDIRECT(dshbrdrng_reingewinn),"<>", INDEX(INDIRECT(dshbrdrng_reingewinn2),0,MATCH(DATE($B87,MONTH(N$85),1),Erfolgsrechnung_Detail!$O$8:$DF$8,0)))+M87),"") -> 11857.3063 | P87: =IFERROR(IF( INDEX(tblUmsatzFltr[Nr],MATCH(filter_umsatz,tblUmsatzFltr[Umsatz Filter],0))=1, SUM($C87:INDEX($C87:$N87,1,selectedmonat_num)), INDEX($C87:$N87,0,MATCH(monat,tblMonate[Monate],0))),"") -> 13816.28958 | Q87: =IFERROR( IF(INDEX(tblUmsatzFltr[Nr],MATCH($L$3,tblUmsatzFltr[Umsatz Filter],0)) = 1, SUM(Dashboard!$C87:$N87),Dashboard!$N87),"") -> 63200.89715
B88: =Startseite!$H$3-4 -> 2016 | C88: =IFERROR(C16+ SUMIF(INDIRECT(dshbrdrng_reingewinn),"<>", INDEX(INDIRECT(dshbrdrng_reingewinn2),0,MATCH(DATE($B88,MONTH(C$85),1),Erfolgsrechnung_Detail!$O$8:$DF$8,0))), "") -> 2019.628062 | D88: =IFERROR(SUMIF(INDIRECT(dshbrdrng_umsatzentwicklung),"="&Einstellungen!$BI$8, INDEX(INDIRECT(dshbrdrng_umsatzentwicklung2),0,MATCH(DATE($B16,MONTH(D$13),1),Erfolgsrechnung_Detail!$O$8:$DF$8,0))) + IF(INDEX(tblUmsatzFltr[Nr],MATCH(filter_umsatz,tblUmsatzFltr[Umsatz Filter],0)) = 1, SUMIF(INDIRECT(dshbrdrng_reingewinn),"<>", INDEX(INDIRECT(dshbrdrng_reingewinn2),0,MATCH(DATE($B88,MONTH(D$85),1),Erfolgsrechnung_Detail!$O$8:$DF$8,0))), SUMIF(INDIRECT(dshbrdrng_reingewinn),"<>", INDEX(INDIRECT(dshbrdrng_reingewinn2),0,MATCH(DATE($B88,MONTH(D$85),1),Erfolgsrechnung_Detail!$O$8:$DF$8,0)))+C88),"") -> 14136.87603 | E88: =IFERROR(SUMIF(INDIRECT(dshbrdrng_umsatzentwicklung),"="&Einstellungen!$BI$8, INDEX(INDIRECT(dshbrdrng_umsatzentwicklung2),0,MATCH(DATE($B16,MONTH(E$13),1),Erfolgsrechnung_Detail!$O$8:$DF$8,0))) + IF(INDEX(tblUmsatzFltr[Nr],MATCH(filter_umsatz,tblUmsatzFltr[Umsatz Filter],0)) = 1, SUMIF(INDIRECT(dshbrdrng_reingewinn),"<>", INDEX(INDIRECT(dshbrdrng_reingewinn2),0,MATCH(DATE($B88,MONTH(E$85),1),Erfolgsrechnung_Detail!$O$8:$DF$8,0))), SUMIF(INDIRECT(dshbrdrng_reingewinn),"<>", INDEX(INDIRECT(dshbrdrng_reingewinn2),0,MATCH(DATE($B88,MONTH(E$85),1),Erfolgsrechnung_Detail!$O$8:$DF$8,0)))+D88),"") -> 5323.199388 | F88: =IFERROR(SUMIF(INDIRECT(dshbrdrng_umsatzentwicklung),"="&Einstellungen!$BI$8, INDEX(INDIRECT(dshbrdrng_umsatzentwicklung2),0,MATCH(DATE($B16,MONTH(F$13),1),Erfolgsrechnung_Detail!$O$8:$DF$8,0))) + IF(INDEX(tblUmsatzFltr[Nr],MATCH(filter_umsatz,tblUmsatzFltr[Umsatz Filter],0)) = 1, SUMIF(INDIRECT(dshbrdrng_reingewinn),"<>", INDEX(INDIRECT(dshbrdrng_reingewinn2),0,MATCH(DATE($B88,MONTH(F$85),1),Erfolgsrechnung_Detail!$O$8:$DF$8,0))), SUMIF(INDIRECT(dshbrdrng_reingewinn),"<>", INDEX(INDIRECT(dshbrdrng_reingewinn2),0,MATCH(DATE($B88,MONTH(F$85),1),Erfolgsrechnung_Detail!$O$8:$DF$8,0)))+E88),"") -> 7857.296934 | G88: =IFERROR(SUMIF(INDIRECT(dshbrdrng_umsatzentwicklung),"="&Einstellungen!$BI$8, INDEX(INDIRECT(dshbrdrng_umsatzentwicklung2),0,MATCH(DATE($B16,MONTH(G$13),1),Erfolgsrechnung_Detail!$O$8:$DF$8,0))) + IF(INDEX(tblUmsatzFltr[Nr],MATCH(filter_umsatz,tblUmsatzFltr[Umsatz Filter],0)) = 1, SUMIF(INDIRECT(dshbrdrng_reingewinn),"<>", INDEX(INDIRECT(dshbrdrng_reingewinn2),0,MATCH(DATE($B88,MONTH(G$85),1),Erfolgsrechnung_Detail!$O$8:$DF$8,0))), SUMIF(INDIRECT(dshbrdrng_reingewinn),"<>", INDEX(INDIRECT(dshbrdrng_reingewinn2),0,MATCH(DATE($B88,MONTH(G$85),1),Erfolgsrechnung_Detail!$O$8:$DF$8,0)))+F88),"") -> 10613.00492 | H88: =IFERROR(SUMIF(INDIRECT(dshbrdrng_umsatzentwicklung),"="&Einstellungen!$BI$8, INDEX(INDIRECT(dshbrdrng_umsatzentwicklung2),0,MATCH(DATE($B16,MONTH(H$13),1),Erfolgsrechnung_Detail!$O$8:$DF$8,0))) + IF(INDEX(tblUmsatzFltr[Nr],MATCH(filter_umsatz,tblUmsatzFltr[Umsatz Filter],0)) = 1, SUMIF(INDIRECT(dshbrdrng_reingewinn),"<>", INDEX(INDIRECT(dshbrdrng_reingewinn2),0,MATCH(DATE($B88,MONTH(H$85),1),Erfolgsrechnung_Detail!$O$8:$DF$8,0))), SUMIF(INDIRECT(dshbrdrng_reingewinn),"<>", INDEX(INDIRECT(dshbrdrng_reingewinn2),0,MATCH(DATE($B88,MONTH(H$85),1),Erfolgsrechnung_Detail!$O$8:$DF$8,0)))+G88),"") -> 14254.16222 | I88: =IFERROR(SUMIF(INDIRECT(dshbrdrng_umsatzentwicklung),"="&Einstellungen!$BI$8, INDEX(INDIRECT(dshbrdrng_umsatzentwicklung2),0,MATCH(DATE($B16,MONTH(I$13),1),Erfolgsrechnung_Detail!$O$8:$DF$8,0))) + IF(INDEX(tblUmsatzFltr[Nr],MATCH(filter_umsatz,tblUmsatzFltr[Umsatz Filter],0)) = 1, SUMIF(INDIRECT(dshbrdrng_reingewinn),"<>", INDEX(INDIRECT(dshbrdrng_reingewinn2),0,MATCH(DATE($B88,MONTH(I$85),1),Erfolgsrechnung_Detail!$O$8:$DF$8,0))), SUMIF(INDIRECT(dshbrdrng_reingewinn),"<>", INDEX(INDIRECT(dshbrdrng_reingewinn2),0,MATCH(DATE($B88,MONTH(I$85),1),Erfolgsrechnung_Detail!$O$8:$DF$8,0)))+H88),"") -> 6814.957397 | J88: =IFERROR(SUMIF(INDIRECT(dshbrdrng_umsatzentwicklung),"="&Einstellungen!$BI$8, INDEX(INDIRECT(dshbrdrng_umsatzentwicklung2),0,MATCH(DATE($B16,MONTH(J$13),1),Erfolgsrechnung_Detail!$O$8:$DF$8,0))) + IF(INDEX(tblUmsatzFltr[Nr],MATCH(filter_umsatz,tblUmsatzFltr[Umsatz Filter],0)) = 1, SUMIF(INDIRECT(dshbrdrng_reingewinn),"<>", INDEX(INDIRECT(dshbrdrng_reingewinn2),0,MATCH(DATE($B88,MONTH(J$85),1),Erfolgsrechnung_Detail!$O$8:$DF$8,0))), SUMIF(INDIRECT(dshbrdrng_reingewinn),"<>", INDEX(INDIRECT(dshbrdrng_reingewinn2),0,MATCH(DATE($B88,MONTH(J$85),1),Erfolgsrechnung_Detail!$O$8:$DF$8,0)))+I88),"") -> 8210.127252 | K88: =IFERROR(SUMIF(INDIRECT(dshbrdrng_umsatzentwicklung),"="&Einstellungen!$BI$8, INDEX(INDIRECT(dshbrdrng_umsatzentwicklung2),0,MATCH(DATE($B16,MONTH(K$13),1),Erfolgsrechnung_Detail!$O$8:$DF$8,0))) + IF(INDEX(tblUmsatzFltr[Nr],MATCH(filter_umsatz,tblUmsatzFltr[Umsatz Filter],0)) = 1, SUMIF(INDIRECT(dshbrdrng_reingewinn),"<>", INDEX(INDIRECT(dshbrdrng_reingewinn2),0,MATCH(DATE($B88,MONTH(K$85),1),Erfolgsrechnung_Detail!$O$8:$DF$8,0))), SUMIF(INDIRECT(dshbrdrng_reingewinn),"<>", INDEX(INDIRECT(dshbrdrng_reingewinn2),0,MATCH(DATE($B88,MONTH(K$85),1),Erfolgsrechnung_Detail!$O$8:$DF$8,0)))+J88),"") -> 12183.41877 | L88: =IFERROR(SUMIF(INDIRECT(dshbrdrng_umsatzentwicklung),"="&Einstellungen!$BI$8, INDEX(INDIRECT(dshbrdrng_umsatzentwicklung2),0,MATCH(DATE($B16,MONTH(L$13),1),Erfolgsrechnung_Detail!$O$8:$DF$8,0))) + IF(INDEX(tblUmsatzFltr[Nr],MATCH(filter_umsatz,tblUmsatzFltr[Umsatz Filter],0)) = 1, SUMIF(INDIRECT(dshbrdrng_reingewinn),"<>", INDEX(INDIRECT(dshbrdrng_reingewinn2),0,MATCH(DATE($B88,MONTH(L$85),1),Erfolgsrechnung_Detail!$O$8:$DF$8,0))), SUMIF(INDIRECT(dshbrdrng_reingewinn),"<>", INDEX(INDIRECT(dshbrdrng_reingewinn2),0,MATCH(DATE($B88,MONTH(L$85),1),Erfolgsrechnung_Detail!$O$8:$DF$8,0)))+K88),"") -> 7312.272841 | M88: =IFERROR(SUMIF(INDIRECT(dshbrdrng_umsatzentwicklung),"="&Einstellungen!$BI$8, INDEX(INDIRECT(dshbrdrng_umsatzentwicklung2),0,MATCH(DATE($B16,MONTH(M$13),1),Erfolgsrechnung_Detail!$O$8:$DF$8,0))) + IF(INDEX(tblUmsatzFltr[Nr],MATCH(filter_umsatz,tblUmsatzFltr[Umsatz Filter],0)) = 1, SUMIF(INDIRECT(dshbrdrng_reingewinn),"<>", INDEX(INDIRECT(dshbrdrng_reingewinn2),0,MATCH(DATE($B88,MONTH(M$85),1),Erfolgsrechnung_Detail!$O$8:$DF$8,0))), SUMIF(INDIRECT(dshbrdrng_reingewinn),"<>", INDEX(INDIRECT(dshbrdrng_reingewinn2),0,MATCH(DATE($B88,MONTH(M$85),1),Erfolgsrechnung_Detail!$O$8:$DF$8,0)))+L88),"") -> 11051.76437 | N88: =IFERROR(SUMIF(INDIRECT(dshbrdrng_umsatzentwicklung),"="&Einstellungen!$BI$8, INDEX(INDIRECT(dshbrdrng_umsatzentwicklung2),0,MATCH(DATE($B16,MONTH(N$13),1),Erfolgsrechnung_Detail!$O$8:$DF$8,0))) + IF(INDEX(tblUmsatzFltr[Nr],MATCH(filter_umsatz,tblUmsatzFltr[Umsatz Filter],0)) = 1, SUMIF(INDIRECT(dshbrdrng_reingewinn),"<>", INDEX(INDIRECT(dshbrdrng_reingewinn2),0,MATCH(DATE($B88,MONTH(N$85),1),Erfolgsrechnung_Detail!$O$8:$DF$8,0))), SUMIF(INDIRECT(dshbrdrng_reingewinn),"<>", INDEX(INDIRECT(dshbrdrng_reingewinn2),0,MATCH(DATE($B88,MONTH(N$85),1),Erfolgsrechnung_Detail!$O$8:$DF$8,0)))+M88),"") -> 12278.74714 | P88: =IFERROR(IF( INDEX(tblUmsatzFltr[Nr],MATCH(filter_umsatz,tblUmsatzFltr[Umsatz Filter],0))=1, SUM($C88:INDEX($C88:$N88,1,selectedmonat_num)), INDEX($C88:$N88,0,MATCH(monat,tblMonate[Monate],0))),"") -> 21479.70348 | Q88: =IFERROR( IF(INDEX(tblUmsatzFltr[Nr],MATCH($L$3,tblUmsatzFltr[Umsatz Filter],0)) = 1, SUM(Dashboard!$C88:$N88),Dashboard!$N88),"") -> 112055.4553
B89: =Startseite!$H$3-3 -> 2017 | C89: =IFERROR(C17+ SUMIF(INDIRECT(dshbrdrng_reingewinn),"<>", INDEX(INDIRECT(dshbrdrng_reingewinn2),0,MATCH(DATE($B89,MONTH(C$85),1),Erfolgsrechnung_Detail!$O$8:$DF$8,0))), "") -> 18716.12061 | D89: =IFERROR(SUMIF(INDIRECT(dshbrdrng_umsatzentwicklung),"="&Einstellungen!$BI$8, INDEX(INDIRECT(dshbrdrng_umsatzentwicklung2),0,MATCH(DATE($B17,MONTH(D$13),1),Erfolgsrechnung_Detail!$O$8:$DF$8,0))) + IF(INDEX(tblUmsatzFltr[Nr],MATCH(filter_umsatz,tblUmsatzFltr[Umsatz Filter],0)) = 1, SUMIF(INDIRECT(dshbrdrng_reingewinn),"<>", INDEX(INDIRECT(dshbrdrng_reingewinn2),0,MATCH(DATE($B89,MONTH(D$85),1),Erfolgsrechnung_Detail!$O$8:$DF$8,0))), SUMIF(INDIRECT(dshbrdrng_reingewinn),"<>", INDEX(INDIRECT(dshbrdrng_reingewinn2),0,MATCH(DATE($B89,MONTH(D$85),1),Erfolgsrechnung_Detail!$O$8:$DF$8,0)))+C89),"") -> 15348.4508 | E89: =IFERROR(SUMIF(INDIRECT(dshbrdrng_umsatzentwicklung),"="&Einstellungen!$BI$8, INDEX(INDIRECT(dshbrdrng_umsatzentwicklung2),0,MATCH(DATE($B17,MONTH(E$13),1),Erfolgsrechnung_Detail!$O$8:$DF$8,0))) + IF(INDEX(tblUmsatzFltr[Nr],MATCH(filter_umsatz,tblUmsatzFltr[Umsatz Filter],0)) = 1, SUMIF(INDIRECT(dshbrdrng_reingewinn),"<>", INDEX(INDIRECT(dshbrdrng_reingewinn2),0,MATCH(DATE($B89,MONTH(E$85),1),Erfolgsrechnung_Detail!$O$8:$DF$8,0))), SUMIF(INDIRECT(dshbrdrng_reingewinn),"<>", INDEX(INDIRECT(dshbrdrng_reingewinn2),0,MATCH(DATE($B89,MONTH(E$85),1),Erfolgsrechnung_Detail!$O$8:$DF$8,0)))+D89),"") -> 11591.6995 | F89: =IFERROR(SUMIF(INDIRECT(dshbrdrng_umsatzentwicklung),"="&Einstellungen!$BI$8, INDEX(INDIRECT(dshbrdrng_umsatzentwicklung2),0,MATCH(DATE($B17,MONTH(F$13),1),Erfolgsrechnung_Detail!$O$8:$DF$8,0))) + IF(INDEX(tblUmsatzFltr[Nr],MATCH(filter_umsatz,tblUmsatzFltr[Umsatz Filter],0)) = 1, SUMIF(INDIRECT(dshbrdrng_reingewinn),"<>", INDEX(INDIRECT(dshbrdrng_reingewinn2),0,MATCH(DATE($B89,MONTH(F$85),1),Erfolgsrechnung_Detail!$O$8:$DF$8,0))), SUMIF(INDIRECT(dshbrdrng_reingewinn),"<>", INDEX(INDIRECT(dshbrdrng_reingewinn2),0,MATCH(DATE($B89,MONTH(F$85),1),Erfolgsrechnung_Detail!$O$8:$DF$8,0)))+E89),"") -> 21026.93845 | G89: =IFERROR(SUMIF(INDIRECT(dshbrdrng_umsatzentwicklung),"="&Einstellungen!$BI$8, INDEX(INDIRECT(dshbrdrng_umsatzentwicklung2),0,MATCH(DATE($B17,MONTH(G$13),1),Erfolgsrechnung_Detail!$O$8:$DF$8,0))) + IF(INDEX(tblUmsatzFltr[Nr],MATCH(filter_umsatz,tblUmsatzFltr[Umsatz Filter],0)) = 1, SUMIF(INDIRECT(dshbrdrng_reingewinn),"<>", INDEX(INDIRECT(dshbrdrng_reingewinn2),0,MATCH(DATE($B89,MONTH(G$85),1),Erfolgsrechnung_Detail!$O$8:$DF$8,0))), SUMIF(INDIRECT(dshbrdrng_reingewinn),"<>", INDEX(INDIRECT(dshbrdrng_reingewinn2),0,MATCH(DATE($B89,MONTH(G$85),1),Erfolgsrechnung_Detail!$O$8:$DF$8,0)))+F89),"") -> 19073.28821 | H89: =IFERROR(SUMIF(INDIRECT(dshbrdrng_umsatzentwicklung),"="&Einstellungen!$BI$8, INDEX(INDIRECT(dshbrdrng_umsatzentwicklung2),0,MATCH(DATE($B17,MONTH(H$13),1),Erfolgsrechnung_Detail!$O$8:$DF$8,0))) + IF(INDEX(tblUmsatzFltr[Nr],MATCH(filter_umsatz,tblUmsatzFltr[Umsatz Filter],0)) = 1, SUMIF(INDIRECT(dshbrdrng_reingewinn),"<>", INDEX(INDIRECT(dshbrdrng_reingewinn2),0,MATCH(DATE($B89,MONTH(H$85),1),Erfolgsrechnung_Detail!$O$8:$DF$8,0))), SUMIF(INDIRECT(dshbrdrng_reingewinn),"<>", INDEX(INDIRECT(dshbrdrng_reingewinn2),0,MATCH(DATE($B89,MONTH(H$85),1),Erfolgsrechnung_Detail!$O$8:$DF$8,0)))+G89),"") -> 12294.77293 | I89: =IFERROR(SUMIF(INDIRECT(dshbrdrng_umsatzentwicklung),"="&Einstellungen!$BI$8, INDEX(INDIRECT(dshbrdrng_umsatzentwicklung2),0,MATCH(DATE($B17,MONTH(I$13),1),Erfolgsrechnung_Detail!$O$8:$DF$8,0))) + IF(INDEX(tblUmsatzFltr[Nr],MATCH(filter_umsatz,tblUmsatzFltr[Umsatz Filter],0)) = 1, SUMIF(INDIRECT(dshbrdrng_reingewinn),"<>", INDEX(INDIRECT(dshbrdrng_reingewinn2),0,MATCH(DATE($B89,MONTH(I$85),1),Erfolgsrechnung_Detail!$O$8:$DF$8,0))), SUMIF(INDIRECT(dshbrdrng_reingewinn),"<>", INDEX(INDIRECT(dshbrdrng_reingewinn2),0,MATCH(DATE($B89,MONTH(I$85),1),Erfolgsrechnung_Detail!$O$8:$DF$8,0)))+H89),"") -> 21763.39076 | J89: =IFERROR(SUMIF(INDIRECT(dshbrdrng_umsatzentwicklung),"="&Einstellungen!$BI$8, INDEX(INDIRECT(dshbrdrng_umsatzentwicklung2),0,MATCH(DATE($B17,MONTH(J$13),1),Erfolgsrechnung_Detail!$O$8:$DF$8,0))) + IF(INDEX(tblUmsatzFltr[Nr],MATCH(filter_umsatz,tblUmsatzFltr[Umsatz Filter],0)) = 1, SUMIF(INDIRECT(dshbrdrng_reingewinn),"<>", INDEX(INDIRECT(dshbrdrng_reingewinn2),0,MATCH(DATE($B89,MONTH(J$85),1),Erfolgsrechnung_Detail!$O$8:$DF$8,0))), SUMIF(INDIRECT(dshbrdrng_reingewinn),"<>", INDEX(INDIRECT(dshbrdrng_reingewinn2),0,MATCH(DATE($B89,MONTH(J$85),1),Erfolgsrechnung_Detail!$O$8:$DF$8,0)))+I89),"") -> 24533.74729 | K89: =IFERROR(SUMIF(INDIRECT(dshbrdrng_umsatzentwicklung),"="&Einstellungen!$BI$8, INDEX(INDIRECT(dshbrdrng_umsatzentwicklung2),0,MATCH(DATE($B17,MONTH(K$13),1),Erfolgsrechnung_Detail!$O$8:$DF$8,0))) + IF(INDEX(tblUmsatzFltr[Nr],MATCH(filter_umsatz,tblUmsatzFltr[Umsatz Filter],0)) = 1, SUMIF(INDIRECT(dshbrdrng_reingewinn),"<>", INDEX(INDIRECT(dshbrdrng_reingewinn2),0,MATCH(DATE($B89,MONTH(K$85),1),Erfolgsrechnung_Detail!$O$8:$DF$8,0))), SUMIF(INDIRECT(dshbrdrng_reingewinn),"<>", INDEX(INDIRECT(dshbrdrng_reingewinn2),0,MATCH(DATE($B89,MONTH(K$85),1),Erfolgsrechnung_Detail!$O$8:$DF$8,0)))+J89),"") -> 19922.76134 | L89: =IFERROR(SUMIF(INDIRECT(dshbrdrng_umsatzentwicklung),"="&Einstellungen!$BI$8, INDEX(INDIRECT(dshbrdrng_umsatzentwicklung2),0,MATCH(DATE($B17,MONTH(L$13),1),Erfolgsrechnung_Detail!$O$8:$DF$8,0))) + IF(INDEX(tblUmsatzFltr[Nr],MATCH(filter_umsatz,tblUmsatzFltr[Umsatz Filter],0)) = 1, SUMIF(INDIRECT(dshbrdrng_reingewinn),"<>", INDEX(INDIRECT(dshbrdrng_reingewinn2),0,MATCH(DATE($B89,MONTH(L$85),1),Erfolgsrechnung_Detail!$O$8:$DF$8,0))), SUMIF(INDIRECT(dshbrdrng_reingewinn),"<>", INDEX(INDIRECT(dshbrdrng_reingewinn2),0,MATCH(DATE($B89,MONTH(L$85),1),Erfolgsrechnung_Detail!$O$8:$DF$8,0)))+K89),"") -> 29573.14839 | M89: =IFERROR(SUMIF(INDIRECT(dshbrdrng_umsatzentwicklung),"="&Einstellungen!$BI$8, INDEX(INDIRECT(dshbrdrng_umsatzentwicklung2),0,MATCH(DATE($B17,MONTH(M$13),1),Erfolgsrechnung_Detail!$O$8:$DF$8,0))) + IF(INDEX(tblUmsatzFltr[Nr],MATCH(filter_umsatz,tblUmsatzFltr[Umsatz Filter],0)) = 1, SUMIF(INDIRECT(dshbrdrng_reingewinn),"<>", INDEX(INDIRECT(dshbrdrng_reingewinn2),0,MATCH(DATE($B89,MONTH(M$85),1),Erfolgsrechnung_Detail!$O$8:$DF$8,0))), SUMIF(INDIRECT(dshbrdrng_reingewinn),"<>", INDEX(INDIRECT(dshbrdrng_reingewinn2),0,MATCH(DATE($B89,MONTH(M$85),1),Erfolgsrechnung_Detail!$O$8:$DF$8,0)))+L89),"") -> 12715.81184 | N89: =IFERROR(SUMIF(INDIRECT(dshbrdrng_umsatzentwicklung),"="&Einstellungen!$BI$8, INDEX(INDIRECT(dshbrdrng_umsatzentwicklung2),0,MATCH(DATE($B17,MONTH(N$13),1),Erfolgsrechnung_Detail!$O$8:$DF$8,0))) + IF(INDEX(tblUmsatzFltr[Nr],MATCH(filter_umsatz,tblUmsatzFltr[Umsatz Filter],0)) = 1, SUMIF(INDIRECT(dshbrdrng_reingewinn),"<>", INDEX(INDIRECT(dshbrdrng_reingewinn2),0,MATCH(DATE($B89,MONTH(N$85),1),Erfolgsrechnung_Detail!$O$8:$DF$8,0))), SUMIF(INDIRECT(dshbrdrng_reingewinn),"<>", INDEX(INDIRECT(dshbrdrng_reingewinn2),0,MATCH(DATE($B89,MONTH(N$85),1),Erfolgsrechnung_Detail!$O$8:$DF$8,0)))+M89),"") -> 23608.80137 | P89: =IFERROR(IF( INDEX(tblUmsatzFltr[Nr],MATCH(filter_umsatz,tblUmsatzFltr[Umsatz Filter],0))=1, SUM($C89:INDEX($C89:$N89,1,selectedmonat_num)), INDEX($C89:$N89,0,MATCH(monat,tblMonate[Monate],0))),"") -> 45656.27092 | Q89: =IFERROR( IF(INDEX(tblUmsatzFltr[Nr],MATCH($L$3,tblUmsatzFltr[Umsatz Filter],0)) = 1, SUM(Dashboard!$C89:$N89),Dashboard!$N89),"") -> 230168.9315
B90: =Startseite!$H$3-2 -> 2018 | C90: =IFERROR(C18+ SUMIF(INDIRECT(dshbrdrng_reingewinn),"<>", INDEX(INDIRECT(dshbrdrng_reingewinn2),0,MATCH(DATE($B90,MONTH(C$85),1),Erfolgsrechnung_Detail!$O$8:$DF$8,0))), "") -> 2019.628062 | D90: =IFERROR(SUMIF(INDIRECT(dshbrdrng_umsatzentwicklung),"="&Einstellungen!$BI$8, INDEX(INDIRECT(dshbrdrng_umsatzentwicklung2),0,MATCH(DATE($B18,MONTH(D$13),1),Erfolgsrechnung_Detail!$O$8:$DF$8,0))) + IF(INDEX(tblUmsatzFltr[Nr],MATCH(filter_umsatz,tblUmsatzFltr[Umsatz Filter],0)) = 1, SUMIF(INDIRECT(dshbrdrng_reingewinn),"<>", INDEX(INDIRECT(dshbrdrng_reingewinn2),0,MATCH(DATE($B90,MONTH(D$85),1),Erfolgsrechnung_Detail!$O$8:$DF$8,0))), SUMIF(INDIRECT(dshbrdrng_reingewinn),"<>", INDEX(INDIRECT(dshbrdrng_reingewinn2),0,MATCH(DATE($B90,MONTH(D$85),1),Erfolgsrechnung_Detail!$O$8:$DF$8,0)))+C90),"") -> 14170.40961 | E90: =IFERROR(SUMIF(INDIRECT(dshbrdrng_umsatzentwicklung),"="&Einstellungen!$BI$8, INDEX(INDIRECT(dshbrdrng_umsatzentwicklung2),0,MATCH(DATE($B18,MONTH(E$13),1),Erfolgsrechnung_Detail!$O$8:$DF$8,0))) + IF(INDEX(tblUmsatzFltr[Nr],MATCH(filter_umsatz,tblUmsatzFltr[Umsatz Filter],0)) = 1, SUMIF(INDIRECT(dshbrdrng_reingewinn),"<>", INDEX(INDIRECT(dshbrdrng_reingewinn2),0,MATCH(DATE($B90,MONTH(E$85),1),Erfolgsrechnung_Detail!$O$8:$DF$8,0))), SUMIF(INDIRECT(dshbrdrng_reingewinn),"<>", INDEX(INDIRECT(dshbrdrng_reingewinn2),0,MATCH(DATE($B90,MONTH(E$85),1),Erfolgsrechnung_Detail!$O$8:$DF$8,0)))+D90),"") -> 5289.665808 | F90: =IFERROR(SUMIF(INDIRECT(dshbrdrng_umsatzentwicklung),"="&Einstellungen!$BI$8, INDEX(INDIRECT(dshbrdrng_umsatzentwicklung2),0,MATCH(DATE($B18,MONTH(F$13),1),Erfolgsrechnung_Detail!$O$8:$DF$8,0))) + IF(INDEX(tblUmsatzFltr[Nr],MATCH(filter_umsatz,tblUmsatzFltr[Umsatz Filter],0)) = 1, SUMIF(INDIRECT(dshbrdrng_reingewinn),"<>", INDEX(INDIRECT(dshbrdrng_reingewinn2),0,MATCH(DATE($B90,MONTH(F$85),1),Erfolgsrechnung_Detail!$O$8:$DF$8,0))), SUMIF(INDIRECT(dshbrdrng_reingewinn),"<>", INDEX(INDIRECT(dshbrdrng_reingewinn2),0,MATCH(DATE($B90,MONTH(F$85),1),Erfolgsrechnung_Detail!$O$8:$DF$8,0)))+E90),"") -> 7857.296934 | G90: =IFERROR(SUMIF(INDIRECT(dshbrdrng_umsatzentwicklung),"="&Einstellungen!$BI$8, INDEX(INDIRECT(dshbrdrng_umsatzentwicklung2),0,MATCH(DATE($B18,MONTH(G$13),1),Erfolgsrechnung_Detail!$O$8:$DF$8,0))) + IF(INDEX(tblUmsatzFltr[Nr],MATCH(filter_umsatz,tblUmsatzFltr[Umsatz Filter],0)) = 1, SUMIF(INDIRECT(dshbrdrng_reingewinn),"<>", INDEX(INDIRECT(dshbrdrng_reingewinn2),0,MATCH(DATE($B90,MONTH(G$85),1),Erfolgsrechnung_Detail!$O$8:$DF$8,0))), SUMIF(INDIRECT(dshbrdrng_reingewinn),"<>", INDEX(INDIRECT(dshbrdrng_reingewinn2),0,MATCH(DATE($B90,MONTH(G$85),1),Erfolgsrechnung_Detail!$O$8:$DF$8,0)))+F90),"") -> 10613.00492 | H90: =IFERROR(SUMIF(INDIRECT(dshbrdrng_umsatzentwicklung),"="&Einstellungen!$BI$8, INDEX(INDIRECT(dshbrdrng_umsatzentwicklung2),0,MATCH(DATE($B18,MONTH(H$13),1),Erfolgsrechnung_Detail!$O$8:$DF$8,0))) + IF(INDEX(tblUmsatzFltr[Nr],MATCH(filter_umsatz,tblUmsatzFltr[Umsatz Filter],0)) = 1, SUMIF(INDIRECT(dshbrdrng_reingewinn),"<>", INDEX(INDIRECT(dshbrdrng_reingewinn2),0,MATCH(DATE($B90,MONTH(H$85),1),Erfolgsrechnung_Detail!$O$8:$DF$8,0))), SUMIF(INDIRECT(dshbrdrng_reingewinn),"<>", INDEX(INDIRECT(dshbrdrng_reingewinn2),0,MATCH(DATE($B90,MONTH(H$85),1),Erfolgsrechnung_Detail!$O$8:$DF$8,0)))+G90),"") -> 14254.16222 | I90: =IFERROR(SUMIF(INDIRECT(dshbrdrng_umsatzentwicklung),"="&Einstellungen!$BI$8, INDEX(INDIRECT(dshbrdrng_umsatzentwicklung2),0,MATCH(DATE($B18,MONTH(I$13),1),Erfolgsrechnung_Detail!$O$8:$DF$8,0))) + IF(INDEX(tblUmsatzFltr[Nr],MATCH(filter_umsatz,tblUmsatzFltr[Umsatz Filter],0)) = 1, SUMIF(INDIRECT(dshbrdrng_reingewinn),"<>", INDEX(INDIRECT(dshbrdrng_reingewinn2),0,MATCH(DATE($B90,MONTH(I$85),1),Erfolgsrechnung_Detail!$O$8:$DF$8,0))), SUMIF(INDIRECT(dshbrdrng_reingewinn),"<>", INDEX(INDIRECT(dshbrdrng_reingewinn2),0,MATCH(DATE($B90,MONTH(I$85),1),Erfolgsrechnung_Detail!$O$8:$DF$8,0)))+H90),"") -> 6814.957397 | J90: =IFERROR(SUMIF(INDIRECT(dshbrdrng_umsatzentwicklung),"="&Einstellungen!$BI$8, INDEX(INDIRECT(dshbrdrng_umsatzentwicklung2),0,MATCH(DATE($B18,MONTH(J$13),1),Erfolgsrechnung_Detail!$O$8:$DF$8,0))) + IF(INDEX(tblUmsatzFltr[Nr],MATCH(filter_umsatz,tblUmsatzFltr[Umsatz Filter],0)) = 1, SUMIF(INDIRECT(dshbrdrng_reingewinn),"<>", INDEX(INDIRECT(dshbrdrng_reingewinn2),0,MATCH(DATE($B90,MONTH(J$85),1),Erfolgsrechnung_Detail!$O$8:$DF$8,0))), SUMIF(INDIRECT(dshbrdrng_reingewinn),"<>", INDEX(INDIRECT(dshbrdrng_reingewinn2),0,MATCH(DATE($B90,MONTH(J$85),1),Erfolgsrechnung_Detail!$O$8:$DF$8,0)))+I90),"") -> 8210.127252 | K90: =IFERROR(SUMIF(INDIRECT(dshbrdrng_umsatzentwicklung),"="&Einstellungen!$BI$8, INDEX(INDIRECT(dshbrdrng_umsatzentwicklung2),0,MATCH(DATE($B18,MONTH(K$13),1),Erfolgsrechnung_Detail!$O$8:$DF$8,0))) + IF(INDEX(tblUmsatzFltr[Nr],MATCH(filter_umsatz,tblUmsatzFltr[Umsatz Filter],0)) = 1, SUMIF(INDIRECT(dshbrdrng_reingewinn),"<>", INDEX(INDIRECT(dshbrdrng_reingewinn2),0,MATCH(DATE($B90,MONTH(K$85),1),Erfolgsrechnung_Detail!$O$8:$DF$8,0))), SUMIF(INDIRECT(dshbrdrng_reingewinn),"<>", INDEX(INDIRECT(dshbrdrng_reingewinn2),0,MATCH(DATE($B90,MONTH(K$85),1),Erfolgsrechnung_Detail!$O$8:$DF$8,0)))+J90),"") -> 12183.41877 | L90: =IFERROR(SUMIF(INDIRECT(dshbrdrng_umsatzentwicklung),"="&Einstellungen!$BI$8, INDEX(INDIRECT(dshbrdrng_umsatzentwicklung2),0,MATCH(DATE($B18,MONTH(L$13),1),Erfolgsrechnung_Detail!$O$8:$DF$8,0))) + IF(INDEX(tblUmsatzFltr[Nr],MATCH(filter_umsatz,tblUmsatzFltr[Umsatz Filter],0)) = 1, SUMIF(INDIRECT(dshbrdrng_reingewinn),"<>", INDEX(INDIRECT(dshbrdrng_reingewinn2),0,MATCH(DATE($B90,MONTH(L$85),1),Erfolgsrechnung_Detail!$O$8:$DF$8,0))), SUMIF(INDIRECT(dshbrdrng_reingewinn),"<>", INDEX(INDIRECT(dshbrdrng_reingewinn2),0,MATCH(DATE($B90,MONTH(L$85),1),Erfolgsrechnung_Detail!$O$8:$DF$8,0)))+K90),"") -> 7312.272841 | M90: =IFERROR(SUMIF(INDIRECT(dshbrdrng_umsatzentwicklung),"="&Einstellungen!$BI$8, INDEX(INDIRECT(dshbrdrng_umsatzentwicklung2),0,MATCH(DATE($B18,MONTH(M$13),1),Erfolgsrechnung_Detail!$O$8:$DF$8,0))) + IF(INDEX(tblUmsatzFltr[Nr],MATCH(filter_umsatz,tblUmsatzFltr[Umsatz Filter],0)) = 1, SUMIF(INDIRECT(dshbrdrng_reingewinn),"<>", INDEX(INDIRECT(dshbrdrng_reingewinn2),0,MATCH(DATE($B90,MONTH(M$85),1),Erfolgsrechnung_Detail!$O$8:$DF$8,0))), SUMIF(INDIRECT(dshbrdrng_reingewinn),"<>", INDEX(INDIRECT(dshbrdrng_reingewinn2),0,MATCH(DATE($B90,MONTH(M$85),1),Erfolgsrechnung_Detail!$O$8:$DF$8,0)))+L90),"") -> 11051.76437 | N90: =IFERROR(SUMIF(INDIRECT(dshbrdrng_umsatzentwicklung),"="&Einstellungen!$BI$8, INDEX(INDIRECT(dshbrdrng_umsatzentwicklung2),0,MATCH(DATE($B18,MONTH(N$13),1),Erfolgsrechnung_Detail!$O$8:$DF$8,0))) + IF(INDEX(tblUmsatzFltr[Nr],MATCH(filter_umsatz,tblUmsatzFltr[Umsatz Filter],0)) = 1, SUMIF(INDIRECT(dshbrdrng_reingewinn),"<>", INDEX(INDIRECT(dshbrdrng_reingewinn2),0,MATCH(DATE($B90,MONTH(N$85),1),Erfolgsrechnung_Detail!$O$8:$DF$8,0))), SUMIF(INDIRECT(dshbrdrng_reingewinn),"<>", INDEX(INDIRECT(dshbrdrng_reingewinn2),0,MATCH(DATE($B90,MONTH(N$85),1),Erfolgsrechnung_Detail!$O$8:$DF$8,0)))+M90),"") -> 12278.74714 | P90: =IFERROR(IF( INDEX(tblUmsatzFltr[Nr],MATCH(filter_umsatz,tblUmsatzFltr[Umsatz Filter],0))=1, SUM($C90:INDEX($C90:$N90,1,selectedmonat_num)), INDEX($C90:$N90,0,MATCH(monat,tblMonate[Monate],0))),"") -> 21479.70348 | Q90: =IFERROR( IF(INDEX(tblUmsatzFltr[Nr],MATCH($L$3,tblUmsatzFltr[Umsatz Filter],0)) = 1, SUM(Dashboard!$C90:$N90),Dashboard!$N90),"") -> 112055.4553
B91: =Startseite!$H$3-1 -> 2019 | C91: =IFERROR(C19+ SUMIF(INDIRECT(dshbrdrng_reingewinn),"<>", INDEX(INDIRECT(dshbrdrng_reingewinn2),0,MATCH(DATE($B91,MONTH(C$85),1),Erfolgsrechnung_Detail!$O$8:$DF$8,0))), "") -> 16275.53906 | D91: =IFERROR(SUMIF(INDIRECT(dshbrdrng_umsatzentwicklung),"="&Einstellungen!$BI$8, INDEX(INDIRECT(dshbrdrng_umsatzentwicklung2),0,MATCH(DATE($B19,MONTH(D$13),1),Erfolgsrechnung_Detail!$O$8:$DF$8,0))) + IF(INDEX(tblUmsatzFltr[Nr],MATCH(filter_umsatz,tblUmsatzFltr[Umsatz Filter],0)) = 1, SUMIF(INDIRECT(dshbrdrng_reingewinn),"<>", INDEX(INDIRECT(dshbrdrng_reingewinn2),0,MATCH(DATE($B91,MONTH(D$85),1),Erfolgsrechnung_Detail!$O$8:$DF$8,0))), SUMIF(INDIRECT(dshbrdrng_reingewinn),"<>", INDEX(INDIRECT(dshbrdrng_reingewinn2),0,MATCH(DATE($B91,MONTH(D$85),1),Erfolgsrechnung_Detail!$O$8:$DF$8,0)))+C91),"") -> 5944.210431 | E91: =IFERROR(SUMIF(INDIRECT(dshbrdrng_umsatzentwicklung),"="&Einstellungen!$BI$8, INDEX(INDIRECT(dshbrdrng_umsatzentwicklung2),0,MATCH(DATE($B19,MONTH(E$13),1),Erfolgsrechnung_Detail!$O$8:$DF$8,0))) + IF(INDEX(tblUmsatzFltr[Nr],MATCH(filter_umsatz,tblUmsatzFltr[Umsatz Filter],0)) = 1, SUMIF(INDIRECT(dshbrdrng_reingewinn),"<>", INDEX(INDIRECT(dshbrdrng_reingewinn2),0,MATCH(DATE($B91,MONTH(E$85),1),Erfolgsrechnung_Detail!$O$8:$DF$8,0))), SUMIF(INDIRECT(dshbrdrng_reingewinn),"<>", INDEX(INDIRECT(dshbrdrng_reingewinn2),0,MATCH(DATE($B91,MONTH(E$85),1),Erfolgsrechnung_Detail!$O$8:$DF$8,0)))+D91),"") -> 23838.43468 | F91: =IFERROR(SUMIF(INDIRECT(dshbrdrng_umsatzentwicklung),"="&Einstellungen!$BI$8, INDEX(INDIRECT(dshbrdrng_umsatzentwicklung2),0,MATCH(DATE($B19,MONTH(F$13),1),Erfolgsrechnung_Detail!$O$8:$DF$8,0))) + IF(INDEX(tblUmsatzFltr[Nr],MATCH(filter_umsatz,tblUmsatzFltr[Umsatz Filter],0)) = 1, SUMIF(INDIRECT(dshbrdrng_reingewinn),"<>", INDEX(INDIRECT(dshbrdrng_reingewinn2),0,MATCH(DATE($B91,MONTH(F$85),1),Erfolgsrechnung_Detail!$O$8:$DF$8,0))), SUMIF(INDIRECT(dshbrdrng_reingewinn),"<>", INDEX(INDIRECT(dshbrdrng_reingewinn2),0,MATCH(DATE($B91,MONTH(F$85),1),Erfolgsrechnung_Detail!$O$8:$DF$8,0)))+E91),"") -> 34551.03397 | G91: =IFERROR(SUMIF(INDIRECT(dshbrdrng_umsatzentwicklung),"="&Einstellungen!$BI$8, INDEX(INDIRECT(dshbrdrng_umsatzentwicklung2),0,MATCH(DATE($B19,MONTH(G$13),1),Erfolgsrechnung_Detail!$O$8:$DF$8,0))) + IF(INDEX(tblUmsatzFltr[Nr],MATCH(filter_umsatz,tblUmsatzFltr[Umsatz Filter],0)) = 1, SUMIF(INDIRECT(dshbrdrng_reingewinn),"<>", INDEX(INDIRECT(dshbrdrng_reingewinn2),0,MATCH(DATE($B91,MONTH(G$85),1),Erfolgsrechnung_Detail!$O$8:$DF$8,0))), SUMIF(INDIRECT(dshbrdrng_reingewinn),"<>", INDEX(INDIRECT(dshbrdrng_reingewinn2),0,MATCH(DATE($B91,MONTH(G$85),1),Erfolgsrechnung_Detail!$O$8:$DF$8,0)))+F91),"") -> 22128.68207 | H91: =IFERROR(SUMIF(INDIRECT(dshbrdrng_umsatzentwicklung),"="&Einstellungen!$BI$8, INDEX(INDIRECT(dshbrdrng_umsatzentwicklung2),0,MATCH(DATE($B19,MONTH(H$13),1),Erfolgsrechnung_Detail!$O$8:$DF$8,0))) + IF(INDEX(tblUmsatzFltr[Nr],MATCH(filter_umsatz,tblUmsatzFltr[Umsatz Filter],0)) = 1, SUMIF(INDIRECT(dshbrdrng_reingewinn),"<>", INDEX(INDIRECT(dshbrdrng_reingewinn2),0,MATCH(DATE($B91,MONTH(H$85),1),Erfolgsrechnung_Detail!$O$8:$DF$8,0))), SUMIF(INDIRECT(dshbrdrng_reingewinn),"<>", INDEX(INDIRECT(dshbrdrng_reingewinn2),0,MATCH(DATE($B91,MONTH(H$85),1),Erfolgsrechnung_Detail!$O$8:$DF$8,0)))+G91),"") -> 10376.53367 | I91: =IFERROR(SUMIF(INDIRECT(dshbrdrng_umsatzentwicklung),"="&Einstellungen!$BI$8, INDEX(INDIRECT(dshbrdrng_umsatzentwicklung2),0,MATCH(DATE($B19,MONTH(I$13),1),Erfolgsrechnung_Detail!$O$8:$DF$8,0))) + IF(INDEX(tblUmsatzFltr[Nr],MATCH(filter_umsatz,tblUmsatzFltr[Umsatz Filter],0)) = 1, SUMIF(INDIRECT(dshbrdrng_reingewinn),"<>", INDEX(INDIRECT(dshbrdrng_reingewinn2),0,MATCH(DATE($B91,MONTH(I$85),1),Erfolgsrechnung_Detail!$O$8:$DF$8,0))), SUMIF(INDIRECT(dshbrdrng_reingewinn),"<>", INDEX(INDIRECT(dshbrdrng_reingewinn2),0,MATCH(DATE($B91,MONTH(I$85),1),Erfolgsrechnung_Detail!$O$8:$DF$8,0)))+H91),"") -> 37543.6173 | J91: =IFERROR(SUMIF(INDIRECT(dshbrdrng_umsatzentwicklung),"="&Einstellungen!$BI$8, INDEX(INDIRECT(dshbrdrng_umsatzentwicklung2),0,MATCH(DATE($B19,MONTH(J$13),1),Erfolgsrechnung_Detail!$O$8:$DF$8,0))) + IF(INDEX(tblUmsatzFltr[Nr],MATCH(filter_umsatz,tblUmsatzFltr[Umsatz Filter],0)) = 1, SUMIF(INDIRECT(dshbrdrng_reingewinn),"<>", INDEX(INDIRECT(dshbrdrng_reingewinn2),0,MATCH(DATE($B91,MONTH(J$85),1),Erfolgsrechnung_Detail!$O$8:$DF$8,0))), SUMIF(INDIRECT(dshbrdrng_reingewinn),"<>", INDEX(INDIRECT(dshbrdrng_reingewinn2),0,MATCH(DATE($B91,MONTH(J$85),1),Erfolgsrechnung_Detail!$O$8:$DF$8,0)))+I91),"") -> 14620.99564 | K91: =IFERROR(SUMIF(INDIRECT(dshbrdrng_umsatzentwicklung),"="&Einstellungen!$BI$8, INDEX(INDIRECT(dshbrdrng_umsatzentwicklung2),0,MATCH(DATE($B19,MONTH(K$13),1),Erfolgsrechnung_Detail!$O$8:$DF$8,0))) + IF(INDEX(tblUmsatzFltr[Nr],MATCH(filter_umsatz,tblUmsatzFltr[Umsatz Filter],0)) = 1, SUMIF(INDIRECT(dshbrdrng_reingewinn),"<>", INDEX(INDIRECT(dshbrdrng_reingewinn2),0,MATCH(DATE($B91,MONTH(K$85),1),Erfolgsrechnung_Detail!$O$8:$DF$8,0))), SUMIF(INDIRECT(dshbrdrng_reingewinn),"<>", INDEX(INDIRECT(dshbrdrng_reingewinn2),0,MATCH(DATE($B91,MONTH(K$85),1),Erfolgsrechnung_Detail!$O$8:$DF$8,0)))+J91),"") -> 24934.48455 | L91: =IFERROR(SUMIF(INDIRECT(dshbrdrng_umsatzentwicklung),"="&Einstellungen!$BI$8, INDEX(INDIRECT(dshbrdrng_umsatzentwicklung2),0,MATCH(DATE($B19,MONTH(L$13),1),Erfolgsrechnung_Detail!$O$8:$DF$8,0))) + IF(INDEX(tblUmsatzFltr[Nr],MATCH(filter_umsatz,tblUmsatzFltr[Umsatz Filter],0)) = 1, SUMIF(INDIRECT(dshbrdrng_reingewinn),"<>", INDEX(INDIRECT(dshbrdrng_reingewinn2),0,MATCH(DATE($B91,MONTH(L$85),1),Erfolgsrechnung_Detail!$O$8:$DF$8,0))), SUMIF(INDIRECT(dshbrdrng_reingewinn),"<>", INDEX(INDIRECT(dshbrdrng_reingewinn2),0,MATCH(DATE($B91,MONTH(L$85),1),Erfolgsrechnung_Detail!$O$8:$DF$8,0)))+K91),"") -> 36920.87111 | M91: =IFERROR(SUMIF(INDIRECT(dshbrdrng_umsatzentwicklung),"="&Einstellungen!$BI$8, INDEX(INDIRECT(dshbrdrng_umsatzentwicklung2),0,MATCH(DATE($B19,MONTH(M$13),1),Erfolgsrechnung_Detail!$O$8:$DF$8,0))) + IF(INDEX(tblUmsatzFltr[Nr],MATCH(filter_umsatz,tblUmsatzFltr[Umsatz Filter],0)) = 1, SUMIF(INDIRECT(dshbrdrng_reingewinn),"<>", INDEX(INDIRECT(dshbrdrng_reingewinn2),0,MATCH(DATE($B91,MONTH(M$85),1),Erfolgsrechnung_Detail!$O$8:$DF$8,0))), SUMIF(INDIRECT(dshbrdrng_reingewinn),"<>", INDEX(INDIRECT(dshbrdrng_reingewinn2),0,MATCH(DATE($B91,MONTH(M$85),1),Erfolgsrechnung_Detail!$O$8:$DF$8,0)))+L91),"") -> 34539.21182 | N91: =IFERROR(SUMIF(INDIRECT(dshbrdrng_umsatzentwicklung),"="&Einstellungen!$BI$8, INDEX(INDIRECT(dshbrdrng_umsatzentwicklung2),0,MATCH(DATE($B19,MONTH(N$13),1),Erfolgsrechnung_Detail!$O$8:$DF$8,0))) + IF(INDEX(tblUmsatzFltr[Nr],MATCH(filter_umsatz,tblUmsatzFltr[Umsatz Filter],0)) = 1, SUMIF(INDIRECT(dshbrdrng_reingewinn),"<>", INDEX(INDIRECT(dshbrdrng_reingewinn2),0,MATCH(DATE($B91,MONTH(N$85),1),Erfolgsrechnung_Detail!$O$8:$DF$8,0))), SUMIF(INDIRECT(dshbrdrng_reingewinn),"<>", INDEX(INDIRECT(dshbrdrng_reingewinn2),0,MATCH(DATE($B91,MONTH(N$85),1),Erfolgsrechnung_Detail!$O$8:$DF$8,0)))+M91),"") -> 49141.99735 | P91: =IFERROR(IF( INDEX(tblUmsatzFltr[Nr],MATCH(filter_umsatz,tblUmsatzFltr[Umsatz Filter],0))=1, SUM($C91:INDEX($C91:$N91,1,selectedmonat_num)), INDEX($C91:$N91,0,MATCH(monat,tblMonate[Monate],0))),"") -> 46058.18418 | Q91: =IFERROR( IF(INDEX(tblUmsatzFltr[Nr],MATCH($L$3,tblUmsatzFltr[Umsatz Filter],0)) = 1, SUM(Dashboard!$C91:$N91),Dashboard!$N91),"") -> 310815.6116
B92: =Startseite!$H$3 -> 2020 | C92: =IFERROR(C20+ SUMIF(INDIRECT(dshbrdrng_reingewinn),"<>", INDEX(INDIRECT(dshbrdrng_reingewinn2),0,MATCH(DATE($B92,MONTH(C$85),1),Erfolgsrechnung_Detail!$O$8:$DF$8,0))), "") -> 6889.5546 | D92: =IFERROR(SUMIF(INDIRECT(dshbrdrng_umsatzentwicklung),"="&Einstellungen!$BI$8, INDEX(INDIRECT(dshbrdrng_umsatzentwicklung2),0,MATCH(DATE($B20,MONTH(D$13),1),Erfolgsrechnung_Detail!$O$8:$DF$8,0))) + IF(INDEX(tblUmsatzFltr[Nr],MATCH(filter_umsatz,tblUmsatzFltr[Umsatz Filter],0)) = 1, SUMIF(INDIRECT(dshbrdrng_reingewinn),"<>", INDEX(INDIRECT(dshbrdrng_reingewinn2),0,MATCH(DATE($B92,MONTH(D$85),1),Erfolgsrechnung_Detail!$O$8:$DF$8,0))), SUMIF(INDIRECT(dshbrdrng_reingewinn),"<>", INDEX(INDIRECT(dshbrdrng_reingewinn2),0,MATCH(DATE($B92,MONTH(D$85),1),Erfolgsrechnung_Detail!$O$8:$DF$8,0)))+C92),"") -> 4867.631923 | E92: =IFERROR(SUMIF(INDIRECT(dshbrdrng_umsatzentwicklung),"="&Einstellungen!$BI$8, INDEX(INDIRECT(dshbrdrng_umsatzentwicklung2),0,MATCH(DATE($B20,MONTH(E$13),1),Erfolgsrechnung_Detail!$O$8:$DF$8,0))) + IF(INDEX(tblUmsatzFltr[Nr],MATCH(filter_umsatz,tblUmsatzFltr[Umsatz Filter],0)) = 1, SUMIF(INDIRECT(dshbrdrng_reingewinn),"<>", INDEX(INDIRECT(dshbrdrng_reingewinn2),0,MATCH(DATE($B92,MONTH(E$85),1),Erfolgsrechnung_Detail!$O$8:$DF$8,0))), SUMIF(INDIRECT(dshbrdrng_reingewinn),"<>", INDEX(INDIRECT(dshbrdrng_reingewinn2),0,MATCH(DATE($B92,MONTH(E$85),1),Erfolgsrechnung_Detail!$O$8:$DF$8,0)))+D92),"") -> 2708.211278 | F92: =IFERROR(SUMIF(INDIRECT(dshbrdrng_umsatzentwicklung),"="&Einstellungen!$BI$8, INDEX(INDIRECT(dshbrdrng_umsatzentwicklung2),0,MATCH(DATE($B20,MONTH(F$13),1),Erfolgsrechnung_Detail!$O$8:$DF$8,0))) + IF(INDEX(tblUmsatzFltr[Nr],MATCH(filter_umsatz,tblUmsatzFltr[Umsatz Filter],0)) = 1, SUMIF(INDIRECT(dshbrdrng_reingewinn),"<>", INDEX(INDIRECT(dshbrdrng_reingewinn2),0,MATCH(DATE($B92,MONTH(F$85),1),Erfolgsrechnung_Detail!$O$8:$DF$8,0))), SUMIF(INDIRECT(dshbrdrng_reingewinn),"<>", INDEX(INDIRECT(dshbrdrng_reingewinn2),0,MATCH(DATE($B92,MONTH(F$85),1),Erfolgsrechnung_Detail!$O$8:$DF$8,0)))+E92),"") -> 6851.96143 | G92: =IFERROR(SUMIF(INDIRECT(dshbrdrng_umsatzentwicklung),"="&Einstellungen!$BI$8, INDEX(INDIRECT(dshbrdrng_umsatzentwicklung2),0,MATCH(DATE($B20,MONTH(G$13),1),Erfolgsrechnung_Detail!$O$8:$DF$8,0))) + IF(INDEX(tblUmsatzFltr[Nr],MATCH(filter_umsatz,tblUmsatzFltr[Umsatz Filter],0)) = 1, SUMIF(INDIRECT(dshbrdrng_reingewinn),"<>", INDEX(INDIRECT(dshbrdrng_reingewinn2),0,MATCH(DATE($B92,MONTH(G$85),1),Erfolgsrechnung_Detail!$O$8:$DF$8,0))), SUMIF(INDIRECT(dshbrdrng_reingewinn),"<>", INDEX(INDIRECT(dshbrdrng_reingewinn2),0,MATCH(DATE($B92,MONTH(G$85),1),Erfolgsrechnung_Detail!$O$8:$DF$8,0)))+F92),"") -> 5424.701465 | H92: =IFERROR(SUMIF(INDIRECT(dshbrdrng_umsatzentwicklung),"="&Einstellungen!$BI$8, INDEX(INDIRECT(dshbrdrng_umsatzentwicklung2),0,MATCH(DATE($B20,MONTH(H$13),1),Erfolgsrechnung_Detail!$O$8:$DF$8,0))) + IF(INDEX(tblUmsatzFltr[Nr],MATCH(filter_umsatz,tblUmsatzFltr[Umsatz Filter],0)) = 1, SUMIF(INDIRECT(dshbrdrng_reingewinn),"<>", INDEX(INDIRECT(dshbrdrng_reingewinn2),0,MATCH(DATE($B92,MONTH(H$85),1),Erfolgsrechnung_Detail!$O$8:$DF$8,0))), SUMIF(INDIRECT(dshbrdrng_reingewinn),"<>", INDEX(INDIRECT(dshbrdrng_reingewinn2),0,MATCH(DATE($B92,MONTH(H$85),1),Erfolgsrechnung_Detail!$O$8:$DF$8,0)))+G92),"") -> 2803.370948 | I92: =IFERROR(SUMIF(INDIRECT(dshbrdrng_umsatzentwicklung),"="&Einstellungen!$BI$8, INDEX(INDIRECT(dshbrdrng_umsatzentwicklung2),0,MATCH(DATE($B20,MONTH(I$13),1),Erfolgsrechnung_Detail!$O$8:$DF$8,0))) + IF(INDEX(tblUmsatzFltr[Nr],MATCH(filter_umsatz,tblUmsatzFltr[Umsatz Filter],0)) = 1, SUMIF(INDIRECT(dshbrdrng_reingewinn),"<>", INDEX(INDIRECT(dshbrdrng_reingewinn2),0,MATCH(DATE($B92,MONTH(I$85),1),Erfolgsrechnung_Detail!$O$8:$DF$8,0))), SUMIF(INDIRECT(dshbrdrng_reingewinn),"<>", INDEX(INDIRECT(dshbrdrng_reingewinn2),0,MATCH(DATE($B92,MONTH(I$85),1),Erfolgsrechnung_Detail!$O$8:$DF$8,0)))+H92),"") -> 6450.878572 | J92: =IFERROR(SUMIF(INDIRECT(dshbrdrng_umsatzentwicklung),"="&Einstellungen!$BI$8, INDEX(INDIRECT(dshbrdrng_umsatzentwicklung2),0,MATCH(DATE($B20,MONTH(J$13),1),Erfolgsrechnung_Detail!$O$8:$DF$8,0))) + IF(INDEX(tblUmsatzFltr[Nr],MATCH(filter_umsatz,tblUmsatzFltr[Umsatz Filter],0)) = 1, SUMIF(INDIRECT(dshbrdrng_reingewinn),"<>", INDEX(INDIRECT(dshbrdrng_reingewinn2),0,MATCH(DATE($B92,MONTH(J$85),1),Erfolgsrechnung_Detail!$O$8:$DF$8,0))), SUMIF(INDIRECT(dshbrdrng_reingewinn),"<>", INDEX(INDIRECT(dshbrdrng_reingewinn2),0,MATCH(DATE($B92,MONTH(J$85),1),Erfolgsrechnung_Detail!$O$8:$DF$8,0)))+I92),"") -> 8212.770114 | K92: =IFERROR(SUMIF(INDIRECT(dshbrdrng_umsatzentwicklung),"="&Einstellungen!$BI$8, INDEX(INDIRECT(dshbrdrng_umsatzentwicklung2),0,MATCH(DATE($B20,MONTH(K$13),1),Erfolgsrechnung_Detail!$O$8:$DF$8,0))) + IF(INDEX(tblUmsatzFltr[Nr],MATCH(filter_umsatz,tblUmsatzFltr[Umsatz Filter],0)) = 1, SUMIF(INDIRECT(dshbrdrng_reingewinn),"<>", INDEX(INDIRECT(dshbrdrng_reingewinn2),0,MATCH(DATE($B92,MONTH(K$85),1),Erfolgsrechnung_Detail!$O$8:$DF$8,0))), SUMIF(INDIRECT(dshbrdrng_reingewinn),"<>", INDEX(INDIRECT(dshbrdrng_reingewinn2),0,MATCH(DATE($B92,MONTH(K$85),1),Erfolgsrechnung_Detail!$O$8:$DF$8,0)))+J92),"") -> 5978.13979 | L92: =IFERROR(SUMIF(INDIRECT(dshbrdrng_umsatzentwicklung),"="&Einstellungen!$BI$8, INDEX(INDIRECT(dshbrdrng_umsatzentwicklung2),0,MATCH(DATE($B20,MONTH(L$13),1),Erfolgsrechnung_Detail!$O$8:$DF$8,0))) + IF(INDEX(tblUmsatzFltr[Nr],MATCH(filter_umsatz,tblUmsatzFltr[Umsatz Filter],0)) = 1, SUMIF(INDIRECT(dshbrdrng_reingewinn),"<>", INDEX(INDIRECT(dshbrdrng_reingewinn2),0,MATCH(DATE($B92,MONTH(L$85),1),Erfolgsrechnung_Detail!$O$8:$DF$8,0))), SUMIF(INDIRECT(dshbrdrng_reingewinn),"<>", INDEX(INDIRECT(dshbrdrng_reingewinn2),0,MATCH(DATE($B92,MONTH(L$85),1),Erfolgsrechnung_Detail!$O$8:$DF$8,0)))+K92),"") -> 9698.027184 | M92: =IFERROR(SUMIF(INDIRECT(dshbrdrng_umsatzentwicklung),"="&Einstellungen!$BI$8, INDEX(INDIRECT(dshbrdrng_umsatzentwicklung2),0,MATCH(DATE($B20,MONTH(M$13),1),Erfolgsrechnung_Detail!$O$8:$DF$8,0))) + IF(INDEX(tblUmsatzFltr[Nr],MATCH(filter_umsatz,tblUmsatzFltr[Umsatz Filter],0)) = 1, SUMIF(INDIRECT(dshbrdrng_reingewinn),"<>", INDEX(INDIRECT(dshbrdrng_reingewinn2),0,MATCH(DATE($B92,MONTH(M$85),1),Erfolgsrechnung_Detail!$O$8:$DF$8,0))), SUMIF(INDIRECT(dshbrdrng_reingewinn),"<>", INDEX(INDIRECT(dshbrdrng_reingewinn2),0,MATCH(DATE($B92,MONTH(M$85),1),Erfolgsrechnung_Detail!$O$8:$DF$8,0)))+L92),"") -> 15318.2089 | N92: =IFERROR(SUMIF(INDIRECT(dshbrdrng_umsatzentwicklung),"="&Einstellungen!$BI$8, INDEX(INDIRECT(dshbrdrng_umsatzentwicklung2),0,MATCH(DATE($B20,MONTH(N$13),1),Erfolgsrechnung_Detail!$O$8:$DF$8,0))) + IF(INDEX(tblUmsatzFltr[Nr],MATCH(filter_umsatz,tblUmsatzFltr[Umsatz Filter],0)) = 1, SUMIF(INDIRECT(dshbrdrng_reingewinn),"<>", INDEX(INDIRECT(dshbrdrng_reingewinn2),0,MATCH(DATE($B92,MONTH(N$85),1),Erfolgsrechnung_Detail!$O$8:$DF$8,0))), SUMIF(INDIRECT(dshbrdrng_reingewinn),"<>", INDEX(INDIRECT(dshbrdrng_reingewinn2),0,MATCH(DATE($B92,MONTH(N$85),1),Erfolgsrechnung_Detail!$O$8:$DF$8,0)))+M92),"") -> 22750.48424 | P92: =IFERROR(IF( INDEX(tblUmsatzFltr[Nr],MATCH(filter_umsatz,tblUmsatzFltr[Umsatz Filter],0))=1, SUM($C92:INDEX($C92:$N92,1,selectedmonat_num)), INDEX($C92:$N92,0,MATCH(monat,tblMonate[Monate],0))),"") -> 14465.3978 | Q92: =IFERROR( IF(INDEX(tblUmsatzFltr[Nr],MATCH($L$3,tblUmsatzFltr[Umsatz Filter],0)) = 1, SUM(Dashboard!$C92:$N92),Dashboard!$N92),"") -> 97953.94044
B93: YTD | C93: =IFERROR(C92/C91-1,0) -> -0.5766926937 | D93: -0.1811137947 | E93: -0.8863930743 | F93: -0.8016857777 | G93: -0.75485655 | H93: -0.7298355078 | I93: -0.8281764242 | J93: -0.4382892713 | K93: -0.760246105 | L93: -0.7373294049 | M93: -0.556498018 | N93: -0.5370460001 | P93: =IFERROR(P92/P91-1,0) -> -0.6859320866 | Q93: =IFERROR(Q92/Q91-1,0) -> -0.6848487117
B95: Budget | C95: =IFERROR((SUMIFS(INDIRECT(budgetrng_umsatzentwicklung),INDIRECT(budgetrng),"<>")- SUMIFS(INDIRECT(budgetrng_bruttogewinn),INDIRECT(budgetrng2),"<>"))- SUMIFS(INDIRECT(budgetrng_reingewinn),INDIRECT(budgetrng3),"<>"),"") -> 1000.08 | D95: =IFERROR((SUMIFS(OFFSET(INDIRECT(budgetrng_umsatzentwicklung),0,1),INDIRECT(budgetrng),"<>")- SUMIFS(OFFSET(INDIRECT(budgetrng_bruttogewinn),0,1),INDIRECT(budgetrng2),"<>"))- SUMIFS(OFFSET(INDIRECT(budgetrng_reingewinn),0,1),INDIRECT(budgetrng3),"<>"),"") -> 1000.08 | E95: =IFERROR((SUMIFS(OFFSET(INDIRECT(budgetrng_umsatzentwicklung),0,2),INDIRECT(budgetrng),"<>")- SUMIFS(OFFSET(INDIRECT(budgetrng_bruttogewinn),0,2),INDIRECT(budgetrng2),"<>"))- SUMIFS(OFFSET(INDIRECT(budgetrng_reingewinn),0,2),INDIRECT(budgetrng3),"<>"),"") -> 1000.08 | F95: =IFERROR((SUMIFS(OFFSET(INDIRECT(budgetrng_umsatzentwicklung),0,3),INDIRECT(budgetrng),"<>")- SUMIFS(OFFSET(INDIRECT(budgetrng_bruttogewinn),0,3),INDIRECT(budgetrng2),"<>"))- SUMIFS(OFFSET(INDIRECT(budgetrng_reingewinn),0,3),INDIRECT(budgetrng3),"<>"),"") -> 1000.08 | G95: =IFERROR((SUMIFS(OFFSET(INDIRECT(budgetrng_umsatzentwicklung),0,4),INDIRECT(budgetrng),"<>")- SUMIFS(OFFSET(INDIRECT(budgetrng_bruttogewinn),0,4),INDIRECT(budgetrng2),"<>"))- SUMIFS(OFFSET(INDIRECT(budgetrng_reingewinn),0,4),INDIRECT(budgetrng3),"<>"),"") -> 1000.08 | H95: =IFERROR((SUMIFS(OFFSET(INDIRECT(budgetrng_umsatzentwicklung),0,5),INDIRECT(budgetrng),"<>")- SUMIFS(OFFSET(INDIRECT(budgetrng_bruttogewinn),0,5),INDIRECT(budgetrng2),"<>"))- SUMIFS(OFFSET(INDIRECT(budgetrng_reingewinn),0,5),INDIRECT(budgetrng3),"<>"),"") -> 1000.08 | I95: =IFERROR((SUMIFS(OFFSET(INDIRECT(budgetrng_umsatzentwicklung),0,6),INDIRECT(budgetrng),"<>")- SUMIFS(OFFSET(INDIRECT(budgetrng_bruttogewinn),0,6),INDIRECT(budgetrng2),"<>"))- SUMIFS(OFFSET(INDIRECT(budgetrng_reingewinn),0,6),INDIRECT(budgetrng3),"<>"),"") -> 1000.08 | J95: =IFERROR((SUMIFS(OFFSET(INDIRECT(budgetrng_umsatzentwicklung),0,7),INDIRECT(budgetrng),"<>")- SUMIFS(OFFSET(INDIRECT(budgetrng_bruttogewinn),0,7),INDIRECT(budgetrng2),"<>"))- SUMIFS(OFFSET(INDIRECT(budgetrng_reingewinn),0,7),INDIRECT(budgetrng3),"<>"),"") -> 1000.08 | K95: =IFERROR((SUMIFS(OFFSET(INDIRECT(budgetrng_umsatzentwicklung),0,8),INDIRECT(budgetrng),"<>")- SUMIFS(OFFSET(INDIRECT(budgetrng_bruttogewinn),0,8),INDIRECT(budgetrng2),"<>"))- SUMIFS(OFFSET(INDIRECT(budgetrng_reingewinn),0,8),INDIRECT(budgetrng3),"<>"),"") -> 1000.08 | L95: =IFERROR((SUMIFS(OFFSET(INDIRECT(budgetrng_umsatzentwicklung),0,9),INDIRECT(budgetrng),"<>")- SUMIFS(OFFSET(INDIRECT(budgetrng_bruttogewinn),0,9),INDIRECT(budgetrng2),"<>"))- SUMIFS(OFFSET(INDIRECT(budgetrng_reingewinn),0,9),INDIRECT(budgetrng3),"<>"),"") -> 1000.08 | M95: =IFERROR((SUMIFS(OFFSET(INDIRECT(budgetrng_umsatzentwicklung),0,10),INDIRECT(budgetrng),"<>")- SUMIFS(OFFSET(INDIRECT(budgetrng_bruttogewinn),0,10),INDIRECT(budgetrng2),"<>"))- SUMIFS(OFFSET(INDIRECT(budgetrng_reingewinn),0,10),INDIRECT(budgetrng3),"<>"),"") -> 1000.08 | N95: =IFERROR((SUMIFS(OFFSET(INDIRECT(budgetrng_umsatzentwicklung),0,11),INDIRECT(budgetrng),"<>")- SUMIFS(OFFSET(INDIRECT(budgetrng_bruttogewinn),0,11),INDIRECT(budgetrng2),"<>"))- SUMIFS(OFFSET(INDIRECT(budgetrng_reingewinn),0,11),INDIRECT(budgetrng3),"<>"),"") -> 1000.08 | P95: =SUM($C95:INDEX($C95:$N95,1,selectedmonat_num)) -> 3000.24 | Q95: =SUM(rngBudgetSalesCost) -> 12000.96
B98: Aktuelles Jahr vs. Vorjahr | P98: =IF(INDEX(tblMonate[Nr],MATCH(monat,tblMonate[Monate],0))<>1, CONCATENATE("YTD ",Einstellungen!$AY$8," - ",monat," ",B83," Zielerreichung"), CONCATENATE("YTD ",Einstellungen!$AY$8," ",B83," Zielerreichungt")) -> YTD Januar - März Reingewinn / Reinverlust Zielerreichung
B100: Budget | C100: =C95 -> 1000.08 | D100: =IF(INDEX(tblUmsatzFltr[Nr],MATCH($L$3,tblUmsatzFltr[Umsatz Filter],0)) = 1,D$95,D$95+C$100) -> 1000.08 | E100: =IF(INDEX(tblUmsatzFltr[Nr],MATCH($L$3,tblUmsatzFltr[Umsatz Filter],0)) = 1,E$95,E$95+D$100) -> 1000.08 | F100: =IF(INDEX(tblUmsatzFltr[Nr],MATCH($L$3,tblUmsatzFltr[Umsatz Filter],0)) = 1,F$95,F$95+E$100) -> 1000.08 | G100: =IF(INDEX(tblUmsatzFltr[Nr],MATCH($L$3,tblUmsatzFltr[Umsatz Filter],0)) = 1,G$95,G$95+F$100) -> 1000.08 | H100: =IF(INDEX(tblUmsatzFltr[Nr],MATCH($L$3,tblUmsatzFltr[Umsatz Filter],0)) = 1,H$95,H$95+G$100) -> 1000.08 | I100: =IF(INDEX(tblUmsatzFltr[Nr],MATCH($L$3,tblUmsatzFltr[Umsatz Filter],0)) = 1,I$95,I$95+H$100) -> 1000.08 | J100: =IF(INDEX(tblUmsatzFltr[Nr],MATCH($L$3,tblUmsatzFltr[Umsatz Filter],0)) = 1,J$95,J$95+I$100) -> 1000.08 | K100: =IF(INDEX(tblUmsatzFltr[Nr],MATCH($L$3,tblUmsatzFltr[Umsatz Filter],0)) = 1,K$95,K$95+J$100) -> 1000.08 | L100: =IF(INDEX(tblUmsatzFltr[Nr],MATCH($L$3,tblUmsatzFltr[Umsatz Filter],0)) = 1,L$95,L$95+K$100) -> 1000.08 | M100: =IF(INDEX(tblUmsatzFltr[Nr],MATCH($L$3,tblUmsatzFltr[Umsatz Filter],0)) = 1,M$95,M$95+L$100) -> 1000.08 | N100: =IF(INDEX(tblUmsatzFltr[Nr],MATCH($L$3,tblUmsatzFltr[Umsatz Filter],0)) = 1,N$95,N$95+M$100) -> 1000.08

Sheet Erfolgsrechnung_Detail
B8: Negativ (-1)/Positiv (1) | D8: Bezeichnung | E8: Gegenkonto | F8: Gegenkonto (Beschrieb) | G8: =DATE(startjahr,1,1) -> 2015-01-01 | H8: =DATE(YEAR(G8)+1,MONTH(G8),DAY(G8)) -> 2016-01-01 | I8: 2017-01-01 | J8: 2018-01-01 | K8: 2019-01-01 | L8: 2020-01-01 | M8: 2021-01-01 | N8: 2022-01-01 | O8: =G8 -> 2015-01-01 | P8: =EOMONTH(O8,0)+1 -> 2015-02-01 | Q8: =EOMONTH(P8,0)+1 -> 2015-03-01 | R8: 2015-04-01 | S8: 2015-05-01 | T8: 2015-06-01 | U8: 2015-07-01 | V8: 2015-08-01 | W8: 2015-09-01 | X8: 2015-10-01 | Y8: 2015-11-01 | Z8: 2015-12-01 | AA8: 2016-01-01 | AB8: 2016-02-01 | AC8: 2016-03-01 | AD8: 2016-04-01 | AE8: 2016-05-01 | AF8: 2016-06-01 | AG8: 2016-07-01 | AH8: 2016-08-01 | AI8: 2016-09-01 | AJ8: 2016-10-01 | AK8: 2016-11-01 | AL8: 2016-12-01 | AM8: 2017-01-01 | AN8: 2017-02-01 | AO8: 2017-03-01 | AP8: 2017-04-01 | AQ8: 2017-05-01 | AR8: 2017-06-01 | AS8: 2017-07-01 | AT8: 2017-08-01 | AU8: 2017-09-01 | AV8: 2017-10-01 | AW8: 2017-11-01 | AX8: 2017-12-01 | AY8: 2018-01-01 | AZ8: 2018-02-01 | BA8: 2018-03-01 | BB8: 2018-04-01 | BC8: 2018-05-01 | BD8: 2018-06-01 | BE8: 2018-07-01 | BF8: 2018-08-01 | BG8: 2018-09-01 | BH8: 2018-10-01 | BI8: 2018-11-01 | BJ8: 2018-12-01 | BK8: 2019-01-01 | BL8: 2019-02-01 | BM8: 2019-03-01 | BN8: 2019-04-01 | BO8: 2019-05-01 | BP8: 2019-06-01 | BQ8: 2019-07-01 | BR8: 2019-08-01 | BS8: 2019-09-01 | BT8: 2019-10-01 | BU8: 2019-11-01 | BV8: 2019-12-01 | BW8: 2020-01-01 | BX8: 2020-02-01 | BY8: 2020-03-01 | BZ8: 2020-04-01 | CA8: 2020-05-01 | CB8: 2020-06-01 | CC8: =EOMONTH(CB8,0)+1 -> 2020-07-01 | CD8: 2020-08-01 | CE8: 2020-09-01 | CF8: 2020-10-01 | CG8: 2020-11-01 | CH8: 2020-12-01 | CI8: 2021-01-01 | CJ8: 2021-02-01 | CK8: 2021-03-01 | CL8: 2021-04-01 | CM8: 2021-05-01 | CN8: 2021-06-01 | CO8: 2021-07-01 | CP8: 2021-08-01 | CQ8: 2021-09-01 | CR8: 2021-10-01 | CS8: 2021-11-01 | CT8: 2021-12-01 | CU8: 2022-01-01 | CV8: 2022-02-01 | CW8: 2022-03-01 | CX8: 2022-04-01 | CY8: 2022-05-01 | CZ8: 2022-06-01 | DA8: 2022-07-01 | DB8: 2022-08-01 | DC8: 2022-09-01 | DD8: 2022-10-01 | DE8: 2022-11-01 | DF8: 2022-12-01
C9: 3 - Betrieblicher Ertrag aus Lieferungen und Leistungen
B10: Ertragskonto | C10: 3000 | D10: Dienstleistungserlöse | G10: =IF(ISNUMBER($C10), SUMIFS(Datenblatt!$M:$M, Datenblatt!$G:$G,$C10, Datenblatt!$R:$R,">="&G$8,Datenblatt!$R:$R,"<="&EOMONTH(G$8,11)) - SUMIFS(Datenblatt!$M:$M, Datenblatt!$E:$E,$C10, Datenblatt!$R:$R,">="&G$8,Datenblatt!$R:$R,"<="&EOMONTH(G$8,11)), "") -> 75424.17653 | H10: =IF(ISNUMBER($C10), SUMIFS(Datenblatt!$M:$M, Datenblatt!$G:$G,$C10, Datenblatt!$R:$R,">="&H$8,Datenblatt!$R:$R,"<="&EOMONTH(H$8,11)) - SUMIFS(Datenblatt!$M:$M, Datenblatt!$E:$E,$C10, Datenblatt!$R:$R,">="&H$8,Datenblatt!$R:$R,"<="&EOMONTH(H$8,11)), "") -> 128635.1796 | I10: =IF(ISNUMBER($C10), SUMIFS(Datenblatt!$M:$M, Datenblatt!$G:$G,$C10, Datenblatt!$R:$R,">="&I$8,Datenblatt!$R:$R,"<="&EOMONTH(I$8,11)) - SUMIFS(Datenblatt!$M:$M, Datenblatt!$E:$E,$C10, Datenblatt!$R:$R,">="&I$8,Datenblatt!$R:$R,"<="&EOMONTH(I$8,11)), "") -> 267242.4092 | J10: =IF(ISNUMBER($C10), SUMIFS(Datenblatt!$M:$M, Datenblatt!$G:$G,$C10, Datenblatt!$R:$R,">="&J$8,Datenblatt!$R:$R,"<="&EOMONTH(J$8,11)) - SUMIFS(Datenblatt!$M:$M, Datenblatt!$E:$E,$C10, Datenblatt!$R:$R,">="&J$8,Datenblatt!$R:$R,"<="&EOMONTH(J$8,11)), "") -> 128635.1796 | K10: =IF(ISNUMBER($C10), SUMIFS(Datenblatt!$M:$M, Datenblatt!$G:$G,$C10, Datenblatt!$R:$R,">="&K$8,Datenblatt!$R:$R,"<="&EOMONTH(K$8,11)) - SUMIFS(Datenblatt!$M:$M, Datenblatt!$E:$E,$C10, Datenblatt!$R:$R,">="&K$8,Datenblatt!$R:$R,"<="&EOMONTH(K$8,11)), "") -> 331276.1222 | L10: =IF(ISNUMBER($C10), SUMIFS(Datenblatt!$M:$M, Datenblatt!$G:$G,$C10, Datenblatt!$R:$R,">="&L$8,Datenblatt!$R:$R,"<="&EOMONTH(L$8,11)) - SUMIFS(Datenblatt!$M:$M, Datenblatt!$E:$E,$C10, Datenblatt!$R:$R,">="&L$8,Datenblatt!$R:$R,"<="&EOMONTH(L$8,11)), "") -> 135027.4181 | M10: =IF(ISNUMBER($C10), SUMIFS(Datenblatt!$M:$M, Datenblatt!$G:$G,$C10, Datenblatt!$R:$R,">="&M$8,Datenblatt!$R:$R,"<="&EOMONTH(M$8,11)) - SUMIFS(Datenblatt!$M:$M, Datenblatt!$E:$E,$C10, Datenblatt!$R:$R,">="&M$8,Datenblatt!$R:$R,"<="&EOMONTH(M$8,11)), "") -> 0 | N10: =IF(ISNUMBER($C10), SUMIFS(Datenblatt!$M:$M, Datenblatt!$G:$G,$C10, Datenblatt!$R:$R,">="&N$8,Datenblatt!$R:$R,"<="&EOMONTH(N$8,11)) - SUMIFS(Datenblatt!$M:$M, Datenblatt!$E:$E,$C10, Datenblatt!$R:$R,">="&N$8,Datenblatt!$R:$R,"<="&EOMONTH(N$8,11)), "") -> 0 | O10: =IF(ISNUMBER($C10), SUMIFS(Datenblatt!$M:$M, Datenblatt!$G:$G,$C10, Datenblatt!$R:$R,">="&O$8,Datenblatt!$R:$R,"<="&EOMONTH(O$8,0)) - SUMIFS(Datenblatt!$M:$M, Datenblatt!$E:$E,$C10, Datenblatt!$R:$R,">="&O$8,Datenblatt!$R:$R,"<="&EOMONTH(O$8,0)), "") -> 5595.570716 | P10: =IF(ISNUMBER($C10), SUMIFS(Datenblatt!$M:$M, Datenblatt!$G:$G,$C10, Datenblatt!$R:$R,">="&P$8,Datenblatt!$R:$R,"<="&EOMONTH(P$8,0)) - SUMIFS(Datenblatt!$M:$M, Datenblatt!$E:$E,$C10, Datenblatt!$R:$R,">="&P$8,Datenblatt!$R:$R,"<="&EOMONTH(P$8,0)), "") -> 8611.434387 | Q10: =IF(ISNUMBER($C10), SUMIFS(Datenblatt!$M:$M, Datenblatt!$G:$G,$C10, Datenblatt!$R:$R,">="&Q$8,Datenblatt!$R:$R,"<="&EOMONTH(Q$8,0)) - SUMIFS(Datenblatt!$M:$M, Datenblatt!$E:$E,$C10, Datenblatt!$R:$R,">="&Q$8,Datenblatt!$R:$R,"<="&EOMONTH(Q$8,0)), "") -> 1063.129535 | R10: =IF(ISNUMBER($C10), SUMIFS(Datenblatt!$M:$M, Datenblatt!$G:$G,$C10, Datenblatt!$R:$R,">="&R$8,Datenblatt!$R:$R,"<="&EOMONTH(R$8,0)) - SUMIFS(Datenblatt!$M:$M, Datenblatt!$E:$E,$C10, Datenblatt!$R:$R,">="&R$8,Datenblatt!$R:$R,"<="&EOMONTH(R$8,0)), "") -> 2836.551343 | S10: =IF(ISNUMBER($C10), SUMIFS(Datenblatt!$M:$M, Datenblatt!$G:$G,$C10, Datenblatt!$R:$R,">="&S$8,Datenblatt!$R:$R,"<="&EOMONTH(S$8,0)) - SUMIFS(Datenblatt!$M:$M, Datenblatt!$E:$E,$C10, Datenblatt!$R:$R,">="&S$8,Datenblatt!$R:$R,"<="&EOMONTH(S$8,0)), "") -> 5312.324344 | T10: =IF(ISNUMBER($C10), SUMIFS(Datenblatt!$M:$M, Datenblatt!$G:$G,$C10, Datenblatt!$R:$R,">="&T$8,Datenblatt!$R:$R,"<="&EOMONTH(T$8,0)) - SUMIFS(Datenblatt!$M:$M, Datenblatt!$E:$E,$C10, Datenblatt!$R:$R,">="&T$8,Datenblatt!$R:$R,"<="&EOMONTH(T$8,0)), "") -> 4967.4699 | U10: =IF(ISNUMBER($C10), SUMIFS(Datenblatt!$M:$M, Datenblatt!$G:$G,$C10, Datenblatt!$R:$R,">="&U$8,Datenblatt!$R:$R,"<="&EOMONTH(U$8,0)) - SUMIFS(Datenblatt!$M:$M, Datenblatt!$E:$E,$C10, Datenblatt!$R:$R,">="&U$8,Datenblatt!$R:$R,"<="&EOMONTH(U$8,0)), "") -> 3040.666865 | V10: =IF(ISNUMBER($C10), SUMIFS(Datenblatt!$M:$M, Datenblatt!$G:$G,$C10, Datenblatt!$R:$R,">="&V$8,Datenblatt!$R:$R,"<="&EOMONTH(V$8,0)) - SUMIFS(Datenblatt!$M:$M, Datenblatt!$E:$E,$C10, Datenblatt!$R:$R,">="&V$8,Datenblatt!$R:$R,"<="&EOMONTH(V$8,0)), "") -> 9720.318596 | W10: =IF(ISNUMBER($C10), SUMIFS(Datenblatt!$M:$M, Datenblatt!$G:$G,$C10, Datenblatt!$R:$R,">="&W$8,Datenblatt!$R:$R,"<="&EOMONTH(W$8,0)) - SUMIFS(Datenblatt!$M:$M, Datenblatt!$E:$E,$C10, Datenblatt!$R:$R,">="&W$8,Datenblatt!$R:$R,"<="&EOMONTH(W$8,0)), "") -> 5121.434339 | X10: =IF(ISNUMBER($C10), SUMIFS(Datenblatt!$M:$M, Datenblatt!$G:$G,$C10, Datenblatt!$R:$R,">="&X$8,Datenblatt!$R:$R,"<="&EOMONTH(X$8,0)) - SUMIFS(Datenblatt!$M:$M, Datenblatt!$E:$E,$C10, Datenblatt!$R:$R,">="&X$8,Datenblatt!$R:$R,"<="&EOMONTH(X$8,0)), "") -> 7076.174103 | Y10: =IF(ISNUMBER($C10), SUMIFS(Datenblatt!$M:$M, Datenblatt!$G:$G,$C10, Datenblatt!$R:$R,">="&Y$8,Datenblatt!$R:$R,"<="&EOMONTH(Y$8,0)) - SUMIFS(Datenblatt!$M:$M, Datenblatt!$E:$E,$C10, Datenblatt!$R:$R,">="&Y$8,Datenblatt!$R:$R,"<="&EOMONTH(Y$8,0)), "") -> 8401.281658 | Z10: =IF(ISNUMBER($C10), SUMIFS(Datenblatt!$M:$M, Datenblatt!$G:$G,$C10, Datenblatt!$R:$R,">="&Z$8,Datenblatt!$R:$R,"<="&EOMONTH(Z$8,0)) - SUMIFS(Datenblatt!$M:$M, Datenblatt!$E:$E,$C10, Datenblatt!$R:$R,">="&Z$8,Datenblatt!$R:$R,"<="&EOMONTH(Z$8,0)), "") -> 13677.82074 | AA10: =IF(ISNUMBER($C10), SUMIFS(Datenblatt!$M:$M, Datenblatt!$G:$G,$C10, Datenblatt!$R:$R,">="&AA$8,Datenblatt!$R:$R,"<="&EOMONTH(AA$8,0)) - SUMIFS(Datenblatt!$M:$M, Datenblatt!$E:$E,$C10, Datenblatt!$R:$R,">="&AA$8,Datenblatt!$R:$R,"<="&EOMONTH(AA$8,0)), "") -> 2903.894187 | AB10: =IF(ISNUMBER($C10), SUMIFS(Datenblatt!$M:$M, Datenblatt!$G:$G,$C10, Datenblatt!$R:$R,">="&AB$8,Datenblatt!$R:$R,"<="&EOMONTH(AB$8,0)) - SUMIFS(Datenblatt!$M:$M, Datenblatt!$E:$E,$C10, Datenblatt!$R:$R,">="&AB$8,Datenblatt!$R:$R,"<="&EOMONTH(AB$8,0)), "") -> 15417.91714 | AC10: =IF(ISNUMBER($C10), SUMIFS(Datenblatt!$M:$M, Datenblatt!$G:$G,$C10, Datenblatt!$R:$R,">="&AC$8,Datenblatt!$R:$R,"<="&EOMONTH(AC$8,0)) - SUMIFS(Datenblatt!$M:$M, Datenblatt!$E:$E,$C10, Datenblatt!$R:$R,">="&AC$8,Datenblatt!$R:$R,"<="&EOMONTH(AC$8,0)), "") -> 6288.146575 | AD10: =IF(ISNUMBER($C10), SUMIFS(Datenblatt!$M:$M, Datenblatt!$G:$G,$C10, Datenblatt!$R:$R,">="&AD$8,Datenblatt!$R:$R,"<="&EOMONTH(AD$8,0)) - SUMIFS(Datenblatt!$M:$M, Datenblatt!$E:$E,$C10, Datenblatt!$R:$R,">="&AD$8,Datenblatt!$R:$R,"<="&EOMONTH(AD$8,0)), "") -> 9320.800049 | AE10: =IF(ISNUMBER($C10), SUMIFS(Datenblatt!$M:$M, Datenblatt!$G:$G,$C10, Datenblatt!$R:$R,">="&AE$8,Datenblatt!$R:$R,"<="&EOMONTH(AE$8,0)) - SUMIFS(Datenblatt!$M:$M, Datenblatt!$E:$E,$C10, Datenblatt!$R:$R,">="&AE$8,Datenblatt!$R:$R,"<="&EOMONTH(AE$8,0)), "") -> 11674.7431 | AF10: =IF(ISNUMBER($C10), SUMIFS(Datenblatt!$M:$M, Datenblatt!$G:$G,$C10, Datenblatt!$R:$R,">="&AF$8,Datenblatt!$R:$R,"<="&EOMONTH(AF$8,0)) - SUMIFS(Datenblatt!$M:$M, Datenblatt!$E:$E,$C10, Datenblatt!$R:$R,">="&AF$8,Datenblatt!$R:$R,"<="&EOMONTH(AF$8,0)), "") -> 15250.69539 | AG10: =IF(ISNUMBER($C10), SUMIFS(Datenblatt!$M:$M, Datenblatt!$G:$G,$C10, Datenblatt!$R:$R,">="&AG$8,Datenblatt!$R:$R,"<="&EOMONTH(AG$8,0)) - SUMIFS(Datenblatt!$M:$M, Datenblatt!$E:$E,$C10, Datenblatt!$R:$R,">="&AG$8,Datenblatt!$R:$R,"<="&EOMONTH(AG$8,0)), "") -> 8290.239264 | AH10: =IF(ISNUMBER($C10), SUMIFS(Datenblatt!$M:$M, Datenblatt!$G:$G,$C10, Datenblatt!$R:$R,">="&AH$8,Datenblatt!$R:$R,"<="&EOMONTH(AH$8,0)) - SUMIFS(Datenblatt!$M:$M, Datenblatt!$E:$E,$C10, Datenblatt!$R:$R,">="&AH$8,Datenblatt!$R:$R,"<="&EOMONTH(AH$8,0)), "") -> 9158.459917 | AI10: =IF(ISNUMBER($C10), SUMIFS(Datenblatt!$M:$M, Datenblatt!$G:$G,$C10, Datenblatt!$R:$R,">="&AI$8,Datenblatt!$R:$R,"<="&EOMONTH(AI$8,0)) - SUMIFS(Datenblatt!$M:$M, Datenblatt!$E:$E,$C10, Datenblatt!$R:$R,">="&AI$8,Datenblatt!$R:$R,"<="&EOMONTH(AI$8,0)), "") -> 13362.7725 | AJ10: =IF(ISNUMBER($C10), SUMIFS(Datenblatt!$M:$M, Datenblatt!$G:$G,$C10, Datenblatt!$R:$R,">="&AJ$8,Datenblatt!$R:$R,"<="&EOMONTH(AJ$8,0)) - SUMIFS(Datenblatt!$M:$M, Datenblatt!$E:$E,$C10, Datenblatt!$R:$R,">="&AJ$8,Datenblatt!$R:$R,"<="&EOMONTH(AJ$8,0)), "") -> 8762.791211 | AK10: =IF(ISNUMBER($C10), SUMIFS(Datenblatt!$M:$M, Datenblatt!$G:$G,$C10, Datenblatt!$R:$R,">="&AK$8,Datenblatt!$R:$R,"<="&EOMONTH(AK$8,0)) - SUMIFS(Datenblatt!$M:$M, Datenblatt!$E:$E,$C10, Datenblatt!$R:$R,">="&AK$8,Datenblatt!$R:$R,"<="&EOMONTH(AK$8,0)), "") -> 12649.65248 | AL10: =IF(ISNUMBER($C10), SUMIFS(Datenblatt!$M:$M, Datenblatt!$G:$G,$C10, Datenblatt!$R:$R,">="&AL$8,Datenblatt!$R:$R,"<="&EOMONTH(AL$8,0)) - SUMIFS(Datenblatt!$M:$M, Datenblatt!$E:$E,$C10, Datenblatt!$R:$R,">="&AL$8,Datenblatt!$R:$R,"<="&EOMONTH(AL$8,0)), "") -> 15555.06776 | AM10: =IF(ISNUMBER($C10), SUMIFS(Datenblatt!$M:$M, Datenblatt!$G:$G,$C10, Datenblatt!$R:$R,">="&AM$8,Datenblatt!$R:$R,"<="&EOMONTH(AM$8,0)) - SUMIFS(Datenblatt!$M:$M, Datenblatt!$E:$E,$C10, Datenblatt!$R:$R,">="&AM$8,Datenblatt!$R:$R,"<="&EOMONTH(AM$8,0)), "") -> 19710.94335 | AN10: =IF(ISNUMBER($C10), SUMIFS(Datenblatt!$M:$M, Datenblatt!$G:$G,$C10, Datenblatt!$R:$R,">="&AN$8,Datenblatt!$R:$R,"<="&EOMONTH(AN$8,0)) - SUMIFS(Datenblatt!$M:$M, Datenblatt!$E:$E,$C10, Datenblatt!$R:$R,">="&AN$8,Datenblatt!$R:$R,"<="&EOMONTH(AN$8,0)), "") -> 17468.03147 | AO10: =IF(ISNUMBER($C10), SUMIFS(Datenblatt!$M:$M, Datenblatt!$G:$G,$C10, Datenblatt!$R:$R,">="&AO$8,Datenblatt!$R:$R,"<="&EOMONTH(AO$8,0)) - SUMIFS(Datenblatt!$M:$M, Datenblatt!$E:$E,$C10, Datenblatt!$R:$R,">="&AO$8,Datenblatt!$R:$R,"<="&EOMONTH(AO$8,0)), "") -> 14805.81371 | AP10: =IF(ISNUMBER($C10), SUMIFS(Datenblatt!$M:$M, Datenblatt!$G:$G,$C10, Datenblatt!$R:$R,">="&AP$8,Datenblatt!$R:$R,"<="&EOMONTH(AP$8,0)) - SUMIFS(Datenblatt!$M:$M, Datenblatt!$E:$E,$C10, Datenblatt!$R:$R,">="&AP$8,Datenblatt!$R:$R,"<="&EOMONTH(AP$8,0)), "") -> 23559.78979 | AQ10: =IF(ISNUMBER($C10), SUMIFS(Datenblatt!$M:$M, Datenblatt!$G:$G,$C10, Datenblatt!$R:$R,">="&AQ$8,Datenblatt!$R:$R,"<="&EOMONTH(AQ$8,0)) - SUMIFS(Datenblatt!$M:$M, Datenblatt!$E:$E,$C10, Datenblatt!$R:$R,">="&AQ$8,Datenblatt!$R:$R,"<="&EOMONTH(AQ$8,0)), "") -> 22747.64457 | AR10: =IF(ISNUMBER($C10), SUMIFS(Datenblatt!$M:$M, Datenblatt!$G:$G,$C10, Datenblatt!$R:$R,">="&AR$8,Datenblatt!$R:$R,"<="&EOMONTH(AR$8,0)) - SUMIFS(Datenblatt!$M:$M, Datenblatt!$E:$E,$C10, Datenblatt!$R:$R,">="&AR$8,Datenblatt!$R:$R,"<="&EOMONTH(AR$8,0)), "") -> 15819.0033 | AS10: =IF(ISNUMBER($C10), SUMIFS(Datenblatt!$M:$M, Datenblatt!$G:$G,$C10, Datenblatt!$R:$R,">="&AS$8,Datenblatt!$R:$R,"<="&EOMONTH(AS$8,0)) - SUMIFS(Datenblatt!$M:$M, Datenblatt!$E:$E,$C10, Datenblatt!$R:$R,">="&AS$8,Datenblatt!$R:$R,"<="&EOMONTH(AS$8,0)), "") -> 25499.89152 | AT10: =IF(ISNUMBER($C10), SUMIFS(Datenblatt!$M:$M, Datenblatt!$G:$G,$C10, Datenblatt!$R:$R,">="&AT$8,Datenblatt!$R:$R,"<="&EOMONTH(AT$8,0)) - SUMIFS(Datenblatt!$M:$M, Datenblatt!$E:$E,$C10, Datenblatt!$R:$R,">="&AT$8,Datenblatt!$R:$R,"<="&EOMONTH(AT$8,0)), "") -> 27194.29533 | AU10: =IF(ISNUMBER($C10), SUMIFS(Datenblatt!$M:$M, Datenblatt!$G:$G,$C10, Datenblatt!$R:$R,">="&AU$8,Datenblatt!$R:$R,"<="&EOMONTH(AU$8,0)) - SUMIFS(Datenblatt!$M:$M, Datenblatt!$E:$E,$C10, Datenblatt!$R:$R,">="&AU$8,Datenblatt!$R:$R,"<="&EOMONTH(AU$8,0)), "") -> 23241.03592 | AV10: =IF(ISNUMBER($C10), SUMIFS(Datenblatt!$M:$M, Datenblatt!$G:$G,$C10, Datenblatt!$R:$R,">="&AV$8,Datenblatt!$R:$R,"<="&EOMONTH(AV$8,0)) - SUMIFS(Datenblatt!$M:$M, Datenblatt!$E:$E,$C10, Datenblatt!$R:$R,">="&AV$8,Datenblatt!$R:$R,"<="&EOMONTH(AV$8,0)), "") -> 33037.75538 | AW10: =IF(ISNUMBER($C10), SUMIFS(Datenblatt!$M:$M, Datenblatt!$G:$G,$C10, Datenblatt!$R:$R,">="&AW$8,Datenblatt!$R:$R,"<="&EOMONTH(AW$8,0)) - SUMIFS(Datenblatt!$M:$M, Datenblatt!$E:$E,$C10, Datenblatt!$R:$R,">="&AW$8,Datenblatt!$R:$R,"<="&EOMONTH(AW$8,0)), "") -> 16802.56332 | AX10: =IF(ISNUMBER($C10), SUMIFS(Datenblatt!$M:$M, Datenblatt!$G:$G,$C10, Datenblatt!$R:$R,">="&AX$8,Datenblatt!$R:$R,"<="&EOMONTH(AX$8,0)) - SUMIFS(Datenblatt!$M:$M, Datenblatt!$E:$E,$C10, Datenblatt!$R:$R,">="&AX$8,Datenblatt!$R:$R,"<="&EOMONTH(AX$8,0)), "") -> 27355.64148 | AY10: =IF(ISNUMBER($C10), SUMIFS(Datenblatt!$M:$M, Datenblatt!$G:$G,$C10, Datenblatt!$R:$R,">="&AY$8,Datenblatt!$R:$R,"<="&EOMONTH(AY$8,0)) - SUMIFS(Datenblatt!$M:$M, Datenblatt!$E:$E,$C10, Datenblatt!$R:$R,">="&AY$8,Datenblatt!$R:$R,"<="&EOMONTH(AY$8,0)), "") -> 2903.894187 | AZ10: =IF(ISNUMBER($C10), SUMIFS(Datenblatt!$M:$M, Datenblatt!$G:$G,$C10, Datenblatt!$R:$R,">="&AZ$8,Datenblatt!$R:$R,"<="&EOMONTH(AZ$8,0)) - SUMIFS(Datenblatt!$M:$M, Datenblatt!$E:$E,$C10, Datenblatt!$R:$R,">="&AZ$8,Datenblatt!$R:$R,"<="&EOMONTH(AZ$8,0)), "") -> 15417.91714 | BA10: =IF(ISNUMBER($C10), SUMIFS(Datenblatt!$M:$M, Datenblatt!$G:$G,$C10, Datenblatt!$R:$R,">="&BA$8,Datenblatt!$R:$R,"<="&EOMONTH(BA$8,0)) - SUMIFS(Datenblatt!$M:$M, Datenblatt!$E:$E,$C10, Datenblatt!$R:$R,">="&BA$8,Datenblatt!$R:$R,"<="&EOMONTH(BA$8,0)), "") -> 6288.146575 | BB10: =IF(ISNUMBER($C10), SUMIFS(Datenblatt!$M:$M, Datenblatt!$G:$G,$C10, Datenblatt!$R:$R,">="&BB$8,Datenblatt!$R:$R,"<="&EOMONTH(BB$8,0)) - SUMIFS(Datenblatt!$M:$M, Datenblatt!$E:$E,$C10, Datenblatt!$R:$R,">="&BB$8,Datenblatt!$R:$R,"<="&EOMONTH(BB$8,0)), "") -> 9320.800049 | BC10: =IF(ISNUMBER($C10), SUMIFS(Datenblatt!$M:$M, Datenblatt!$G:$G,$C10, Datenblatt!$R:$R,">="&BC$8,Datenblatt!$R:$R,"<="&EOMONTH(BC$8,0)) - SUMIFS(Datenblatt!$M:$M, Datenblatt!$E:$E,$C10, Datenblatt!$R:$R,">="&BC$8,Datenblatt!$R:$R,"<="&EOMONTH(BC$8,0)), "") -> 11674.7431 | BD10: =IF(ISNUMBER($C10), SUMIFS(Datenblatt!$M:$M, Datenblatt!$G:$G,$C10, Datenblatt!$R:$R,">="&BD$8,Datenblatt!$R:$R,"<="&EOMONTH(BD$8,0)) - SUMIFS(Datenblatt!$M:$M, Datenblatt!$E:$E,$C10, Datenblatt!$R:$R,">="&BD$8,Datenblatt!$R:$R,"<="&EOMONTH(BD$8,0)), "") -> 15250.69539 | BE10: =IF(ISNUMBER($C10), SUMIFS(Datenblatt!$M:$M, Datenblatt!$G:$G,$C10, Datenblatt!$R:$R,">="&BE$8,Datenblatt!$R:$R,"<="&EOMONTH(BE$8,0)) - SUMIFS(Datenblatt!$M:$M, Datenblatt!$E:$E,$C10, Datenblatt!$R:$R,">="&BE$8,Datenblatt!$R:$R,"<="&EOMONTH(BE$8,0)), "") -> 8290.239264 | BF10: =IF(ISNUMBER($C10), SUMIFS(Datenblatt!$M:$M, Datenblatt!$G:$G,$C10, Datenblatt!$R:$R,">="&BF$8,Datenblatt!$R:$R,"<="&EOMONTH(BF$8,0)) - SUMIFS(Datenblatt!$M:$M, Datenblatt!$E:$E,$C10, Datenblatt!$R:$R,">="&BF$8,Datenblatt!$R:$R,"<="&EOMONTH(BF$8,0)), "") -> 9158.459917 | BG10: =IF(ISNUMBER($C10), SUMIFS(Datenblatt!$M:$M, Datenblatt!$G:$G,$C10, Datenblatt!$R:$R,">="&BG$8,Datenblatt!$R:$R,"<="&EOMONTH(BG$8,0)) - SUMIFS(Datenblatt!$M:$M, Datenblatt!$E:$E,$C10, Datenblatt!$R:$R,">="&BG$8,Datenblatt!$R:$R,"<="&EOMONTH(BG$8,0)), "") -> 13362.7725 | BH10: =IF(ISNUMBER($C10), SUMIFS(Datenblatt!$M:$M, Datenblatt!$G:$G,$C10, Datenblatt!$R:$R,">="&BH$8,Datenblatt!$R:$R,"<="&EOMONTH(BH$8,0)) - SUMIFS(Datenblatt!$M:$M, Datenblatt!$E:$E,$C10, Datenblatt!$R:$R,">="&BH$8,Datenblatt!$R:$R,"<="&EOMONTH(BH$8,0)), "") -> 8762.791211 | BI10: =IF(ISNUMBER($C10), SUMIFS(Datenblatt!$M:$M, Datenblatt!$G:$G,$C10, Datenblatt!$R:$R,">="&BI$8,Datenblatt!$R:$R,"<="&EOMONTH(BI$8,0)) - SUMIFS(Datenblatt!$M:$M, Datenblatt!$E:$E,$C10, Datenblatt!$R:$R,">="&BI$8,Datenblatt!$R:$R,"<="&EOMONTH(BI$8,0)), "") -> 12649.65248 | BJ10: =IF(ISNUMBER($C10), SUMIFS(Datenblatt!$M:$M, Datenblatt!$G:$G,$C10, Datenblatt!$R:$R,">="&BJ$8,Datenblatt!$R:$R,"<="&EOMONTH(BJ$8,0)) - SUMIFS(Datenblatt!$M:$M, Datenblatt!$E:$E,$C10, Datenblatt!$R:$R,">="&BJ$8,Datenblatt!$R:$R,"<="&EOMONTH(BJ$8,0)), "") -> 15555.06776 | BK10: =IF(ISNUMBER($C10), SUMIFS(Datenblatt!$M:$M, Datenblatt!$G:$G,$C10, Datenblatt!$R:$R,">="&BK$8,Datenblatt!$R:$R,"<="&EOMONTH(BK$8,0)) - SUMIFS(Datenblatt!$M:$M, Datenblatt!$E:$E,$C10, Datenblatt!$R:$R,">="&BK$8,Datenblatt!$R:$R,"<="&EOMONTH(BK$8,0)), "") -> 17039.60384 | BL10: =IF(ISNUMBER($C10), SUMIFS(Datenblatt!$M:$M, Datenblatt!$G:$G,$C10, Datenblatt!$R:$R,">="&BL$8,Datenblatt!$R:$R,"<="&EOMONTH(BL$8,0)) - SUMIFS(Datenblatt!$M:$M, Datenblatt!$E:$E,$C10, Datenblatt!$R:$R,">="&BL$8,Datenblatt!$R:$R,"<="&EOMONTH(BL$8,0)), "") -> 7080.298547 | BM10: =IF(ISNUMBER($C10), SUMIFS(Datenblatt!$M:$M, Datenblatt!$G:$G,$C10, Datenblatt!$R:$R,">="&BM$8,Datenblatt!$R:$R,"<="&EOMONTH(BM$8,0)) - SUMIFS(Datenblatt!$M:$M, Datenblatt!$E:$E,$C10, Datenblatt!$R:$R,">="&BM$8,Datenblatt!$R:$R,"<="&EOMONTH(BM$8,0)), "") -> 25359.10928 | BN10: =IF(ISNUMBER($C10), SUMIFS(Datenblatt!$M:$M, Datenblatt!$G:$G,$C10, Datenblatt!$R:$R,">="&BN$8,Datenblatt!$R:$R,"<="&EOMONTH(BN$8,0)) - SUMIFS(Datenblatt!$M:$M, Datenblatt!$E:$E,$C10, Datenblatt!$R:$R,">="&BN$8,Datenblatt!$R:$R,"<="&EOMONTH(BN$8,0)), "") -> 35838.54611 | BO10: =IF(ISNUMBER($C10), SUMIFS(Datenblatt!$M:$M, Datenblatt!$G:$G,$C10, Datenblatt!$R:$R,">="&BO$8,Datenblatt!$R:$R,"<="&EOMONTH(BO$8,0)) - SUMIFS(Datenblatt!$M:$M, Datenblatt!$E:$E,$C10, Datenblatt!$R:$R,">="&BO$8,Datenblatt!$R:$R,"<="&EOMONTH(BO$8,0)), "") -> 24245.99177 | BP10: =IF(ISNUMBER($C10), SUMIFS(Datenblatt!$M:$M, Datenblatt!$G:$G,$C10, Datenblatt!$R:$R,">="&BP$8,Datenblatt!$R:$R,"<="&EOMONTH(BP$8,0)) - SUMIFS(Datenblatt!$M:$M, Datenblatt!$E:$E,$C10, Datenblatt!$R:$R,">="&BP$8,Datenblatt!$R:$R,"<="&EOMONTH(BP$8,0)), "") -> 11768.127 | BQ10: =IF(ISNUMBER($C10), SUMIFS(Datenblatt!$M:$M, Datenblatt!$G:$G,$C10, Datenblatt!$R:$R,">="&BQ$8,Datenblatt!$R:$R,"<="&EOMONTH(BQ$8,0)) - SUMIFS(Datenblatt!$M:$M, Datenblatt!$E:$E,$C10, Datenblatt!$R:$R,">="&BQ$8,Datenblatt!$R:$R,"<="&EOMONTH(BQ$8,0)), "") -> 38858.0777 | BR10: =IF(ISNUMBER($C10), SUMIFS(Datenblatt!$M:$M, Datenblatt!$G:$G,$C10, Datenblatt!$R:$R,">="&BR$8,Datenblatt!$R:$R,"<="&EOMONTH(BR$8,0)) - SUMIFS(Datenblatt!$M:$M, Datenblatt!$E:$E,$C10, Datenblatt!$R:$R,">="&BR$8,Datenblatt!$R:$R,"<="&EOMONTH(BR$8,0)), "") -> 15514.64958 | BS10: =IF(ISNUMBER($C10), SUMIFS(Datenblatt!$M:$M, Datenblatt!$G:$G,$C10, Datenblatt!$R:$R,">="&BS$8,Datenblatt!$R:$R,"<="&EOMONTH(BS$8,0)) - SUMIFS(Datenblatt!$M:$M, Datenblatt!$E:$E,$C10, Datenblatt!$R:$R,">="&BS$8,Datenblatt!$R:$R,"<="&EOMONTH(BS$8,0)), "") -> 25996.33449 | BT10: =IF(ISNUMBER($C10), SUMIFS(Datenblatt!$M:$M, Datenblatt!$G:$G,$C10, Datenblatt!$R:$R,">="&BT$8,Datenblatt!$R:$R,"<="&EOMONTH(BT$8,0)) - SUMIFS(Datenblatt!$M:$M, Datenblatt!$E:$E,$C10, Datenblatt!$R:$R,">="&BT$8,Datenblatt!$R:$R,"<="&EOMONTH(BT$8,0)), "") -> 37770.81436 | BU10: =IF(ISNUMBER($C10), SUMIFS(Datenblatt!$M:$M, Datenblatt!$G:$G,$C10, Datenblatt!$R:$R,">="&BU$8,Datenblatt!$R:$R,"<="&EOMONTH(BU$8,0)) - SUMIFS(Datenblatt!$M:$M, Datenblatt!$E:$E,$C10, Datenblatt!$R:$R,">="&BU$8,Datenblatt!$R:$R,"<="&EOMONTH(BU$8,0)), "") -> 38809.92076 | BV10: =IF(ISNUMBER($C10), SUMIFS(Datenblatt!$M:$M, Datenblatt!$G:$G,$C10, Datenblatt!$R:$R,">="&BV$8,Datenblatt!$R:$R,"<="&EOMONTH(BV$8,0)) - SUMIFS(Datenblatt!$M:$M, Datenblatt!$E:$E,$C10, Datenblatt!$R:$R,">="&BV$8,Datenblatt!$R:$R,"<="&EOMONTH(BV$8,0)), "") -> 52994.64871 | BW10: =IF(ISNUMBER($C10), SUMIFS(Datenblatt!$M:$M, Datenblatt!$G:$G,$C10, Datenblatt!$R:$R,">="&BW$8,Datenblatt!$R:$R,"<="&EOMONTH(BW$8,0)) - SUMIFS(Datenblatt!$M:$M, Datenblatt!$E:$E,$C10, Datenblatt!$R:$R,">="&BW$8,Datenblatt!$R:$R,"<="&EOMONTH(BW$8,0)), "") -> 7884.37734 | BX10: =IF(ISNUMBER($C10), SUMIFS(Datenblatt!$M:$M, Datenblatt!$G:$G,$C10, Datenblatt!$R:$R,">="&BX$8,Datenblatt!$R:$R,"<="&EOMONTH(BX$8,0)) - SUMIFS(Datenblatt!$M:$M, Datenblatt!$E:$E,$C10, Datenblatt!$R:$R,">="&BX$8,Datenblatt!$R:$R,"<="&EOMONTH(BX$8,0)), "") -> 6987.212587 | BY10: =IF(ISNUMBER($C10), SUMIFS(Datenblatt!$M:$M, Datenblatt!$G:$G,$C10, Datenblatt!$R:$R,">="&BY$8,Datenblatt!$R:$R,"<="&EOMONTH(BY$8,0)) - SUMIFS(Datenblatt!$M:$M, Datenblatt!$E:$E,$C10, Datenblatt!$R:$R,">="&BY$8,Datenblatt!$R:$R,"<="&EOMONTH(BY$8,0)), "") -> 5922.325485 | BZ10: =IF(ISNUMBER($C10), SUMIFS(Datenblatt!$M:$M, Datenblatt!$G:$G,$C10, Datenblatt!$R:$R,">="&BZ$8,Datenblatt!$R:$R,"<="&EOMONTH(BZ$8,0)) - SUMIFS(Datenblatt!$M:$M, Datenblatt!$E:$E,$C10, Datenblatt!$R:$R,">="&BZ$8,Datenblatt!$R:$R,"<="&EOMONTH(BZ$8,0)), "") -> 9384.812775 | CA10: =IF(ISNUMBER($C10), SUMIFS(Datenblatt!$M:$M, Datenblatt!$G:$G,$C10, Datenblatt!$R:$R,">="&CA$8,Datenblatt!$R:$R,"<="&EOMONTH(CA$8,0)) - SUMIFS(Datenblatt!$M:$M, Datenblatt!$E:$E,$C10, Datenblatt!$R:$R,">="&CA$8,Datenblatt!$R:$R,"<="&EOMONTH(CA$8,0)), "") -> 9099.057829 | CB10: =IF(ISNUMBER($C10), SUMIFS(Datenblatt!$M:$M, Datenblatt!$G:$G,$C10, Datenblatt!$R:$R,">="&CB$8,Datenblatt!$R:$R,"<="&EOMONTH(CB$8,0)) - SUMIFS(Datenblatt!$M:$M, Datenblatt!$E:$E,$C10, Datenblatt!$R:$R,">="&CB$8,Datenblatt!$R:$R,"<="&EOMONTH(CB$8,0)), "") -> 6327.601321 | CC10: =IF(ISNUMBER($C10), SUMIFS(Datenblatt!$M:$M, Datenblatt!$G:$G,$C10, Datenblatt!$R:$R,">="&CC$8,Datenblatt!$R:$R,"<="&EOMONTH(CC$8,0)) - SUMIFS(Datenblatt!$M:$M, Datenblatt!$E:$E,$C10, Datenblatt!$R:$R,">="&CC$8,Datenblatt!$R:$R,"<="&EOMONTH(CC$8,0)), "") -> 10187.37933 | CD10: =IF(ISNUMBER($C10), SUMIFS(Datenblatt!$M:$M, Datenblatt!$G:$G,$C10, Datenblatt!$R:$R,">="&CD$8,Datenblatt!$R:$R,"<="&EOMONTH(CD$8,0)) - SUMIFS(Datenblatt!$M:$M, Datenblatt!$E:$E,$C10, Datenblatt!$R:$R,">="&CD$8,Datenblatt!$R:$R,"<="&EOMONTH(CD$8,0)), "") -> 10873.31815 | CE10: =IF(ISNUMBER($C10), SUMIFS(Datenblatt!$M:$M, Datenblatt!$G:$G,$C10, Datenblatt!$R:$R,">="&CE$8,Datenblatt!$R:$R,"<="&EOMONTH(CE$8,0)) - SUMIFS(Datenblatt!$M:$M, Datenblatt!$E:$E,$C10, Datenblatt!$R:$R,">="&CE$8,Datenblatt!$R:$R,"<="&EOMONTH(CE$8,0)), "") -> 9296.41437 | CF10: =IF(ISNUMBER($C10), SUMIFS(Datenblatt!$M:$M, Datenblatt!$G:$G,$C10, Datenblatt!$R:$R,">="&CF$8,Datenblatt!$R:$R,"<="&EOMONTH(CF$8,0)) - SUMIFS(Datenblatt!$M:$M, Datenblatt!$E:$E,$C10, Datenblatt!$R:$R,">="&CF$8,Datenblatt!$R:$R,"<="&EOMONTH(CF$8,0)), "") -> 13162.63418 | CG10: =IF(ISNUMBER($C10), SUMIFS(Datenblatt!$M:$M, Datenblatt!$G:$G,$C10, Datenblatt!$R:$R,">="&CG$8,Datenblatt!$R:$R,"<="&EOMONTH(CG$8,0)) - SUMIFS(Datenblatt!$M:$M, Datenblatt!$E:$E,$C10, Datenblatt!$R:$R,">="&CG$8,Datenblatt!$R:$R,"<="&EOMONTH(CG$8,0)), "") -> 19404.96038 | CH10: =IF(ISNUMBER($C10), SUMIFS(Datenblatt!$M:$M, Datenblatt!$G:$G,$C10, Datenblatt!$R:$R,">="&CH$8,Datenblatt!$R:$R,"<="&EOMONTH(CH$8,0)) - SUMIFS(Datenblatt!$M:$M, Datenblatt!$E:$E,$C10, Datenblatt!$R:$R,">="&CH$8,Datenblatt!$R:$R,"<="&EOMONTH(CH$8,0)), "") -> 26497.32435 | CI10: =IF(ISNUMBER($C10), SUMIFS(Datenblatt!$M:$M, Datenblatt!$G:$G,$C10, Datenblatt!$R:$R,">="&CI$8,Datenblatt!$R:$R,"<="&EOMONTH(CI$8,0)) - SUMIFS(Datenblatt!$M:$M, Datenblatt!$E:$E,$C10, Datenblatt!$R:$R,">="&CI$8,Datenblatt!$R:$R,"<="&EOMONTH(CI$8,0)), "") -> 0 | CJ10: =IF(ISNUMBER($C10), SUMIFS(Datenblatt!$M:$M, Datenblatt!$G:$G,$C10, Datenblatt!$R:$R,">="&CJ$8,Datenblatt!$R:$R,"<="&EOMONTH(CJ$8,0)) - SUMIFS(Datenblatt!$M:$M, Datenblatt!$E:$E,$C10, Datenblatt!$R:$R,">="&CJ$8,Datenblatt!$R:$R,"<="&EOMONTH(CJ$8,0)), "") -> 0 | CK10: =IF(ISNUMBER($C10), SUMIFS(Datenblatt!$M:$M, Datenblatt!$G:$G,$C10, Datenblatt!$R:$R,">="&CK$8,Datenblatt!$R:$R,"<="&EOMONTH(CK$8,0)) - SUMIFS(Datenblatt!$M:$M, Datenblatt!$E:$E,$C10, Datenblatt!$R:$R,">="&CK$8,Datenblatt!$R:$R,"<="&EOMONTH(CK$8,0)), "") -> 0 | CL10: =IF(ISNUMBER($C10), SUMIFS(Datenblatt!$M:$M, Datenblatt!$G:$G,$C10, Datenblatt!$R:$R,">="&CL$8,Datenblatt!$R:$R,"<="&EOMONTH(CL$8,0)) - SUMIFS(Datenblatt!$M:$M, Datenblatt!$E:$E,$C10, Datenblatt!$R:$R,">="&CL$8,Datenblatt!$R:$R,"<="&EOMONTH(CL$8,0)), "") -> 0 | CM10: =IF(ISNUMBER($C10), SUMIFS(Datenblatt!$M:$M, Datenblatt!$G:$G,$C10, Datenblatt!$R:$R,">="&CM$8,Datenblatt!$R:$R,"<="&EOMONTH(CM$8,0)) - SUMIFS(Datenblatt!$M:$M, Datenblatt!$E:$E,$C10, Datenblatt!$R:$R,">="&CM$8,Datenblatt!$R:$R,"<="&EOMONTH(CM$8,0)), "") -> 0 | CN10: =IF(ISNUMBER($C10), SUMIFS(Datenblatt!$M:$M, Datenblatt!$G:$G,$C10, Datenblatt!$R:$R,">="&CN$8,Datenblatt!$R:$R,"<="&EOMONTH(CN$8,0)) - SUMIFS(Datenblatt!$M:$M, Datenblatt!$E:$E,$C10, Datenblatt!$R:$R,">="&CN$8,Datenblatt!$R:$R,"<="&EOMONTH(CN$8,0)), "") -> 0 | CO10: =IF(ISNUMBER($C10), SUMIFS(Datenblatt!$M:$M, Datenblatt!$G:$G,$C10, Datenblatt!$R:$R,">="&CO$8,Datenblatt!$R:$R,"<="&EOMONTH(CO$8,0)) - SUMIFS(Datenblatt!$M:$M, Datenblatt!$E:$E,$C10, Datenblatt!$R:$R,">="&CO$8,Datenblatt!$R:$R,"<="&EOMONTH(CO$8,0)), "") -> 0 | CP10: =IF(ISNUMBER($C10), SUMIFS(Datenblatt!$M:$M, Datenblatt!$G:$G,$C10, Datenblatt!$R:$R,">="&CP$8,Datenblatt!$R:$R,"<="&EOMONTH(CP$8,0)) - SUMIFS(Datenblatt!$M:$M, Datenblatt!$E:$E,$C10, Datenblatt!$R:$R,">="&CP$8,Datenblatt!$R:$R,"<="&EOMONTH(CP$8,0)), "") -> 0 | CQ10: =IF(ISNUMBER($C10), SUMIFS(Datenblatt!$M:$M, Datenblatt!$G:$G,$C10, Datenblatt!$R:$R,">="&CQ$8,Datenblatt!$R:$R,"<="&EOMONTH(CQ$8,0)) - SUMIFS(Datenblatt!$M:$M, Datenblatt!$E:$E,$C10, Datenblatt!$R:$R,">="&CQ$8,Datenblatt!$R:$R,"<="&EOMONTH(CQ$8,0)), "") -> 0 | CR10: =IF(ISNUMBER($C10), SUMIFS(Datenblatt!$M:$M, Datenblatt!$G:$G,$C10, Datenblatt!$R:$R,">="&CR$8,Datenblatt!$R:$R,"<="&EOMONTH(CR$8,0)) - SUMIFS(Datenblatt!$M:$M, Datenblatt!$E:$E,$C10, Datenblatt!$R:$R,">="&CR$8,Datenblatt!$R:$R,"<="&EOMONTH(CR$8,0)), "") -> 0 | CS10: =IF(ISNUMBER($C10), SUMIFS(Datenblatt!$M:$M, Datenblatt!$G:$G,$C10, Datenblatt!$R:$R,">="&CS$8,Datenblatt!$R:$R,"<="&EOMONTH(CS$8,0)) - SUMIFS(Datenblatt!$M:$M, Datenblatt!$E:$E,$C10, Datenblatt!$R:$R,">="&CS$8,Datenblatt!$R:$R,"<="&EOMONTH(CS$8,0)), "") -> 0 | CT10: =IF(ISNUMBER($C10), SUMIFS(Datenblatt!$M:$M, Datenblatt!$G:$G,$C10, Datenblatt!$R:$R,">="&CT$8,Datenblatt!$R:$R,"<="&EOMONTH(CT$8,0)) - SUMIFS(Datenblatt!$M:$M, Datenblatt!$E:$E,$C10, Datenblatt!$R:$R,">="&CT$8,Datenblatt!$R:$R,"<="&EOMONTH(CT$8,0)), "") -> 0 | CU10: =IF(ISNUMBER($C10), SUMIFS(Datenblatt!$M:$M, Datenblatt!$G:$G,$C10, Datenblatt!$R:$R,">="&CU$8,Datenblatt!$R:$R,"<="&EOMONTH(CU$8,0)) - SUMIFS(Datenblatt!$M:$M, Datenblatt!$E:$E,$C10, Datenblatt!$R:$R,">="&CU$8,Datenblatt!$R:$R,"<="&EOMONTH(CU$8,0)), "") -> 0 | CV10: =IF(ISNUMBER($C10), SUMIFS(Datenblatt!$M:$M, Datenblatt!$G:$G,$C10, Datenblatt!$R:$R,">="&CV$8,Datenblatt!$R:$R,"<="&EOMONTH(CV$8,0)) - SUMIFS(Datenblatt!$M:$M, Datenblatt!$E:$E,$C10, Datenblatt!$R:$R,">="&CV$8,Datenblatt!$R:$R,"<="&EOMONTH(CV$8,0)), "") -> 0 | CW10: =IF(ISNUMBER($C10), SUMIFS(Datenblatt!$M:$M, Datenblatt!$G:$G,$C10, Datenblatt!$R:$R,">="&CW$8,Datenblatt!$R:$R,"<="&EOMONTH(CW$8,0)) - SUMIFS(Datenblatt!$M:$M, Datenblatt!$E:$E,$C10, Datenblatt!$R:$R,">="&CW$8,Datenblatt!$R:$R,"<="&EOMONTH(CW$8,0)), "") -> 0 | CX10: =IF(ISNUMBER($C10), SUMIFS(Datenblatt!$M:$M, Datenblatt!$G:$G,$C10, Datenblatt!$R:$R,">="&CX$8,Datenblatt!$R:$R,"<="&EOMONTH(CX$8,0)) - SUMIFS(Datenblatt!$M:$M, Datenblatt!$E:$E,$C10, Datenblatt!$R:$R,">="&CX$8,Datenblatt!$R:$R,"<="&EOMONTH(CX$8,0)), "") -> 0 | CY10: =IF(ISNUMBER($C10), SUMIFS(Datenblatt!$M:$M, Datenblatt!$G:$G,$C10, Datenblatt!$R:$R,">="&CY$8,Datenblatt!$R:$R,"<="&EOMONTH(CY$8,0)) - SUMIFS(Datenblatt!$M:$M, Datenblatt!$E:$E,$C10, Datenblatt!$R:$R,">="&CY$8,Datenblatt!$R:$R,"<="&EOMONTH(CY$8,0)), "") -> 0 | CZ10: =IF(ISNUMBER($C10), SUMIFS(Datenblatt!$M:$M, Datenblatt!$G:$G,$C10, Datenblatt!$R:$R,">="&CZ$8,Datenblatt!$R:$R,"<="&EOMONTH(CZ$8,0)) - SUMIFS(Datenblatt!$M:$M, Datenblatt!$E:$E,$C10, Datenblatt!$R:$R,">="&CZ$8,Datenblatt!$R:$R,"<="&EOMONTH(CZ$8,0)), "") -> 0 | DA10: =IF(ISNUMBER($C10), SUMIFS(Datenblatt!$M:$M, Datenblatt!$G:$G,$C10, Datenblatt!$R:$R,">="&DA$8,Datenblatt!$R:$R,"<="&EOMONTH(DA$8,0)) - SUMIFS(Datenblatt!$M:$M, Datenblatt!$E:$E,$C10, Datenblatt!$R:$R,">="&DA$8,Datenblatt!$R:$R,"<="&EOMONTH(DA$8,0)), "") -> 0 | DB10: =IF(ISNUMBER($C10), SUMIFS(Datenblatt!$M:$M, Datenblatt!$G:$G,$C10, Datenblatt!$R:$R,">="&DB$8,Datenblatt!$R:$R,"<="&EOMONTH(DB$8,0)) - SUMIFS(Datenblatt!$M:$M, Datenblatt!$E:$E,$C10, Datenblatt!$R:$R,">="&DB$8,Datenblatt!$R:$R,"<="&EOMONTH(DB$8,0)), "") -> 0 | DC10: =IF(ISNUMBER($C10), SUMIFS(Datenblatt!$M:$M, Datenblatt!$G:$G,$C10, Datenblatt!$R:$R,">="&DC$8,Datenblatt!$R:$R,"<="&EOMONTH(DC$8,0)) - SUMIFS(Datenblatt!$M:$M, Datenblatt!$E:$E,$C10, Datenblatt!$R:$R,">="&DC$8,Datenblatt!$R:$R,"<="&EOMONTH(DC$8,0)), "") -> 0 | DD10: =IF(ISNUMBER($C10), SUMIFS(Datenblatt!$M:$M, Datenblatt!$G:$G,$C10, Datenblatt!$R:$R,">="&DD$8,Datenblatt!$R:$R,"<="&EOMONTH(DD$8,0)) - SUMIFS(Datenblatt!$M:$M, Datenblatt!$E:$E,$C10, Datenblatt!$R:$R,">="&DD$8,Datenblatt!$R:$R,"<="&EOMONTH(DD$8,0)), "") -> 0 | DE10: =IF(ISNUMBER($C10), SUMIFS(Datenblatt!$M:$M, Datenblatt!$G:$G,$C10, Datenblatt!$R:$R,">="&DE$8,Datenblatt!$R:$R,"<="&EOMONTH(DE$8,0)) - SUMIFS(Datenblatt!$M:$M, Datenblatt!$E:$E,$C10, Datenblatt!$R:$R,">="&DE$8,Datenblatt!$R:$R,"<="&EOMONTH(DE$8,0)), "") -> 0 | DF10: =IF(ISNUMBER($C10), SUMIFS(Datenblatt!$M:$M, Datenblatt!$G:$G,$C10, Datenblatt!$R:$R,">="&DF$8,Datenblatt!$R:$R,"<="&EOMONTH(DF$8,0)) - SUMIFS(Datenblatt!$M:$M, Datenblatt!$E:$E,$C10, Datenblatt!$R:$R,">="&DF$8,Datenblatt!$R:$R,"<="&EOMONTH(DF$8,0)), "") -> 0
B11: Ertragskonto | C11: 3100 | D11: Ertrag aus Supportverträgen | G11: =IF(ISNUMBER($C11), SUMIFS(Datenblatt!$M:$M, Datenblatt!$G:$G,$C11, Datenblatt!$R:$R,">="&G$8,Datenblatt!$R:$R,"<="&EOMONTH(G$8,11)) - SUMIFS(Datenblatt!$M:$M, Datenblatt!$E:$E,$C11, Datenblatt!$R:$R,">="&G$8,Datenblatt!$R:$R,"<="&EOMONTH(G$8,11)), "") -> 0 | H11: =IF(ISNUMBER($C11), SUMIFS(Datenblatt!$M:$M, Datenblatt!$G:$G,$C11, Datenblatt!$R:$R,">="&H$8,Datenblatt!$R:$R,"<="&EOMONTH(H$8,11)) - SUMIFS(Datenblatt!$M:$M, Datenblatt!$E:$E,$C11, Datenblatt!$R:$R,">="&H$8,Datenblatt!$R:$R,"<="&EOMONTH(H$8,11)), "") -> 0 | I11: =IF(ISNUMBER($C11), SUMIFS(Datenblatt!$M:$M, Datenblatt!$G:$G,$C11, Datenblatt!$R:$R,">="&I$8,Datenblatt!$R:$R,"<="&EOMONTH(I$8,11)) - SUMIFS(Datenblatt!$M:$M, Datenblatt!$E:$E,$C11, Datenblatt!$R:$R,">="&I$8,Datenblatt!$R:$R,"<="&EOMONTH(I$8,11)), "") -> 130.6304833 | J11: =IF(ISNUMBER($C11), SUMIFS(Datenblatt!$M:$M, Datenblatt!$G:$G,$C11, Datenblatt!$R:$R,">="&J$8,Datenblatt!$R:$R,"<="&EOMONTH(J$8,11)) - SUMIFS(Datenblatt!$M:$M, Datenblatt!$E:$E,$C11, Datenblatt!$R:$R,">="&J$8,Datenblatt!$R:$R,"<="&EOMONTH(J$8,11)), "") -> 0 | K11: =IF(ISNUMBER($C11), SUMIFS(Datenblatt!$M:$M, Datenblatt!$G:$G,$C11, Datenblatt!$R:$R,">="&K$8,Datenblatt!$R:$R,"<="&EOMONTH(K$8,11)) - SUMIFS(Datenblatt!$M:$M, Datenblatt!$E:$E,$C11, Datenblatt!$R:$R,">="&K$8,Datenblatt!$R:$R,"<="&EOMONTH(K$8,11)), "") -> 130.6304833 | L11: =IF(ISNUMBER($C11), SUMIFS(Datenblatt!$M:$M, Datenblatt!$G:$G,$C11, Datenblatt!$R:$R,">="&L$8,Datenblatt!$R:$R,"<="&EOMONTH(L$8,11)) - SUMIFS(Datenblatt!$M:$M, Datenblatt!$E:$E,$C11, Datenblatt!$R:$R,">="&L$8,Datenblatt!$R:$R,"<="&EOMONTH(L$8,11)), "") -> 130.6304833 | M11: =IF(ISNUMBER($C11), SUMIFS(Datenblatt!$M:$M, Datenblatt!$G:$G,$C11, Datenblatt!$R:$R,">="&M$8,Datenblatt!$R:$R,"<="&EOMONTH(M$8,11)) - SUMIFS(Datenblatt!$M:$M, Datenblatt!$E:$E,$C11, Datenblatt!$R:$R,">="&M$8,Datenblatt!$R:$R,"<="&EOMONTH(M$8,11)), "") -> 0 | N11: =IF(ISNUMBER($C11), SUMIFS(Datenblatt!$M:$M, Datenblatt!$G:$G,$C11, Datenblatt!$R:$R,">="&N$8,Datenblatt!$R:$R,"<="&EOMONTH(N$8,11)) - SUMIFS(Datenblatt!$M:$M, Datenblatt!$E:$E,$C11, Datenblatt!$R:$R,">="&N$8,Datenblatt!$R:$R,"<="&EOMONTH(N$8,11)), "") -> 0 | O11: =IF(ISNUMBER($C11), SUMIFS(Datenblatt!$M:$M, Datenblatt!$G:$G,$C11, Datenblatt!$R:$R,">="&O$8,Datenblatt!$R:$R,"<="&EOMONTH(O$8,0)) - SUMIFS(Datenblatt!$M:$M, Datenblatt!$E:$E,$C11, Datenblatt!$R:$R,">="&O$8,Datenblatt!$R:$R,"<="&EOMONTH(O$8,0)), "") -> 0 | P11: =IF(ISNUMBER($C11), SUMIFS(Datenblatt!$M:$M, Datenblatt!$G:$G,$C11, Datenblatt!$R:$R,">="&P$8,Datenblatt!$R:$R,"<="&EOMONTH(P$8,0)) - SUMIFS(Datenblatt!$M:$M, Datenblatt!$E:$E,$C11, Datenblatt!$R:$R,">="&P$8,Datenblatt!$R:$R,"<="&EOMONTH(P$8,0)), "") -> 0 | Q11: =IF(ISNUMBER($C11), SUMIFS(Datenblatt!$M:$M, Datenblatt!$G:$G,$C11, Datenblatt!$R:$R,">="&Q$8,Datenblatt!$R:$R,"<="&EOMONTH(Q$8,0)) - SUMIFS(Datenblatt!$M:$M, Datenblatt!$E:$E,$C11, Datenblatt!$R:$R,">="&Q$8,Datenblatt!$R:$R,"<="&EOMONTH(Q$8,0)), "") -> 0 | R11: =IF(ISNUMBER($C11), SUMIFS(Datenblatt!$M:$M, Datenblatt!$G:$G,$C11, Datenblatt!$R:$R,">="&R$8,Datenblatt!$R:$R,"<="&EOMONTH(R$8,0)) - SUMIFS(Datenblatt!$M:$M, Datenblatt!$E:$E,$C11, Datenblatt!$R:$R,">="&R$8,Datenblatt!$R:$R,"<="&EOMONTH(R$8,0)), "") -> 0 | S11: =IF(ISNUMBER($C11), SUMIFS(Datenblatt!$M:$M, Datenblatt!$G:$G,$C11, Datenblatt!$R:$R,">="&S$8,Datenblatt!$R:$R,"<="&EOMONTH(S$8,0)) - SUMIFS(Datenblatt!$M:$M, Datenblatt!$E:$E,$C11, Datenblatt!$R:$R,">="&S$8,Datenblatt!$R:$R,"<="&EOMONTH(S$8,0)), "") -> 0 | T11: =IF(ISNUMBER($C11), SUMIFS(Datenblatt!$M:$M, Datenblatt!$G:$G,$C11, Datenblatt!$R:$R,">="&T$8,Datenblatt!$R:$R,"<="&EOMONTH(T$8,0)) - SUMIFS(Datenblatt!$M:$M, Datenblatt!$E:$E,$C11, Datenblatt!$R:$R,">="&T$8,Datenblatt!$R:$R,"<="&EOMONTH(T$8,0)), "") -> 0 | U11: =IF(ISNUMBER($C11), SUMIFS(Datenblatt!$M:$M, Datenblatt!$G:$G,$C11, Datenblatt!$R:$R,">="&U$8,Datenblatt!$R:$R,"<="&EOMONTH(U$8,0)) - SUMIFS(Datenblatt!$M:$M, Datenblatt!$E:$E,$C11, Datenblatt!$R:$R,">="&U$8,Datenblatt!$R:$R,"<="&EOMONTH(U$8,0)), "") -> 0 | V11: =IF(ISNUMBER($C11), SUMIFS(Datenblatt!$M:$M, Datenblatt!$G:$G,$C11, Datenblatt!$R:$R,">="&V$8,Datenblatt!$R:$R,"<="&EOMONTH(V$8,0)) - SUMIFS(Datenblatt!$M:$M, Datenblatt!$E:$E,$C11, Datenblatt!$R:$R,">="&V$8,Datenblatt!$R:$R,"<="&EOMONTH(V$8,0)), "") -> 0 | W11: =IF(ISNUMBER($C11), SUMIFS(Datenblatt!$M:$M, Datenblatt!$G:$G,$C11, Datenblatt!$R:$R,">="&W$8,Datenblatt!$R:$R,"<="&EOMONTH(W$8,0)) - SUMIFS(Datenblatt!$M:$M, Datenblatt!$E:$E,$C11, Datenblatt!$R:$R,">="&W$8,Datenblatt!$R:$R,"<="&EOMONTH(W$8,0)), "") -> 0 | X11: =IF(ISNUMBER($C11), SUMIFS(Datenblatt!$M:$M, Datenblatt!$G:$G,$C11, Datenblatt!$R:$R,">="&X$8,Datenblatt!$R:$R,"<="&EOMONTH(X$8,0)) - SUMIFS(Datenblatt!$M:$M, Datenblatt!$E:$E,$C11, Datenblatt!$R:$R,">="&X$8,Datenblatt!$R:$R,"<="&EOMONTH(X$8,0)), "") -> 0 | Y11: =IF(ISNUMBER($C11), SUMIFS(Datenblatt!$M:$M, Datenblatt!$G:$G,$C11, Datenblatt!$R:$R,">="&Y$8,Datenblatt!$R:$R,"<="&EOMONTH(Y$8,0)) - SUMIFS(Datenblatt!$M:$M, Datenblatt!$E:$E,$C11, Datenblatt!$R:$R,">="&Y$8,Datenblatt!$R:$R,"<="&EOMONTH(Y$8,0)), "") -> 0 | Z11: =IF(ISNUMBER($C11), SUMIFS(Datenblatt!$M:$M, Datenblatt!$G:$G,$C11, Datenblatt!$R:$R,">="&Z$8,Datenblatt!$R:$R,"<="&EOMONTH(Z$8,0)) - SUMIFS(Datenblatt!$M:$M, Datenblatt!$E:$E,$C11, Datenblatt!$R:$R,">="&Z$8,Datenblatt!$R:$R,"<="&EOMONTH(Z$8,0)), "") -> 0 | AA11: =IF(ISNUMBER($C11), SUMIFS(Datenblatt!$M:$M, Datenblatt!$G:$G,$C11, Datenblatt!$R:$R,">="&AA$8,Datenblatt!$R:$R,"<="&EOMONTH(AA$8,0)) - SUMIFS(Datenblatt!$M:$M, Datenblatt!$E:$E,$C11, Datenblatt!$R:$R,">="&AA$8,Datenblatt!$R:$R,"<="&EOMONTH(AA$8,0)), "") -> 0 | AB11: =IF(ISNUMBER($C11), SUMIFS(Datenblatt!$M:$M, Datenblatt!$G:$G,$C11, Datenblatt!$R:$R,">="&AB$8,Datenblatt!$R:$R,"<="&EOMONTH(AB$8,0)) - SUMIFS(Datenblatt!$M:$M, Datenblatt!$E:$E,$C11, Datenblatt!$R:$R,">="&AB$8,Datenblatt!$R:$R,"<="&EOMONTH(AB$8,0)), "") -> 0 | AC11: =IF(ISNUMBER($C11), SUMIFS(Datenblatt!$M:$M, Datenblatt!$G:$G,$C11, Datenblatt!$R:$R,">="&AC$8,Datenblatt!$R:$R,"<="&EOMONTH(AC$8,0)) - SUMIFS(Datenblatt!$M:$M, Datenblatt!$E:$E,$C11, Datenblatt!$R:$R,">="&AC$8,Datenblatt!$R:$R,"<="&EOMONTH(AC$8,0)), "") -> 0 | AD11: =IF(ISNUMBER($C11), SUMIFS(Datenblatt!$M:$M, Datenblatt!$G:$G,$C11, Datenblatt!$R:$R,">="&AD$8,Datenblatt!$R:$R,"<="&EOMONTH(AD$8,0)) - SUMIFS(Datenblatt!$M:$M, Datenblatt!$E:$E,$C11, Datenblatt!$R:$R,">="&AD$8,Datenblatt!$R:$R,"<="&EOMONTH(AD$8,0)), "") -> 0 | AE11: =IF(ISNUMBER($C11), SUMIFS(Datenblatt!$M:$M, Datenblatt!$G:$G,$C11, Datenblatt!$R:$R,">="&AE$8,Datenblatt!$R:$R,"<="&EOMONTH(AE$8,0)) - SUMIFS(Datenblatt!$M:$M, Datenblatt!$E:$E,$C11, Datenblatt!$R:$R,">="&AE$8,Datenblatt!$R:$R,"<="&EOMONTH(AE$8,0)), "") -> 0 | AF11: =IF(ISNUMBER($C11), SUMIFS(Datenblatt!$M:$M, Datenblatt!$G:$G,$C11, Datenblatt!$R:$R,">="&AF$8,Datenblatt!$R:$R,"<="&EOMONTH(AF$8,0)) - SUMIFS(Datenblatt!$M:$M, Datenblatt!$E:$E,$C11, Datenblatt!$R:$R,">="&AF$8,Datenblatt!$R:$R,"<="&EOMONTH(AF$8,0)), "") -> 0 | AG11: =IF(ISNUMBER($C11), SUMIFS(Datenblatt!$M:$M, Datenblatt!$G:$G,$C11, Datenblatt!$R:$R,">="&AG$8,Datenblatt!$R:$R,"<="&EOMONTH(AG$8,0)) - SUMIFS(Datenblatt!$M:$M, Datenblatt!$E:$E,$C11, Datenblatt!$R:$R,">="&AG$8,Datenblatt!$R:$R,"<="&EOMONTH(AG$8,0)), "") -> 0 | AH11: =IF(ISNUMBER($C11), SUMIFS(Datenblatt!$M:$M, Datenblatt!$G:$G,$C11, Datenblatt!$R:$R,">="&AH$8,Datenblatt!$R:$R,"<="&EOMONTH(AH$8,0)) - SUMIFS(Datenblatt!$M:$M, Datenblatt!$E:$E,$C11, Datenblatt!$R:$R,">="&AH$8,Datenblatt!$R:$R,"<="&EOMONTH(AH$8,0)), "") -> 0 | AI11: =IF(ISNUMBER($C11), SUMIFS(Datenblatt!$M:$M, Datenblatt!$G:$G,$C11, Datenblatt!$R:$R,">="&AI$8,Datenblatt!$R:$R,"<="&EOMONTH(AI$8,0)) - SUMIFS(Datenblatt!$M:$M, Datenblatt!$E:$E,$C11, Datenblatt!$R:$R,">="&AI$8,Datenblatt!$R:$R,"<="&EOMONTH(AI$8,0)), "") -> 0 | AJ11: =IF(ISNUMBER($C11), SUMIFS(Datenblatt!$M:$M, Datenblatt!$G:$G,$C11, Datenblatt!$R:$R,">="&AJ$8,Datenblatt!$R:$R,"<="&EOMONTH(AJ$8,0)) - SUMIFS(Datenblatt!$M:$M, Datenblatt!$E:$E,$C11, Datenblatt!$R:$R,">="&AJ$8,Datenblatt!$R:$R,"<="&EOMONTH(AJ$8,0)), "") -> 0 | AK11: =IF(ISNUMBER($C11), SUMIFS(Datenblatt!$M:$M, Datenblatt!$G:$G,$C11, Datenblatt!$R:$R,">="&AK$8,Datenblatt!$R:$R,"<="&EOMONTH(AK$8,0)) - SUMIFS(Datenblatt!$M:$M, Datenblatt!$E:$E,$C11, Datenblatt!$R:$R,">="&AK$8,Datenblatt!$R:$R,"<="&EOMONTH(AK$8,0)), "") -> 0 | AL11: =IF(ISNUMBER($C11), SUMIFS(Datenblatt!$M:$M, Datenblatt!$G:$G,$C11, Datenblatt!$R:$R,">="&AL$8,Datenblatt!$R:$R,"<="&EOMONTH(AL$8,0)) - SUMIFS(Datenblatt!$M:$M, Datenblatt!$E:$E,$C11, Datenblatt!$R:$R,">="&AL$8,Datenblatt!$R:$R,"<="&EOMONTH(AL$8,0)), "") -> 0 | AM11: =IF(ISNUMBER($C11), SUMIFS(Datenblatt!$M:$M, Datenblatt!$G:$G,$C11, Datenblatt!$R:$R,">="&AM$8,Datenblatt!$R:$R,"<="&EOMONTH(AM$8,0)) - SUMIFS(Datenblatt!$M:$M, Datenblatt!$E:$E,$C11, Datenblatt!$R:$R,">="&AM$8,Datenblatt!$R:$R,"<="&EOMONTH(AM$8,0)), "") -> 0 | AN11: =IF(ISNUMBER($C11), SUMIFS(Datenblatt!$M:$M, Datenblatt!$G:$G,$C11, Datenblatt!$R:$R,">="&AN$8,Datenblatt!$R:$R,"<="&EOMONTH(AN$8,0)) - SUMIFS(Datenblatt!$M:$M, Datenblatt!$E:$E,$C11, Datenblatt!$R:$R,">="&AN$8,Datenblatt!$R:$R,"<="&EOMONTH(AN$8,0)), "") -> 0 | AO11: =IF(ISNUMBER($C11), SUMIFS(Datenblatt!$M:$M, Datenblatt!$G:$G,$C11, Datenblatt!$R:$R,">="&AO$8,Datenblatt!$R:$R,"<="&EOMONTH(AO$8,0)) - SUMIFS(Datenblatt!$M:$M, Datenblatt!$E:$E,$C11, Datenblatt!$R:$R,">="&AO$8,Datenblatt!$R:$R,"<="&EOMONTH(AO$8,0)), "") -> 0 | AP11: =IF(ISNUMBER($C11), SUMIFS(Datenblatt!$M:$M, Datenblatt!$G:$G,$C11, Datenblatt!$R:$R,">="&AP$8,Datenblatt!$R:$R,"<="&EOMONTH(AP$8,0)) - SUMIFS(Datenblatt!$M:$M, Datenblatt!$E:$E,$C11, Datenblatt!$R:$R,">="&AP$8,Datenblatt!$R:$R,"<="&EOMONTH(AP$8,0)), "") -> 0 | AQ11: =IF(ISNUMBER($C11), SUMIFS(Datenblatt!$M:$M, Datenblatt!$G:$G,$C11, Datenblatt!$R:$R,">="&AQ$8,Datenblatt!$R:$R,"<="&EOMONTH(AQ$8,0)) - SUMIFS(Datenblatt!$M:$M, Datenblatt!$E:$E,$C11, Datenblatt!$R:$R,">="&AQ$8,Datenblatt!$R:$R,"<="&EOMONTH(AQ$8,0)), "") -> 0 | AR11: =IF(ISNUMBER($C11), SUMIFS(Datenblatt!$M:$M, Datenblatt!$G:$G,$C11, Datenblatt!$R:$R,">="&AR$8,Datenblatt!$R:$R,"<="&EOMONTH(AR$8,0)) - SUMIFS(Datenblatt!$M:$M, Datenblatt!$E:$E,$C11, Datenblatt!$R:$R,">="&AR$8,Datenblatt!$R:$R,"<="&EOMONTH(AR$8,0)), "") -> 0 | AS11: =IF(ISNUMBER($C11), SUMIFS(Datenblatt!$M:$M, Datenblatt!$G:$G,$C11, Datenblatt!$R:$R,">="&AS$8,Datenblatt!$R:$R,"<="&EOMONTH(AS$8,0)) - SUMIFS(Datenblatt!$M:$M, Datenblatt!$E:$E,$C11, Datenblatt!$R:$R,">="&AS$8,Datenblatt!$R:$R,"<="&EOMONTH(AS$8,0)), "") -> 0 | AT11: =IF(ISNUMBER($C11), SUMIFS(Datenblatt!$M:$M, Datenblatt!$G:$G,$C11, Datenblatt!$R:$R,">="&AT$8,Datenblatt!$R:$R,"<="&EOMONTH(AT$8,0)) - SUMIFS(Datenblatt!$M:$M, Datenblatt!$E:$E,$C11, Datenblatt!$R:$R,">="&AT$8,Datenblatt!$R:$R,"<="&EOMONTH(AT$8,0)), "") -> 71.23767883 | AU11: =IF(ISNUMBER($C11), SUMIFS(Datenblatt!$M:$M, Datenblatt!$G:$G,$C11, Datenblatt!$R:$R,">="&AU$8,Datenblatt!$R:$R,"<="&EOMONTH(AU$8,0)) - SUMIFS(Datenblatt!$M:$M, Datenblatt!$E:$E,$C11, Datenblatt!$R:$R,">="&AU$8,Datenblatt!$R:$R,"<="&EOMONTH(AU$8,0)), "") -> 0 | AV11: =IF(ISNUMBER($C11), SUMIFS(Datenblatt!$M:$M, Datenblatt!$G:$G,$C11, Datenblatt!$R:$R,">="&AV$8,Datenblatt!$R:$R,"<="&EOMONTH(AV$8,0)) - SUMIFS(Datenblatt!$M:$M, Datenblatt!$E:$E,$C11, Datenblatt!$R:$R,">="&AV$8,Datenblatt!$R:$R,"<="&EOMONTH(AV$8,0)), "") -> 59.39280445 | AW11: =IF(ISNUMBER($C11), SUMIFS(Datenblatt!$M:$M, Datenblatt!$G:$G,$C11, Datenblatt!$R:$R,">="&AW$8,Datenblatt!$R:$R,"<="&EOMONTH(AW$8,0)) - SUMIFS(Datenblatt!$M:$M, Datenblatt!$E:$E,$C11, Datenblatt!$R:$R,">="&AW$8,Datenblatt!$R:$R,"<="&EOMONTH(AW$8,0)), "") -> 0 | AX11: =IF(ISNUMBER($C11), SUMIFS(Datenblatt!$M:$M, Datenblatt!$G:$G,$C11, Datenblatt!$R:$R,">="&AX$8,Datenblatt!$R:$R,"<="&EOMONTH(AX$8,0)) - SUMIFS(Datenblatt!$M:$M, Datenblatt!$E:$E,$C11, Datenblatt!$R:$R,">="&AX$8,Datenblatt!$R:$R,"<="&EOMONTH(AX$8,0)), "") -> 0 | AY11: =IF(ISNUMBER($C11), SUMIFS(Datenblatt!$M:$M, Datenblatt!$G:$G,$C11, Datenblatt!$R:$R,">="&AY$8,Datenblatt!$R:$R,"<="&EOMONTH(AY$8,0)) - SUMIFS(Datenblatt!$M:$M, Datenblatt!$E:$E,$C11, Datenblatt!$R:$R,">="&AY$8,Datenblatt!$R:$R,"<="&EOMONTH(AY$8,0)), "") -> 0 | AZ11: =IF(ISNUMBER($C11), SUMIFS(Datenblatt!$M:$M, Datenblatt!$G:$G,$C11, Datenblatt!$R:$R,">="&AZ$8,Datenblatt!$R:$R,"<="&EOMONTH(AZ$8,0)) - SUMIFS(Datenblatt!$M:$M, Datenblatt!$E:$E,$C11, Datenblatt!$R:$R,">="&AZ$8,Datenblatt!$R:$R,"<="&EOMONTH(AZ$8,0)), "") -> 0 | BA11: =IF(ISNUMBER($C11), SUMIFS(Datenblatt!$M:$M, Datenblatt!$G:$G,$C11, Datenblatt!$R:$R,">="&BA$8,Datenblatt!$R:$R,"<="&EOMONTH(BA$8,0)) - SUMIFS(Datenblatt!$M:$M, Datenblatt!$E:$E,$C11, Datenblatt!$R:$R,">="&BA$8,Datenblatt!$R:$R,"<="&EOMONTH(BA$8,0)), "") -> 0 | BB11: =IF(ISNUMBER($C11), SUMIFS(Datenblatt!$M:$M, Datenblatt!$G:$G,$C11, Datenblatt!$R:$R,">="&BB$8,Datenblatt!$R:$R,"<="&EOMONTH(BB$8,0)) - SUMIFS(Datenblatt!$M:$M, Datenblatt!$E:$E,$C11, Datenblatt!$R:$R,">="&BB$8,Datenblatt!$R:$R,"<="&EOMONTH(BB$8,0)), "") -> 0 | BC11: =IF(ISNUMBER($C11), SUMIFS(Datenblatt!$M:$M, Datenblatt!$G:$G,$C11, Datenblatt!$R:$R,">="&BC$8,Datenblatt!$R:$R,"<="&EOMONTH(BC$8,0)) - SUMIFS(Datenblatt!$M:$M, Datenblatt!$E:$E,$C11, Datenblatt!$R:$R,">="&BC$8,Datenblatt!$R:$R,"<="&EOMONTH(BC$8,0)), "") -> 0 | BD11: =IF(ISNUMBER($C11), SUMIFS(Datenblatt!$M:$M, Datenblatt!$G:$G,$C11, Datenblatt!$R:$R,">="&BD$8,Datenblatt!$R:$R,"<="&EOMONTH(BD$8,0)) - SUMIFS(Datenblatt!$M:$M, Datenblatt!$E:$E,$C11, Datenblatt!$R:$R,">="&BD$8,Datenblatt!$R:$R,"<="&EOMONTH(BD$8,0)), "") -> 0 | BE11: =IF(ISNUMBER($C11), SUMIFS(Datenblatt!$M:$M, Datenblatt!$G:$G,$C11, Datenblatt!$R:$R,">="&BE$8,Datenblatt!$R:$R,"<="&EOMONTH(BE$8,0)) - SUMIFS(Datenblatt!$M:$M, Datenblatt!$E:$E,$C11, Datenblatt!$R:$R,">="&BE$8,Datenblatt!$R:$R,"<="&EOMONTH(BE$8,0)), "") -> 0 | BF11: =IF(ISNUMBER($C11), SUMIFS(Datenblatt!$M:$M, Datenblatt!$G:$G,$C11, Datenblatt!$R:$R,">="&BF$8,Datenblatt!$R:$R,"<="&EOMONTH(BF$8,0)) - SUMIFS(Datenblatt!$M:$M, Datenblatt!$E:$E,$C11, Datenblatt!$R:$R,">="&BF$8,Datenblatt!$R:$R,"<="&EOMONTH(BF$8,0)), "") -> 0 | BG11: =IF(ISNUMBER($C11), SUMIFS(Datenblatt!$M:$M, Datenblatt!$G:$G,$C11, Datenblatt!$R:$R,">="&BG$8,Datenblatt!$R:$R,"<="&EOMONTH(BG$8,0)) - SUMIFS(Datenblatt!$M:$M, Datenblatt!$E:$E,$C11, Datenblatt!$R:$R,">="&BG$8,Datenblatt!$R:$R,"<="&EOMONTH(BG$8,0)), "") -> 0 | BH11: =IF(ISNUMBER($C11), SUMIFS(Datenblatt!$M:$M, Datenblatt!$G:$G,$C11, Datenblatt!$R:$R,">="&BH$8,Datenblatt!$R:$R,"<="&EOMONTH(BH$8,0)) - SUMIFS(Datenblatt!$M:$M, Datenblatt!$E:$E,$C11, Datenblatt!$R:$R,">="&BH$8,Datenblatt!$R:$R,"<="&EOMONTH(BH$8,0)), "") -> 0 | BI11: =IF(ISNUMBER($C11), SUMIFS(Datenblatt!$M:$M, Datenblatt!$G:$G,$C11, Datenblatt!$R:$R,">="&BI$8,Datenblatt!$R:$R,"<="&EOMONTH(BI$8,0)) - SUMIFS(Datenblatt!$M:$M, Datenblatt!$E:$E,$C11, Datenblatt!$R:$R,">="&BI$8,Datenblatt!$R:$R,"<="&EOMONTH(BI$8,0)), "") -> 0 | BJ11: =IF(ISNUMBER($C11), SUMIFS(Datenblatt!$M:$M, Datenblatt!$G:$G,$C11, Datenblatt!$R:$R,">="&BJ$8,Datenblatt!$R:$R,"<="&EOMONTH(BJ$8,0)) - SUMIFS(Datenblatt!$M:$M, Datenblatt!$E:$E,$C11, Datenblatt!$R:$R,">="&BJ$8,Datenblatt!$R:$R,"<="&EOMONTH(BJ$8,0)), "") -> 0 | BK11: =IF(ISNUMBER($C11), SUMIFS(Datenblatt!$M:$M, Datenblatt!$G:$G,$C11, Datenblatt!$R:$R,">="&BK$8,Datenblatt!$R:$R,"<="&EOMONTH(BK$8,0)) - SUMIFS(Datenblatt!$M:$M, Datenblatt!$E:$E,$C11, Datenblatt!$R:$R,">="&BK$8,Datenblatt!$R:$R,"<="&EOMONTH(BK$8,0)), "") -> 0 | BL11: =IF(ISNUMBER($C11), SUMIFS(Datenblatt!$M:$M, Datenblatt!$G:$G,$C11, Datenblatt!$R:$R,">="&BL$8,Datenblatt!$R:$R,"<="&EOMONTH(BL$8,0)) - SUMIFS(Datenblatt!$M:$M, Datenblatt!$E:$E,$C11, Datenblatt!$R:$R,">="&BL$8,Datenblatt!$R:$R,"<="&EOMONTH(BL$8,0)), "") -> 0 | BM11: =IF(ISNUMBER($C11), SUMIFS(Datenblatt!$M:$M, Datenblatt!$G:$G,$C11, Datenblatt!$R:$R,">="&BM$8,Datenblatt!$R:$R,"<="&EOMONTH(BM$8,0)) - SUMIFS(Datenblatt!$M:$M, Datenblatt!$E:$E,$C11, Datenblatt!$R:$R,">="&BM$8,Datenblatt!$R:$R,"<="&EOMONTH(BM$8,0)), "") -> 0 | BN11: =IF(ISNUMBER($C11), SUMIFS(Datenblatt!$M:$M, Datenblatt!$G:$G,$C11, Datenblatt!$R:$R,">="&BN$8,Datenblatt!$R:$R,"<="&EOMONTH(BN$8,0)) - SUMIFS(Datenblatt!$M:$M, Datenblatt!$E:$E,$C11, Datenblatt!$R:$R,">="&BN$8,Datenblatt!$R:$R,"<="&EOMONTH(BN$8,0)), "") -> 0 | BO11: =IF(ISNUMBER($C11), SUMIFS(Datenblatt!$M:$M, Datenblatt!$G:$G,$C11, Datenblatt!$R:$R,">="&BO$8,Datenblatt!$R:$R,"<="&EOMONTH(BO$8,0)) - SUMIFS(Datenblatt!$M:$M, Datenblatt!$E:$E,$C11, Datenblatt!$R:$R,">="&BO$8,Datenblatt!$R:$R,"<="&EOMONTH(BO$8,0)), "") -> 0 | BP11: =IF(ISNUMBER($C11), SUMIFS(Datenblatt!$M:$M, Datenblatt!$G:$G,$C11, Datenblatt!$R:$R,">="&BP$8,Datenblatt!$R:$R,"<="&EOMONTH(BP$8,0)) - SUMIFS(Datenblatt!$M:$M, Datenblatt!$E:$E,$C11, Datenblatt!$R:$R,">="&BP$8,Datenblatt!$R:$R,"<="&EOMONTH(BP$8,0)), "") -> 0 | BQ11: =IF(ISNUMBER($C11), SUMIFS(Datenblatt!$M:$M, Datenblatt!$G:$G,$C11, Datenblatt!$R:$R,">="&BQ$8,Datenblatt!$R:$R,"<="&EOMONTH(BQ$8,0)) - SUMIFS(Datenblatt!$M:$M, Datenblatt!$E:$E,$C11, Datenblatt!$R:$R,">="&BQ$8,Datenblatt!$R:$R,"<="&EOMONTH(BQ$8,0)), "") -> 0 | BR11: =IF(ISNUMBER($C11), SUMIFS(Datenblatt!$M:$M, Datenblatt!$G:$G,$C11, Datenblatt!$R:$R,">="&BR$8,Datenblatt!$R:$R,"<="&EOMONTH(BR$8,0)) - SUMIFS(Datenblatt!$M:$M, Datenblatt!$E:$E,$C11, Datenblatt!$R:$R,">="&BR$8,Datenblatt!$R:$R,"<="&EOMONTH(BR$8,0)), "") -> 71.23767883 | BS11: =IF(ISNUMBER($C11), SUMIFS(Datenblatt!$M:$M, Datenblatt!$G:$G,$C11, Datenblatt!$R:$R,">="&BS$8,Datenblatt!$R:$R,"<="&EOMONTH(BS$8,0)) - SUMIFS(Datenblatt!$M:$M, Datenblatt!$E:$E,$C11, Datenblatt!$R:$R,">="&BS$8,Datenblatt!$R:$R,"<="&EOMONTH(BS$8,0)), "") -> 0 | BT11: =IF(ISNUMBER($C11), SUMIFS(Datenblatt!$M:$M, Datenblatt!$G:$G,$C11, Datenblatt!$R:$R,">="&BT$8,Datenblatt!$R:$R,"<="&EOMONTH(BT$8,0)) - SUMIFS(Datenblatt!$M:$M, Datenblatt!$E:$E,$C11, Datenblatt!$R:$R,">="&BT$8,Datenblatt!$R:$R,"<="&EOMONTH(BT$8,0)), "") -> 59.39280445 | BU11: =IF(ISNUMBER($C11), SUMIFS(Datenblatt!$M:$M, Datenblatt!$G:$G,$C11, Datenblatt!$R:$R,">="&BU$8,Datenblatt!$R:$R,"<="&EOMONTH(BU$8,0)) - SUMIFS(Datenblatt!$M:$M, Datenblatt!$E:$E,$C11, Datenblatt!$R:$R,">="&BU$8,Datenblatt!$R:$R,"<="&EOMONTH(BU$8,0)), "") -> 0 | BV11: =IF(ISNUMBER($C11), SUMIFS(Datenblatt!$M:$M, Datenblatt!$G:$G,$C11, Datenblatt!$R:$R,">="&BV$8,Datenblatt!$R:$R,"<="&EOMONTH(BV$8,0)) - SUMIFS(Datenblatt!$M:$M, Datenblatt!$E:$E,$C11, Datenblatt!$R:$R,">="&BV$8,Datenblatt!$R:$R,"<="&EOMONTH(BV$8,0)), "") -> 0 | BW11: =IF(ISNUMBER($C11), SUMIFS(Datenblatt!$M:$M, Datenblatt!$G:$G,$C11, Datenblatt!$R:$R,">="&BW$8,Datenblatt!$R:$R,"<="&EOMONTH(BW$8,0)) - SUMIFS(Datenblatt!$M:$M, Datenblatt!$E:$E,$C11, Datenblatt!$R:$R,">="&BW$8,Datenblatt!$R:$R,"<="&EOMONTH(BW$8,0)), "") -> 0 | BX11: =IF(ISNUMBER($C11), SUMIFS(Datenblatt!$M:$M, Datenblatt!$G:$G,$C11, Datenblatt!$R:$R,">="&BX$8,Datenblatt!$R:$R,"<="&EOMONTH(BX$8,0)) - SUMIFS(Datenblatt!$M:$M, Datenblatt!$E:$E,$C11, Datenblatt!$R:$R,">="&BX$8,Datenblatt!$R:$R,"<="&EOMONTH(BX$8,0)), "") -> 0 | BY11: =IF(ISNUMBER($C11), SUMIFS(Datenblatt!$M:$M, Datenblatt!$G:$G,$C11, Datenblatt!$R:$R,">="&BY$8,Datenblatt!$R:$R,"<="&EOMONTH(BY$8,0)) - SUMIFS(Datenblatt!$M:$M, Datenblatt!$E:$E,$C11, Datenblatt!$R:$R,">="&BY$8,Datenblatt!$R:$R,"<="&EOMONTH(BY$8,0)), "") -> 0 | BZ11: =IF(ISNUMBER($C11), SUMIFS(Datenblatt!$M:$M, Datenblatt!$G:$G,$C11, Datenblatt!$R:$R,">="&BZ$8,Datenblatt!$R:$R,"<="&EOMONTH(BZ$8,0)) - SUMIFS(Datenblatt!$M:$M, Datenblatt!$E:$E,$C11, Datenblatt!$R:$R,">="&BZ$8,Datenblatt!$R:$R,"<="&EOMONTH(BZ$8,0)), "") -> 0 | CA11: =IF(ISNUMBER($C11), SUMIFS(Datenblatt!$M:$M, Datenblatt!$G:$G,$C11, Datenblatt!$R:$R,">="&CA$8,Datenblatt!$R:$R,"<="&EOMONTH(CA$8,0)) - SUMIFS(Datenblatt!$M:$M, Datenblatt!$E:$E,$C11, Datenblatt!$R:$R,">="&CA$8,Datenblatt!$R:$R,"<="&EOMONTH(CA$8,0)), "") -> 0 | CB11: =IF(ISNUMBER($C11), SUMIFS(Datenblatt!$M:$M, Datenblatt!$G:$G,$C11, Datenblatt!$R:$R,">="&CB$8,Datenblatt!$R:$R,"<="&EOMONTH(CB$8,0)) - SUMIFS(Datenblatt!$M:$M, Datenblatt!$E:$E,$C11, Datenblatt!$R:$R,">="&CB$8,Datenblatt!$R:$R,"<="&EOMONTH(CB$8,0)), "") -> 0 | CC11: =IF(ISNUMBER($C11), SUMIFS(Datenblatt!$M:$M, Datenblatt!$G:$G,$C11, Datenblatt!$R:$R,">="&CC$8,Datenblatt!$R:$R,"<="&EOMONTH(CC$8,0)) - SUMIFS(Datenblatt!$M:$M, Datenblatt!$E:$E,$C11, Datenblatt!$R:$R,">="&CC$8,Datenblatt!$R:$R,"<="&EOMONTH(CC$8,0)), "") -> 0 | CD11: =IF(ISNUMBER($C11), SUMIFS(Datenblatt!$M:$M, Datenblatt!$G:$G,$C11, Datenblatt!$R:$R,">="&CD$8,Datenblatt!$R:$R,"<="&EOMONTH(CD$8,0)) - SUMIFS(Datenblatt!$M:$M, Datenblatt!$E:$E,$C11, Datenblatt!$R:$R,">="&CD$8,Datenblatt!$R:$R,"<="&EOMONTH(CD$8,0)), "") -> 71.23767883 | CE11: =IF(ISNUMBER($C11), SUMIFS(Datenblatt!$M:$M, Datenblatt!$G:$G,$C11, Datenblatt!$R:$R,">="&CE$8,Datenblatt!$R:$R,"<="&EOMONTH(CE$8,0)) - SUMIFS(Datenblatt!$M:$M, Datenblatt!$E:$E,$C11, Datenblatt!$R:$R,">="&CE$8,Datenblatt!$R:$R,"<="&EOMONTH(CE$8,0)), "") -> 0 | CF11: =IF(ISNUMBER($C11), SUMIFS(Datenblatt!$M:$M, Datenblatt!$G:$G,$C11, Datenblatt!$R:$R,">="&CF$8,Datenblatt!$R:$R,"<="&EOMONTH(CF$8,0)) - SUMIFS(Datenblatt!$M:$M, Datenblatt!$E:$E,$C11, Datenblatt!$R:$R,">="&CF$8,Datenblatt!$R:$R,"<="&EOMONTH(CF$8,0)), "") -> 59.39280445 | CG11: =IF(ISNUMBER($C11), SUMIFS(Datenblatt!$M:$M, Datenblatt!$G:$G,$C11, Datenblatt!$R:$R,">="&CG$8,Datenblatt!$R:$R,"<="&EOMONTH(CG$8,0)) - SUMIFS(Datenblatt!$M:$M, Datenblatt!$E:$E,$C11, Datenblatt!$R:$R,">="&CG$8,Datenblatt!$R:$R,"<="&EOMONTH(CG$8,0)), "") -> 0 | CH11: =IF(ISNUMBER($C11), SUMIFS(Datenblatt!$M:$M, Datenblatt!$G:$G,$C11, Datenblatt!$R:$R,">="&CH$8,Datenblatt!$R:$R,"<="&EOMONTH(CH$8,0)) - SUMIFS(Datenblatt!$M:$M, Datenblatt!$E:$E,$C11, Datenblatt!$R:$R,">="&CH$8,Datenblatt!$R:$R,"<="&EOMONTH(CH$8,0)), "") -> 0 | CI11: =IF(ISNUMBER($C11), SUMIFS(Datenblatt!$M:$M, Datenblatt!$G:$G,$C11, Datenblatt!$R:$R,">="&CI$8,Datenblatt!$R:$R,"<="&EOMONTH(CI$8,0)) - SUMIFS(Datenblatt!$M:$M, Datenblatt!$E:$E,$C11, Datenblatt!$R:$R,">="&CI$8,Datenblatt!$R:$R,"<="&EOMONTH(CI$8,0)), "") -> 0 | CJ11: =IF(ISNUMBER($C11), SUMIFS(Datenblatt!$M:$M, Datenblatt!$G:$G,$C11, Datenblatt!$R:$R,">="&CJ$8,Datenblatt!$R:$R,"<="&EOMONTH(CJ$8,0)) - SUMIFS(Datenblatt!$M:$M, Datenblatt!$E:$E,$C11, Datenblatt!$R:$R,">="&CJ$8,Datenblatt!$R:$R,"<="&EOMONTH(CJ$8,0)), "") -> 0 | CK11: =IF(ISNUMBER($C11), SUMIFS(Datenblatt!$M:$M, Datenblatt!$G:$G,$C11, Datenblatt!$R:$R,">="&CK$8,Datenblatt!$R:$R,"<="&EOMONTH(CK$8,0)) - SUMIFS(Datenblatt!$M:$M, Datenblatt!$E:$E,$C11, Datenblatt!$R:$R,">="&CK$8,Datenblatt!$R:$R,"<="&EOMONTH(CK$8,0)), "") -> 0 | CL11: =IF(ISNUMBER($C11), SUMIFS(Datenblatt!$M:$M, Datenblatt!$G:$G,$C11, Datenblatt!$R:$R,">="&CL$8,Datenblatt!$R:$R,"<="&EOMONTH(CL$8,0)) - SUMIFS(Datenblatt!$M:$M, Datenblatt!$E:$E,$C11, Datenblatt!$R:$R,">="&CL$8,Datenblatt!$R:$R,"<="&EOMONTH(CL$8,0)), "") -> 0 | CM11: =IF(ISNUMBER($C11), SUMIFS(Datenblatt!$M:$M, Datenblatt!$G:$G,$C11, Datenblatt!$R:$R,">="&CM$8,Datenblatt!$R:$R,"<="&EOMONTH(CM$8,0)) - SUMIFS(Datenblatt!$M:$M, Datenblatt!$E:$E,$C11, Datenblatt!$R:$R,">="&CM$8,Datenblatt!$R:$R,"<="&EOMONTH(CM$8,0)), "") -> 0 | CN11: =IF(ISNUMBER($C11), SUMIFS(Datenblatt!$M:$M, Datenblatt!$G:$G,$C11, Datenblatt!$R:$R,">="&CN$8,Datenblatt!$R:$R,"<="&EOMONTH(CN$8,0)) - SUMIFS(Datenblatt!$M:$M, Datenblatt!$E:$E,$C11, Datenblatt!$R:$R,">="&CN$8,Datenblatt!$R:$R,"<="&EOMONTH(CN$8,0)), "") -> 0 | CO11: =IF(ISNUMBER($C11), SUMIFS(Datenblatt!$M:$M, Datenblatt!$G:$G,$C11, Datenblatt!$R:$R,">="&CO$8,Datenblatt!$R:$R,"<="&EOMONTH(CO$8,0)) - SUMIFS(Datenblatt!$M:$M, Datenblatt!$E:$E,$C11, Datenblatt!$R:$R,">="&CO$8,Datenblatt!$R:$R,"<="&EOMONTH(CO$8,0)), "") -> 0 | CP11: =IF(ISNUMBER($C11), SUMIFS(Datenblatt!$M:$M, Datenblatt!$G:$G,$C11, Datenblatt!$R:$R,">="&CP$8,Datenblatt!$R:$R,"<="&EOMONTH(CP$8,0)) - SUMIFS(Datenblatt!$M:$M, Datenblatt!$E:$E,$C11, Datenblatt!$R:$R,">="&CP$8,Datenblatt!$R:$R,"<="&EOMONTH(CP$8,0)), "") -> 0 | CQ11: =IF(ISNUMBER($C11), SUMIFS(Datenblatt!$M:$M, Datenblatt!$G:$G,$C11, Datenblatt!$R:$R,">="&CQ$8,Datenblatt!$R:$R,"<="&EOMONTH(CQ$8,0)) - SUMIFS(Datenblatt!$M:$M, Datenblatt!$E:$E,$C11, Datenblatt!$R:$R,">="&CQ$8,Datenblatt!$R:$R,"<="&EOMONTH(CQ$8,0)), "") -> 0 | CR11: =IF(ISNUMBER($C11), SUMIFS(Datenblatt!$M:$M, Datenblatt!$G:$G,$C11, Datenblatt!$R:$R,">="&CR$8,Datenblatt!$R:$R,"<="&EOMONTH(CR$8,0)) - SUMIFS(Datenblatt!$M:$M, Datenblatt!$E:$E,$C11, Datenblatt!$R:$R,">="&CR$8,Datenblatt!$R:$R,"<="&EOMONTH(CR$8,0)), "") -> 0 | CS11: =IF(ISNUMBER($C11), SUMIFS(Datenblatt!$M:$M, Datenblatt!$G:$G,$C11, Datenblatt!$R:$R,">="&CS$8,Datenblatt!$R:$R,"<="&EOMONTH(CS$8,0)) - SUMIFS(Datenblatt!$M:$M, Datenblatt!$E:$E,$C11, Datenblatt!$R:$R,">="&CS$8,Datenblatt!$R:$R,"<="&EOMONTH(CS$8,0)), "") -> 0 | CT11: =IF(ISNUMBER($C11), SUMIFS(Datenblatt!$M:$M, Datenblatt!$G:$G,$C11, Datenblatt!$R:$R,">="&CT$8,Datenblatt!$R:$R,"<="&EOMONTH(CT$8,0)) - SUMIFS(Datenblatt!$M:$M, Datenblatt!$E:$E,$C11, Datenblatt!$R:$R,">="&CT$8,Datenblatt!$R:$R,"<="&EOMONTH(CT$8,0)), "") -> 0 | CU11: =IF(ISNUMBER($C11), SUMIFS(Datenblatt!$M:$M, Datenblatt!$G:$G,$C11, Datenblatt!$R:$R,">="&CU$8,Datenblatt!$R:$R,"<="&EOMONTH(CU$8,0)) - SUMIFS(Datenblatt!$M:$M, Datenblatt!$E:$E,$C11, Datenblatt!$R:$R,">="&CU$8,Datenblatt!$R:$R,"<="&EOMONTH(CU$8,0)), "") -> 0 | CV11: =IF(ISNUMBER($C11), SUMIFS(Datenblatt!$M:$M, Datenblatt!$G:$G,$C11, Datenblatt!$R:$R,">="&CV$8,Datenblatt!$R:$R,"<="&EOMONTH(CV$8,0)) - SUMIFS(Datenblatt!$M:$M, Datenblatt!$E:$E,$C11, Datenblatt!$R:$R,">="&CV$8,Datenblatt!$R:$R,"<="&EOMONTH(CV$8,0)), "") -> 0 | CW11: =IF(ISNUMBER($C11), SUMIFS(Datenblatt!$M:$M, Datenblatt!$G:$G,$C11, Datenblatt!$R:$R,">="&CW$8,Datenblatt!$R:$R,"<="&EOMONTH(CW$8,0)) - SUMIFS(Datenblatt!$M:$M, Datenblatt!$E:$E,$C11, Datenblatt!$R:$R,">="&CW$8,Datenblatt!$R:$R,"<="&EOMONTH(CW$8,0)), "") -> 0 | CX11: =IF(ISNUMBER($C11), SUMIFS(Datenblatt!$M:$M, Datenblatt!$G:$G,$C11, Datenblatt!$R:$R,">="&CX$8,Datenblatt!$R:$R,"<="&EOMONTH(CX$8,0)) - SUMIFS(Datenblatt!$M:$M, Datenblatt!$E:$E,$C11, Datenblatt!$R:$R,">="&CX$8,Datenblatt!$R:$R,"<="&EOMONTH(CX$8,0)), "") -> 0 | CY11: =IF(ISNUMBER($C11), SUMIFS(Datenblatt!$M:$M, Datenblatt!$G:$G,$C11, Datenblatt!$R:$R,">="&CY$8,Datenblatt!$R:$R,"<="&EOMONTH(CY$8,0)) - SUMIFS(Datenblatt!$M:$M, Datenblatt!$E:$E,$C11, Datenblatt!$R:$R,">="&CY$8,Datenblatt!$R:$R,"<="&EOMONTH(CY$8,0)), "") -> 0 | CZ11: =IF(ISNUMBER($C11), SUMIFS(Datenblatt!$M:$M, Datenblatt!$G:$G,$C11, Datenblatt!$R:$R,">="&CZ$8,Datenblatt!$R:$R,"<="&EOMONTH(CZ$8,0)) - SUMIFS(Datenblatt!$M:$M, Datenblatt!$E:$E,$C11, Datenblatt!$R:$R,">="&CZ$8,Datenblatt!$R:$R,"<="&EOMONTH(CZ$8,0)), "") -> 0 | DA11: =IF(ISNUMBER($C11), SUMIFS(Datenblatt!$M:$M, Datenblatt!$G:$G,$C11, Datenblatt!$R:$R,">="&DA$8,Datenblatt!$R:$R,"<="&EOMONTH(DA$8,0)) - SUMIFS(Datenblatt!$M:$M, Datenblatt!$E:$E,$C11, Datenblatt!$R:$R,">="&DA$8,Datenblatt!$R:$R,"<="&EOMONTH(DA$8,0)), "") -> 0 | DB11: =IF(ISNUMBER($C11), SUMIFS(Datenblatt!$M:$M, Datenblatt!$G:$G,$C11, Datenblatt!$R:$R,">="&DB$8,Datenblatt!$R:$R,"<="&EOMONTH(DB$8,0)) - SUMIFS(Datenblatt!$M:$M, Datenblatt!$E:$E,$C11, Datenblatt!$R:$R,">="&DB$8,Datenblatt!$R:$R,"<="&EOMONTH(DB$8,0)), "") -> 0 | DC11: =IF(ISNUMBER($C11), SUMIFS(Datenblatt!$M:$M, Datenblatt!$G:$G,$C11, Datenblatt!$R:$R,">="&DC$8,Datenblatt!$R:$R,"<="&EOMONTH(DC$8,0)) - SUMIFS(Datenblatt!$M:$M, Datenblatt!$E:$E,$C11, Datenblatt!$R:$R,">="&DC$8,Datenblatt!$R:$R,"<="&EOMONTH(DC$8,0)), "") -> 0 | DD11: =IF(ISNUMBER($C11), SUMIFS(Datenblatt!$M:$M, Datenblatt!$G:$G,$C11, Datenblatt!$R:$R,">="&DD$8,Datenblatt!$R:$R,"<="&EOMONTH(DD$8,0)) - SUMIFS(Datenblatt!$M:$M, Datenblatt!$E:$E,$C11, Datenblatt!$R:$R,">="&DD$8,Datenblatt!$R:$R,"<="&EOMONTH(DD$8,0)), "") -> 0 | DE11: =IF(ISNUMBER($C11), SUMIFS(Datenblatt!$M:$M, Datenblatt!$G:$G,$C11, Datenblatt!$R:$R,">="&DE$8,Datenblatt!$R:$R,"<="&EOMONTH(DE$8,0)) - SUMIFS(Datenblatt!$M:$M, Datenblatt!$E:$E,$C11, Datenblatt!$R:$R,">="&DE$8,Datenblatt!$R:$R,"<="&EOMONTH(DE$8,0)), "") -> 0 | DF11: =IF(ISNUMBER($C11), SUMIFS(Datenblatt!$M:$M, Datenblatt!$G:$G,$C11, Datenblatt!$R:$R,">="&DF$8,Datenblatt!$R:$R,"<="&EOMONTH(DF$8,0)) - SUMIFS(Datenblatt!$M:$M, Datenblatt!$E:$E,$C11, Datenblatt!$R:$R,">="&DF$8,Datenblatt!$R:$R,"<="&EOMONTH(DF$8,0)), "") -> 0
B12: Ertragskonto | C12: 3200 | D12: Ertrag aus Verkauf von Standardtools (Homepage) | G12: =IF(ISNUMBER($C12), SUMIFS(Datenblatt!$M:$M, Datenblatt!$G:$G,$C12, Datenblatt!$R:$R,">="&G$8,Datenblatt!$R:$R,"<="&EOMONTH(G$8,11)) - SUMIFS(Datenblatt!$M:$M, Datenblatt!$E:$E,$C12, Datenblatt!$R:$R,">="&G$8,Datenblatt!$R:$R,"<="&EOMONTH(G$8,11)), "") -> 102.4262399 | H12: =IF(ISNUMBER($C12), SUMIFS(Datenblatt!$M:$M, Datenblatt!$G:$G,$C12, Datenblatt!$R:$R,">="&H$8,Datenblatt!$R:$R,"<="&EOMONTH(H$8,11)) - SUMIFS(Datenblatt!$M:$M, Datenblatt!$E:$E,$C12, Datenblatt!$R:$R,">="&H$8,Datenblatt!$R:$R,"<="&EOMONTH(H$8,11)), "") -> -5.726562151 | I12: =IF(ISNUMBER($C12), SUMIFS(Datenblatt!$M:$M, Datenblatt!$G:$G,$C12, Datenblatt!$R:$R,">="&I$8,Datenblatt!$R:$R,"<="&EOMONTH(I$8,11)) - SUMIFS(Datenblatt!$M:$M, Datenblatt!$E:$E,$C12, Datenblatt!$R:$R,">="&I$8,Datenblatt!$R:$R,"<="&EOMONTH(I$8,11)), "") -> 297.8899312 | J12: =IF(ISNUMBER($C12), SUMIFS(Datenblatt!$M:$M, Datenblatt!$G:$G,$C12, Datenblatt!$R:$R,">="&J$8,Datenblatt!$R:$R,"<="&EOMONTH(J$8,11)) - SUMIFS(Datenblatt!$M:$M, Datenblatt!$E:$E,$C12, Datenblatt!$R:$R,">="&J$8,Datenblatt!$R:$R,"<="&EOMONTH(J$8,11)), "") -> -5.726562151 | K12: =IF(ISNUMBER($C12), SUMIFS(Datenblatt!$M:$M, Datenblatt!$G:$G,$C12, Datenblatt!$R:$R,">="&K$8,Datenblatt!$R:$R,"<="&EOMONTH(K$8,11)) - SUMIFS(Datenblatt!$M:$M, Datenblatt!$E:$E,$C12, Datenblatt!$R:$R,">="&K$8,Datenblatt!$R:$R,"<="&EOMONTH(K$8,11)), "") -> 154.7351984 | L12: =IF(ISNUMBER($C12), SUMIFS(Datenblatt!$M:$M, Datenblatt!$G:$G,$C12, Datenblatt!$R:$R,">="&L$8,Datenblatt!$R:$R,"<="&EOMONTH(L$8,11)) - SUMIFS(Datenblatt!$M:$M, Datenblatt!$E:$E,$C12, Datenblatt!$R:$R,">="&L$8,Datenblatt!$R:$R,"<="&EOMONTH(L$8,11)), "") -> 297.8899312 | M12: =IF(ISNUMBER($C12), SUMIFS(Datenblatt!$M:$M, Datenblatt!$G:$G,$C12, Datenblatt!$R:$R,">="&M$8,Datenblatt!$R:$R,"<="&EOMONTH(M$8,11)) - SUMIFS(Datenblatt!$M:$M, Datenblatt!$E:$E,$C12, Datenblatt!$R:$R,">="&M$8,Datenblatt!$R:$R,"<="&EOMONTH(M$8,11)), "") -> 0 | N12: =IF(ISNUMBER($C12), SUMIFS(Datenblatt!$M:$M, Datenblatt!$G:$G,$C12, Datenblatt!$R:$R,">="&N$8,Datenblatt!$R:$R,"<="&EOMONTH(N$8,11)) - SUMIFS(Datenblatt!$M:$M, Datenblatt!$E:$E,$C12, Datenblatt!$R:$R,">="&N$8,Datenblatt!$R:$R,"<="&EOMONTH(N$8,11)), "") -> 0 | O12: =IF(ISNUMBER($C12), SUMIFS(Datenblatt!$M:$M, Datenblatt!$G:$G,$C12, Datenblatt!$R:$R,">="&O$8,Datenblatt!$R:$R,"<="&EOMONTH(O$8,0)) - SUMIFS(Datenblatt!$M:$M, Datenblatt!$E:$E,$C12, Datenblatt!$R:$R,">="&O$8,Datenblatt!$R:$R,"<="&EOMONTH(O$8,0)), "") -> 0 | P12: =IF(ISNUMBER($C12), SUMIFS(Datenblatt!$M:$M, Datenblatt!$G:$G,$C12, Datenblatt!$R:$R,">="&P$8,Datenblatt!$R:$R,"<="&EOMONTH(P$8,0)) - SUMIFS(Datenblatt!$M:$M, Datenblatt!$E:$E,$C12, Datenblatt!$R:$R,">="&P$8,Datenblatt!$R:$R,"<="&EOMONTH(P$8,0)), "") -> 0 | Q12: =IF(ISNUMBER($C12), SUMIFS(Datenblatt!$M:$M, Datenblatt!$G:$G,$C12, Datenblatt!$R:$R,">="&Q$8,Datenblatt!$R:$R,"<="&EOMONTH(Q$8,0)) - SUMIFS(Datenblatt!$M:$M, Datenblatt!$E:$E,$C12, Datenblatt!$R:$R,">="&Q$8,Datenblatt!$R:$R,"<="&EOMONTH(Q$8,0)), "") -> 0 | R12: =IF(ISNUMBER($C12), SUMIFS(Datenblatt!$M:$M, Datenblatt!$G:$G,$C12, Datenblatt!$R:$R,">="&R$8,Datenblatt!$R:$R,"<="&EOMONTH(R$8,0)) - SUMIFS(Datenblatt!$M:$M, Datenblatt!$E:$E,$C12, Datenblatt!$R:$R,">="&R$8,Datenblatt!$R:$R,"<="&EOMONTH(R$8,0)), "") -> 0 | S12: =IF(ISNUMBER($C12), SUMIFS(Datenblatt!$M:$M, Datenblatt!$G:$G,$C12, Datenblatt!$R:$R,">="&S$8,Datenblatt!$R:$R,"<="&EOMONTH(S$8,0)) - SUMIFS(Datenblatt!$M:$M, Datenblatt!$E:$E,$C12, Datenblatt!$R:$R,">="&S$8,Datenblatt!$R:$R,"<="&EOMONTH(S$8,0)), "") -> 0 | T12: =IF(ISNUMBER($C12), SUMIFS(Datenblatt!$M:$M, Datenblatt!$G:$G,$C12, Datenblatt!$R:$R,">="&T$8,Datenblatt!$R:$R,"<="&EOMONTH(T$8,0)) - SUMIFS(Datenblatt!$M:$M, Datenblatt!$E:$E,$C12, Datenblatt!$R:$R,">="&T$8,Datenblatt!$R:$R,"<="&EOMONTH(T$8,0)), "") -> 0 | U12: =IF(ISNUMBER($C12), SUMIFS(Datenblatt!$M:$M, Datenblatt!$G:$G,$C12, Datenblatt!$R:$R,">="&U$8,Datenblatt!$R:$R,"<="&EOMONTH(U$8,0)) - SUMIFS(Datenblatt!$M:$M, Datenblatt!$E:$E,$C12, Datenblatt!$R:$R,">="&U$8,Datenblatt!$R:$R,"<="&EOMONTH(U$8,0)), "") -> 0 | V12: =IF(ISNUMBER($C12), SUMIFS(Datenblatt!$M:$M, Datenblatt!$G:$G,$C12, Datenblatt!$R:$R,">="&V$8,Datenblatt!$R:$R,"<="&EOMONTH(V$8,0)) - SUMIFS(Datenblatt!$M:$M, Datenblatt!$E:$E,$C12, Datenblatt!$R:$R,">="&V$8,Datenblatt!$R:$R,"<="&EOMONTH(V$8,0)), "") -> 0 | W12: =IF(ISNUMBER($C12), SUMIFS(Datenblatt!$M:$M, Datenblatt!$G:$G,$C12, Datenblatt!$R:$R,">="&W$8,Datenblatt!$R:$R,"<="&EOMONTH(W$8,0)) - SUMIFS(Datenblatt!$M:$M, Datenblatt!$E:$E,$C12, Datenblatt!$R:$R,">="&W$8,Datenblatt!$R:$R,"<="&EOMONTH(W$8,0)), "") -> 0 | X12: =IF(ISNUMBER($C12), SUMIFS(Datenblatt!$M:$M, Datenblatt!$G:$G,$C12, Datenblatt!$R:$R,">="&X$8,Datenblatt!$R:$R,"<="&EOMONTH(X$8,0)) - SUMIFS(Datenblatt!$M:$M, Datenblatt!$E:$E,$C12, Datenblatt!$R:$R,">="&X$8,Datenblatt!$R:$R,"<="&EOMONTH(X$8,0)), "") -> 71.5773664 | Y12: =IF(ISNUMBER($C12), SUMIFS(Datenblatt!$M:$M, Datenblatt!$G:$G,$C12, Datenblatt!$R:$R,">="&Y$8,Datenblatt!$R:$R,"<="&EOMONTH(Y$8,0)) - SUMIFS(Datenblatt!$M:$M, Datenblatt!$E:$E,$C12, Datenblatt!$R:$R,">="&Y$8,Datenblatt!$R:$R,"<="&EOMONTH(Y$8,0)), "") -> 0 | Z12: =IF(ISNUMBER($C12), SUMIFS(Datenblatt!$M:$M, Datenblatt!$G:$G,$C12, Datenblatt!$R:$R,">="&Z$8,Datenblatt!$R:$R,"<="&EOMONTH(Z$8,0)) - SUMIFS(Datenblatt!$M:$M, Datenblatt!$E:$E,$C12, Datenblatt!$R:$R,">="&Z$8,Datenblatt!$R:$R,"<="&EOMONTH(Z$8,0)), "") -> 30.84887351 | AA12: =IF(ISNUMBER($C12), SUMIFS(Datenblatt!$M:$M, Datenblatt!$G:$G,$C12, Datenblatt!$R:$R,">="&AA$8,Datenblatt!$R:$R,"<="&EOMONTH(AA$8,0)) - SUMIFS(Datenblatt!$M:$M, Datenblatt!$E:$E,$C12, Datenblatt!$R:$R,">="&AA$8,Datenblatt!$R:$R,"<="&EOMONTH(AA$8,0)), "") -> 0 | AB12: =IF(ISNUMBER($C12), SUMIFS(Datenblatt!$M:$M, Datenblatt!$G:$G,$C12, Datenblatt!$R:$R,">="&AB$8,Datenblatt!$R:$R,"<="&EOMONTH(AB$8,0)) - SUMIFS(Datenblatt!$M:$M, Datenblatt!$E:$E,$C12, Datenblatt!$R:$R,">="&AB$8,Datenblatt!$R:$R,"<="&EOMONTH(AB$8,0)), "") -> 0 | AC12: =IF(ISNUMBER($C12), SUMIFS(Datenblatt!$M:$M, Datenblatt!$G:$G,$C12, Datenblatt!$R:$R,">="&AC$8,Datenblatt!$R:$R,"<="&EOMONTH(AC$8,0)) - SUMIFS(Datenblatt!$M:$M, Datenblatt!$E:$E,$C12, Datenblatt!$R:$R,">="&AC$8,Datenblatt!$R:$R,"<="&EOMONTH(AC$8,0)), "") -> 0 | AD12: =IF(ISNUMBER($C12), SUMIFS(Datenblatt!$M:$M, Datenblatt!$G:$G,$C12, Datenblatt!$R:$R,">="&AD$8,Datenblatt!$R:$R,"<="&EOMONTH(AD$8,0)) - SUMIFS(Datenblatt!$M:$M, Datenblatt!$E:$E,$C12, Datenblatt!$R:$R,">="&AD$8,Datenblatt!$R:$R,"<="&EOMONTH(AD$8,0)), "") -> 9.811728057 | AE12: =IF(ISNUMBER($C12), SUMIFS(Datenblatt!$M:$M, Datenblatt!$G:$G,$C12, Datenblatt!$R:$R,">="&AE$8,Datenblatt!$R:$R,"<="&EOMONTH(AE$8,0)) - SUMIFS(Datenblatt!$M:$M, Datenblatt!$E:$E,$C12, Datenblatt!$R:$R,">="&AE$8,Datenblatt!$R:$R,"<="&EOMONTH(AE$8,0)), "") -> 0 | AF12: =IF(ISNUMBER($C12), SUMIFS(Datenblatt!$M:$M, Datenblatt!$G:$G,$C12, Datenblatt!$R:$R,">="&AF$8,Datenblatt!$R:$R,"<="&EOMONTH(AF$8,0)) - SUMIFS(Datenblatt!$M:$M, Datenblatt!$E:$E,$C12, Datenblatt!$R:$R,">="&AF$8,Datenblatt!$R:$R,"<="&EOMONTH(AF$8,0)), "") -> 0 | AG12: =IF(ISNUMBER($C12), SUMIFS(Datenblatt!$M:$M, Datenblatt!$G:$G,$C12, Datenblatt!$R:$R,">="&AG$8,Datenblatt!$R:$R,"<="&EOMONTH(AG$8,0)) - SUMIFS(Datenblatt!$M:$M, Datenblatt!$E:$E,$C12, Datenblatt!$R:$R,">="&AG$8,Datenblatt!$R:$R,"<="&EOMONTH(AG$8,0)), "") -> 0 | AH12: =IF(ISNUMBER($C12), SUMIFS(Datenblatt!$M:$M, Datenblatt!$G:$G,$C12, Datenblatt!$R:$R,">="&AH$8,Datenblatt!$R:$R,"<="&EOMONTH(AH$8,0)) - SUMIFS(Datenblatt!$M:$M, Datenblatt!$E:$E,$C12, Datenblatt!$R:$R,">="&AH$8,Datenblatt!$R:$R,"<="&EOMONTH(AH$8,0)), "") -> -31.18576842 | AI12: =IF(ISNUMBER($C12), SUMIFS(Datenblatt!$M:$M, Datenblatt!$G:$G,$C12, Datenblatt!$R:$R,">="&AI$8,Datenblatt!$R:$R,"<="&EOMONTH(AI$8,0)) - SUMIFS(Datenblatt!$M:$M, Datenblatt!$E:$E,$C12, Datenblatt!$R:$R,">="&AI$8,Datenblatt!$R:$R,"<="&EOMONTH(AI$8,0)), "") -> 0 | AJ12: =IF(ISNUMBER($C12), SUMIFS(Datenblatt!$M:$M, Datenblatt!$G:$G,$C12, Datenblatt!$R:$R,">="&AJ$8,Datenblatt!$R:$R,"<="&EOMONTH(AJ$8,0)) - SUMIFS(Datenblatt!$M:$M, Datenblatt!$E:$E,$C12, Datenblatt!$R:$R,">="&AJ$8,Datenblatt!$R:$R,"<="&EOMONTH(AJ$8,0)), "") -> 0 | AK12: =IF(ISNUMBER($C12), SUMIFS(Datenblatt!$M:$M, Datenblatt!$G:$G,$C12, Datenblatt!$R:$R,">="&AK$8,Datenblatt!$R:$R,"<="&EOMONTH(AK$8,0)) - SUMIFS(Datenblatt!$M:$M, Datenblatt!$E:$E,$C12, Datenblatt!$R:$R,">="&AK$8,Datenblatt!$R:$R,"<="&EOMONTH(AK$8,0)), "") -> 0 | AL12: =IF(ISNUMBER($C12), SUMIFS(Datenblatt!$M:$M, Datenblatt!$G:$G,$C12, Datenblatt!$R:$R,">="&AL$8,Datenblatt!$R:$R,"<="&EOMONTH(AL$8,0)) - SUMIFS(Datenblatt!$M:$M, Datenblatt!$E:$E,$C12, Datenblatt!$R:$R,">="&AL$8,Datenblatt!$R:$R,"<="&EOMONTH(AL$8,0)), "") -> 15.64747822 | AM12: =IF(ISNUMBER($C12), SUMIFS(Datenblatt!$M:$M, Datenblatt!$G:$G,$C12, Datenblatt!$R:$R,">="&AM$8,Datenblatt!$R:$R,"<="&EOMONTH(AM$8,0)) - SUMIFS(Datenblatt!$M:$M, Datenblatt!$E:$E,$C12, Datenblatt!$R:$R,">="&AM$8,Datenblatt!$R:$R,"<="&EOMONTH(AM$8,0)), "") -> 0 | AN12: =IF(ISNUMBER($C12), SUMIFS(Datenblatt!$M:$M, Datenblatt!$G:$G,$C12, Datenblatt!$R:$R,">="&AN$8,Datenblatt!$R:$R,"<="&EOMONTH(AN$8,0)) - SUMIFS(Datenblatt!$M:$M, Datenblatt!$E:$E,$C12, Datenblatt!$R:$R,">="&AN$8,Datenblatt!$R:$R,"<="&EOMONTH(AN$8,0)), "") -> 0 | AO12: =IF(ISNUMBER($C12), SUMIFS(Datenblatt!$M:$M, Datenblatt!$G:$G,$C12, Datenblatt!$R:$R,">="&AO$8,Datenblatt!$R:$R,"<="&EOMONTH(AO$8,0)) - SUMIFS(Datenblatt!$M:$M, Datenblatt!$E:$E,$C12, Datenblatt!$R:$R,">="&AO$8,Datenblatt!$R:$R,"<="&EOMONTH(AO$8,0)), "") -> 0 | AP12: =IF(ISNUMBER($C12), SUMIFS(Datenblatt!$M:$M, Datenblatt!$G:$G,$C12, Datenblatt!$R:$R,">="&AP$8,Datenblatt!$R:$R,"<="&EOMONTH(AP$8,0)) - SUMIFS(Datenblatt!$M:$M, Datenblatt!$E:$E,$C12, Datenblatt!$R:$R,">="&AP$8,Datenblatt!$R:$R,"<="&EOMONTH(AP$8,0)), "") -> 0 | AQ12: =IF(ISNUMBER($C12), SUMIFS(Datenblatt!$M:$M, Datenblatt!$G:$G,$C12, Datenblatt!$R:$R,">="&AQ$8,Datenblatt!$R:$R,"<="&EOMONTH(AQ$8,0)) - SUMIFS(Datenblatt!$M:$M, Datenblatt!$E:$E,$C12, Datenblatt!$R:$R,">="&AQ$8,Datenblatt!$R:$R,"<="&EOMONTH(AQ$8,0)), "") -> 93.03745141 | AR12: =IF(ISNUMBER($C12), SUMIFS(Datenblatt!$M:$M, Datenblatt!$G:$G,$C12, Datenblatt!$R:$R,">="&AR$8,Datenblatt!$R:$R,"<="&EOMONTH(AR$8,0)) - SUMIFS(Datenblatt!$M:$M, Datenblatt!$E:$E,$C12, Datenblatt!$R:$R,">="&AR$8,Datenblatt!$R:$R,"<="&EOMONTH(AR$8,0)), "") -> 0 | AS12: =IF(ISNUMBER($C12), SUMIFS(Datenblatt!$M:$M, Datenblatt!$G:$G,$C12, Datenblatt!$R:$R,">="&AS$8,Datenblatt!$R:$R,"<="&EOMONTH(AS$8,0)) - SUMIFS(Datenblatt!$M:$M, Datenblatt!$E:$E,$C12, Datenblatt!$R:$R,">="&AS$8,Datenblatt!$R:$R,"<="&EOMONTH(AS$8,0)), "") -> 0 | AT12: =IF(ISNUMBER($C12), SUMIFS(Datenblatt!$M:$M, Datenblatt!$G:$G,$C12, Datenblatt!$R:$R,">="&AT$8,Datenblatt!$R:$R,"<="&EOMONTH(AT$8,0)) - SUMIFS(Datenblatt!$M:$M, Datenblatt!$E:$E,$C12, Datenblatt!$R:$R,">="&AT$8,Datenblatt!$R:$R,"<="&EOMONTH(AT$8,0)), "") -> 0 | AU12: =IF(ISNUMBER($C12), SUMIFS(Datenblatt!$M:$M, Datenblatt!$G:$G,$C12, Datenblatt!$R:$R,">="&AU$8,Datenblatt!$R:$R,"<="&EOMONTH(AU$8,0)) - SUMIFS(Datenblatt!$M:$M, Datenblatt!$E:$E,$C12, Datenblatt!$R:$R,">="&AU$8,Datenblatt!$R:$R,"<="&EOMONTH(AU$8,0)), "") -> 0 | AV12: =IF(ISNUMBER($C12), SUMIFS(Datenblatt!$M:$M, Datenblatt!$G:$G,$C12, Datenblatt!$R:$R,">="&AV$8,Datenblatt!$R:$R,"<="&EOMONTH(AV$8,0)) - SUMIFS(Datenblatt!$M:$M, Datenblatt!$E:$E,$C12, Datenblatt!$R:$R,">="&AV$8,Datenblatt!$R:$R,"<="&EOMONTH(AV$8,0)), "") -> 143.1547328 | AW12: =IF(ISNUMBER($C12), SUMIFS(Datenblatt!$M:$M, Datenblatt!$G:$G,$C12, Datenblatt!$R:$R,">="&AW$8,Datenblatt!$R:$R,"<="&EOMONTH(AW$8,0)) - SUMIFS(Datenblatt!$M:$M, Datenblatt!$E:$E,$C12, Datenblatt!$R:$R,">="&AW$8,Datenblatt!$R:$R,"<="&EOMONTH(AW$8,0)), "") -> 0 | AX12: =IF(ISNUMBER($C12), SUMIFS(Datenblatt!$M:$M, Datenblatt!$G:$G,$C12, Datenblatt!$R:$R,">="&AX$8,Datenblatt!$R:$R,"<="&EOMONTH(AX$8,0)) - SUMIFS(Datenblatt!$M:$M, Datenblatt!$E:$E,$C12, Datenblatt!$R:$R,">="&AX$8,Datenblatt!$R:$R,"<="&EOMONTH(AX$8,0)), "") -> 61.69774702 | AY12: =IF(ISNUMBER($C12), SUMIFS(Datenblatt!$M:$M, Datenblatt!$G:$G,$C12, Datenblatt!$R:$R,">="&AY$8,Datenblatt!$R:$R,"<="&EOMONTH(AY$8,0)) - SUMIFS(Datenblatt!$M:$M, Datenblatt!$E:$E,$C12, Datenblatt!$R:$R,">="&AY$8,Datenblatt!$R:$R,"<="&EOMONTH(AY$8,0)), "") -> 0 | AZ12: =IF(ISNUMBER($C12), SUMIFS(Datenblatt!$M:$M, Datenblatt!$G:$G,$C12, Datenblatt!$R:$R,">="&AZ$8,Datenblatt!$R:$R,"<="&EOMONTH(AZ$8,0)) - SUMIFS(Datenblatt!$M:$M, Datenblatt!$E:$E,$C12, Datenblatt!$R:$R,">="&AZ$8,Datenblatt!$R:$R,"<="&EOMONTH(AZ$8,0)), "") -> 0 | BA12: =IF(ISNUMBER($C12), SUMIFS(Datenblatt!$M:$M, Datenblatt!$G:$G,$C12, Datenblatt!$R:$R,">="&BA$8,Datenblatt!$R:$R,"<="&EOMONTH(BA$8,0)) - SUMIFS(Datenblatt!$M:$M, Datenblatt!$E:$E,$C12, Datenblatt!$R:$R,">="&BA$8,Datenblatt!$R:$R,"<="&EOMONTH(BA$8,0)), "") -> 0 | BB12: =IF(ISNUMBER($C12), SUMIFS(Datenblatt!$M:$M, Datenblatt!$G:$G,$C12, Datenblatt!$R:$R,">="&BB$8,Datenblatt!$R:$R,"<="&EOMONTH(BB$8,0)) - SUMIFS(Datenblatt!$M:$M, Datenblatt!$E:$E,$C12, Datenblatt!$R:$R,">="&BB$8,Datenblatt!$R:$R,"<="&EOMONTH(BB$8,0)), "") -> 9.811728057 | BC12: =IF(ISNUMBER($C12), SUMIFS(Datenblatt!$M:$M, Datenblatt!$G:$G,$C12, Datenblatt!$R:$R,">="&BC$8,Datenblatt!$R:$R,"<="&EOMONTH(BC$8,0)) - SUMIFS(Datenblatt!$M:$M, Datenblatt!$E:$E,$C12, Datenblatt!$R:$R,">="&BC$8,Datenblatt!$R:$R,"<="&EOMONTH(BC$8,0)), "") -> 0 | BD12: =IF(ISNUMBER($C12), SUMIFS(Datenblatt!$M:$M, Datenblatt!$G:$G,$C12, Datenblatt!$R:$R,">="&BD$8,Datenblatt!$R:$R,"<="&EOMONTH(BD$8,0)) - SUMIFS(Datenblatt!$M:$M, Datenblatt!$E:$E,$C12, Datenblatt!$R:$R,">="&BD$8,Datenblatt!$R:$R,"<="&EOMONTH(BD$8,0)), "") -> 0 | BE12: =IF(ISNUMBER($C12), SUMIFS(Datenblatt!$M:$M, Datenblatt!$G:$G,$C12, Datenblatt!$R:$R,">="&BE$8,Datenblatt!$R:$R,"<="&EOMONTH(BE$8,0)) - SUMIFS(Datenblatt!$M:$M, Datenblatt!$E:$E,$C12, Datenblatt!$R:$R,">="&BE$8,Datenblatt!$R:$R,"<="&EOMONTH(BE$8,0)), "") -> 0 | BF12: =IF(ISNUMBER($C12), SUMIFS(Datenblatt!$M:$M, Datenblatt!$G:$G,$C12, Datenblatt!$R:$R,">="&BF$8,Datenblatt!$R:$R,"<="&EOMONTH(BF$8,0)) - SUMIFS(Datenblatt!$M:$M, Datenblatt!$E:$E,$C12, Datenblatt!$R:$R,">="&BF$8,Datenblatt!$R:$R,"<="&EOMONTH(BF$8,0)), "") -> -31.18576842 | BG12: =IF(ISNUMBER($C12), SUMIFS(Datenblatt!$M:$M, Datenblatt!$G:$G,$C12, Datenblatt!$R:$R,">="&BG$8,Datenblatt!$R:$R,"<="&EOMONTH(BG$8,0)) - SUMIFS(Datenblatt!$M:$M, Datenblatt!$E:$E,$C12, Datenblatt!$R:$R,">="&BG$8,Datenblatt!$R:$R,"<="&EOMONTH(BG$8,0)), "") -> 0 | BH12: =IF(ISNUMBER($C12), SUMIFS(Datenblatt!$M:$M, Datenblatt!$G:$G,$C12, Datenblatt!$R:$R,">="&BH$8,Datenblatt!$R:$R,"<="&EOMONTH(BH$8,0)) - SUMIFS(Datenblatt!$M:$M, Datenblatt!$E:$E,$C12, Datenblatt!$R:$R,">="&BH$8,Datenblatt!$R:$R,"<="&EOMONTH(BH$8,0)), "") -> 0 | BI12: =IF(ISNUMBER($C12), SUMIFS(Datenblatt!$M:$M, Datenblatt!$G:$G,$C12, Datenblatt!$R:$R,">="&BI$8,Datenblatt!$R:$R,"<="&EOMONTH(BI$8,0)) - SUMIFS(Datenblatt!$M:$M, Datenblatt!$E:$E,$C12, Datenblatt!$R:$R,">="&BI$8,Datenblatt!$R:$R,"<="&EOMONTH(BI$8,0)), "") -> 0 | BJ12: =IF(ISNUMBER($C12), SUMIFS(Datenblatt!$M:$M, Datenblatt!$G:$G,$C12, Datenblatt!$R:$R,">="&BJ$8,Datenblatt!$R:$R,"<="&EOMONTH(BJ$8,0)) - SUMIFS(Datenblatt!$M:$M, Datenblatt!$E:$E,$C12, Datenblatt!$R:$R,">="&BJ$8,Datenblatt!$R:$R,"<="&EOMONTH(BJ$8,0)), "") -> 15.64747822 | BK12: =IF(ISNUMBER($C12), SUMIFS(Datenblatt!$M:$M, Datenblatt!$G:$G,$C12, Datenblatt!$R:$R,">="&BK$8,Datenblatt!$R:$R,"<="&EOMONTH(BK$8,0)) - SUMIFS(Datenblatt!$M:$M, Datenblatt!$E:$E,$C12, Datenblatt!$R:$R,">="&BK$8,Datenblatt!$R:$R,"<="&EOMONTH(BK$8,0)), "") -> 0 | BL12: =IF(ISNUMBER($C12), SUMIFS(Datenblatt!$M:$M, Datenblatt!$G:$G,$C12, Datenblatt!$R:$R,">="&BL$8,Datenblatt!$R:$R,"<="&EOMONTH(BL$8,0)) - SUMIFS(Datenblatt!$M:$M, Datenblatt!$E:$E,$C12, Datenblatt!$R:$R,">="&BL$8,Datenblatt!$R:$R,"<="&EOMONTH(BL$8,0)), "") -> 0 | BM12: =IF(ISNUMBER($C12), SUMIFS(Datenblatt!$M:$M, Datenblatt!$G:$G,$C12, Datenblatt!$R:$R,">="&BM$8,Datenblatt!$R:$R,"<="&EOMONTH(BM$8,0)) - SUMIFS(Datenblatt!$M:$M, Datenblatt!$E:$E,$C12, Datenblatt!$R:$R,">="&BM$8,Datenblatt!$R:$R,"<="&EOMONTH(BM$8,0)), "") -> 0 | BN12: =IF(ISNUMBER($C12), SUMIFS(Datenblatt!$M:$M, Datenblatt!$G:$G,$C12, Datenblatt!$R:$R,">="&BN$8,Datenblatt!$R:$R,"<="&EOMONTH(BN$8,0)) - SUMIFS(Datenblatt!$M:$M, Datenblatt!$E:$E,$C12, Datenblatt!$R:$R,">="&BN$8,Datenblatt!$R:$R,"<="&EOMONTH(BN$8,0)), "") -> 0 | BO12: =IF(ISNUMBER($C12), SUMIFS(Datenblatt!$M:$M, Datenblatt!$G:$G,$C12, Datenblatt!$R:$R,">="&BO$8,Datenblatt!$R:$R,"<="&EOMONTH(BO$8,0)) - SUMIFS(Datenblatt!$M:$M, Datenblatt!$E:$E,$C12, Datenblatt!$R:$R,">="&BO$8,Datenblatt!$R:$R,"<="&EOMONTH(BO$8,0)), "") -> 93.03745141 | BP12: =IF(ISNUMBER($C12), SUMIFS(Datenblatt!$M:$M, Datenblatt!$G:$G,$C12, Datenblatt!$R:$R,">="&BP$8,Datenblatt!$R:$R,"<="&EOMONTH(BP$8,0)) - SUMIFS(Datenblatt!$M:$M, Datenblatt!$E:$E,$C12, Datenblatt!$R:$R,">="&BP$8,Datenblatt!$R:$R,"<="&EOMONTH(BP$8,0)), "") -> 0 | BQ12: =IF(ISNUMBER($C12), SUMIFS(Datenblatt!$M:$M, Datenblatt!$G:$G,$C12, Datenblatt!$R:$R,">="&BQ$8,Datenblatt!$R:$R,"<="&EOMONTH(BQ$8,0)) - SUMIFS(Datenblatt!$M:$M, Datenblatt!$E:$E,$C12, Datenblatt!$R:$R,">="&BQ$8,Datenblatt!$R:$R,"<="&EOMONTH(BQ$8,0)), "") -> 0 | BR12: =IF(ISNUMBER($C12), SUMIFS(Datenblatt!$M:$M, Datenblatt!$G:$G,$C12, Datenblatt!$R:$R,">="&BR$8,Datenblatt!$R:$R,"<="&EOMONTH(BR$8,0)) - SUMIFS(Datenblatt!$M:$M, Datenblatt!$E:$E,$C12, Datenblatt!$R:$R,">="&BR$8,Datenblatt!$R:$R,"<="&EOMONTH(BR$8,0)), "") -> 0 | BS12: =IF(ISNUMBER($C12), SUMIFS(Datenblatt!$M:$M, Datenblatt!$G:$G,$C12, Datenblatt!$R:$R,">="&BS$8,Datenblatt!$R:$R,"<="&EOMONTH(BS$8,0)) - SUMIFS(Datenblatt!$M:$M, Datenblatt!$E:$E,$C12, Datenblatt!$R:$R,">="&BS$8,Datenblatt!$R:$R,"<="&EOMONTH(BS$8,0)), "") -> 0 | BT12: =IF(ISNUMBER($C12), SUMIFS(Datenblatt!$M:$M, Datenblatt!$G:$G,$C12, Datenblatt!$R:$R,">="&BT$8,Datenblatt!$R:$R,"<="&EOMONTH(BT$8,0)) - SUMIFS(Datenblatt!$M:$M, Datenblatt!$E:$E,$C12, Datenblatt!$R:$R,">="&BT$8,Datenblatt!$R:$R,"<="&EOMONTH(BT$8,0)), "") -> 0 | BU12: =IF(ISNUMBER($C12), SUMIFS(Datenblatt!$M:$M, Datenblatt!$G:$G,$C12, Datenblatt!$R:$R,">="&BU$8,Datenblatt!$R:$R,"<="&EOMONTH(BU$8,0)) - SUMIFS(Datenblatt!$M:$M, Datenblatt!$E:$E,$C12, Datenblatt!$R:$R,">="&BU$8,Datenblatt!$R:$R,"<="&EOMONTH(BU$8,0)), "") -> 0 | BV12: =IF(ISNUMBER($C12), SUMIFS(Datenblatt!$M:$M, Datenblatt!$G:$G,$C12, Datenblatt!$R:$R,">="&BV$8,Datenblatt!$R:$R,"<="&EOMONTH(BV$8,0)) - SUMIFS(Datenblatt!$M:$M, Datenblatt!$E:$E,$C12, Datenblatt!$R:$R,">="&BV$8,Datenblatt!$R:$R,"<="&EOMONTH(BV$8,0)), "") -> 61.69774702 | BW12: =IF(ISNUMBER($C12), SUMIFS(Datenblatt!$M:$M, Datenblatt!$G:$G,$C12, Datenblatt!$R:$R,">="&BW$8,Datenblatt!$R:$R,"<="&EOMONTH(BW$8,0)) - SUMIFS(Datenblatt!$M:$M, Datenblatt!$E:$E,$C12, Datenblatt!$R:$R,">="&BW$8,Datenblatt!$R:$R,"<="&EOMONTH(BW$8,0)), "") -> 0 | BX12: =IF(ISNUMBER($C12), SUMIFS(Datenblatt!$M:$M, Datenblatt!$G:$G,$C12, Datenblatt!$R:$R,">="&BX$8,Datenblatt!$R:$R,"<="&EOMONTH(BX$8,0)) - SUMIFS(Datenblatt!$M:$M, Datenblatt!$E:$E,$C12, Datenblatt!$R:$R,">="&BX$8,Datenblatt!$R:$R,"<="&EOMONTH(BX$8,0)), "") -> 0 | BY12: =IF(ISNUMBER($C12), SUMIFS(Datenblatt!$M:$M, Datenblatt!$G:$G,$C12, Datenblatt!$R:$R,">="&BY$8,Datenblatt!$R:$R,"<="&EOMONTH(BY$8,0)) - SUMIFS(Datenblatt!$M:$M, Datenblatt!$E:$E,$C12, Datenblatt!$R:$R,">="&BY$8,Datenblatt!$R:$R,"<="&EOMONTH(BY$8,0)), "") -> 0 | BZ12: =IF(ISNUMBER($C12), SUMIFS(Datenblatt!$M:$M, Datenblatt!$G:$G,$C12, Datenblatt!$R:$R,">="&BZ$8,Datenblatt!$R:$R,"<="&EOMONTH(BZ$8,0)) - SUMIFS(Datenblatt!$M:$M, Datenblatt!$E:$E,$C12, Datenblatt!$R:$R,">="&BZ$8,Datenblatt!$R:$R,"<="&EOMONTH(BZ$8,0)), "") -> 0 | CA12: =IF(ISNUMBER($C12), SUMIFS(Datenblatt!$M:$M, Datenblatt!$G:$G,$C12, Datenblatt!$R:$R,">="&CA$8,Datenblatt!$R:$R,"<="&EOMONTH(CA$8,0)) - SUMIFS(Datenblatt!$M:$M, Datenblatt!$E:$E,$C12, Datenblatt!$R:$R,">="&CA$8,Datenblatt!$R:$R,"<="&EOMONTH(CA$8,0)), "") -> 93.03745141 | CB12: =IF(ISNUMBER($C12), SUMIFS(Datenblatt!$M:$M, Datenblatt!$G:$G,$C12, Datenblatt!$R:$R,">="&CB$8,Datenblatt!$R:$R,"<="&EOMONTH(CB$8,0)) - SUMIFS(Datenblatt!$M:$M, Datenblatt!$E:$E,$C12, Datenblatt!$R:$R,">="&CB$8,Datenblatt!$R:$R,"<="&EOMONTH(CB$8,0)), "") -> 0 | CC12: =IF(ISNUMBER($C12), SUMIFS(Datenblatt!$M:$M, Datenblatt!$G:$G,$C12, Datenblatt!$R:$R,">="&CC$8,Datenblatt!$R:$R,"<="&EOMONTH(CC$8,0)) - SUMIFS(Datenblatt!$M:$M, Datenblatt!$E:$E,$C12, Datenblatt!$R:$R,">="&CC$8,Datenblatt!$R:$R,"<="&EOMONTH(CC$8,0)), "") -> 0 | CD12: =IF(ISNUMBER($C12), SUMIFS(Datenblatt!$M:$M, Datenblatt!$G:$G,$C12, Datenblatt!$R:$R,">="&CD$8,Datenblatt!$R:$R,"<="&EOMONTH(CD$8,0)) - SUMIFS(Datenblatt!$M:$M, Datenblatt!$E:$E,$C12, Datenblatt!$R:$R,">="&CD$8,Datenblatt!$R:$R,"<="&EOMONTH(CD$8,0)), "") -> 0 | CE12: =IF(ISNUMBER($C12), SUMIFS(Datenblatt!$M:$M, Datenblatt!$G:$G,$C12, Datenblatt!$R:$R,">="&CE$8,Datenblatt!$R:$R,"<="&EOMONTH(CE$8,0)) - SUMIFS(Datenblatt!$M:$M, Datenblatt!$E:$E,$C12, Datenblatt!$R:$R,">="&CE$8,Datenblatt!$R:$R,"<="&EOMONTH(CE$8,0)), "") -> 0 | CF12: =IF(ISNUMBER($C12), SUMIFS(Datenblatt!$M:$M, Datenblatt!$G:$G,$C12, Datenblatt!$R:$R,">="&CF$8,Datenblatt!$R:$R,"<="&EOMONTH(CF$8,0)) - SUMIFS(Datenblatt!$M:$M, Datenblatt!$E:$E,$C12, Datenblatt!$R:$R,">="&CF$8,Datenblatt!$R:$R,"<="&EOMONTH(CF$8,0)), "") -> 143.1547328 | CG12: =IF(ISNUMBER($C12), SUMIFS(Datenblatt!$M:$M, Datenblatt!$G:$G,$C12, Datenblatt!$R:$R,">="&CG$8,Datenblatt!$R:$R,"<="&EOMONTH(CG$8,0)) - SUMIFS(Datenblatt!$M:$M, Datenblatt!$E:$E,$C12, Datenblatt!$R:$R,">="&CG$8,Datenblatt!$R:$R,"<="&EOMONTH(CG$8,0)), "") -> 0 | CH12: =IF(ISNUMBER($C12), SUMIFS(Datenblatt!$M:$M, Datenblatt!$G:$G,$C12, Datenblatt!$R:$R,">="&CH$8,Datenblatt!$R:$R,"<="&EOMONTH(CH$8,0)) - SUMIFS(Datenblatt!$M:$M, Datenblatt!$E:$E,$C12, Datenblatt!$R:$R,">="&CH$8,Datenblatt!$R:$R,"<="&EOMONTH(CH$8,0)), "") -> 61.69774702 | CI12: =IF(ISNUMBER($C12), SUMIFS(Datenblatt!$M:$M, Datenblatt!$G:$G,$C12, Datenblatt!$R:$R,">="&CI$8,Datenblatt!$R:$R,"<="&EOMONTH(CI$8,0)) - SUMIFS(Datenblatt!$M:$M, Datenblatt!$E:$E,$C12, Datenblatt!$R:$R,">="&CI$8,Datenblatt!$R:$R,"<="&EOMONTH(CI$8,0)), "") -> 0 | CJ12: =IF(ISNUMBER($C12), SUMIFS(Datenblatt!$M:$M, Datenblatt!$G:$G,$C12, Datenblatt!$R:$R,">="&CJ$8,Datenblatt!$R:$R,"<="&EOMONTH(CJ$8,0)) - SUMIFS(Datenblatt!$M:$M, Datenblatt!$E:$E,$C12, Datenblatt!$R:$R,">="&CJ$8,Datenblatt!$R:$R,"<="&EOMONTH(CJ$8,0)), "") -> 0 | CK12: =IF(ISNUMBER($C12), SUMIFS(Datenblatt!$M:$M, Datenblatt!$G:$G,$C12, Datenblatt!$R:$R,">="&CK$8,Datenblatt!$R:$R,"<="&EOMONTH(CK$8,0)) - SUMIFS(Datenblatt!$M:$M, Datenblatt!$E:$E,$C12, Datenblatt!$R:$R,">="&CK$8,Datenblatt!$R:$R,"<="&EOMONTH(CK$8,0)), "") -> 0 | CL12: =IF(ISNUMBER($C12), SUMIFS(Datenblatt!$M:$M, Datenblatt!$G:$G,$C12, Datenblatt!$R:$R,">="&CL$8,Datenblatt!$R:$R,"<="&EOMONTH(CL$8,0)) - SUMIFS(Datenblatt!$M:$M, Datenblatt!$E:$E,$C12, Datenblatt!$R:$R,">="&CL$8,Datenblatt!$R:$R,"<="&EOMONTH(CL$8,0)), "") -> 0 | CM12: =IF(ISNUMBER($C12), SUMIFS(Datenblatt!$M:$M, Datenblatt!$G:$G,$C12, Datenblatt!$R:$R,">="&CM$8,Datenblatt!$R:$R,"<="&EOMONTH(CM$8,0)) - SUMIFS(Datenblatt!$M:$M, Datenblatt!$E:$E,$C12, Datenblatt!$R:$R,">="&CM$8,Datenblatt!$R:$R,"<="&EOMONTH(CM$8,0)), "") -> 0 | CN12: =IF(ISNUMBER($C12), SUMIFS(Datenblatt!$M:$M, Datenblatt!$G:$G,$C12, Datenblatt!$R:$R,">="&CN$8,Datenblatt!$R:$R,"<="&EOMONTH(CN$8,0)) - SUMIFS(Datenblatt!$M:$M, Datenblatt!$E:$E,$C12, Datenblatt!$R:$R,">="&CN$8,Datenblatt!$R:$R,"<="&EOMONTH(CN$8,0)), "") -> 0 | CO12: =IF(ISNUMBER($C12), SUMIFS(Datenblatt!$M:$M, Datenblatt!$G:$G,$C12, Datenblatt!$R:$R,">="&CO$8,Datenblatt!$R:$R,"<="&EOMONTH(CO$8,0)) - SUMIFS(Datenblatt!$M:$M, Datenblatt!$E:$E,$C12, Datenblatt!$R:$R,">="&CO$8,Datenblatt!$R:$R,"<="&EOMONTH(CO$8,0)), "") -> 0 | CP12: =IF(ISNUMBER($C12), SUMIFS(Datenblatt!$M:$M, Datenblatt!$G:$G,$C12, Datenblatt!$R:$R,">="&CP$8,Datenblatt!$R:$R,"<="&EOMONTH(CP$8,0)) - SUMIFS(Datenblatt!$M:$M, Datenblatt!$E:$E,$C12, Datenblatt!$R:$R,">="&CP$8,Datenblatt!$R:$R,"<="&EOMONTH(CP$8,0)), "") -> 0 | CQ12: =IF(ISNUMBER($C12), SUMIFS(Datenblatt!$M:$M, Datenblatt!$G:$G,$C12, Datenblatt!$R:$R,">="&CQ$8,Datenblatt!$R:$R,"<="&EOMONTH(CQ$8,0)) - SUMIFS(Datenblatt!$M:$M, Datenblatt!$E:$E,$C12, Datenblatt!$R:$R,">="&CQ$8,Datenblatt!$R:$R,"<="&EOMONTH(CQ$8,0)), "") -> 0 | CR12: =IF(ISNUMBER($C12), SUMIFS(Datenblatt!$M:$M, Datenblatt!$G:$G,$C12, Datenblatt!$R:$R,">="&CR$8,Datenblatt!$R:$R,"<="&EOMONTH(CR$8,0)) - SUMIFS(Datenblatt!$M:$M, Datenblatt!$E:$E,$C12, Datenblatt!$R:$R,">="&CR$8,Datenblatt!$R:$R,"<="&EOMONTH(CR$8,0)), "") -> 0 | CS12: =IF(ISNUMBER($C12), SUMIFS(Datenblatt!$M:$M, Datenblatt!$G:$G,$C12, Datenblatt!$R:$R,">="&CS$8,Datenblatt!$R:$R,"<="&EOMONTH(CS$8,0)) - SUMIFS(Datenblatt!$M:$M, Datenblatt!$E:$E,$C12, Datenblatt!$R:$R,">="&CS$8,Datenblatt!$R:$R,"<="&EOMONTH(CS$8,0)), "") -> 0 | CT12: =IF(ISNUMBER($C12), SUMIFS(Datenblatt!$M:$M, Datenblatt!$G:$G,$C12, Datenblatt!$R:$R,">="&CT$8,Datenblatt!$R:$R,"<="&EOMONTH(CT$8,0)) - SUMIFS(Datenblatt!$M:$M, Datenblatt!$E:$E,$C12, Datenblatt!$R:$R,">="&CT$8,Datenblatt!$R:$R,"<="&EOMONTH(CT$8,0)), "") -> 0 | CU12: =IF(ISNUMBER($C12), SUMIFS(Datenblatt!$M:$M, Datenblatt!$G:$G,$C12, Datenblatt!$R:$R,">="&CU$8,Datenblatt!$R:$R,"<="&EOMONTH(CU$8,0)) - SUMIFS(Datenblatt!$M:$M, Datenblatt!$E:$E,$C12, Datenblatt!$R:$R,">="&CU$8,Datenblatt!$R:$R,"<="&EOMONTH(CU$8,0)), "") -> 0 | CV12: =IF(ISNUMBER($C12), SUMIFS(Datenblatt!$M:$M, Datenblatt!$G:$G,$C12, Datenblatt!$R:$R,">="&CV$8,Datenblatt!$R:$R,"<="&EOMONTH(CV$8,0)) - SUMIFS(Datenblatt!$M:$M, Datenblatt!$E:$E,$C12, Datenblatt!$R:$R,">="&CV$8,Datenblatt!$R:$R,"<="&EOMONTH(CV$8,0)), "") -> 0 | CW12: =IF(ISNUMBER($C12), SUMIFS(Datenblatt!$M:$M, Datenblatt!$G:$G,$C12, Datenblatt!$R:$R,">="&CW$8,Datenblatt!$R:$R,"<="&EOMONTH(CW$8,0)) - SUMIFS(Datenblatt!$M:$M, Datenblatt!$E:$E,$C12, Datenblatt!$R:$R,">="&CW$8,Datenblatt!$R:$R,"<="&EOMONTH(CW$8,0)), "") -> 0 | CX12: =IF(ISNUMBER($C12), SUMIFS(Datenblatt!$M:$M, Datenblatt!$G:$G,$C12, Datenblatt!$R:$R,">="&CX$8,Datenblatt!$R:$R,"<="&EOMONTH(CX$8,0)) - SUMIFS(Datenblatt!$M:$M, Datenblatt!$E:$E,$C12, Datenblatt!$R:$R,">="&CX$8,Datenblatt!$R:$R,"<="&EOMONTH(CX$8,0)), "") -> 0 | CY12: =IF(ISNUMBER($C12), SUMIFS(Datenblatt!$M:$M, Datenblatt!$G:$G,$C12, Datenblatt!$R:$R,">="&CY$8,Datenblatt!$R:$R,"<="&EOMONTH(CY$8,0)) - SUMIFS(Datenblatt!$M:$M, Datenblatt!$E:$E,$C12, Datenblatt!$R:$R,">="&CY$8,Datenblatt!$R:$R,"<="&EOMONTH(CY$8,0)), "") -> 0 | CZ12: =IF(ISNUMBER($C12), SUMIFS(Datenblatt!$M:$M, Datenblatt!$G:$G,$C12, Datenblatt!$R:$R,">="&CZ$8,Datenblatt!$R:$R,"<="&EOMONTH(CZ$8,0)) - SUMIFS(Datenblatt!$M:$M, Datenblatt!$E:$E,$C12, Datenblatt!$R:$R,">="&CZ$8,Datenblatt!$R:$R,"<="&EOMONTH(CZ$8,0)), "") -> 0 | DA12: =IF(ISNUMBER($C12), SUMIFS(Datenblatt!$M:$M, Datenblatt!$G:$G,$C12, Datenblatt!$R:$R,">="&DA$8,Datenblatt!$R:$R,"<="&EOMONTH(DA$8,0)) - SUMIFS(Datenblatt!$M:$M, Datenblatt!$E:$E,$C12, Datenblatt!$R:$R,">="&DA$8,Datenblatt!$R:$R,"<="&EOMONTH(DA$8,0)), "") -> 0 | DB12: =IF(ISNUMBER($C12), SUMIFS(Datenblatt!$M:$M, Datenblatt!$G:$G,$C12, Datenblatt!$R:$R,">="&DB$8,Datenblatt!$R:$R,"<="&EOMONTH(DB$8,0)) - SUMIFS(Datenblatt!$M:$M, Datenblatt!$E:$E,$C12, Datenblatt!$R:$R,">="&DB$8,Datenblatt!$R:$R,"<="&EOMONTH(DB$8,0)), "") -> 0 | DC12: =IF(ISNUMBER($C12), SUMIFS(Datenblatt!$M:$M, Datenblatt!$G:$G,$C12, Datenblatt!$R:$R,">="&DC$8,Datenblatt!$R:$R,"<="&EOMONTH(DC$8,0)) - SUMIFS(Datenblatt!$M:$M, Datenblatt!$E:$E,$C12, Datenblatt!$R:$R,">="&DC$8,Datenblatt!$R:$R,"<="&EOMONTH(DC$8,0)), "") -> 0 | DD12: =IF(ISNUMBER($C12), SUMIFS(Datenblatt!$M:$M, Datenblatt!$G:$G,$C12, Datenblatt!$R:$R,">="&DD$8,Datenblatt!$R:$R,"<="&EOMONTH(DD$8,0)) - SUMIFS(Datenblatt!$M:$M, Datenblatt!$E:$E,$C12, Datenblatt!$R:$R,">="&DD$8,Datenblatt!$R:$R,"<="&EOMONTH(DD$8,0)), "") -> 0 | DE12: =IF(ISNUMBER($C12), SUMIFS(Datenblatt!$M:$M, Datenblatt!$G:$G,$C12, Datenblatt!$R:$R,">="&DE$8,Datenblatt!$R:$R,"<="&EOMONTH(DE$8,0)) - SUMIFS(Datenblatt!$M:$M, Datenblatt!$E:$E,$C12, Datenblatt!$R:$R,">="&DE$8,Datenblatt!$R:$R,"<="&EOMONTH(DE$8,0)), "") -> 0 | DF12: =IF(ISNUMBER($C12), SUMIFS(Datenblatt!$M:$M, Datenblatt!$G:$G,$C12, Datenblatt!$R:$R,">="&DF$8,Datenblatt!$R:$R,"<="&EOMONTH(DF$8,0)) - SUMIFS(Datenblatt!$M:$M, Datenblatt!$E:$E,$C12, Datenblatt!$R:$R,">="&DF$8,Datenblatt!$R:$R,"<="&EOMONTH(DF$8,0)), "") -> 0
B13: Ertragskonto | C13: 3250 | D13: Ertrag aus Schulungen | G13: =IF(ISNUMBER($C13), SUMIFS(Datenblatt!$M:$M, Datenblatt!$G:$G,$C13, Datenblatt!$R:$R,">="&G$8,Datenblatt!$R:$R,"<="&EOMONTH(G$8,11)) - SUMIFS(Datenblatt!$M:$M, Datenblatt!$E:$E,$C13, Datenblatt!$R:$R,">="&G$8,Datenblatt!$R:$R,"<="&EOMONTH(G$8,11)), "") -> 0 | H13: =IF(ISNUMBER($C13), SUMIFS(Datenblatt!$M:$M, Datenblatt!$G:$G,$C13, Datenblatt!$R:$R,">="&H$8,Datenblatt!$R:$R,"<="&EOMONTH(H$8,11)) - SUMIFS(Datenblatt!$M:$M, Datenblatt!$E:$E,$C13, Datenblatt!$R:$R,">="&H$8,Datenblatt!$R:$R,"<="&EOMONTH(H$8,11)), "") -> 0 | I13: =IF(ISNUMBER($C13), SUMIFS(Datenblatt!$M:$M, Datenblatt!$G:$G,$C13, Datenblatt!$R:$R,">="&I$8,Datenblatt!$R:$R,"<="&EOMONTH(I$8,11)) - SUMIFS(Datenblatt!$M:$M, Datenblatt!$E:$E,$C13, Datenblatt!$R:$R,">="&I$8,Datenblatt!$R:$R,"<="&EOMONTH(I$8,11)), "") -> 35.68280807 | J13: =IF(ISNUMBER($C13), SUMIFS(Datenblatt!$M:$M, Datenblatt!$G:$G,$C13, Datenblatt!$R:$R,">="&J$8,Datenblatt!$R:$R,"<="&EOMONTH(J$8,11)) - SUMIFS(Datenblatt!$M:$M, Datenblatt!$E:$E,$C13, Datenblatt!$R:$R,">="&J$8,Datenblatt!$R:$R,"<="&EOMONTH(J$8,11)), "") -> 0 | K13: =IF(ISNUMBER($C13), SUMIFS(Datenblatt!$M:$M, Datenblatt!$G:$G,$C13, Datenblatt!$R:$R,">="&K$8,Datenblatt!$R:$R,"<="&EOMONTH(K$8,11)) - SUMIFS(Datenblatt!$M:$M, Datenblatt!$E:$E,$C13, Datenblatt!$R:$R,">="&K$8,Datenblatt!$R:$R,"<="&EOMONTH(K$8,11)), "") -> 35.68280807 | L13: =IF(ISNUMBER($C13), SUMIFS(Datenblatt!$M:$M, Datenblatt!$G:$G,$C13, Datenblatt!$R:$R,">="&L$8,Datenblatt!$R:$R,"<="&EOMONTH(L$8,11)) - SUMIFS(Datenblatt!$M:$M, Datenblatt!$E:$E,$C13, Datenblatt!$R:$R,">="&L$8,Datenblatt!$R:$R,"<="&EOMONTH(L$8,11)), "") -> 35.68280807 | M13: =IF(ISNUMBER($C13), SUMIFS(Datenblatt!$M:$M, Datenblatt!$G:$G,$C13, Datenblatt!$R:$R,">="&M$8,Datenblatt!$R:$R,"<="&EOMONTH(M$8,11)) - SUMIFS(Datenblatt!$M:$M, Datenblatt!$E:$E,$C13, Datenblatt!$R:$R,">="&M$8,Datenblatt!$R:$R,"<="&EOMONTH(M$8,11)), "") -> 0 | N13: =IF(ISNUMBER($C13), SUMIFS(Datenblatt!$M:$M, Datenblatt!$G:$G,$C13, Datenblatt!$R:$R,">="&N$8,Datenblatt!$R:$R,"<="&EOMONTH(N$8,11)) - SUMIFS(Datenblatt!$M:$M, Datenblatt!$E:$E,$C13, Datenblatt!$R:$R,">="&N$8,Datenblatt!$R:$R,"<="&EOMONTH(N$8,11)), "") -> 0 | O13: =IF(ISNUMBER($C13), SUMIFS(Datenblatt!$M:$M, Datenblatt!$G:$G,$C13, Datenblatt!$R:$R,">="&O$8,Datenblatt!$R:$R,"<="&EOMONTH(O$8,0)) - SUMIFS(Datenblatt!$M:$M, Datenblatt!$E:$E,$C13, Datenblatt!$R:$R,">="&O$8,Datenblatt!$R:$R,"<="&EOMONTH(O$8,0)), "") -> 0 | P13: =IF(ISNUMBER($C13), SUMIFS(Datenblatt!$M:$M, Datenblatt!$G:$G,$C13, Datenblatt!$R:$R,">="&P$8,Datenblatt!$R:$R,"<="&EOMONTH(P$8,0)) - SUMIFS(Datenblatt!$M:$M, Datenblatt!$E:$E,$C13, Datenblatt!$R:$R,">="&P$8,Datenblatt!$R:$R,"<="&EOMONTH(P$8,0)), "") -> 0 | Q13: =IF(ISNUMBER($C13), SUMIFS(Datenblatt!$M:$M, Datenblatt!$G:$G,$C13, Datenblatt!$R:$R,">="&Q$8,Datenblatt!$R:$R,"<="&EOMONTH(Q$8,0)) - SUMIFS(Datenblatt!$M:$M, Datenblatt!$E:$E,$C13, Datenblatt!$R:$R,">="&Q$8,Datenblatt!$R:$R,"<="&EOMONTH(Q$8,0)), "") -> 0 | R13: =IF(ISNUMBER($C13), SUMIFS(Datenblatt!$M:$M, Datenblatt!$G:$G,$C13, Datenblatt!$R:$R,">="&R$8,Datenblatt!$R:$R,"<="&EOMONTH(R$8,0)) - SUMIFS(Datenblatt!$M:$M, Datenblatt!$E:$E,$C13, Datenblatt!$R:$R,">="&R$8,Datenblatt!$R:$R,"<="&EOMONTH(R$8,0)), "") -> 0 | S13: =IF(ISNUMBER($C13), SUMIFS(Datenblatt!$M:$M, Datenblatt!$G:$G,$C13, Datenblatt!$R:$R,">="&S$8,Datenblatt!$R:$R,"<="&EOMONTH(S$8,0)) - SUMIFS(Datenblatt!$M:$M, Datenblatt!$E:$E,$C13, Datenblatt!$R:$R,">="&S$8,Datenblatt!$R:$R,"<="&EOMONTH(S$8,0)), "") -> 0 | T13: =IF(ISNUMBER($C13), SUMIFS(Datenblatt!$M:$M, Datenblatt!$G:$G,$C13, Datenblatt!$R:$R,">="&T$8,Datenblatt!$R:$R,"<="&EOMONTH(T$8,0)) - SUMIFS(Datenblatt!$M:$M, Datenblatt!$E:$E,$C13, Datenblatt!$R:$R,">="&T$8,Datenblatt!$R:$R,"<="&EOMONTH(T$8,0)), "") -> 0 | U13: =IF(ISNUMBER($C13), SUMIFS(Datenblatt!$M:$M, Datenblatt!$G:$G,$C13, Datenblatt!$R:$R,">="&U$8,Datenblatt!$R:$R,"<="&EOMONTH(U$8,0)) - SUMIFS(Datenblatt!$M:$M, Datenblatt!$E:$E,$C13, Datenblatt!$R:$R,">="&U$8,Datenblatt!$R:$R,"<="&EOMONTH(U$8,0)), "") -> 0 | V13: =IF(ISNUMBER($C13), SUMIFS(Datenblatt!$M:$M, Datenblatt!$G:$G,$C13, Datenblatt!$R:$R,">="&V$8,Datenblatt!$R:$R,"<="&EOMONTH(V$8,0)) - SUMIFS(Datenblatt!$M:$M, Datenblatt!$E:$E,$C13, Datenblatt!$R:$R,">="&V$8,Datenblatt!$R:$R,"<="&EOMONTH(V$8,0)), "") -> 0 | W13: =IF(ISNUMBER($C13), SUMIFS(Datenblatt!$M:$M, Datenblatt!$G:$G,$C13, Datenblatt!$R:$R,">="&W$8,Datenblatt!$R:$R,"<="&EOMONTH(W$8,0)) - SUMIFS(Datenblatt!$M:$M, Datenblatt!$E:$E,$C13, Datenblatt!$R:$R,">="&W$8,Datenblatt!$R:$R,"<="&EOMONTH(W$8,0)), "") -> 0 | X13: =IF(ISNUMBER($C13), SUMIFS(Datenblatt!$M:$M, Datenblatt!$G:$G,$C13, Datenblatt!$R:$R,">="&X$8,Datenblatt!$R:$R,"<="&EOMONTH(X$8,0)) - SUMIFS(Datenblatt!$M:$M, Datenblatt!$E:$E,$C13, Datenblatt!$R:$R,">="&X$8,Datenblatt!$R:$R,"<="&EOMONTH(X$8,0)), "") -> 0 | Y13: =IF(ISNUMBER($C13), SUMIFS(Datenblatt!$M:$M, Datenblatt!$G:$G,$C13, Datenblatt!$R:$R,">="&Y$8,Datenblatt!$R:$R,"<="&EOMONTH(Y$8,0)) - SUMIFS(Datenblatt!$M:$M, Datenblatt!$E:$E,$C13, Datenblatt!$R:$R,">="&Y$8,Datenblatt!$R:$R,"<="&EOMONTH(Y$8,0)), "") -> 0 | Z13: =IF(ISNUMBER($C13), SUMIFS(Datenblatt!$M:$M, Datenblatt!$G:$G,$C13, Datenblatt!$R:$R,">="&Z$8,Datenblatt!$R:$R,"<="&EOMONTH(Z$8,0)) - SUMIFS(Datenblatt!$M:$M, Datenblatt!$E:$E,$C13, Datenblatt!$R:$R,">="&Z$8,Datenblatt!$R:$R,"<="&EOMONTH(Z$8,0)), "") -> 0 | AA13: =IF(ISNUMBER($C13), SUMIFS(Datenblatt!$M:$M, Datenblatt!$G:$G,$C13, Datenblatt!$R:$R,">="&AA$8,Datenblatt!$R:$R,"<="&EOMONTH(AA$8,0)) - SUMIFS(Datenblatt!$M:$M, Datenblatt!$E:$E,$C13, Datenblatt!$R:$R,">="&AA$8,Datenblatt!$R:$R,"<="&EOMONTH(AA$8,0)), "") -> 0 | AB13: =IF(ISNUMBER($C13), SUMIFS(Datenblatt!$M:$M, Datenblatt!$G:$G,$C13, Datenblatt!$R:$R,">="&AB$8,Datenblatt!$R:$R,"<="&EOMONTH(AB$8,0)) - SUMIFS(Datenblatt!$M:$M, Datenblatt!$E:$E,$C13, Datenblatt!$R:$R,">="&AB$8,Datenblatt!$R:$R,"<="&EOMONTH(AB$8,0)), "") -> 0 | AC13: =IF(ISNUMBER($C13), SUMIFS(Datenblatt!$M:$M, Datenblatt!$G:$G,$C13, Datenblatt!$R:$R,">="&AC$8,Datenblatt!$R:$R,"<="&EOMONTH(AC$8,0)) - SUMIFS(Datenblatt!$M:$M, Datenblatt!$E:$E,$C13, Datenblatt!$R:$R,">="&AC$8,Datenblatt!$R:$R,"<="&EOMONTH(AC$8,0)), "") -> 0 | AD13: =IF(ISNUMBER($C13), SUMIFS(Datenblatt!$M:$M, Datenblatt!$G:$G,$C13, Datenblatt!$R:$R,">="&AD$8,Datenblatt!$R:$R,"<="&EOMONTH(AD$8,0)) - SUMIFS(Datenblatt!$M:$M, Datenblatt!$E:$E,$C13, Datenblatt!$R:$R,">="&AD$8,Datenblatt!$R:$R,"<="&EOMONTH(AD$8,0)), "") -> 0 | AE13: =IF(ISNUMBER($C13), SUMIFS(Datenblatt!$M:$M, Datenblatt!$G:$G,$C13, Datenblatt!$R:$R,">="&AE$8,Datenblatt!$R:$R,"<="&EOMONTH(AE$8,0)) - SUMIFS(Datenblatt!$M:$M, Datenblatt!$E:$E,$C13, Datenblatt!$R:$R,">="&AE$8,Datenblatt!$R:$R,"<="&EOMONTH(AE$8,0)), "") -> 0 | AF13: =IF(ISNUMBER($C13), SUMIFS(Datenblatt!$M:$M, Datenblatt!$G:$G,$C13, Datenblatt!$R:$R,">="&AF$8,Datenblatt!$R:$R,"<="&EOMONTH(AF$8,0)) - SUMIFS(Datenblatt!$M:$M, Datenblatt!$E:$E,$C13, Datenblatt!$R:$R,">="&AF$8,Datenblatt!$R:$R,"<="&EOMONTH(AF$8,0)), "") -> 0 | AG13: =IF(ISNUMBER($C13), SUMIFS(Datenblatt!$M:$M, Datenblatt!$G:$G,$C13, Datenblatt!$R:$R,">="&AG$8,Datenblatt!$R:$R,"<="&EOMONTH(AG$8,0)) - SUMIFS(Datenblatt!$M:$M, Datenblatt!$E:$E,$C13, Datenblatt!$R:$R,">="&AG$8,Datenblatt!$R:$R,"<="&EOMONTH(AG$8,0)), "") -> 0 | AH13: =IF(ISNUMBER($C13), SUMIFS(Datenblatt!$M:$M, Datenblatt!$G:$G,$C13, Datenblatt!$R:$R,">="&AH$8,Datenblatt!$R:$R,"<="&EOMONTH(AH$8,0)) - SUMIFS(Datenblatt!$M:$M, Datenblatt!$E:$E,$C13, Datenblatt!$R:$R,">="&AH$8,Datenblatt!$R:$R,"<="&EOMONTH(AH$8,0)), "") -> 0 | AI13: =IF(ISNUMBER($C13), SUMIFS(Datenblatt!$M:$M, Datenblatt!$G:$G,$C13, Datenblatt!$R:$R,">="&AI$8,Datenblatt!$R:$R,"<="&EOMONTH(AI$8,0)) - SUMIFS(Datenblatt!$M:$M, Datenblatt!$E:$E,$C13, Datenblatt!$R:$R,">="&AI$8,Datenblatt!$R:$R,"<="&EOMONTH(AI$8,0)), "") -> 0 | AJ13: =IF(ISNUMBER($C13), SUMIFS(Datenblatt!$M:$M, Datenblatt!$G:$G,$C13, Datenblatt!$R:$R,">="&AJ$8,Datenblatt!$R:$R,"<="&EOMONTH(AJ$8,0)) - SUMIFS(Datenblatt!$M:$M, Datenblatt!$E:$E,$C13, Datenblatt!$R:$R,">="&AJ$8,Datenblatt!$R:$R,"<="&EOMONTH(AJ$8,0)), "") -> 0 | AK13: =IF(ISNUMBER($C13), SUMIFS(Datenblatt!$M:$M, Datenblatt!$G:$G,$C13, Datenblatt!$R:$R,">="&AK$8,Datenblatt!$R:$R,"<="&EOMONTH(AK$8,0)) - SUMIFS(Datenblatt!$M:$M, Datenblatt!$E:$E,$C13, Datenblatt!$R:$R,">="&AK$8,Datenblatt!$R:$R,"<="&EOMONTH(AK$8,0)), "") -> 0 | AL13: =IF(ISNUMBER($C13), SUMIFS(Datenblatt!$M:$M, Datenblatt!$G:$G,$C13, Datenblatt!$R:$R,">="&AL$8,Datenblatt!$R:$R,"<="&EOMONTH(AL$8,0)) - SUMIFS(Datenblatt!$M:$M, Datenblatt!$E:$E,$C13, Datenblatt!$R:$R,">="&AL$8,Datenblatt!$R:$R,"<="&EOMONTH(AL$8,0)), "") -> 0 | AM13: =IF(ISNUMBER($C13), SUMIFS(Datenblatt!$M:$M, Datenblatt!$G:$G,$C13, Datenblatt!$R:$R,">="&AM$8,Datenblatt!$R:$R,"<="&EOMONTH(AM$8,0)) - SUMIFS(Datenblatt!$M:$M, Datenblatt!$E:$E,$C13, Datenblatt!$R:$R,">="&AM$8,Datenblatt!$R:$R,"<="&EOMONTH(AM$8,0)), "") -> 0 | AN13: =IF(ISNUMBER($C13), SUMIFS(Datenblatt!$M:$M, Datenblatt!$G:$G,$C13, Datenblatt!$R:$R,">="&AN$8,Datenblatt!$R:$R,"<="&EOMONTH(AN$8,0)) - SUMIFS(Datenblatt!$M:$M, Datenblatt!$E:$E,$C13, Datenblatt!$R:$R,">="&AN$8,Datenblatt!$R:$R,"<="&EOMONTH(AN$8,0)), "") -> 0 | AO13: =IF(ISNUMBER($C13), SUMIFS(Datenblatt!$M:$M, Datenblatt!$G:$G,$C13, Datenblatt!$R:$R,">="&AO$8,Datenblatt!$R:$R,"<="&EOMONTH(AO$8,0)) - SUMIFS(Datenblatt!$M:$M, Datenblatt!$E:$E,$C13, Datenblatt!$R:$R,">="&AO$8,Datenblatt!$R:$R,"<="&EOMONTH(AO$8,0)), "") -> 0 | AP13: =IF(ISNUMBER($C13), SUMIFS(Datenblatt!$M:$M, Datenblatt!$G:$G,$C13, Datenblatt!$R:$R,">="&AP$8,Datenblatt!$R:$R,"<="&EOMONTH(AP$8,0)) - SUMIFS(Datenblatt!$M:$M, Datenblatt!$E:$E,$C13, Datenblatt!$R:$R,">="&AP$8,Datenblatt!$R:$R,"<="&EOMONTH(AP$8,0)), "") -> 0 | AQ13: =IF(ISNUMBER($C13), SUMIFS(Datenblatt!$M:$M, Datenblatt!$G:$G,$C13, Datenblatt!$R:$R,">="&AQ$8,Datenblatt!$R:$R,"<="&EOMONTH(AQ$8,0)) - SUMIFS(Datenblatt!$M:$M, Datenblatt!$E:$E,$C13, Datenblatt!$R:$R,">="&AQ$8,Datenblatt!$R:$R,"<="&EOMONTH(AQ$8,0)), "") -> 0 | AR13: =IF(ISNUMBER($C13), SUMIFS(Datenblatt!$M:$M, Datenblatt!$G:$G,$C13, Datenblatt!$R:$R,">="&AR$8,Datenblatt!$R:$R,"<="&EOMONTH(AR$8,0)) - SUMIFS(Datenblatt!$M:$M, Datenblatt!$E:$E,$C13, Datenblatt!$R:$R,">="&AR$8,Datenblatt!$R:$R,"<="&EOMONTH(AR$8,0)), "") -> 0 | AS13: =IF(ISNUMBER($C13), SUMIFS(Datenblatt!$M:$M, Datenblatt!$G:$G,$C13, Datenblatt!$R:$R,">="&AS$8,Datenblatt!$R:$R,"<="&EOMONTH(AS$8,0)) - SUMIFS(Datenblatt!$M:$M, Datenblatt!$E:$E,$C13, Datenblatt!$R:$R,">="&AS$8,Datenblatt!$R:$R,"<="&EOMONTH(AS$8,0)), "") -> 0 | AT13: =IF(ISNUMBER($C13), SUMIFS(Datenblatt!$M:$M, Datenblatt!$G:$G,$C13, Datenblatt!$R:$R,">="&AT$8,Datenblatt!$R:$R,"<="&EOMONTH(AT$8,0)) - SUMIFS(Datenblatt!$M:$M, Datenblatt!$E:$E,$C13, Datenblatt!$R:$R,">="&AT$8,Datenblatt!$R:$R,"<="&EOMONTH(AT$8,0)), "") -> 0 | AU13: =IF(ISNUMBER($C13), SUMIFS(Datenblatt!$M:$M, Datenblatt!$G:$G,$C13, Datenblatt!$R:$R,">="&AU$8,Datenblatt!$R:$R,"<="&EOMONTH(AU$8,0)) - SUMIFS(Datenblatt!$M:$M, Datenblatt!$E:$E,$C13, Datenblatt!$R:$R,">="&AU$8,Datenblatt!$R:$R,"<="&EOMONTH(AU$8,0)), "") -> 0 | AV13: =IF(ISNUMBER($C13), SUMIFS(Datenblatt!$M:$M, Datenblatt!$G:$G,$C13, Datenblatt!$R:$R,">="&AV$8,Datenblatt!$R:$R,"<="&EOMONTH(AV$8,0)) - SUMIFS(Datenblatt!$M:$M, Datenblatt!$E:$E,$C13, Datenblatt!$R:$R,">="&AV$8,Datenblatt!$R:$R,"<="&EOMONTH(AV$8,0)), "") -> 35.68280807 | AW13: =IF(ISNUMBER($C13), SUMIFS(Datenblatt!$M:$M, Datenblatt!$G:$G,$C13, Datenblatt!$R:$R,">="&AW$8,Datenblatt!$R:$R,"<="&EOMONTH(AW$8,0)) - SUMIFS(Datenblatt!$M:$M, Datenblatt!$E:$E,$C13, Datenblatt!$R:$R,">="&AW$8,Datenblatt!$R:$R,"<="&EOMONTH(AW$8,0)), "") -> 0 | AX13: =IF(ISNUMBER($C13), SUMIFS(Datenblatt!$M:$M, Datenblatt!$G:$G,$C13, Datenblatt!$R:$R,">="&AX$8,Datenblatt!$R:$R,"<="&EOMONTH(AX$8,0)) - SUMIFS(Datenblatt!$M:$M, Datenblatt!$E:$E,$C13, Datenblatt!$R:$R,">="&AX$8,Datenblatt!$R:$R,"<="&EOMONTH(AX$8,0)), "") -> 0 | AY13: =IF(ISNUMBER($C13), SUMIFS(Datenblatt!$M:$M, Datenblatt!$G:$G,$C13, Datenblatt!$R:$R,">="&AY$8,Datenblatt!$R:$R,"<="&EOMONTH(AY$8,0)) - SUMIFS(Datenblatt!$M:$M, Datenblatt!$E:$E,$C13, Datenblatt!$R:$R,">="&AY$8,Datenblatt!$R:$R,"<="&EOMONTH(AY$8,0)), "") -> 0 | AZ13: =IF(ISNUMBER($C13), SUMIFS(Datenblatt!$M:$M, Datenblatt!$G:$G,$C13, Datenblatt!$R:$R,">="&AZ$8,Datenblatt!$R:$R,"<="&EOMONTH(AZ$8,0)) - SUMIFS(Datenblatt!$M:$M, Datenblatt!$E:$E,$C13, Datenblatt!$R:$R,">="&AZ$8,Datenblatt!$R:$R,"<="&EOMONTH(AZ$8,0)), "") -> 0 | BA13: =IF(ISNUMBER($C13), SUMIFS(Datenblatt!$M:$M, Datenblatt!$G:$G,$C13, Datenblatt!$R:$R,">="&BA$8,Datenblatt!$R:$R,"<="&EOMONTH(BA$8,0)) - SUMIFS(Datenblatt!$M:$M, Datenblatt!$E:$E,$C13, Datenblatt!$R:$R,">="&BA$8,Datenblatt!$R:$R,"<="&EOMONTH(BA$8,0)), "") -> 0 | BB13: =IF(ISNUMBER($C13), SUMIFS(Datenblatt!$M:$M, Datenblatt!$G:$G,$C13, Datenblatt!$R:$R,">="&BB$8,Datenblatt!$R:$R,"<="&EOMONTH(BB$8,0)) - SUMIFS(Datenblatt!$M:$M, Datenblatt!$E:$E,$C13, Datenblatt!$R:$R,">="&BB$8,Datenblatt!$R:$R,"<="&EOMONTH(BB$8,0)), "") -> 0 | BC13: =IF(ISNUMBER($C13), SUMIFS(Datenblatt!$M:$M, Datenblatt!$G:$G,$C13, Datenblatt!$R:$R,">="&BC$8,Datenblatt!$R:$R,"<="&EOMONTH(BC$8,0)) - SUMIFS(Datenblatt!$M:$M, Datenblatt!$E:$E,$C13, Datenblatt!$R:$R,">="&BC$8,Datenblatt!$R:$R,"<="&EOMONTH(BC$8,0)), "") -> 0 | BD13: =IF(ISNUMBER($C13), SUMIFS(Datenblatt!$M:$M, Datenblatt!$G:$G,$C13, Datenblatt!$R:$R,">="&BD$8,Datenblatt!$R:$R,"<="&EOMONTH(BD$8,0)) - SUMIFS(Datenblatt!$M:$M, Datenblatt!$E:$E,$C13, Datenblatt!$R:$R,">="&BD$8,Datenblatt!$R:$R,"<="&EOMONTH(BD$8,0)), "") -> 0 | BE13: =IF(ISNUMBER($C13), SUMIFS(Datenblatt!$M:$M, Datenblatt!$G:$G,$C13, Datenblatt!$R:$R,">="&BE$8,Datenblatt!$R:$R,"<="&EOMONTH(BE$8,0)) - SUMIFS(Datenblatt!$M:$M, Datenblatt!$E:$E,$C13, Datenblatt!$R:$R,">="&BE$8,Datenblatt!$R:$R,"<="&EOMONTH(BE$8,0)), "") -> 0 | BF13: =IF(ISNUMBER($C13), SUMIFS(Datenblatt!$M:$M, Datenblatt!$G:$G,$C13, Datenblatt!$R:$R,">="&BF$8,Datenblatt!$R:$R,"<="&EOMONTH(BF$8,0)) - SUMIFS(Datenblatt!$M:$M, Datenblatt!$E:$E,$C13, Datenblatt!$R:$R,">="&BF$8,Datenblatt!$R:$R,"<="&EOMONTH(BF$8,0)), "") -> 0 | BG13: =IF(ISNUMBER($C13), SUMIFS(Datenblatt!$M:$M, Datenblatt!$G:$G,$C13, Datenblatt!$R:$R,">="&BG$8,Datenblatt!$R:$R,"<="&EOMONTH(BG$8,0)) - SUMIFS(Datenblatt!$M:$M, Datenblatt!$E:$E,$C13, Datenblatt!$R:$R,">="&BG$8,Datenblatt!$R:$R,"<="&EOMONTH(BG$8,0)), "") -> 0 | BH13: =IF(ISNUMBER($C13), SUMIFS(Datenblatt!$M:$M, Datenblatt!$G:$G,$C13, Datenblatt!$R:$R,">="&BH$8,Datenblatt!$R:$R,"<="&EOMONTH(BH$8,0)) - SUMIFS(Datenblatt!$M:$M, Datenblatt!$E:$E,$C13, Datenblatt!$R:$R,">="&BH$8,Datenblatt!$R:$R,"<="&EOMONTH(BH$8,0)), "") -> 0 | BI13: =IF(ISNUMBER($C13), SUMIFS(Datenblatt!$M:$M, Datenblatt!$G:$G,$C13, Datenblatt!$R:$R,">="&BI$8,Datenblatt!$R:$R,"<="&EOMONTH(BI$8,0)) - SUMIFS(Datenblatt!$M:$M, Datenblatt!$E:$E,$C13, Datenblatt!$R:$R,">="&BI$8,Datenblatt!$R:$R,"<="&EOMONTH(BI$8,0)), "") -> 0 | BJ13: =IF(ISNUMBER($C13), SUMIFS(Datenblatt!$M:$M, Datenblatt!$G:$G,$C13, Datenblatt!$R:$R,">="&BJ$8,Datenblatt!$R:$R,"<="&EOMONTH(BJ$8,0)) - SUMIFS(Datenblatt!$M:$M, Datenblatt!$E:$E,$C13, Datenblatt!$R:$R,">="&BJ$8,Datenblatt!$R:$R,"<="&EOMONTH(BJ$8,0)), "") -> 0 | BK13: =IF(ISNUMBER($C13), SUMIFS(Datenblatt!$M:$M, Datenblatt!$G:$G,$C13, Datenblatt!$R:$R,">="&BK$8,Datenblatt!$R:$R,"<="&EOMONTH(BK$8,0)) - SUMIFS(Datenblatt!$M:$M, Datenblatt!$E:$E,$C13, Datenblatt!$R:$R,">="&BK$8,Datenblatt!$R:$R,"<="&EOMONTH(BK$8,0)), "") -> 0 | BL13: =IF(ISNUMBER($C13), SUMIFS(Datenblatt!$M:$M, Datenblatt!$G:$G,$C13, Datenblatt!$R:$R,">="&BL$8,Datenblatt!$R:$R,"<="&EOMONTH(BL$8,0)) - SUMIFS(Datenblatt!$M:$M, Datenblatt!$E:$E,$C13, Datenblatt!$R:$R,">="&BL$8,Datenblatt!$R:$R,"<="&EOMONTH(BL$8,0)), "") -> 0 | BM13: =IF(ISNUMBER($C13), SUMIFS(Datenblatt!$M:$M, Datenblatt!$G:$G,$C13, Datenblatt!$R:$R,">="&BM$8,Datenblatt!$R:$R,"<="&EOMONTH(BM$8,0)) - SUMIFS(Datenblatt!$M:$M, Datenblatt!$E:$E,$C13, Datenblatt!$R:$R,">="&BM$8,Datenblatt!$R:$R,"<="&EOMONTH(BM$8,0)), "") -> 0 | BN13: =IF(ISNUMBER($C13), SUMIFS(Datenblatt!$M:$M, Datenblatt!$G:$G,$C13, Datenblatt!$R:$R,">="&BN$8,Datenblatt!$R:$R,"<="&EOMONTH(BN$8,0)) - SUMIFS(Datenblatt!$M:$M, Datenblatt!$E:$E,$C13, Datenblatt!$R:$R,">="&BN$8,Datenblatt!$R:$R,"<="&EOMONTH(BN$8,0)), "") -> 0 | BO13: =IF(ISNUMBER($C13), SUMIFS(Datenblatt!$M:$M, Datenblatt!$G:$G,$C13, Datenblatt!$R:$R,">="&BO$8,Datenblatt!$R:$R,"<="&EOMONTH(BO$8,0)) - SUMIFS(Datenblatt!$M:$M, Datenblatt!$E:$E,$C13, Datenblatt!$R:$R,">="&BO$8,Datenblatt!$R:$R,"<="&EOMONTH(BO$8,0)), "") -> 0 | BP13: =IF(ISNUMBER($C13), SUMIFS(Datenblatt!$M:$M, Datenblatt!$G:$G,$C13, Datenblatt!$R:$R,">="&BP$8,Datenblatt!$R:$R,"<="&EOMONTH(BP$8,0)) - SUMIFS(Datenblatt!$M:$M, Datenblatt!$E:$E,$C13, Datenblatt!$R:$R,">="&BP$8,Datenblatt!$R:$R,"<="&EOMONTH(BP$8,0)), "") -> 0 | BQ13: =IF(ISNUMBER($C13), SUMIFS(Datenblatt!$M:$M, Datenblatt!$G:$G,$C13, Datenblatt!$R:$R,">="&BQ$8,Datenblatt!$R:$R,"<="&EOMONTH(BQ$8,0)) - SUMIFS(Datenblatt!$M:$M, Datenblatt!$E:$E,$C13, Datenblatt!$R:$R,">="&BQ$8,Datenblatt!$R:$R,"<="&EOMONTH(BQ$8,0)), "") -> 0 | BR13: =IF(ISNUMBER($C13), SUMIFS(Datenblatt!$M:$M, Datenblatt!$G:$G,$C13, Datenblatt!$R:$R,">="&BR$8,Datenblatt!$R:$R,"<="&EOMONTH(BR$8,0)) - SUMIFS(Datenblatt!$M:$M, Datenblatt!$E:$E,$C13, Datenblatt!$R:$R,">="&BR$8,Datenblatt!$R:$R,"<="&EOMONTH(BR$8,0)), "") -> 0 | BS13: =IF(ISNUMBER($C13), SUMIFS(Datenblatt!$M:$M, Datenblatt!$G:$G,$C13, Datenblatt!$R:$R,">="&BS$8,Datenblatt!$R:$R,"<="&EOMONTH(BS$8,0)) - SUMIFS(Datenblatt!$M:$M, Datenblatt!$E:$E,$C13, Datenblatt!$R:$R,">="&BS$8,Datenblatt!$R:$R,"<="&EOMONTH(BS$8,0)), "") -> 0 | BT13: =IF(ISNUMBER($C13), SUMIFS(Datenblatt!$M:$M, Datenblatt!$G:$G,$C13, Datenblatt!$R:$R,">="&BT$8,Datenblatt!$R:$R,"<="&EOMONTH(BT$8,0)) - SUMIFS(Datenblatt!$M:$M, Datenblatt!$E:$E,$C13, Datenblatt!$R:$R,">="&BT$8,Datenblatt!$R:$R,"<="&EOMONTH(BT$8,0)), "") -> 35.68280807 | BU13: =IF(ISNUMBER($C13), SUMIFS(Datenblatt!$M:$M, Datenblatt!$G:$G,$C13, Datenblatt!$R:$R,">="&BU$8,Datenblatt!$R:$R,"<="&EOMONTH(BU$8,0)) - SUMIFS(Datenblatt!$M:$M, Datenblatt!$E:$E,$C13, Datenblatt!$R:$R,">="&BU$8,Datenblatt!$R:$R,"<="&EOMONTH(BU$8,0)), "") -> 0 | BV13: =IF(ISNUMBER($C13), SUMIFS(Datenblatt!$M:$M, Datenblatt!$G:$G,$C13, Datenblatt!$R:$R,">="&BV$8,Datenblatt!$R:$R,"<="&EOMONTH(BV$8,0)) - SUMIFS(Datenblatt!$M:$M, Datenblatt!$E:$E,$C13, Datenblatt!$R:$R,">="&BV$8,Datenblatt!$R:$R,"<="&EOMONTH(BV$8,0)), "") -> 0 | BW13: =IF(ISNUMBER($C13), SUMIFS(Datenblatt!$M:$M, Datenblatt!$G:$G,$C13, Datenblatt!$R:$R,">="&BW$8,Datenblatt!$R:$R,"<="&EOMONTH(BW$8,0)) - SUMIFS(Datenblatt!$M:$M, Datenblatt!$E:$E,$C13, Datenblatt!$R:$R,">="&BW$8,Datenblatt!$R:$R,"<="&EOMONTH(BW$8,0)), "") -> 0 | BX13: =IF(ISNUMBER($C13), SUMIFS(Datenblatt!$M:$M, Datenblatt!$G:$G,$C13, Datenblatt!$R:$R,">="&BX$8,Datenblatt!$R:$R,"<="&EOMONTH(BX$8,0)) - SUMIFS(Datenblatt!$M:$M, Datenblatt!$E:$E,$C13, Datenblatt!$R:$R,">="&BX$8,Datenblatt!$R:$R,"<="&EOMONTH(BX$8,0)), "") -> 0 | BY13: =IF(ISNUMBER($C13), SUMIFS(Datenblatt!$M:$M, Datenblatt!$G:$G,$C13, Datenblatt!$R:$R,">="&BY$8,Datenblatt!$R:$R,"<="&EOMONTH(BY$8,0)) - SUMIFS(Datenblatt!$M:$M, Datenblatt!$E:$E,$C13, Datenblatt!$R:$R,">="&BY$8,Datenblatt!$R:$R,"<="&EOMONTH(BY$8,0)), "") -> 0 | BZ13: =IF(ISNUMBER($C13), SUMIFS(Datenblatt!$M:$M, Datenblatt!$G:$G,$C13, Datenblatt!$R:$R,">="&BZ$8,Datenblatt!$R:$R,"<="&EOMONTH(BZ$8,0)) - SUMIFS(Datenblatt!$M:$M, Datenblatt!$E:$E,$C13, Datenblatt!$R:$R,">="&BZ$8,Datenblatt!$R:$R,"<="&EOMONTH(BZ$8,0)), "") -> 0 | CA13: =IF(ISNUMBER($C13), SUMIFS(Datenblatt!$M:$M, Datenblatt!$G:$G,$C13, Datenblatt!$R:$R,">="&CA$8,Datenblatt!$R:$R,"<="&EOMONTH(CA$8,0)) - SUMIFS(Datenblatt!$M:$M, Datenblatt!$E:$E,$C13, Datenblatt!$R:$R,">="&CA$8,Datenblatt!$R:$R,"<="&EOMONTH(CA$8,0)), "") -> 0 | CB13: =IF(ISNUMBER($C13), SUMIFS(Datenblatt!$M:$M, Datenblatt!$G:$G,$C13, Datenblatt!$R:$R,">="&CB$8,Datenblatt!$R:$R,"<="&EOMONTH(CB$8,0)) - SUMIFS(Datenblatt!$M:$M, Datenblatt!$E:$E,$C13, Datenblatt!$R:$R,">="&CB$8,Datenblatt!$R:$R,"<="&EOMONTH(CB$8,0)), "") -> 0 | CC13: =IF(ISNUMBER($C13), SUMIFS(Datenblatt!$M:$M, Datenblatt!$G:$G,$C13, Datenblatt!$R:$R,">="&CC$8,Datenblatt!$R:$R,"<="&EOMONTH(CC$8,0)) - SUMIFS(Datenblatt!$M:$M, Datenblatt!$E:$E,$C13, Datenblatt!$R:$R,">="&CC$8,Datenblatt!$R:$R,"<="&EOMONTH(CC$8,0)), "") -> 0 | CD13: =IF(ISNUMBER($C13), SUMIFS(Datenblatt!$M:$M, Datenblatt!$G:$G,$C13, Datenblatt!$R:$R,">="&CD$8,Datenblatt!$R:$R,"<="&EOMONTH(CD$8,0)) - SUMIFS(Datenblatt!$M:$M, Datenblatt!$E:$E,$C13, Datenblatt!$R:$R,">="&CD$8,Datenblatt!$R:$R,"<="&EOMONTH(CD$8,0)), "") -> 0 | CE13: =IF(ISNUMBER($C13), SUMIFS(Datenblatt!$M:$M, Datenblatt!$G:$G,$C13, Datenblatt!$R:$R,">="&CE$8,Datenblatt!$R:$R,"<="&EOMONTH(CE$8,0)) - SUMIFS(Datenblatt!$M:$M, Datenblatt!$E:$E,$C13, Datenblatt!$R:$R,">="&CE$8,Datenblatt!$R:$R,"<="&EOMONTH(CE$8,0)), "") -> 0 | CF13: =IF(ISNUMBER($C13), SUMIFS(Datenblatt!$M:$M, Datenblatt!$G:$G,$C13, Datenblatt!$R:$R,">="&CF$8,Datenblatt!$R:$R,"<="&EOMONTH(CF$8,0)) - SUMIFS(Datenblatt!$M:$M, Datenblatt!$E:$E,$C13, Datenblatt!$R:$R,">="&CF$8,Datenblatt!$R:$R,"<="&EOMONTH(CF$8,0)), "") -> 35.68280807 | CG13: =IF(ISNUMBER($C13), SUMIFS(Datenblatt!$M:$M, Datenblatt!$G:$G,$C13, Datenblatt!$R:$R,">="&CG$8,Datenblatt!$R:$R,"<="&EOMONTH(CG$8,0)) - SUMIFS(Datenblatt!$M:$M, Datenblatt!$E:$E,$C13, Datenblatt!$R:$R,">="&CG$8,Datenblatt!$R:$R,"<="&EOMONTH(CG$8,0)), "") -> 0 | CH13: =IF(ISNUMBER($C13), SUMIFS(Datenblatt!$M:$M, Datenblatt!$G:$G,$C13, Datenblatt!$R:$R,">="&CH$8,Datenblatt!$R:$R,"<="&EOMONTH(CH$8,0)) - SUMIFS(Datenblatt!$M:$M, Datenblatt!$E:$E,$C13, Datenblatt!$R:$R,">="&CH$8,Datenblatt!$R:$R,"<="&EOMONTH(CH$8,0)), "") -> 0 | CI13: =IF(ISNUMBER($C13), SUMIFS(Datenblatt!$M:$M, Datenblatt!$G:$G,$C13, Datenblatt!$R:$R,">="&CI$8,Datenblatt!$R:$R,"<="&EOMONTH(CI$8,0)) - SUMIFS(Datenblatt!$M:$M, Datenblatt!$E:$E,$C13, Datenblatt!$R:$R,">="&CI$8,Datenblatt!$R:$R,"<="&EOMONTH(CI$8,0)), "") -> 0 | CJ13: =IF(ISNUMBER($C13), SUMIFS(Datenblatt!$M:$M, Datenblatt!$G:$G,$C13, Datenblatt!$R:$R,">="&CJ$8,Datenblatt!$R:$R,"<="&EOMONTH(CJ$8,0)) - SUMIFS(Datenblatt!$M:$M, Datenblatt!$E:$E,$C13, Datenblatt!$R:$R,">="&CJ$8,Datenblatt!$R:$R,"<="&EOMONTH(CJ$8,0)), "") -> 0 | CK13: =IF(ISNUMBER($C13), SUMIFS(Datenblatt!$M:$M, Datenblatt!$G:$G,$C13, Datenblatt!$R:$R,">="&CK$8,Datenblatt!$R:$R,"<="&EOMONTH(CK$8,0)) - SUMIFS(Datenblatt!$M:$M, Datenblatt!$E:$E,$C13, Datenblatt!$R:$R,">="&CK$8,Datenblatt!$R:$R,"<="&EOMONTH(CK$8,0)), "") -> 0 | CL13: =IF(ISNUMBER($C13), SUMIFS(Datenblatt!$M:$M, Datenblatt!$G:$G,$C13, Datenblatt!$R:$R,">="&CL$8,Datenblatt!$R:$R,"<="&EOMONTH(CL$8,0)) - SUMIFS(Datenblatt!$M:$M, Datenblatt!$E:$E,$C13, Datenblatt!$R:$R,">="&CL$8,Datenblatt!$R:$R,"<="&EOMONTH(CL$8,0)), "") -> 0 | CM13: =IF(ISNUMBER($C13), SUMIFS(Datenblatt!$M:$M, Datenblatt!$G:$G,$C13, Datenblatt!$R:$R,">="&CM$8,Datenblatt!$R:$R,"<="&EOMONTH(CM$8,0)) - SUMIFS(Datenblatt!$M:$M, Datenblatt!$E:$E,$C13, Datenblatt!$R:$R,">="&CM$8,Datenblatt!$R:$R,"<="&EOMONTH(CM$8,0)), "") -> 0 | CN13: =IF(ISNUMBER($C13), SUMIFS(Datenblatt!$M:$M, Datenblatt!$G:$G,$C13, Datenblatt!$R:$R,">="&CN$8,Datenblatt!$R:$R,"<="&EOMONTH(CN$8,0)) - SUMIFS(Datenblatt!$M:$M, Datenblatt!$E:$E,$C13, Datenblatt!$R:$R,">="&CN$8,Datenblatt!$R:$R,"<="&EOMONTH(CN$8,0)), "") -> 0 | CO13: =IF(ISNUMBER($C13), SUMIFS(Datenblatt!$M:$M, Datenblatt!$G:$G,$C13, Datenblatt!$R:$R,">="&CO$8,Datenblatt!$R:$R,"<="&EOMONTH(CO$8,0)) - SUMIFS(Datenblatt!$M:$M, Datenblatt!$E:$E,$C13, Datenblatt!$R:$R,">="&CO$8,Datenblatt!$R:$R,"<="&EOMONTH(CO$8,0)), "") -> 0 | CP13: =IF(ISNUMBER($C13), SUMIFS(Datenblatt!$M:$M, Datenblatt!$G:$G,$C13, Datenblatt!$R:$R,">="&CP$8,Datenblatt!$R:$R,"<="&EOMONTH(CP$8,0)) - SUMIFS(Datenblatt!$M:$M, Datenblatt!$E:$E,$C13, Datenblatt!$R:$R,">="&CP$8,Datenblatt!$R:$R,"<="&EOMONTH(CP$8,0)), "") -> 0 | CQ13: =IF(ISNUMBER($C13), SUMIFS(Datenblatt!$M:$M, Datenblatt!$G:$G,$C13, Datenblatt!$R:$R,">="&CQ$8,Datenblatt!$R:$R,"<="&EOMONTH(CQ$8,0)) - SUMIFS(Datenblatt!$M:$M, Datenblatt!$E:$E,$C13, Datenblatt!$R:$R,">="&CQ$8,Datenblatt!$R:$R,"<="&EOMONTH(CQ$8,0)), "") -> 0 | CR13: =IF(ISNUMBER($C13), SUMIFS(Datenblatt!$M:$M, Datenblatt!$G:$G,$C13, Datenblatt!$R:$R,">="&CR$8,Datenblatt!$R:$R,"<="&EOMONTH(CR$8,0)) - SUMIFS(Datenblatt!$M:$M, Datenblatt!$E:$E,$C13, Datenblatt!$R:$R,">="&CR$8,Datenblatt!$R:$R,"<="&EOMONTH(CR$8,0)), "") -> 0 | CS13: =IF(ISNUMBER($C13), SUMIFS(Datenblatt!$M:$M, Datenblatt!$G:$G,$C13, Datenblatt!$R:$R,">="&CS$8,Datenblatt!$R:$R,"<="&EOMONTH(CS$8,0)) - SUMIFS(Datenblatt!$M:$M, Datenblatt!$E:$E,$C13, Datenblatt!$R:$R,">="&CS$8,Datenblatt!$R:$R,"<="&EOMONTH(CS$8,0)), "") -> 0 | CT13: =IF(ISNUMBER($C13), SUMIFS(Datenblatt!$M:$M, Datenblatt!$G:$G,$C13, Datenblatt!$R:$R,">="&CT$8,Datenblatt!$R:$R,"<="&EOMONTH(CT$8,0)) - SUMIFS(Datenblatt!$M:$M, Datenblatt!$E:$E,$C13, Datenblatt!$R:$R,">="&CT$8,Datenblatt!$R:$R,"<="&EOMONTH(CT$8,0)), "") -> 0 | CU13: =IF(ISNUMBER($C13), SUMIFS(Datenblatt!$M:$M, Datenblatt!$G:$G,$C13, Datenblatt!$R:$R,">="&CU$8,Datenblatt!$R:$R,"<="&EOMONTH(CU$8,0)) - SUMIFS(Datenblatt!$M:$M, Datenblatt!$E:$E,$C13, Datenblatt!$R:$R,">="&CU$8,Datenblatt!$R:$R,"<="&EOMONTH(CU$8,0)), "") -> 0 | CV13: =IF(ISNUMBER($C13), SUMIFS(Datenblatt!$M:$M, Datenblatt!$G:$G,$C13, Datenblatt!$R:$R,">="&CV$8,Datenblatt!$R:$R,"<="&EOMONTH(CV$8,0)) - SUMIFS(Datenblatt!$M:$M, Datenblatt!$E:$E,$C13, Datenblatt!$R:$R,">="&CV$8,Datenblatt!$R:$R,"<="&EOMONTH(CV$8,0)), "") -> 0 | CW13: =IF(ISNUMBER($C13), SUMIFS(Datenblatt!$M:$M, Datenblatt!$G:$G,$C13, Datenblatt!$R:$R,">="&CW$8,Datenblatt!$R:$R,"<="&EOMONTH(CW$8,0)) - SUMIFS(Datenblatt!$M:$M, Datenblatt!$E:$E,$C13, Datenblatt!$R:$R,">="&CW$8,Datenblatt!$R:$R,"<="&EOMONTH(CW$8,0)), "") -> 0 | CX13: =IF(ISNUMBER($C13), SUMIFS(Datenblatt!$M:$M, Datenblatt!$G:$G,$C13, Datenblatt!$R:$R,">="&CX$8,Datenblatt!$R:$R,"<="&EOMONTH(CX$8,0)) - SUMIFS(Datenblatt!$M:$M, Datenblatt!$E:$E,$C13, Datenblatt!$R:$R,">="&CX$8,Datenblatt!$R:$R,"<="&EOMONTH(CX$8,0)), "") -> 0 | CY13: =IF(ISNUMBER($C13), SUMIFS(Datenblatt!$M:$M, Datenblatt!$G:$G,$C13, Datenblatt!$R:$R,">="&CY$8,Datenblatt!$R:$R,"<="&EOMONTH(CY$8,0)) - SUMIFS(Datenblatt!$M:$M, Datenblatt!$E:$E,$C13, Datenblatt!$R:$R,">="&CY$8,Datenblatt!$R:$R,"<="&EOMONTH(CY$8,0)), "") -> 0 | CZ13: =IF(ISNUMBER($C13), SUMIFS(Datenblatt!$M:$M, Datenblatt!$G:$G,$C13, Datenblatt!$R:$R,">="&CZ$8,Datenblatt!$R:$R,"<="&EOMONTH(CZ$8,0)) - SUMIFS(Datenblatt!$M:$M, Datenblatt!$E:$E,$C13, Datenblatt!$R:$R,">="&CZ$8,Datenblatt!$R:$R,"<="&EOMONTH(CZ$8,0)), "") -> 0 | DA13: =IF(ISNUMBER($C13), SUMIFS(Datenblatt!$M:$M, Datenblatt!$G:$G,$C13, Datenblatt!$R:$R,">="&DA$8,Datenblatt!$R:$R,"<="&EOMONTH(DA$8,0)) - SUMIFS(Datenblatt!$M:$M, Datenblatt!$E:$E,$C13, Datenblatt!$R:$R,">="&DA$8,Datenblatt!$R:$R,"<="&EOMONTH(DA$8,0)), "") -> 0 | DB13: =IF(ISNUMBER($C13), SUMIFS(Datenblatt!$M:$M, Datenblatt!$G:$G,$C13, Datenblatt!$R:$R,">="&DB$8,Datenblatt!$R:$R,"<="&EOMONTH(DB$8,0)) - SUMIFS(Datenblatt!$M:$M, Datenblatt!$E:$E,$C13, Datenblatt!$R:$R,">="&DB$8,Datenblatt!$R:$R,"<="&EOMONTH(DB$8,0)), "") -> 0 | DC13: =IF(ISNUMBER($C13), SUMIFS(Datenblatt!$M:$M, Datenblatt!$G:$G,$C13, Datenblatt!$R:$R,">="&DC$8,Datenblatt!$R:$R,"<="&EOMONTH(DC$8,0)) - SUMIFS(Datenblatt!$M:$M, Datenblatt!$E:$E,$C13, Datenblatt!$R:$R,">="&DC$8,Datenblatt!$R:$R,"<="&EOMONTH(DC$8,0)), "") -> 0 | DD13: =IF(ISNUMBER($C13), SUMIFS(Datenblatt!$M:$M, Datenblatt!$G:$G,$C13, Datenblatt!$R:$R,">="&DD$8,Datenblatt!$R:$R,"<="&EOMONTH(DD$8,0)) - SUMIFS(Datenblatt!$M:$M, Datenblatt!$E:$E,$C13, Datenblatt!$R:$R,">="&DD$8,Datenblatt!$R:$R,"<="&EOMONTH(DD$8,0)), "") -> 0 | DE13: =IF(ISNUMBER($C13), SUMIFS(Datenblatt!$M:$M, Datenblatt!$G:$G,$C13, Datenblatt!$R:$R,">="&DE$8,Datenblatt!$R:$R,"<="&EOMONTH(DE$8,0)) - SUMIFS(Datenblatt!$M:$M, Datenblatt!$E:$E,$C13, Datenblatt!$R:$R,">="&DE$8,Datenblatt!$R:$R,"<="&EOMONTH(DE$8,0)), "") -> 0 | DF13: =IF(ISNUMBER($C13), SUMIFS(Datenblatt!$M:$M, Datenblatt!$G:$G,$C13, Datenblatt!$R:$R,">="&DF$8,Datenblatt!$R:$R,"<="&EOMONTH(DF$8,0)) - SUMIFS(Datenblatt!$M:$M, Datenblatt!$E:$E,$C13, Datenblatt!$R:$R,">="&DF$8,Datenblatt!$R:$R,"<="&EOMONTH(DF$8,0)), "") -> 0
